Workbook

Sheet Notes
A1: Windowing.xlsm; Traders Tip spreadsheet created for the September 2021 Issue
A2: Coded beginning 2021-Jul-10 by Ronald McAllister (rpmac_xltt@sprynet.com)
A4: This Workbook demonstrates an EXCEL version of the ideas presented
A5: by John Ehlers in an article titled "Windowing", which originally appeared in the September 2021 issue of
A6: "Technical Analysis of Stocks and Commodities" magazine.
A8: * * * * * * * * * * * * * * * *
A12: New for May 2021
A13: Upgraded the data download logic to do a better job of catching the common data download errors and provide a more graceful resolution.
A14: This includes better user notification of the nature of the error and some user control over how the error should be handled.
A15: User notification comes in the form of a MSGbox display that includes the (sometimes cryptic) description of the error and offers the user three options.
A17: Abort - If I could customize the title, I would rename this button to "Debug"
A18: This choice places you in Debug mode at the failing VBA statement.
A19: Unless you are feeling good about your VBA (and Network) debugging skills, this is probably not for you.
A21: Retry
A22: Lets the code retry the failed download request.
A23: This is a reasonable option if the download request timed out (similar to video buffering) or your network connection has dropped out..
A24: Probably a good idea to make sure your internet connection is alive and well before you select Retry.
A26: Ignore
A27: Lets the code fall thru to a (hopefully) graceful error completion with the error indicated at the top of the InputPriceData tab
A29: New for August 2020
A30: Restructured my Symbol-Not-Found detection and now stop further processing in the not found case
A32: New with the May 2020 version of my T-Tips template: VBA to implement a "Perpetual" U.S. Markets Closed Holiday Calendar.
A34: Why we need one: The Yahoo Finance recently has begun having occasional filtration problems where bars for U.S. Market Closed Holidays
A35: make their way onto the Historical Data web page and into the Historical Data download.
A37: While testing this May 2020 spreadsheet with different symbols, I found that I sometimes had bars with the text "null" in the price fields.
A38: My code always translates the "null" text price values to zeros.
A39: The resulting zeros cause real problems with indicator computations and the amount of blank space below price candles on the price chart.
A41: "null" price bars can be valid for very lightly traded penny sheet symbols which may not trade every day the markets are open.
A42: But is definitely not normal for symbols on the big boards.
A44: A closer look determined that these "bars" were for holiday dates when the US markets are normally closed.
A45: I found it interesting that some times the next download for the same symbol would not contain any of these "holiday" bars. Weird!
A47: My approach here was to write code to determine if the DATE on a null price values bar falls on one of the 9 market closed U.S. Holidays.
A48: If the bar date corresponds to one of these market closed holidays, I drop the bar before it reaches the InputPriceData tab.
A49: If the date is not a holiday, I let the bar through with the resulting zero values.
A51: No messy tables to update over the years as there are good solid rules that can be used in VBA or any other programming language to determine
A52: the dates for U.S. Market Closed Holidays for any given calendar year.
A54: This workbook contains and uses VBA macros and may take advantage of user defined VBA Class structures.
A55: Input Data:
A56: The data in this workbook is sorted date-descending (most recent date at the top). All cell formulas and
A57: VBA routines are built assuming this date sequence.
A59: ERROR 9 (already fixed in this spreadsheet)
A60: On or about Jan 29, 2020 Yahoo Finance changed the format of the split factor expression used their historical data downloads.
A61: The Split expression went from using "/" as in "New Share Number/Old Share Number",
A62: to using ":" as in "New Share Number:Old Share Number".
A63: This caused the then current version of my VBA code to fail with a "Runtime Error '9': subscript out of range".
A65: Fix for this ERROR 9
A66: For T-Tip spreadsheets from September 2018 up to present:
A67: Selecting the Debug option takes one into the VBA at the code line which causes the failure:
A68: CellArray(C_A_RowNdx, C_A_ColNdx + 1) = SplitFactors(1)
A69: Two lines above the failing VBA line is a line that reads:
A70: SplitFactors = Split(CsvColumns(CsvColNdx), "/")
A71: Change the / to a :
A72: The corrected line should now read
A73: SplitFactors = Split(CsvColumns(CsvColNdx), ":")
A75: If you are fixing several spreadsheets and do not want to use the failure to find the fix location,
A76: you can use VBA’s FIND dialog (Ctrl F) to look for the substring
A77: SplitFactors =
A78: Do include one space and the equal sign in your FIND string
A79: Select the "Current Project" option
A80: There should only be one instance.
A82: T-Tip spreadsheets prior to the September 2018 spreadsheet do not hard fail.
A84: They just get weird results in the split columns of the Input Price Data tab (soft fail).
A85: These older spreadsheets used different data retrieval and formatting logic.
A87: To fix these older spreadsheets:
A88: In the VBA editor, use find (CTRL-F).
A89: Select the "Current Project" option, and search for the following:
A90: OtherChar:="/"
A91: You are looking for a hit in a line reading:
A92: Other:=True, OtherChar:="/", _
A93: This line is part of a multiline block of code starting with a line that reads:
A94: SplitRange.Offset(0, 1).Resize(SpRows, 1).TextToColumns
A95: Change the / to a : so that the line reads
A96: Other:=True, OtherChar:=":", _
A99: 2019-04-04 Finally came up with a mechanism to align the left location and overall length of the cursor scroll bar so that the left most and right most
A100: scroll bar thumb positions visually align reasonably well with the left and right ends of the price chart horizontal axis.
A101: Makes it a little easier to visually align the Thumb and thus the cursor with points of interest on the charts.
A103: Older:
B104: My sincere apologies to our Macintosh based readers: Neither MSXML nor WinHttpRequest are supported in your environment. So as it stands this version of the spreadsheet will not work for you.
B105: See "Why this approach does not work for Macintosh" below.
B106: I am investigating cURL as a non-Querytable based approach for the Macintosh environment.
A108: The new Yahoo Finance history download interface has changed rather radically. The biggest hurdle being a pseudo-security requirement of adding a
B109: crumb character string to any URL requesting any type of history download. That crumb must match up (by way of some sort of hash algorithm) with
B110: the Yahoo Finance cookie that must also be sent with any request to the new Yahoo History down load interface.
B112: A crumb value is returned, buried in the HTML for any of what I call the "entry level" Yahoo Finance web pages (no crumb security requirement for entry level pages).
B113: A crumb may come with other Yahoo Finance pages. A crumb may even accompany some of the secured pages as well. I have not checked.
B115: Entry level pages are the top level pages of the various Yahoo Finance dialogs and include: Quote Lookup, Stock Summary Quote, and any of the pages
B116: with links in the horizontal row with the "Summary" link on the quote summary page such as Options, Historical Data, and the rest.
B118: To date I have found no way to get at this crumb value using any native EXCEL capabilities.
B120: So this crumb requirement effectively shuts out any solution that attempts to exclusively use built-in facilities of EXCEL, which is to say a purely Querytables solution.
B122: The approach built for this Traders Tip spreadsheet uses WINHTTP calls to Load the InputPriceData worksheet.
B124: First I call to get the HTML text for the Yahoo Summary Quote page using the requested symbol. From this HTML text I extract the full company name,
B125: the market it trades, the market status and time stamp, and finally the associated crumb string. There is a bunch of other useful bits buried in this HTML
B126: text that do not necessarily appear on the web page your browser presents. Perhaps some day I will go after and build a worksheet with these other bits.
B128: Next I add the freshly extracted crumb string to the URLs I use in three separate WINHTTP calls to retrieve Price history, Split history, and Dividend history respectively.
B130: From there VBA code proceeds as in the past to fill in the cell formulas and formatting that make the "prettied up" InputPriceData sheet.
A132: Why this approach works for Windows:
B133: WINHTTP maintains a temporary computer memory cache where cookies are maintained for as long as the WINHTTP object is instantiated.
B134: WINHTTP updates this cache any time a "set cookie" header accompanies a web response.
B135: Subsequent WINHTTP calls automatically search this cache for cookies and add any "appropriate" cookies to the headers
B136: of any web requests that get sent out.
B137: This cookie handling automation means that even if the response to our WINHTTP call for the Summary web page includes a new version of
B138: the Yahoo Finance cookie, the imbedded Crumb value will always match the cookie newly installed in the cache!
A141: Why this approach does not work for Macintosh:
B142: For what it is worth, the Macintosh version of the MS Office suite of products do in fact maintain a special, shared amongst themselves only, cookie cache.
B143: They automate cookie handling into and from this cache JUST for the Office products and any Querytable activity they might originate.
B145: This cache is not tied to, nor shared with, any browser that might be installed on the MAC. And I have not found anything with HTTP capabilities similar to
B146: MSXML that can work with that Office product cookie cache.
B148: When working in the MAC EXCEL environment, I have not yet become conversant with a Mac based WINHTTP like capability.
B149: So l currently have no mechanism to replicate the non-Querytable data retrieval process I am using in Windows environments.
B150: A software product called CURL has been suggested as providing this capability in the MAC environment.
B151: A version of CURL is available for the Windows So some day I may explore its capabilities and how to access those capabilities from VBA.
A153: Calculation and Chart Worksheet Usage Comments:
C154: In General, Items in Bolded BLUE are items you may freely change to play what-if games.
C155: Be sure to have a backup copy of the spreadsheet before you alter anything else.
A157: Features carried forward from the June 2016 version of my T-Tips Template
A158: Added a pair of buttons near cell F12 that will allow the user to step the charting window forward or backward one bar for each click.
A159: I find this to be a good way to test my understanding of the author's ideas as I step through the evolution of the price behavior and the indicators.
B161: First: In the "Help! I would like to plot data" area.
B162: Added button to resolve #NA problems by locating the bar in the input data with a slightly more recent date than what the user actually requested.
B163: I find this particularly useful when I have a general idea of where I want to be date wise. Now I can pick a set of dates "out of the air".
B164: If either (or both) of my date specifications fall between dates that are available in the price history,
B165: this button will resolve them to the dates of the nearest, slightly more recent input bars.
B166: I can then refine my data interval search as necessary from there.
B167: Really great when working with Weekly or Monthly studies!
C168: 2016Jun11 - added logic to the "I would like to chart.." button to detect #N/A values and terminate
C169: gracefully with a message instead of blowing up in the charting logic.
B171: Second: In the "Price Chart Windowing Controls" area. (A11 and A12)
B172: When retrieving data for a new symbol or when changing from daily to weekly or monthly data, there was the possibility that the
B173: residual settings in A11 and A12 would fall outside of the number bars available on the input data tab after the new data retrieval.
B174: In certain combinations, this could create a serious error in the chart sizing logic and crash the spreadsheet.
B175: I have taken this opportunity to update the validity checking logic used in the chart sizing macros
B176: to adjust these values as necessary so that they fall within the boundaries of the newly retrieved input data.
A177: Features carried forward from the October 2015 Traders Tips Template
B178: Improved automation: changes to any of the following will automatically initiate calculations appropriate to reflect a change.
C179: Changing either of cells A11 (pan) or A12 (zoom) will automatically initiate the same chart sizing macros that the manual
C180: "Set Chart" button uses.

Sheet InputPriceData
A1: SPDR S&P 500 ETF Trust (SPY) -NYSEArca (Daily)
M2: To retrieve data for symbols traded on non US Exchanges, | II2: 241.79
A3: Request Online Yahoo History for: | F3: Market State == > | G3: At close: | H3: 16:00:00 | I3: EDT | M3: you will need to append the dot-suffix for the exchange to the symbol.
A4: Symbol | B4: SPY | D4: Valid | I4: =OFFSET(I4,-2,0,1,1) -> 0 | M4: The following links provide a description of how to use the exchange suffix
A5: From | B5: 1950-10-01 | D5: Data | M5: along with a list of suffixes for the major world exchanges. | AD5: Trailing 12 Div return (Cur Close)
A6: To | B6: =NOW() -> 2021-07-18T23:09:30.660 | D6: Types | E6: =VLOOKUP(B7,D7:E10,2,FALSE) -> d | M6: https://help.yahoo.com/kb/finance/SLN2310.html
A7: Data Type | B7: Daily | D7: Daily | E7: d | M7: And
A8: Crumb | B8: f1IIJch1IdH | D8: Weekly | E8: w | M8: https://www.stockmarketeye.com/users-guide/ticker-symbols-and-data-providers/data-providers.html
A9: Available Data | D9: Monthly | E9: m
A10: Bar Count: | B10: 7168 | M10: You may search on “exchange suffixes” for additional discussions | AD10: =OFFSET(AC15,1,0,1,1)/OFFSET(N15,1,0,1,1) -> 0.01292020216
A11: From: | B11: =IF(B10<=0,"",OFFSET(B15,B10,IF(HistReqDataType="v",1,0),1,1)) -> 1993-01-29 | W11: Trailing 12 Month Dividend Returns
A12: To: | B12: =IF(B10<=0,"",IF(HistReqDataType="v",OFFSET(B15,2,1,1,1),OFFSET(B15,1,0,1,1))) -> 2021-07-16 | W12: Raw Close price on Dividend date | X12: Div Year and Month | Y12: Looking for year ago Div Year and Month | Z12: Year ago Div Date we found | AA12: row offset to year ago div Date | AB12: Same month flag | AC12: Trailing 12 Div Total | AD12: Trailing 12 Div return
Q13: Split History | S13: 0 | T13: Running | U13: Dividend History
B14: Raw Data Values | H14: Adjusted | I14: Price Adjust | J14: Vol Adjust | K14: Adjusted Values | P14: Last | Q14: Effective | R14: Shares | T14: Vol Adjust | V14: 115
A15: RelRow | B15: Date | C15: Open | D15: High | E15: Low | F15: Close | G15: Volume | H15: Close | I15: Factor | J15: Factor | K15: Open | L15: High | M15: Low | N15: Close | O15: Volume | P15: Trade | Q15: 44395 | R15: New | S15: Old | T15: 1 | U15: Date | V15: $ / Share
A16: 1 | B16: 2021-07-16 | C16: 436.01001 | D16: 436.059998 | E16: 430.920013 | F16: 431.339996 | G16: 75784700 | H16: 431.339996 | I16: =IF(F16=0,1,H16/F16) -> 1 | J16: =INDEX(OFFSET($T$15,0,0,$S$13+1,1),MATCH(B16,OFFSET($Q$15,0,0,$S$13+1,1),-1)) -> 1 | K16: =ROUND($I16*C16,2) -> 436.01 | L16: =ROUND($I16*D16,2) -> 436.06 | M16: 430.92 | N16: 431.34 | O16: =G16*J16 -> 75784700 | U16: 2021-06-18 | V16: 1.376 | W16: =(INDEX(OFFSET($F$15,1,0,$B$10,1),MATCH(U16,OFFSET($B$15,1,0,$B$10,1),-1))) -> 414.920013 | X16: =YEAR(U16)&RIGHT("0"&MONTH(U16),2) -> 202106 | Y16: =YEAR(U16)-1&RIGHT("0"&MONTH(U16),2) -> 202006 | Z16: =OFFSET(U15,AA16,0,1,1) -> 2020-06-19 | AA16: =MATCH(Y16,OFFSET($X$15,A16,0,$V$14+1-A16,1),-1) -> 5 | AB16: =IF(OR(AND(YEAR(U16)=YEAR(Z16),MONTH(U16)=MONTH(Z16)),MONTH(U16)=MONTH(Z16)),1,0) -> 1 | AC16: =(V16+IF(AA16-AB16=0,0,IFERROR(SUM(OFFSET(V16,1,0,AA16-AB16-1,1)),0))) -> 5.573 | AD16: =AC16/(INDEX(OFFSET($F$15,1,0,$B$10,1),MATCH(U16,OFFSET($B$15,1,0,$B$10,1),-1))) -> 0.01343150445
A17: 2 | B17: 2021-07-15 | C17: 434.809998 | D17: 435.529999 | E17: 432.720001 | F17: 434.75 | G17: 55126400 | H17: 434.75 | I17: =IF(F17=0,1,H17/F17) -> 1 | J17: =INDEX(OFFSET($T$15,0,0,$S$13+1,1),MATCH(B17,OFFSET($Q$15,0,0,$S$13+1,1),-1)) -> 1 | K17: =ROUND($I17*C17,2) -> 434.81 | L17: =ROUND($I17*D17,2) -> 435.53 | M17: =ROUND($I17*E17,2) -> 432.72 | N17: =ROUND($I17*F17,2) -> 434.75 | O17: =G17*J17 -> 55126400 | U17: 2021-03-19 | V17: 1.278 | W17: =(INDEX(OFFSET($F$15,1,0,$B$10,1),MATCH(U17,OFFSET($B$15,1,0,$B$10,1),-1))) -> 389.480011 | X17: =YEAR(U17)&RIGHT("0"&MONTH(U17),2) -> 202103 | Y17: =YEAR(U17)-1&RIGHT("0"&MONTH(U17),2) -> 202003 | Z17: =OFFSET(U16,AA17,0,1,1) -> 2020-03-20 | AA17: =MATCH(Y17,OFFSET($X$15,A17,0,$V$14+1-A17,1),-1) -> 5 | AB17: =IF(OR(AND(YEAR(U17)=YEAR(Z17),MONTH(U17)=MONTH(Z17)),MONTH(U17)=MONTH(Z17)),1,0) -> 1 | AC17: =(V17+IF(AA17-AB17=0,0,IFERROR(SUM(OFFSET(V17,1,0,AA17-AB17-1,1)),0))) -> 5.563 | AD17: =AC17/(INDEX(OFFSET($F$15,1,0,$B$10,1),MATCH(U17,OFFSET($B$15,1,0,$B$10,1),-1))) -> 0.01428314636
A18: 3 | B18: 2021-07-14 | C18: 437.399994 | D18: 437.920013 | E18: 434.910004 | F18: 436.23999 | G18: 64130400 | H18: 436.23999 | I18: 1 | J18: 1 | K18: 437.4 | L18: 437.92 | M18: 434.91 | N18: 436.24 | O18: 64130400 | U18: 2020-12-18 | V18: 1.58 | W18: 369.179993 | X18: 202012 | Y18: 201912 | Z18: 2019-12-20 | AA18: 5 | AB18: 1 | AC18: 5.691 | AD18: 0.01541524489
A19: 4 | B19: 2021-07-13 | C19: 436.23999 | D19: 437.839996 | E19: 435.309998 | F19: 435.589996 | G19: 52792700 | H19: 435.589996 | I19: 1 | J19: 1 | K19: 436.24 | L19: 437.84 | M19: 435.31 | N19: 435.59 | O19: 52792700 | U19: 2020-09-18 | V19: 1.339 | W19: 330.649994 | X19: 202009 | Y19: 201909 | Z19: 2019-09-20 | AA19: 5 | AB19: 1 | AC19: 5.681 | AD19: 0.01718130985
A20: 5 | B20: 2021-07-12 | C20: 435.429993 | D20: 437.350006 | E20: 434.970001 | F20: 437.079987 | G20: 52889600 | H20: 437.079987 | I20: 1 | J20: 1 | K20: 435.43 | L20: 437.35 | M20: 434.97 | N20: 437.08 | O20: 52889600 | U20: 2020-06-19 | V20: 1.366 | W20: 308.640015 | X20: 202006 | Y20: 201906 | Z20: 2019-06-21 | AA20: 5 | AB20: 1 | AC20: 5.726 | AD20: 0.01855235783
A21: 6 | B21: 2021-07-09 | C21: 432.529999 | D21: 435.839996 | E21: 430.709991 | F21: 435.519989 | G21: 76190300 | H21: 435.519989 | I21: 1 | J21: 1 | K21: 432.53 | L21: 435.84 | M21: 430.71 | N21: 435.52 | O21: 76190300 | U21: 2020-03-20 | V21: 1.406 | W21: 228.800003 | X21: 202003 | Y21: 201903 | Z21: 2019-03-15 | AA21: 5 | AB21: 1 | AC21: 5.792 | AD21: 0.02531468498
A22: 7 | B22: 2021-07-08 | C22: 428.779999 | D22: 431.730011 | E22: 427.519989 | F22: 430.920013 | G22: 97595200 | H22: 430.920013 | I22: 1 | J22: 1 | K22: 428.78 | L22: 431.73 | M22: 427.52 | N22: 430.92 | O22: 97595200 | U22: 2019-12-20 | V22: 1.57 | W22: 320.730011 | X22: 201912 | Y22: 201812 | Z22: 2018-12-21 | AA22: 5 | AB22: 1 | AC22: 5.619 | AD22: 0.01751940825
A23: 8 | B23: 2021-07-07 | C23: 433.660004 | D23: 434.76001 | E23: 431.51001 | F23: 434.459991 | G23: 63549500 | H23: 434.459991 | I23: 1 | J23: 1 | K23: 433.66 | L23: 434.76 | M23: 431.51 | N23: 434.46 | O23: 63549500 | U23: 2019-09-20 | V23: 1.384 | W23: 298.279999 | X23: 201909 | Y23: 201809 | Z23: 2018-09-21 | AA23: 5 | AB23: 1 | AC23: 5.484 | AD23: 0.01838540974
A24: 9 | B24: 2021-07-06 | C24: 433.779999 | D24: 434.01001 | E24: 430.01001 | F24: 432.929993 | G24: 68710400 | H24: 432.929993 | I24: 1 | J24: 1 | K24: 433.78 | L24: 434.01 | M24: 430.01 | N24: 432.93 | O24: 68710400 | U24: 2019-06-21 | V24: 1.432 | W24: 294 | X24: 201906 | Y24: 201806 | Z24: 2018-06-15 | AA24: 5 | AB24: 1 | AC24: 5.423 | AD24: 0.01844557823
A25: 10 | B25: 2021-07-02 | C25: 431.670013 | D25: 434.100006 | E25: 430.519989 | F25: 433.720001 | G25: 57679000 | H25: 433.720001 | I25: 1 | J25: 1 | K25: 431.67 | L25: 434.1 | M25: 430.52 | N25: 433.72 | O25: 57679000 | U25: 2019-03-15 | V25: 1.233 | W25: 281.309998 | X25: 201903 | Y25: 201803 | Z25: 2018-03-16 | AA25: 5 | AB25: 1 | AC25: 5.237 | AD25: 0.01861647306
A26: 11 | B26: 2021-07-01 | C26: 428.869995 | D26: 430.600006 | E26: 428.799988 | F26: 430.429993 | G26: 53441000 | H26: 430.429993 | I26: 1 | J26: 1 | K26: 428.87 | L26: 430.6 | M26: 428.8 | N26: 430.43 | O26: 53441000 | U26: 2018-12-21 | V26: 1.435 | W26: 240.699997 | X26: 201812 | Y26: 201712 | Z26: 2017-12-15 | AA26: 5 | AB26: 1 | AC26: 5.101 | AD26: 0.02119235589
A27: 12 | B27: 2021-06-30 | C27: 427.209991 | D27: 428.779999 | E27: 427.179993 | F27: 428.059998 | G27: 64827900 | H27: 428.059998 | I27: 1 | J27: 1 | K27: 427.21 | L27: 428.78 | M27: 427.18 | N27: 428.06 | O27: 64827900 | U27: 2018-09-21 | V27: 1.323 | W27: 291.98999 | X27: 201809 | Y27: 201709 | Z27: 2017-09-15 | AA27: 5 | AB27: 1 | AC27: 5.017 | AD27: 0.01718209587
A28: 13 | B28: 2021-06-29 | C28: 427.880005 | D28: 428.559998 | E28: 427.130005 | F28: 427.700012 | G28: 35970500 | H28: 427.700012 | I28: 1 | J28: 1 | K28: 427.88 | L28: 428.56 | M28: 427.13 | N28: 427.7 | O28: 35970500 | U28: 2018-06-15 | V28: 1.246 | W28: 277.130005 | X28: 201806 | Y28: 201706 | Z28: 2017-06-16 | AA28: 5 | AB28: 1 | AC28: 4.929 | AD28: 0.01778587634
A29: 14 | B29: 2021-06-28 | C29: 427.170013 | D29: 427.649994 | E29: 425.890015 | F29: 427.470001 | G29: 53159600 | H29: 427.470001 | I29: 1 | J29: 1 | K29: 427.17 | L29: 427.65 | M29: 425.89 | N29: 427.47 | O29: 53159600 | U29: 2018-03-16 | V29: 1.097 | W29: 274.200012 | X29: 201803 | Y29: 201703 | Z29: 2017-03-17 | AA29: 5 | AB29: 1 | AC29: 4.866 | AD29: 0.0177461699
A30: 15 | B30: 2021-06-25 | C30: 425.899994 | D30: 427.089996 | E30: 425.549988 | F30: 426.609985 | G30: 58129500 | H30: 426.609985 | I30: 1 | J30: 1 | K30: 425.9 | L30: 427.09 | M30: 425.55 | N30: 426.61 | O30: 58129500 | U30: 2017-12-15 | V30: 1.351 | W30: 266.51001 | X30: 201712 | Y30: 201612 | Z30: 2016-12-16 | AA30: 5 | AB30: 1 | AC30: 4.802 | AD30: 0.01801808495
A31: 16 | B31: 2021-06-24 | C31: 424.890015 | D31: 425.549988 | E31: 424.619995 | F31: 425.100006 | G31: 45110300 | H31: 425.100006 | I31: 1 | J31: 1 | K31: 424.89 | L31: 425.55 | M31: 424.62 | N31: 425.1 | O31: 45110300 | U31: 2017-09-15 | V31: 1.235 | W31: 249.190002 | X31: 201709 | Y31: 201609 | Z31: 2016-09-16 | AA31: 5 | AB31: 1 | AC31: 4.78 | AD31: 0.01918215001
A32: 17 | B32: 2021-06-23 | C32: 423.190002 | D32: 424.049988 | E32: 422.51001 | F32: 422.600006 | G32: 49445400 | H32: 422.600006 | I32: 1 | J32: 1 | K32: 423.19 | L32: 424.05 | M32: 422.51 | N32: 422.6 | O32: 49445400 | U32: 2017-06-16 | V32: 1.183 | W32: 242.639999 | X32: 201706 | Y32: 201606 | Z32: 2016-06-17 | AA32: 5 | AB32: 1 | AC32: 4.627 | AD32: 0.01906940331
A33: 18 | B33: 2021-06-22 | C33: 420.850006 | D33: 424 | E33: 420.079987 | F33: 423.109985 | G33: 57700300 | H33: 423.109985 | I33: 1 | J33: 1 | K33: 420.85 | L33: 424 | M33: 420.08 | N33: 423.11 | O33: 57700300 | U33: 2017-03-17 | V33: 1.033 | W33: 237.029999 | X33: 201703 | Y33: 201603 | Z33: 2016-03-18 | AA33: 5 | AB33: 1 | AC33: 4.522 | AD33: 0.01907775395
A34: 19 | B34: 2021-06-21 | C34: 416.799988 | D34: 421.059998 | E34: 415.929993 | F34: 420.859985 | G34: 72822000 | H34: 420.859985 | I34: 1 | J34: 1 | K34: 416.8 | L34: 421.06 | M34: 415.93 | N34: 420.86 | O34: 72822000 | U34: 2016-12-16 | V34: 1.329 | W34: 225.039993 | X34: 201612 | Y34: 201512 | Z34: 2015-12-18 | AA34: 5 | AB34: 1 | AC34: 4.539 | AD34: 0.02016974823
A35: 20 | B35: 2021-06-18 | C35: 417.089996 | D35: 417.829987 | E35: 414.700012 | F35: 414.920013 | G35: 118676300 | H35: 414.920013 | I35: 1 | J35: 1 | K35: 417.09 | L35: 417.83 | M35: 414.7 | N35: 414.92 | O35: 118676300 | U35: 2016-09-16 | V35: 1.082 | W35: 213.369995 | X35: 201609 | Y35: 201509 | Z35: 2015-09-18 | AA35: 5 | AB35: 1 | AC35: 4.422 | AD35: 0.02072456345
A36: 21 | B36: 2021-06-17 | C36: 421.670013 | D36: 423.019989 | E36: 419.320007 | F36: 421.970001 | G36: 90949700 | H36: 420.593994 | I36: 0.9967390881 | J36: 1 | K36: 420.29 | L36: 421.64 | M36: 417.95 | N36: 420.59 | O36: 90949700 | U36: 2016-06-17 | V36: 1.078 | W36: 206.520004 | X36: 201606 | Y36: 201506 | Z36: 2015-06-19 | AA36: 5 | AB36: 1 | AC36: 4.373 | AD36: 0.02117470422
A37: 22 | B37: 2021-06-16 | C37: 424.630005 | D37: 424.869995 | E37: 419.920013 | F37: 422.109985 | G37: 80386100 | H37: 420.733521 | I37: 0.9967390869 | J37: 1 | K37: 423.25 | L37: 423.48 | M37: 418.55 | N37: 420.73 | O37: 80386100 | U37: 2016-03-18 | V37: 1.05 | W37: 204.380005 | X37: 201603 | Y37: 201503 | Z37: 2015-03-20 | AA37: 5 | AB37: 1 | AC37: 4.325 | AD37: 0.02116156128
A38: 23 | B38: 2021-06-15 | C38: 425.420013 | D38: 425.459991 | E38: 423.540009 | F38: 424.480011 | G38: 51508500 | H38: 423.095825 | I38: 0.996739102 | J38: 1 | K38: 424.03 | L38: 424.07 | M38: 422.16 | N38: 423.1 | O38: 51508500 | U38: 2015-12-18 | V38: 1.212 | W38: 200.020004 | X38: 201512 | Y38: 201412 | Z38: 2014-12-19 | AA38: 5 | AB38: 1 | AC38: 4.206 | AD38: 0.02102789679
A39: 24 | B39: 2021-06-14 | C39: 424.429993 | D39: 425.369995 | E39: 423.100006 | F39: 425.26001 | G39: 42358500 | H39: 423.87326 | I39: 0.9967390538 | J39: 1 | K39: 423.05 | L39: 423.98 | M39: 421.72 | N39: 423.87 | O39: 42358500 | U39: 2015-09-18 | V39: 1.033 | W39: 195.449997 | X39: 201509 | Y39: 201409 | Z39: 2014-09-19 | AA39: 5 | AB39: 1 | AC39: 4.129 | AD39: 0.0211256079
A40: 25 | B40: 2021-06-11 | C40: 424.200012 | D40: 424.429993 | E40: 422.820007 | F40: 424.309998 | G40: 45570800 | H40: 422.926361 | I40: 0.9967390893 | J40: 1 | K40: 422.82 | L40: 423.05 | M40: 421.44 | N40: 422.93 | O40: 45570800 | U40: 2015-06-19 | V40: 1.03 | W40: 210.809998 | X40: 201506 | Y40: 201406 | Z40: 2014-06-20 | AA40: 5 | AB40: 1 | AC40: 4.035 | AD40: 0.01914045841
A41: 26 | B41: 2021-06-10 | C41: 422.959991 | D41: 424.630005 | E41: 421.549988 | F41: 423.609985 | G41: 51020100 | H41: 422.228638 | I41: 0.9967391066 | J41: 1 | K41: 421.58 | L41: 423.25 | M41: 420.18 | N41: 422.23 | O41: 51020100 | U41: 2015-03-20 | V41: 0.931 | W41: 210.410004 | X41: 201503 | Y41: 201403 | Z41: 2014-03-21 | AA41: 5 | AB41: 1 | AC41: 3.942 | AD41: 0.01873485065
A42: 27 | B42: 2021-06-09 | C42: 423.179993 | D42: 423.26001 | E42: 421.410004 | F42: 421.649994 | G42: 48436300 | H42: 420.275024 | I42: 0.9967390726 | J42: 1 | K42: 421.8 | L42: 421.88 | M42: 420.04 | N42: 420.28 | O42: 48436300 | U42: 2014-12-19 | V42: 1.135 | W42: 206.520004 | X42: 201412 | Y42: 201312 | Z42: 2013-12-20 | AA42: 5 | AB42: 1 | AC42: 3.836 | AD42: 0.01857447185
A43: 28 | B43: 2021-06-08 | C43: 423.109985 | D43: 423.209991 | E43: 420.320007 | F43: 422.279999 | G43: 47134300 | H43: 420.902985 | I43: 0.9967390973 | J43: 1 | K43: 421.73 | L43: 421.83 | M43: 418.95 | N43: 420.9 | O43: 47134300 | U43: 2014-09-19 | V43: 0.939 | W43: 200.699997 | X43: 201409 | Y43: 201309 | Z43: 2013-09-20 | AA43: 5 | AB43: 1 | AC43: 3.681 | AD43: 0.01834080745
A44: 29 | B44: 2021-06-07 | C44: 422.589996 | D44: 422.779999 | E44: 421.190002 | F44: 422.190002 | G44: 51555000 | H44: 420.813293 | I44: 0.9967391246 | J44: 1 | K44: 421.21 | L44: 421.4 | M44: 419.82 | N44: 420.81 | O44: 51555000 | U44: 2014-06-20 | V44: 0.937 | W44: 195.940002 | X44: 201406 | Y44: 201306 | Z44: 2013-06-21 | AA44: 5 | AB44: 1 | AC44: 3.58 | AD44: 0.01827089907
A45: 30 | B45: 2021-06-04 | C45: 420.75 | D45: 422.920013 | E45: 418.839996 | F45: 422.600006 | G45: 55938800 | H45: 421.221954 | I45: 0.9967391103 | J45: 1 | K45: 419.38 | L45: 421.54 | M45: 417.47 | N45: 421.22 | O45: 55938800 | U45: 2014-03-21 | V45: 0.825 | W45: 186.199997 | X45: 201403 | Y45: 201303 | Z45: 2013-03-15 | AA45: 5 | AB45: 1 | AC45: 3.482 | AD45: 0.01870032254
A46: 31 | B46: 2021-06-03 | C46: 417.850006 | D46: 419.98999 | E46: 416.279999 | F46: 418.769989 | G46: 58138800 | H46: 417.404419 | I46: 0.996739093 | J46: 1 | K46: 416.49 | L46: 418.62 | M46: 414.92 | N46: 417.4 | O46: 58138800 | U46: 2013-12-20 | V46: 0.98 | W46: 181.559998 | X46: 201312 | Y46: 201212 | Z46: 2012-12-21 | AA46: 5 | AB46: 1 | AC46: 3.351 | AD46: 0.01845670873
A47: 32 | B47: 2021-06-02 | C47: 420.369995 | D47: 421.230011 | E47: 419.290009 | F47: 420.329987 | G47: 49097100 | H47: 418.95932 | I47: 0.9967390692 | J47: 1 | K47: 419 | L47: 419.86 | M47: 417.92 | N47: 418.96 | O47: 49097100 | U47: 2013-09-20 | V47: 0.838 | W47: 170.720001 | X47: 201309 | Y47: 201209 | Z47: 2012-09-21 | AA47: 5 | AB47: 1 | AC47: 3.393 | AD47: 0.01987464843
A48: 33 | B48: 2021-06-01 | C48: 422.570007 | D48: 422.720001 | E48: 419.200012 | F48: 419.670013 | G48: 54216600 | H48: 418.301514 | I48: 0.996739107 | J48: 1 | K48: 421.19 | L48: 421.34 | M48: 417.83 | N48: 418.3 | O48: 54216600 | U48: 2013-06-21 | V48: 0.839 | W48: 159.070007 | X48: 201306 | Y48: 201206 | Z48: 2012-06-15 | AA48: 5 | AB48: 1 | AC48: 3.334 | AD48: 0.02095932516
A49: 34 | B49: 2021-05-28 | C49: 420.970001 | D49: 421.25 | E49: 419.790009 | F49: 420.040009 | G49: 58520200 | H49: 418.670288 | I49: 0.9967390702 | J49: 1 | K49: 419.6 | L49: 419.88 | M49: 418.42 | N49: 418.67 | O49: 58520200 | U49: 2013-03-15 | V49: 0.694 | W49: 155.830002 | X49: 201303 | Y49: 201203 | Z49: 2012-03-16 | AA49: 5 | AB49: 1 | AC49: 3.183 | AD49: 0.02042610511
A50: 35 | B50: 2021-05-27 | C50: 420.170013 | D50: 420.720001 | E50: 418.98999 | F50: 419.290009 | G50: 56707700 | H50: 417.922729 | I50: 0.996739059 | J50: 1 | K50: 418.8 | L50: 419.35 | M50: 417.62 | N50: 417.92 | O50: 56707700 | U50: 2012-12-21 | V50: 1.022 | W50: 142.789993 | X50: 201212 | Y50: 201112 | Z50: 2011-12-16 | AA50: 5 | AB50: 1 | AC50: 3.103 | AD50: 0.02173121474
A51: 36 | B51: 2021-05-26 | C51: 418.869995 | D51: 419.609985 | E51: 417.76001 | F51: 419.070007 | G51: 43088600 | H51: 417.703461 | I51: 0.9967390985 | J51: 1 | K51: 417.5 | L51: 418.24 | M51: 416.4 | N51: 417.7 | O51: 43088600 | U51: 2012-09-21 | V51: 0.779 | W51: 145.869995 | X51: 201209 | Y51: 201109 | Z51: 2011-09-16 | AA51: 5 | AB51: 1 | AC51: 2.851 | AD51: 0.01954480083
A52: 37 | B52: 2021-05-25 | C52: 420.329987 | D52: 420.709991 | E52: 417.619995 | F52: 418.23999 | G52: 57451400 | H52: 416.87616 | I52: 0.996739121 | J52: 1 | K52: 418.96 | L52: 419.34 | M52: 416.26 | N52: 416.88 | O52: 57451400 | U52: 2012-06-15 | V52: 0.688 | W52: 134.139999 | X52: 201206 | Y52: 201106 | Z52: 2011-06-17 | AA52: 5 | AB52: 1 | AC52: 2.697 | AD52: 0.0201058597
A53: 38 | B53: 2021-05-24 | C53: 417.339996 | D53: 420.320007 | E53: 417.079987 | F53: 419.170013 | G53: 51376700 | H53: 417.803131 | I53: 0.9967390749 | J53: 1 | K53: 415.98 | L53: 418.95 | M53: 415.72 | N53: 417.8 | O53: 51376700 | U53: 2012-03-16 | V53: 0.614 | W53: 140.300003 | X53: 201203 | Y53: 201103 | Z53: 2011-03-18 | AA53: 5 | AB53: 1 | AC53: 2.637 | AD53: 0.01879543794
A54: 39 | B54: 2021-05-21 | C54: 416.869995 | D54: 418.200012 | E54: 414.450012 | F54: 414.940002 | G54: 76578700 | H54: 413.586914 | I54: 0.9967390755 | J54: 1 | K54: 415.51 | L54: 416.84 | M54: 413.1 | N54: 413.59 | O54: 76578700 | U54: 2011-12-16 | V54: 0.77 | W54: 121.589996 | X54: 201112 | Y54: 201012 | Z54: 2010-12-17 | AA54: 5 | AB54: 1 | AC54: 2.576 | AD54: 0.02118595349
A55: 40 | B55: 2021-05-20 | C55: 411.799988 | D55: 416.630005 | E55: 411.670013 | F55: 415.279999 | G55: 78022200 | H55: 413.925812 | I55: 0.9967390989 | J55: 1 | K55: 410.46 | L55: 415.27 | M55: 410.33 | N55: 413.93 | O55: 78022200 | U55: 2011-09-16 | V55: 0.625 | W55: 121.519997 | X55: 201109 | Y55: 201009 | Z55: 2010-09-17 | AA55: 5 | AB55: 1 | AC55: 2.459 | AD55: 0.0202353527
A56: 41 | B56: 2021-05-19 | C56: 406.920013 | D56: 411.049988 | E56: 405.329987 | F56: 410.859985 | G56: 106467100 | H56: 409.520203 | I56: 0.9967390789 | J56: 1 | K56: 405.59 | L56: 409.71 | M56: 404.01 | N56: 409.52 | O56: 106467100 | U56: 2011-06-17 | V56: 0.628 | W56: 127.050003 | X56: 201106 | Y56: 201006 | Z56: 2010-06-18 | AA56: 5 | AB56: 1 | AC56: 2.436 | AD56: 0.01917355327
A57: 42 | B57: 2021-05-18 | C57: 415.799988 | D57: 416.059998 | E57: 411.769989 | F57: 411.940002 | G57: 59810200 | H57: 410.59671 | I57: 0.9967391077 | J57: 1 | K57: 414.44 | L57: 414.7 | M57: 410.43 | N57: 410.6 | O57: 59810200 | U57: 2011-03-18 | V57: 0.553 | W57: 127.760002 | X57: 201103 | Y57: 201003 | Z57: 2010-03-19 | AA57: 5 | AB57: 1 | AC57: 2.339 | AD57: 0.01830776427
A58: 43 | B58: 2021-05-17 | C58: 415.390015 | D58: 416.390015 | E58: 413.359985 | F58: 415.519989 | G58: 65129200 | H58: 414.165009 | I58: 0.9967390738 | J58: 1 | K58: 414.04 | L58: 415.03 | M58: 412.01 | N58: 414.17 | O58: 65129200 | U58: 2010-12-17 | V58: 0.653 | W58: 124.300003 | X58: 201012 | Y58: 200912 | Z58: 2009-12-18 | AA58: 5 | AB58: 1 | AC58: 2.266 | AD58: 0.01823008806
A59: 44 | B59: 2021-05-14 | C59: 413.209991 | D59: 417.48999 | E59: 413.179993 | F59: 416.579987 | G59: 82201600 | H59: 415.221558 | I59: 0.996739092 | J59: 1 | K59: 411.86 | L59: 416.13 | M59: 411.83 | N59: 415.22 | O59: 82201600 | U59: 2010-09-17 | V59: 0.602 | W59: 112.489998 | X59: 201009 | Y59: 200909 | Z59: 2009-09-18 | AA59: 5 | AB59: 1 | AC59: 2.203 | AD59: 0.01958396337
A60: 45 | B60: 2021-05-13 | C60: 407.070007 | D60: 412.350006 | E60: 407.019989 | F60: 410.279999 | G60: 106394000 | H60: 408.942108 | I60: 0.9967390782 | J60: 1 | K60: 405.74 | L60: 411.01 | M60: 405.69 | N60: 408.94 | O60: 106394000 | U60: 2010-06-18 | V60: 0.531 | W60: 111.730003 | X60: 201006 | Y60: 200906 | Z60: 2009-06-19 | AA60: 5 | AB60: 1 | AC60: 2.109 | AD60: 0.01887586094
A61: 46 | B61: 2021-05-12 | C61: 411.230011 | D61: 412.589996 | E61: 404 | F61: 405.410004 | G61: 134811000 | H61: 404.088013 | I61: 0.9967391259 | J61: 1 | K61: 409.89 | L61: 411.24 | M61: 402.68 | N61: 404.09 | O61: 134811000 | U61: 2010-03-19 | V61: 0.48 | W61: 115.970001 | X61: 201003 | Y61: 200903 | Z61: 2009-03-20 | AA61: 5 | AB61: 1 | AC61: 2.096 | AD61: 0.01807363958
A62: 47 | B62: 2021-05-11 | C62: 413.100006 | D62: 415.269989 | E62: 410.059998 | F62: 414.209991 | G62: 116888000 | H62: 412.859283 | I62: 0.9967390743 | J62: 1 | K62: 411.75 | L62: 413.92 | M62: 408.72 | N62: 412.86 | O62: 116888000 | U62: 2009-12-18 | V62: 0.59 | W62: 110.209999 | X62: 200912 | Y62: 200812 | Z62: 2008-12-19 | AA62: 5 | AB62: 1 | AC62: 2.177 | AD62: 0.01975319862
A63: 48 | B63: 2021-05-10 | C63: 422.5 | D63: 422.73999 | E63: 417.809998 | F63: 417.940002 | G63: 81852400 | H63: 416.577148 | I63: 0.9967391157 | J63: 1 | K63: 421.12 | L63: 421.36 | M63: 416.45 | N63: 416.58 | O63: 81852400 | U63: 2009-09-18 | V63: 0.508 | W63: 106.720001 | X63: 200909 | Y63: 200809 | Z63: 2008-09-19 | AA63: 5 | AB63: 1 | AC63: 2.306 | AD63: 0.02160794582
A64: 49 | B64: 2021-05-07 | C64: 419.890015 | D64: 422.820007 | E64: 419.160004 | F64: 422.119995 | G64: 67733800 | H64: 420.7435 | I64: 0.9967390907 | J64: 1 | K64: 418.52 | L64: 421.44 | M64: 417.79 | N64: 420.74 | O64: 67733800 | U64: 2009-06-19 | V64: 0.518 | W64: 92.040001 | X64: 200906 | Y64: 200806 | Z64: 2008-06-20 | AA64: 5 | AB64: 1 | AC64: 2.489 | AD64: 0.02704258988
A65: 50 | B65: 2021-05-06 | C65: 415.829987 | D65: 419.209991 | E65: 413.679993 | F65: 419.070007 | G65: 74321400 | H65: 417.703461 | I65: 0.9967390985 | J65: 1 | K65: 414.47 | L65: 417.84 | M65: 412.33 | N65: 417.7 | O65: 74321400 | U65: 2009-03-20 | V65: 0.561 | W65: 76.709999 | X65: 200903 | Y65: 200803 | Z65: 2008-03-20 | AA65: 5 | AB65: 1 | AC65: 2.64 | AD65: 0.03441533091
A66: 51 | B66: 2021-05-05 | C66: 417.380005 | D66: 417.630005 | E66: 415.149994 | F66: 415.75 | G66: 60162200 | H66: 414.394287 | I66: 0.9967391149 | J66: 1 | K66: 416.02 | L66: 416.27 | M66: 413.8 | N66: 414.39 | O66: 60162200 | U66: 2008-12-19 | V66: 0.719 | W66: 88.190002 | X66: 200812 | Y66: 200712 | Z66: 2007-12-21 | AA66: 5 | AB66: 1 | AC66: 2.721 | AD66: 0.0308538376
A67: 52 | B67: 2021-05-04 | C67: 416.070007 | D67: 416.600006 | E67: 411.670013 | F67: 415.619995 | G67: 101591200 | H67: 414.264709 | I67: 0.9967391222 | J67: 1 | K67: 414.71 | L67: 415.24 | M67: 410.33 | N67: 414.26 | O67: 101591200 | U67: 2008-09-19 | V67: 0.691 | W67: 124.120003 | X67: 200809 | Y67: 200709 | Z67: 2007-09-21 | AA67: 5 | AB67: 1 | AC67: 2.777 | AD67: 0.02237350897
A68: 53 | B68: 2021-05-03 | C68: 419.429993 | D68: 419.839996 | E68: 417.670013 | F68: 418.200012 | G68: 68128300 | H68: 416.836304 | I68: 0.996739101 | J68: 1 | K68: 418.06 | L68: 418.47 | M68: 416.31 | N68: 416.84 | O68: 68128300 | U68: 2008-06-20 | V68: 0.669 | W68: 131.580002 | X68: 200806 | Y68: 200706 | Z68: 2007-06-15 | AA68: 5 | AB68: 1 | AC68: 2.805 | AD68: 0.02131782913
A69: 54 | B69: 2021-04-30 | C69: 417.630005 | D69: 418.540009 | E69: 416.339996 | F69: 417.299988 | G69: 85527000 | H69: 415.939209 | I69: 0.9967390869 | J69: 1 | K69: 416.27 | L69: 417.18 | M69: 414.98 | N69: 415.94 | O69: 85527000 | U69: 2008-03-20 | V69: 0.642 | W69: 132.080002 | X69: 200803 | Y69: 200703 | Z69: 2007-03-16 | AA69: 5 | AB69: 1 | AC69: 2.792 | AD69: 0.0211387035
A70: 55 | B70: 2021-04-29 | C70: 420.320007 | D70: 420.720001 | E70: 416.440002 | F70: 420.059998 | G70: 78544300 | H70: 418.690216 | I70: 0.9967390801 | J70: 1 | K70: 418.95 | L70: 419.35 | M70: 415.08 | N70: 418.69 | O70: 78544300 | U70: 2007-12-21 | V70: 0.775 | W70: 148.130005 | X70: 200712 | Y70: 200612 | Z70: 2006-12-15 | AA70: 5 | AB70: 1 | AC70: 2.701 | AD70: 0.01823398305
A71: 56 | B71: 2021-04-28 | C71: 417.809998 | D71: 419.01001 | E71: 416.899994 | F71: 417.399994 | G71: 51238900 | H71: 416.038879 | I71: 0.9967390632 | J71: 1 | K71: 416.45 | L71: 417.64 | M71: 415.54 | N71: 416.04 | O71: 51238900 | U71: 2007-09-21 | V71: 0.719 | W71: 151.970001 | X71: 200709 | Y71: 200609 | Z71: 2006-09-15 | AA71: 5 | AB71: 1 | AC71: 2.719 | AD71: 0.01789168903
A72: 57 | B72: 2021-04-27 | C72: 417.929993 | D72: 418.140015 | E72: 416.299988 | F72: 417.519989 | G72: 51303100 | H72: 416.158508 | I72: 0.9967391238 | J72: 1 | K72: 416.57 | L72: 416.78 | M72: 414.94 | N72: 416.16 | O72: 51303100 | U72: 2007-06-15 | V72: 0.656 | W72: 153.070007 | X72: 200706 | Y72: 200606 | Z72: 2006-06-16 | AA72: 5 | AB72: 1 | AC72: 2.579 | AD72: 0.01684849992
A73: 58 | B73: 2021-04-26 | C73: 417.440002 | D73: 418.220001 | E73: 416.809998 | F73: 417.609985 | G73: 52182400 | H73: 416.248199 | I73: 0.9967390962 | J73: 1 | K73: 416.08 | L73: 416.86 | M73: 415.45 | N73: 416.25 | O73: 52182400 | U73: 2007-03-16 | V73: 0.551 | W73: 138.529999 | X73: 200703 | Y73: 200603 | Z73: 2006-03-17 | AA73: 5 | AB73: 1 | AC73: 2.478 | AD73: 0.01788782226
A74: 59 | B74: 2021-04-23 | C74: 412.869995 | D74: 418.25 | E74: 412.790009 | F74: 416.73999 | G74: 73209200 | H74: 415.381042 | I74: 0.9967390986 | J74: 1 | K74: 411.52 | L74: 416.89 | M74: 411.44 | N74: 415.38 | O74: 73209200 | U74: 2006-12-15 | V74: 0.793 | W74: 142.339996 | X74: 200612 | Y74: 200512 | Z74: 2005-12-16 | AA74: 5 | AB74: 1 | AC74: 2.446 | AD74: 0.01718420731
A75: 60 | B75: 2021-04-22 | C75: 415.890015 | D75: 416.779999 | E75: 411.130005 | F75: 412.269989 | G75: 97582800 | H75: 410.925629 | I75: 0.9967391272 | J75: 1 | K75: 414.53 | L75: 415.42 | M75: 409.79 | N75: 410.93 | O75: 97582800 | U75: 2006-09-15 | V75: 0.579 | W75: 131.960007 | X75: 200609 | Y75: 200509 | Z75: 2005-09-16 | AA75: 5 | AB75: 1 | AC75: 2.325 | AD75: 0.01761897451
A76: 61 | B76: 2021-04-21 | C76: 411.51001 | D76: 416.290009 | E76: 411.359985 | F76: 416.070007 | G76: 66793000 | H76: 414.713226 | I76: 0.996739056 | J76: 1 | K76: 410.17 | L76: 414.93 | M76: 410.02 | N76: 414.71 | O76: 66793000 | U76: 2006-06-16 | V76: 0.555 | W76: 124.650002 | X76: 200606 | Y76: 200506 | Z76: 2005-06-17 | AA76: 5 | AB76: 1 | AC76: 2.268 | AD76: 0.01819494556
A77: 62 | B77: 2021-04-20 | C77: 413.910004 | D77: 415.089996 | E77: 410.589996 | F77: 412.170013 | G77: 81851800 | H77: 410.825958 | I77: 0.9967390762 | J77: 1 | K77: 412.56 | L77: 413.74 | M77: 409.25 | N77: 410.83 | O77: 81851800 | U77: 2006-03-17 | V77: 0.519 | W77: 130.619995 | X77: 200603 | Y77: 200503 | Z77: 2005-03-18 | AA77: 5 | AB77: 1 | AC77: 2.201 | AD77: 0.0168504064
A78: 63 | B78: 2021-04-19 | C78: 416.26001 | D78: 416.73999 | E78: 413.790009 | F78: 415.209991 | G78: 78498500 | H78: 413.856018 | I78: 0.9967390645 | J78: 1 | K78: 414.9 | L78: 415.38 | M78: 412.44 | N78: 413.86 | O78: 78498500 | U78: 2005-12-16 | V78: 0.672 | W78: 126.360001 | X78: 200512 | Y78: 200412 | Z78: 2004-12-17 | AA78: 5 | AB78: 1 | AC78: 2.149 | AD78: 0.01700696409
A79: 64 | B79: 2021-04-16 | C79: 417.25 | D79: 417.910004 | E79: 415.730011 | F79: 417.26001 | G79: 82037300 | H79: 415.899353 | I79: 0.9967390668 | J79: 1 | K79: 415.89 | L79: 416.55 | M79: 414.37 | N79: 415.9 | O79: 82037300 | U79: 2005-09-16 | V79: 0.522 | W79: 123.5 | X79: 200509 | Y79: 200409 | Z79: 2004-09-17 | AA79: 6 | AB79: 1 | AC79: 2.396 | AD79: 0.01940080972
A80: 65 | B80: 2021-04-15 | C80: 413.73999 | D80: 416.160004 | E80: 413.690002 | F80: 415.869995 | G80: 60229800 | H80: 414.513885 | I80: 0.9967391011 | J80: 1 | K80: 412.39 | L80: 414.8 | M80: 412.34 | N80: 414.51 | O80: 60229800 | U80: 2005-06-17 | V80: 0.488 | W80: 121.360001 | X80: 200506 | Y80: 200406 | Z80: 2004-06-18 | AA80: 6 | AB80: 1 | AC80: 2.343 | AD80: 0.01930619628
A81: 66 | B81: 2021-04-14 | C81: 412.829987 | D81: 413.959991 | E81: 410.869995 | F81: 411.450012 | G81: 61659900 | H81: 410.108307 | I81: =IF(F81=0,1,H81/F81) -> 0.9967390814 | J81: =INDEX(OFFSET($T$15,0,0,$S$13+1,1),MATCH(B81,OFFSET($Q$15,0,0,$S$13+1,1),-1)) -> 1 | K81: =ROUND($I81*C81,2) -> 411.48 | L81: =ROUND($I81*D81,2) -> 412.61 | M81: =ROUND($I81*E81,2) -> 409.53 | N81: =ROUND($I81*F81,2) -> 410.11 | O81: =G81*J81 -> 61659900 | U81: 2005-03-18 | V81: 0.467 | W81: =(INDEX(OFFSET($F$15,1,0,$B$10,1),MATCH(U81,OFFSET($B$15,1,0,$B$10,1),-1))) -> 118.540001 | X81: =YEAR(U81)&RIGHT("0"&MONTH(U81),2) -> 200503 | Y81: =YEAR(U81)-1&RIGHT("0"&MONTH(U81),2) -> 200403 | Z81: =OFFSET(U80,AA81,0,1,1) -> 2004-03-19 | AA81: =MATCH(Y81,OFFSET($X$15,A81,0,$V$14+1-A81,1),-1) -> 6 | AB81: =IF(OR(AND(YEAR(U81)=YEAR(Z81),MONTH(U81)=MONTH(Z81)),MONTH(U81)=MONTH(Z81)),1,0) -> 1 | AC81: =(V81+IF(AA81-AB81=0,0,IFERROR(SUM(OFFSET(V81,1,0,AA81-AB81-1,1)),0))) -> 2.269 | AD81: =AC81/(INDEX(OFFSET($F$15,1,0,$B$10,1),MATCH(U81,OFFSET($B$15,1,0,$B$10,1),-1))) -> 0.01914121799
A82: 67 | B82: 2021-04-13 | C82: 411.529999 | D82: 413.529999 | E82: 411.119995 | F82: 412.859985 | G82: 56551000 | H82: 411.513672 | I82: 0.9967390567 | J82: 1 | K82: 410.19 | L82: 412.18 | M82: 409.78 | N82: 411.51 | O82: 56551000 | U82: 2004-12-17 | V82: 0.568 | W82: 119.440002 | X82: 200412 | Y82: 200312 | Z82: 2003-12-19 | AA82: 6 | AB82: 1 | AC82: 2.197 | AD82: 0.0183941725
A83: 68 | B83: 2021-04-12 | C83: 410.850006 | D83: 411.929993 | E83: 410.200012 | F83: 411.640015 | G83: 56704900 | H83: 410.297699 | I83: 0.9967391022 | J83: 1 | K83: 409.51 | L83: 410.59 | M83: 408.86 | N83: 410.3 | O83: 56704900 | U83: 2004-11-15 | V83: 0.351 | W83: 118.730003 | X83: 200411 | Y83: 200311 | Z83: 2003-12-19 | AA83: 5 | AB83: 0 | AC83: 2.145 | AD83: 0.01806620017
A84: 69 | B84: 2021-04-09 | C84: 408.390015 | D84: 411.670013 | E84: 408.26001 | F84: 411.48999 | G84: 61104600 | H84: 410.148163 | I84: 0.9967391017 | J84: 1 | K84: 407.06 | L84: 410.33 | M84: 406.93 | N84: 410.15 | O84: 61104600 | U84: 2004-09-17 | V84: 0.469 | W84: 113.150002 | X84: 200409 | Y84: 200309 | Z84: 2003-09-19 | AA84: 5 | AB84: 1 | AC84: 1.794 | AD84: 0.01585505938
A85: 70 | B85: 2021-04-08 | C85: 407.929993 | D85: 408.579987 | E85: 406.929993 | F85: 408.519989 | G85: 57863100 | H85: 407.187836 | I85: 0.9967390751 | J85: 1 | K85: 406.6 | L85: 407.25 | M85: 405.6 | N85: 407.19 | O85: 57863100 | U85: 2004-06-18 | V85: 0.414 | W85: 113.629997 | X85: 200406 | Y85: 200306 | Z85: 2003-06-20 | AA85: 5 | AB85: 1 | AC85: 1.725 | AD85: 0.01518085053
A86: 71 | B86: 2021-04-07 | C86: 405.940002 | D86: 406.959991 | E86: 405.450012 | F86: 406.589996 | G86: 55836300 | H86: 405.26413 | I86: 0.996739059 | J86: 1 | K86: 404.62 | L86: 405.63 | M86: 404.13 | N86: 405.26 | O86: 55836300 | U86: 2004-03-19 | V86: 0.395 | W86: 111.059998 | X86: 200403 | Y86: 200303 | Z86: 2003-03-21 | AA86: 5 | AB86: 1 | AC86: 1.671 | AD86: 0.01504592139
A87: 72 | B87: 2021-04-06 | C87: 405.76001 | D87: 407.23999 | E87: 405.399994 | F87: 406.119995 | G87: 62021000 | H87: 404.795685 | I87: 0.9967391165 | J87: 1 | K87: 404.44 | L87: 405.91 | M87: 404.08 | N87: 404.8 | O87: 62021000 | U87: 2003-12-19 | V87: 0.516 | W87: 108.900002 | X87: 200312 | Y87: 200212 | Z87: 2002-12-20 | AA87: 5 | AB87: 1 | AC87: 1.63 | AD87: 0.01496786015
A88: 73 | B88: 2021-04-05 | C88: 403.459991 | D88: 406.940002 | E88: 403.380005 | F88: 406.359985 | G88: 91684800 | H88: 405.034882 | I88: 0.9967390908 | J88: 1 | K88: 402.14 | L88: 405.61 | M88: 402.06 | N88: 405.03 | O88: 91684800 | U88: 2003-09-19 | V88: 0.4 | W88: 103.669998 | X88: 200309 | Y88: 200209 | Z88: 2002-09-20 | AA88: 5 | AB88: 1 | AC88: 1.55 | AD88: 0.01495128803
A89: 74 | B89: 2021-04-01 | C89: 398.399994 | D89: 400.670013 | E89: 398.179993 | F89: 400.609985 | G89: 99682900 | H89: 399.303619 | I89: 0.9967390578 | J89: 1 | K89: 397.1 | L89: 399.36 | M89: 396.88 | N89: 399.3 | O89: 99682900 | U89: 2003-06-20 | V89: 0.36 | W89: 99.440002 | X89: 200306 | Y89: 200206 | Z89: 2002-06-21 | AA89: 5 | AB89: 1 | AC89: 1.528 | AD89: 0.01536604957
A90: 75 | B90: 2021-03-31 | C90: 395.339996 | D90: 398 | E90: 395.309998 | F90: 396.329987 | G90: 112734200 | H90: 395.037598 | I90: 0.9967391087 | J90: 1 | K90: 394.05 | L90: 396.7 | M90: 394.02 | N90: 395.04 | O90: 112734200 | U90: 2003-03-21 | V90: 0.354 | W90: 89.669998 | X90: 200303 | Y90: 200203 | Z90: 2002-03-15 | AA90: 5 | AB90: 1 | AC90: 1.521 | AD90: 0.01696219509
A91: 76 | B91: 2021-03-30 | C91: 394.420013 | D91: 395.450012 | E91: 393.019989 | F91: 394.730011 | G91: 76262200 | H91: 393.442841 | I91: 0.9967391129 | J91: 1 | K91: 393.13 | L91: 394.16 | M91: 391.74 | N91: 393.44 | O91: 76262200 | U91: 2002-12-20 | V91: 0.436 | W91: 89.989998 | X91: 200212 | Y91: 200112 | Z91: 2001-12-21 | AA91: 5 | AB91: 1 | AC91: 1.498 | AD91: 0.0166462944
A92: 77 | B92: 2021-03-29 | C92: 394.399994 | D92: 396.75 | E92: 392.809998 | F92: 395.779999 | G92: 108107600 | H92: 394.48941 | I92: 0.9967391253 | J92: 1 | K92: 393.11 | L92: 395.46 | M92: 391.53 | N92: 394.49 | O92: 108107600 | U92: 2002-09-20 | V92: 0.378 | W92: 84.349998 | X92: 200209 | Y92: 200109 | Z92: 2001-09-21 | AA92: 5 | AB92: 1 | AC92: 1.455 | AD92: 0.01724955583
A93: 78 | B93: 2021-03-26 | C93: 390.929993 | D93: 396.410004 | E93: 390.290009 | F93: 395.980011 | G93: 114409100 | H93: 394.688751 | I93: 0.9967390778 | J93: 1 | K93: 389.66 | L93: 395.12 | M93: 389.02 | N93: 394.69 | O93: 114409100 | U93: 2002-06-21 | V93: 0.353 | W93: 99.279999 | X93: 200206 | Y93: 200106 | Z93: 2001-06-15 | AA93: 5 | AB93: 1 | AC93: 1.446 | AD93: 0.01456486719
A94: 79 | B94: 2021-03-25 | C94: 385.980011 | D94: 390.549988 | E94: 383.899994 | F94: 389.700012 | G94: 116128600 | H94: 388.42923 | I94: 0.9967390763 | J94: 1 | K94: 384.72 | L94: 389.28 | M94: 382.65 | N94: 388.43 | O94: 116128600 | U94: 2002-03-15 | V94: 0.331 | W94: 116.650002 | X94: 200203 | Y94: 200103 | Z94: 2001-03-16 | AA94: 5 | AB94: 1 | AC94: 1.439 | AD94: 0.0123360478
A95: 80 | B95: 2021-03-24 | C95: 391 | D95: 392.75 | E95: 387.470001 | F95: 387.519989 | G95: 97588600 | H95: 386.256317 | I95: 0.9967390792 | J95: 1 | K95: 389.72 | L95: 391.47 | M95: 386.21 | N95: 386.26 | O95: 97588600 | U95: 2001-12-21 | V95: 0.393 | W95: 114.949997 | X95: 200112 | Y95: 200012 | Z95: 2000-12-15 | AA95: 5 | AB95: 1 | AC95: 1.424 | AD95: 0.0123879951
A96: 81 | B96: 2021-03-23 | C96: 391.910004 | D96: 393.459991 | E96: 388.660004 | F96: 389.5 | G96: 90686600 | H96: 388.229889 | I96: 0.9967391245 | J96: 1 | K96: 390.63 | L96: 392.18 | M96: 387.39 | N96: 388.23 | O96: 90686600 | U96: 2001-09-21 | V96: 0.369 | W96: 97.279999 | X96: 200109 | Y96: 200009 | Z96: 2000-09-15 | AA96: 5 | AB96: 1 | AC96: 1.442 | AD96: 0.01482319094
A97: 82 | B97: 2021-03-22 | C97: 390.029999 | D97: 394.070007 | E97: 389.970001 | F97: 392.589996 | G97: 73778600 | H97: 391.309784 | I97: 0.9967390611 | J97: 1 | K97: 388.76 | L97: 392.78 | M97: 388.7 | N97: 391.31 | O97: 73778600 | U97: 2001-06-15 | V97: 0.346 | W97: 121.849998 | X97: 200106 | Y97: 200006 | Z97: 2000-06-16 | AA97: 5 | AB97: 1 | AC97: 1.448 | AD97: 0.01188346347
A98: 83 | B98: 2021-03-19 | C98: 389.880005 | D98: 391.570007 | E98: 387.149994 | F98: 389.480011 | G98: 113624500 | H98: 388.209961 | I98: 0.9967391138 | J98: 1 | K98: 388.61 | L98: 390.29 | M98: 385.89 | N98: 388.21 | O98: 113624500 | U98: 2001-03-16 | V98: 0.316 | W98: 115.010002 | X98: 200103 | Y98: 200003 | Z98: 2000-03-17 | AA98: 5 | AB98: 1 | AC98: 1.45 | AD98: 0.01260759912
A99: 84 | B99: 2021-03-18 | C99: 394.480011 | D99: 396.720001 | E99: 390.75 | F99: 391.480011 | G99: 115349100 | H99: 388.929596 | I99: 0.9934851974 | J99: 1 | K99: 391.91 | L99: 394.14 | M99: 388.2 | N99: 388.93 | O99: 115349100 | U99: 2000-12-15 | V99: 0.411 | W99: 130.96875 | X99: 200012 | Y99: 199912 | Z99: 1999-12-17 | AA99: 5 | AB99: 1 | AC99: 1.505 | AD99: 0.01149129086
A100: 85 | B100: 2021-03-17 | C100: 394.529999 | D100: 398.119995 | E100: 393.299988 | F100: 397.26001 | G100: 97959300 | H100: 394.671936 | I100: 0.9934851887 | J100: 1 | K100: 391.96 | L100: 395.53 | M100: 390.74 | N100: 394.67 | O100: 97959300 | U100: 2000-09-15 | V100: 0.375 | W100: 146 | X100: 200009 | Y100: 199909 | Z100: 1999-09-17 | AA100: 5 | AB100: 1 | AC100: 1.442 | AD100: 0.009876712329
A101: 86 | B101: 2021-03-16 | C101: 397.070007 | D101: 397.829987 | E101: 395.079987 | F101: 395.910004 | G101: 73722500 | H101: 393.33075 | I101: 0.9934852518 | J101: 1 | K101: 394.48 | L101: 395.24 | M101: 392.51 | N101: 393.33 | O101: 73722500 | U101: 2000-06-16 | V101: 0.348 | W101: 146.59375 | X101: 200006 | Y101: 199906 | Z101: 1999-06-18 | AA101: 5 | AB101: 1 | AC101: 1.439 | AD101: 0.009816243871
A102: 87 | B102: 2021-03-15 | C102: 394.329987 | D102: 396.690002 | E102: 392.029999 | F102: 396.410004 | G102: 73427200 | H102: 393.827454 | I102: 0.9934851543 | J102: 1 | K102: 391.76 | L102: 394.11 | M102: 389.48 | N102: 393.83 | O102: 73427200 | U102: 2000-03-17 | V102: 0.371 | W102: 146.9375 | X102: 200003 | Y102: 199903 | Z102: 1999-03-19 | AA102: 5 | AB102: 1 | AC102: 1.496 | AD102: 0.01018119949
A103: 88 | B103: 2021-03-12 | C103: 392.070007 | D103: 394.209991 | E103: 391.200012 | F103: 394.059998 | G103: 64653600 | H103: 391.492767 | I103: 0.9934851774 | J103: 1 | K103: 389.52 | L103: 391.64 | M103: 388.65 | N103: 391.49 | O103: 64653600 | U103: 1999-12-17 | V103: 0.348 | W103: 142.6875 | X103: 199912 | Y103: 199812 | Z103: 1998-12-18 | AA103: 5 | AB103: 1 | AC103: 1.445 | AD103: 0.01012702584
A104: 89 | B104: 2021-03-11 | C104: 392.230011 | D104: 395.649994 | E104: 391.73999 | F104: 393.529999 | G104: 86245000 | H104: 390.966217 | I104: 0.9934851676 | J104: 1 | K104: 389.67 | L104: 393.07 | M104: 389.19 | N104: 390.97 | O104: 86245000 | U104: 1999-09-17 | V104: 0.372 | W104: 133.75 | X104: 199909 | Y104: 199809 | Z104: 1998-09-18 | AA104: 5 | AB104: 1 | AC104: 1.489 | AD104: 0.01113271028
A105: 90 | B105: 2021-03-10 | C105: 389.690002 | D105: 391.399994 | E105: 388.170013 | F105: 389.579987 | G105: 109899400 | H105: 387.041931 | I105: 0.9934851479 | J105: 1 | K105: 387.15 | L105: 388.85 | M105: 385.64 | N105: 387.04 | O105: 109899400 | U105: 1999-06-18 | V105: 0.405 | W105: 134.3125 | X105: 199906 | Y105: 199806 | Z105: 1998-06-19 | AA105: 5 | AB105: 1 | AC105: 1.476 | AD105: 0.01098929735
A106: 91 | B106: 2021-03-09 | C106: 385.850006 | D106: 389.910004 | E106: 385.309998 | F106: 387.170013 | G106: 113633600 | H106: 384.647675 | I106: 0.9934851928 | J106: 1 | K106: 383.34 | L106: 387.37 | M106: 382.8 | N106: 384.65 | O106: 113633600 | U106: 1999-03-19 | V106: 0.32 | W106: 129.6875 | X106: 199903 | Y106: 199803 | Z106: 1998-03-20 | AA106: 5 | AB106: 1 | AC106: 1.423 | AD106: 0.01097253012
A107: 92 | B107: 2021-03-08 | C107: 384.660004 | D107: 387.679993 | E107: 381.420013 | F107: 381.720001 | G107: 123149200 | H107: 379.233185 | I107: 0.9934852353 | J107: 1 | K107: 382.15 | L107: 385.15 | M107: 378.94 | N107: 379.23 | O107: 123149200 | U107: 1998-12-18 | V107: 0.392 | W107: 118.5 | X107: 199812 | Y107: 199712 | Z107: 1997-12-19 | AA107: 5 | AB107: 1 | AC107: 1.416 | AD107: 0.01194936709
A108: 93 | B108: 2021-03-05 | C108: 380.459991 | D108: 384.76001 | E108: 372.640015 | F108: 383.630005 | G108: 152039600 | H108: 381.130737 | I108: 0.9934852124 | J108: 1 | K108: 377.98 | L108: 382.25 | M108: 370.21 | N108: 381.13 | O108: 152039600 | U108: 1998-09-18 | V108: 0.359 | W108: 102.09375 | X108: 199809 | Y108: 199709 | Z108: 1997-09-19 | AA108: 5 | AB108: 1 | AC108: 1.404 | AD108: 0.01375206612
A109: 94 | B109: 2021-03-04 | C109: 381.220001 | D109: 384 | E109: 371.880005 | F109: 376.700012 | G109: 183433000 | H109: 374.24588 | I109: 0.993485182 | J109: 1 | K109: 378.74 | L109: 381.5 | M109: 369.46 | N109: 374.25 | O109: 183433000 | U109: 1998-06-19 | V109: 0.352 | W109: 110.0625 | X109: 199806 | Y109: 199706 | Z109: 1997-06-20 | AA109: 5 | AB109: 1 | AC109: 1.393 | AD109: 0.0126564452
A110: 95 | B110: 2021-03-03 | C110: 385.790009 | D110: 386.829987 | E110: 381.309998 | F110: 381.420013 | G110: 119940200 | H110: 378.93515 | I110: 0.9934852317 | J110: 1 | K110: 383.28 | L110: 384.31 | M110: 378.83 | N110: 378.94 | O110: 119940200 | U110: 1998-03-20 | V110: 0.313 | W110: 109.875 | X110: 199803 | Y110: 199703 | Z110: 1997-03-21 | AA110: 5 | AB110: 1 | AC110: 1.391 | AD110: 0.01265984073
A111: 96 | B111: 2021-03-02 | C111: 389.820007 | D111: 390.070007 | E111: 386 | F111: 386.540009 | G111: 79595300 | H111: 384.02179 | I111: 0.9934852307 | J111: 1 | K111: 387.28 | L111: 387.53 | M111: 383.49 | N111: 384.02 | O111: 79595300 | U111: 1997-12-19 | V111: 0.38 | W111: 94.78125 | X111: 199712 | Y111: 199612 | Z111: 1996-12-20 | AA111: 5 | AB111: 1 | AC111: 1.377 | AD111: 0.01452818991
A112: 97 | B112: 2021-03-01 | C112: 385.589996 | D112: 390.920013 | E112: 380.570007 | F112: 389.579987 | G112: 105348800 | H112: 387.041931 | I112: 0.9934851479 | J112: 1 | K112: 383.08 | L112: 388.37 | M112: 378.09 | N112: 387.04 | O112: 105348800 | U112: 1997-09-19 | V112: 0.348 | W112: 95.03125 | X112: 199709 | Y112: 199609 | Z112: 1996-09-20 | AA112: 5 | AB112: 1 | AC112: 1.364 | AD112: 0.0143531733
A113: 98 | B113: 2021-02-26 | C113: 384.350006 | D113: 385.579987 | E113: 378.230011 | F113: 380.359985 | G113: 152701600 | H113: 377.882019 | I113: 0.9934852085 | J113: 1 | K113: 381.85 | L113: 383.07 | M113: 375.77 | N113: 377.88 | O113: 152701600 | U113: 1997-06-20 | V113: 0.35 | W113: 89.578125 | X113: 199706 | Y113: 199606 | Z113: 1996-06-21 | AA113: 5 | AB113: 1 | AC113: 1.368 | AD113: 0.01527158556
A114: 99 | B114: 2021-02-25 | C114: 390.410004 | D114: 391.880005 | E114: 380.779999 | F114: 382.329987 | G114: 146670500 | H114: 379.839203 | I114: 0.9934852507 | J114: 1 | K114: 387.87 | L114: 389.33 | M114: 378.3 | N114: 379.84 | O114: 146670500 | U114: 1997-03-21 | V114: 0.299 | W114: 78.4375 | X114: 199703 | Y114: 199603 | Z114: 1996-03-15 | AA114: 5 | AB114: 1 | AC114: 1.369 | AD114: 0.01745338645
A115: 100 | B115: 2021-02-24 | C115: 386.329987 | D115: 392.230011 | E115: 385.269989 | F115: 391.769989 | G115: 72433900 | H115: 389.217682 | I115: 0.9934851901 | J115: 1 | K115: 383.81 | L115: 389.67 | M115: 382.76 | N115: 389.22 | O115: 72433900 | U115: 1996-12-20 | V115: 0.367 | W115: 74.84375 | X115: 199612 | Y115: 199512 | Z115: 1995-12-15 | AA115: 5 | AB115: 1 | AC115: 1.355 | AD115: 0.01810438413
A116: 101 | B116: 2021-02-23 | C116: 384.660004 | D116: 388.950012 | E116: 380.200012 | F116: 387.5 | G116: 107284100 | H116: 384.975494 | I116: 0.9934851458 | J116: 1 | K116: 382.15 | L116: 386.42 | M116: 377.72 | N116: 384.98 | O116: 107284100 | U116: 1996-09-20 | V116: 0.352 | W116: 68.640625 | X116: 199609 | Y116: 199509 | Z116: 1995-09-15 | AA116: 5 | AB116: 1 | AC116: 1.37 | AD116: 0.01995902572
A117: 102 | B117: 2021-02-22 | C117: 387.059998 | D117: 389.619995 | E117: 386.73999 | F117: 387.029999 | G117: 67414200 | H117: 384.508545 | I117: 0.99348512 | J117: 1 | K117: 384.54 | L117: 387.08 | M117: 384.22 | N117: 384.51 | O117: 67414200 | U117: 1996-06-21 | V117: 0.351 | W117: 66.8125 | X117: 199606 | Y117: 199506 | Z117: 1995-06-16 | AA117: 5 | AB117: 1 | AC117: 1.33 | AD117: 0.01990645463
A118: 103 | B118: 2021-02-19 | C118: 392.070007 | D118: 392.380005 | E118: 389.549988 | F118: 390.029999 | G118: 83241000 | H118: 387.489044 | I118: 0.9934852319 | J118: 1 | K118: 389.52 | L118: 389.82 | M118: 387.01 | N118: 387.49 | O118: 83241000 | U118: 1996-03-15 | V118: 0.285 | W118: 64.125 | X118: 199603 | Y118: 199503 | Z118: 1995-03-17 | AA118: 5 | AB118: 1 | AC118: 1.295 | AD118: 0.02019493177
A119: 104 | B119: 2021-02-18 | C119: 389.589996 | D119: 391.519989 | E119: 387.73999 | F119: 390.720001 | G119: 59712800 | H119: 388.17453 | I119: 0.9934851787 | J119: 1 | K119: 387.05 | L119: 388.97 | M119: 385.21 | N119: 388.17 | O119: 59712800 | U119: 1995-12-15 | V119: 0.382 | W119: 61.8125 | X119: 199512 | Y119: 199412 | Z119: 1994-12-16 | AA119: 5 | AB119: 1 | AC119: 1.278 | AD119: 0.02067542973
A120: 105 | B120: 2021-02-17 | C120: 390.420013 | D120: 392.660004 | E120: 389.329987 | F120: 392.390015 | G120: 52290600 | H120: 389.833679 | I120: 0.9934852165 | J120: 1 | K120: 387.88 | L120: 390.1 | M120: 386.79 | N120: 389.83 | O120: 52290600 | U120: 1995-09-15 | V120: 0.312 | W120: 58.4375 | X120: 199509 | Y120: 199409 | Z120: 1994-09-16 | AA120: 5 | AB120: 1 | AC120: 1.259 | AD120: 0.02154438503
A121: 106 | B121: 2021-02-16 | C121: 393.959991 | D121: 394.170013 | E121: 391.529999 | F121: 392.299988 | G121: 50972400 | H121: 389.744202 | I121: 0.9934851234 | J121: 1 | K121: 391.39 | L121: 391.6 | M121: 388.98 | N121: 389.74 | O121: 50972400 | U121: 1995-06-16 | V121: 0.316 | W121: 53.96875 | X121: 199506 | Y121: 199406 | Z121: 1994-06-17 | AA121: 5 | AB121: 1 | AC121: 1.235 | AD121: 0.0228836132
A122: 107 | B122: 2021-02-12 | C122: 389.850006 | D122: 392.899994 | E122: 389.769989 | F122: 392.640015 | G122: 50593300 | H122: 390.082031 | I122: 0.9934851673 | J122: 1 | K122: 387.31 | L122: 390.34 | M122: 387.23 | N122: 390.08 | O122: 50593300 | U122: 1995-03-17 | V122: 0.268 | W122: 49.5625 | X122: 199503 | Y122: 199403 | Z122: 1994-03-18 | AA122: 5 | AB122: 1 | AC122: 1.224 | AD122: 0.02469609079
A123: 108 | B123: 2021-02-11 | C123: 391.23999 | D123: 391.690002 | E123: 388.100006 | F123: 390.709991 | G123: 42913300 | H123: 388.164581 | I123: 0.9934851679 | J123: 1 | K123: 388.69 | L123: 389.14 | M123: 385.57 | N123: 388.16 | O123: 42913300 | U123: 1994-12-16 | V123: 0.363 | W123: 45.75 | X123: 199412 | Y123: 199312 | Z123: 1993-12-17 | AA123: 5 | AB123: 1 | AC123: 1.227 | AD123: 0.02681967213
A124: 109 | B124: 2021-02-10 | C124: 392.119995 | D124: 392.279999 | E124: 387.5 | F124: 390.079987 | G124: 59154400 | H124: 387.538696 | I124: 0.9934852054 | J124: 1 | K124: 389.57 | L124: 389.72 | M124: 384.98 | N124: 387.54 | O124: 59154400 | U124: 1994-09-16 | V124: 0.288 | W124: 47.015625 | X124: 199409 | Y124: 199309 | Z124: 1993-09-17 | AA124: 5 | AB124: 1 | AC124: 1.181 | AD124: 0.02511930874
A125: 110 | B125: 2021-02-09 | C125: 389.609985 | D125: 390.890015 | E125: 389.170013 | F125: 390.25 | G125: 35551100 | H125: 387.707581 | I125: 0.9934851531 | J125: 1 | K125: 387.07 | L125: 388.34 | M125: 386.63 | N125: 387.71 | O125: 35551100 | U125: 1994-06-17 | V125: 0.305 | W125: 45.875 | X125: 199406 | Y125: 199306 | Z125: 1993-06-18 | AA125: 5 | AB125: 1 | AC125: 1.179 | AD125: 0.02570027248
A126: 111 | B126: 2021-02-08 | C126: 389.269989 | D126: 390.559998 | E126: 388.350006 | F126: 390.51001 | G126: 38365200 | H126: 387.965912 | I126: 0.9934851913 | J126: 1 | K126: 386.73 | L126: 388.02 | M126: 385.82 | N126: 387.97 | O126: 38365200 | U126: 1994-03-18 | V126: 0.271 | W126: 46.96875 | X126: 199403 | Y126: 199303 | Z126: 1993-03-19 | AA126: 5 | AB126: 1 | AC126: 1.192 | AD126: 0.02537857618
A127: 112 | B127: 2021-02-05 | C127: 388.200012 | D127: 388.470001 | E127: 386.140015 | F127: 387.709991 | G127: 48669800 | H127: 385.184143 | I127: 0.993485213 | J127: 1 | K127: 385.67 | L127: 385.94 | M127: 383.62 | N127: 385.18 | O127: 48669800 | U127: 1993-12-17 | V127: 0.317 | W127: 46.5625 | X127: 199312 | Y127: 199212 | Z127: 1993-03-19 | AA127: 4 | AB127: 0 | AC127: 1.134 | AD127: 0.02435436242
A128: 113 | B128: 2021-02-04 | C128: 382.959991 | D128: 386.23999 | E128: 381.970001 | F128: 386.190002 | G128: 47142600 | H128: 383.674042 | I128: 0.9934851757 | J128: 1 | K128: 380.47 | L128: 383.72 | M128: 379.48 | N128: 383.67 | O128: 47142600 | U128: 1993-09-17 | V128: 0.286 | W128: 45.8125 | X128: 199309 | Y128: 199209 | Z128: 1993-03-19 | AA128: 3 | AB128: 0 | AC128: 0.817 | AD128: 0.01783356071
A129: 114 | B129: 2021-02-03 | C129: 382.440002 | D129: 383.700012 | E129: 380.480011 | F129: 381.850006 | G129: 52427100 | H129: 379.362335 | I129: 0.9934852142 | J129: 1 | K129: 379.95 | L129: 381.2 | M129: 378 | N129: 379.36 | O129: 52427100 | U129: 1993-06-18 | V129: 0.318 | W129: 44.5 | X129: 199306 | Y129: 199206 | Z129: 1993-03-19 | AA129: 2 | AB129: 0 | AC129: 0.531 | AD129: 0.01193258427
A130: 115 | B130: 2021-02-02 | C130: 379.649994 | D130: 383.220001 | E130: 376.320007 | F130: 381.549988 | G130: 64450700 | H130: 379.06427 | I130: 0.9934852101 | J130: 1 | K130: 377.18 | L130: 380.72 | M130: 373.87 | N130: 379.06 | O130: 64450700 | U130: 1993-03-19 | V130: 0.213 | W130: 45.03125 | X130: 199303 | Y130: 199203 | Z130: 1993-03-19 | AA130: 1 | AB130: 1 | AC130: 0.213 | AD130: 0.004730048577
A131: 116 | B131: 2021-02-01 | C131: 373.720001 | D131: 377.339996 | E131: 370.380005 | F131: 376.230011 | G131: 75817600 | H131: 373.778961 | I131: 0.9934852353 | J131: 1 | K131: 371.29 | L131: 374.88 | M131: 367.97 | N131: 373.78 | O131: 75817600
A132: 117 | B132: 2021-01-29 | C132: 375.630005 | D132: 376.670013 | E132: 368.269989 | F132: 370.070007 | G132: 126765100 | H132: 367.659088 | I132: 0.9934852353 | J132: 1 | K132: 373.18 | L132: 374.22 | M132: 365.87 | N132: 367.66 | O132: 126765100
A133: 118 | B133: 2021-01-28 | C133: 376.359985 | D133: 381.929993 | E133: 375.890015 | F133: 377.630005 | G133: 94198100 | H133: 375.16983 | I133: 0.9934852237 | J133: 1 | K133: 373.91 | L133: 379.44 | M133: 373.44 | N133: 375.17 | O133: 94198100
A134: 119 | B134: 2021-01-27 | C134: 380.220001 | D134: 380.320007 | E134: 372.01001 | F134: 374.410004 | G134: 123351100 | H134: 371.970795 | I134: 0.9934851928 | J134: 1 | K134: 377.74 | L134: 377.84 | M134: 369.59 | N134: 371.97 | O134: 123351100
A135: 120 | B135: 2021-01-26 | C135: 385.410004 | D135: 385.850006 | E135: 383.540009 | F135: 383.790009 | G135: 42665300 | H135: 381.289703 | I135: 0.9934852238 | J135: 1 | K135: 382.9 | L135: 383.34 | M135: 381.04 | N135: 381.29 | O135: 42665300
A136: 121 | B136: 2021-01-25 | C136: 383.670013 | D136: 384.769989 | E136: 378.459991 | F136: 384.390015 | G136: 70402000 | H136: 381.885803 | I136: 0.9934852314 | J136: 1 | K136: 381.17 | L136: 382.26 | M136: 375.99 | N136: 381.89 | O136: 70402000
A137: 122 | B137: 2021-01-22 | C137: 382.25 | D137: 384.130005 | E137: 381.839996 | F137: 382.880005 | G137: 52860500 | H137: 380.38562 | I137: 0.9934852043 | J137: 1 | K137: 379.76 | L137: 381.63 | M137: 379.35 | N137: 380.39 | O137: 52860500
A138: 123 | B138: 2021-01-21 | C138: 384.48999 | D138: 384.950012 | E138: 383.25 | F138: 384.23999 | G138: 47840100 | H138: 381.736755 | I138: 0.9934852304 | J138: 1 | K138: 381.99 | L138: 382.44 | M138: 380.75 | N138: 381.74 | O138: 47840100
A139: 124 | B139: 2021-01-20 | C139: 381.109985 | D139: 384.790009 | E139: 380.690002 | F139: 383.890015 | G139: 61836100 | H139: 381.389038 | I139: 0.9934851731 | J139: 1 | K139: 378.63 | L139: 382.28 | M139: 378.21 | N139: 381.39 | O139: 61836100
A140: 125 | B140: 2021-01-19 | C140: 378.339996 | D140: 379.230011 | E140: 376.75 | F140: 378.649994 | G140: 51233300 | H140: 376.183167 | I140: 0.9934852052 | J140: 1 | K140: 375.88 | L140: 376.76 | M140: 374.3 | N140: 376.18 | O140: 51233300
A141: 126 | B141: 2021-01-15 | C141: 376.720001 | D141: 377.579987 | E141: 373.700012 | F141: 375.700012 | G141: 107160000 | H141: 373.25238 | I141: 0.9934851426 | J141: 1 | K141: 374.27 | L141: 375.12 | M141: 371.27 | N141: 373.25 | O141: 107160000
A142: 127 | B142: 2021-01-14 | C142: 380.589996 | D142: 381.130005 | E142: 378.100006 | F142: 378.459991 | G142: 49989100 | H142: 375.994385 | I142: 0.9934851608 | J142: 1 | K142: 378.11 | L142: 378.65 | M142: 375.64 | N142: 375.99 | O142: 49989100
A143: 128 | B143: 2021-01-13 | C143: 378.690002 | D143: 380.859985 | E143: 377.850006 | F143: 379.790009 | G143: 45303600 | H143: 377.315735 | I143: 0.9934851525 | J143: 1 | K143: 376.22 | L143: 378.38 | M143: 375.39 | N143: 377.32 | O143: 45303600
A144: 129 | B144: 2021-01-12 | C144: 378.890015 | D144: 379.859985 | E144: 376.359985 | F144: 378.769989 | G144: 52547700 | H144: 376.302368 | I144: 0.9934851729 | J144: 1 | K144: 376.42 | L144: 377.39 | M144: 373.91 | N144: 376.3 | O144: 52547700
A145: 130 | B145: 2021-01-11 | C145: 377.850006 | D145: 380.579987 | E145: 377.720001 | F145: 378.690002 | G145: 51034700 | H145: 376.222931 | I145: =IF(F145=0,1,H145/F145) -> 0.9934852492 | J145: =INDEX(OFFSET($T$15,0,0,$S$13+1,1),MATCH(B145,OFFSET($Q$15,0,0,$S$13+1,1),-1)) -> 1 | K145: =ROUND($I145*C145,2) -> 375.39 | L145: =ROUND($I145*D145,2) -> 378.1 | M145: =ROUND($I145*E145,2) -> 375.26 | N145: =ROUND($I145*F145,2) -> 376.22 | O145: =G145*J145 -> 51034700
A146: 131 | B146: 2021-01-08 | C146: 380.589996 | D146: 381.48999 | E146: 377.100006 | F146: 381.26001 | G146: 71677200 | H146: 378.776184 | I146: 0.9934852176 | J146: 1 | K146: 378.11 | L146: 379 | M146: 374.64 | N146: 378.78 | O146: 71677200
A147: 132 | B147: 2021-01-07 | C147: 376.100006 | D147: 379.899994 | E147: 375.910004 | F147: 379.100006 | G147: 68766800 | H147: 376.630249 | I147: 0.9934852098 | J147: 1 | K147: 373.65 | L147: 377.43 | M147: 373.46 | N147: 376.63 | O147: 68766800
A148: 133 | B148: 2021-01-06 | C148: 369.709991 | D148: 376.980011 | E148: 369.119995 | F148: 373.549988 | G148: 107997700 | H148: 371.116394 | I148: 0.9934852253 | J148: 1 | K148: 367.3 | L148: 374.52 | M148: 366.72 | N148: 371.12 | O148: 107997700
A149: 134 | B149: 2021-01-05 | C149: 368.100006 | D149: 372.5 | E149: 368.049988 | F149: 371.329987 | G149: 66426200 | H149: 368.910828 | I149: 0.9934851504 | J149: 1 | K149: 365.7 | L149: 370.07 | M149: 365.65 | N149: 368.91 | O149: 66426200
A150: 135 | B150: 2021-01-04 | C150: 375.309998 | D150: 375.450012 | E150: 364.820007 | F150: 368.790009 | G150: 110210800 | H150: 366.38739 | I150: 0.9934851299 | J150: 1 | K150: 372.86 | L150: 373 | M150: 362.44 | N150: 366.39 | O150: 110210800
A151: 136 | B151: 2020-12-31 | C151: 371.779999 | D151: 374.660004 | E151: 371.230011 | F151: 373.880005 | G151: 78520700 | H151: 371.444244 | I151: 0.9934851798 | J151: 1 | K151: 369.36 | L151: 372.22 | M151: 368.81 | N151: 371.44 | O151: 78520700
A152: 137 | B152: 2020-12-30 | C152: 372.339996 | D152: 373.100006 | E152: 371.570007 | F152: 371.98999 | G152: 49455300 | H152: 369.566559 | I152: 0.9934852252 | J152: 1 | K152: 369.91 | L152: 370.67 | M152: 369.15 | N152: 369.57 | O152: 49455300
A153: 138 | B153: 2020-12-29 | C153: 373.809998 | D153: 374 | E153: 370.829987 | F153: 371.459991 | G153: 53680500 | H153: 369.040009 | I153: 0.9934852149 | J153: 1 | K153: 371.37 | L153: 371.56 | M153: 368.41 | N153: 369.04 | O153: 53680500
A154: 139 | B154: 2020-12-28 | C154: 371.73999 | D154: 372.589996 | E154: 371.070007 | F154: 372.170013 | G154: 39000400 | H154: 369.745392 | I154: 0.993485179 | J154: 1 | K154: 369.32 | L154: 370.16 | M154: 368.65 | N154: 369.75 | O154: 39000400
A155: 140 | B155: 2020-12-24 | C155: 368.079987 | D155: 369.029999 | E155: 367.450012 | F155: 369 | G155: 26457900 | H155: 366.596039 | I155: 0.9934852005 | J155: 1 | K155: 365.68 | L155: 366.63 | M155: 365.06 | N155: 366.6 | O155: 26457900
A156: 141 | B156: 2020-12-23 | C156: 368.279999 | D156: 369.619995 | E156: 367.220001 | F156: 367.570007 | G156: 46201400 | H156: 365.175354 | I156: 0.9934851785 | J156: 1 | K156: 365.88 | L156: 367.21 | M156: 364.83 | N156: 365.18 | O156: 46201400
A157: 142 | B157: 2020-12-22 | C157: 368.209991 | D157: 368.329987 | E157: 366.029999 | F157: 367.23999 | G157: 47949000 | H157: 364.847473 | I157: 0.9934851403 | J157: 1 | K157: 365.81 | L157: 365.93 | M157: 363.65 | N157: 364.85 | O157: 47949000
A158: 143 | B158: 2020-12-21 | C158: 364.970001 | D158: 378.459991 | E158: 362.029999 | F158: 367.859985 | G158: 96386700 | H158: 365.46344 | I158: 0.9934851707 | J158: 1 | K158: 362.59 | L158: 375.99 | M158: 359.67 | N158: 365.46 | O158: 96386700
A159: 144 | B159: 2020-12-18 | C159: 370.970001 | D159: 371.149994 | E159: 367.019989 | F159: 369.179993 | G159: 136542300 | H159: 366.774872 | I159: 0.9934852347 | J159: 1 | K159: 368.55 | L159: 368.73 | M159: 364.63 | N159: 366.77 | O159: 136542300
A160: 145 | B160: 2020-12-17 | C160: 371.940002 | D160: 372.459991 | E160: 371.049988 | F160: 372.23999 | G160: 64119500 | H160: 368.245209 | I160: 0.9892682648 | J160: 1 | K160: 367.95 | L160: 368.46 | M160: 367.07 | N160: 368.25 | O160: 64119500
A161: 146 | B161: 2020-12-16 | C161: 369.820007 | D161: 371.160004 | E161: 368.869995 | F161: 370.170013 | G161: 58420500 | H161: 366.197449 | I161: 0.9892682717 | J161: 1 | K161: 365.85 | L161: 367.18 | M161: 364.91 | N161: 366.2 | O161: 58420500
A162: 147 | B162: 2020-12-15 | C162: 367.399994 | D162: 369.589996 | E162: 365.920013 | F162: 369.589996 | G162: 63865300 | H162: 365.623657 | I162: 0.9892682728 | J162: 1 | K162: 363.46 | L162: 365.62 | M162: 361.99 | N162: 365.62 | O162: 63865300
A163: 148 | B163: 2020-12-14 | C163: 368.640015 | D163: 369.799988 | E163: 364.470001 | F163: 364.660004 | G163: 69216200 | H163: 360.746582 | I163: 0.9892682994 | J163: 1 | K163: 364.68 | L163: 365.83 | M163: 360.56 | N163: 360.75 | O163: 69216200
A164: 149 | B164: 2020-12-11 | C164: 364.899994 | D164: 366.73999 | E164: 363.26001 | F164: 366.299988 | G164: 57698600 | H164: 362.368958 | I164: 0.989268277 | J164: 1 | K164: 360.98 | L164: 362.8 | M164: 359.36 | N164: 362.37 | O164: 57698600
A165: 150 | B165: 2020-12-10 | C165: 365.369995 | D165: 367.859985 | E165: 364.429993 | F165: 366.730011 | G165: 57735400 | H165: 362.794373 | I165: 0.9892682958 | J165: 1 | K165: 361.45 | L165: 363.91 | M165: 360.52 | N165: 362.79 | O165: 57735400
A166: 151 | B166: 2020-12-09 | C166: 370.880005 | D166: 371.049988 | E166: 365.950012 | F166: 366.850006 | G166: 74098300 | H166: 362.913086 | I166: 0.9892683115 | J166: 1 | K166: 366.9 | L166: 367.07 | M166: 362.02 | N166: 362.91 | O166: 74098300
A167: 152 | B167: 2020-12-08 | C167: 367.720001 | D167: 370.779999 | E167: 367.670013 | F167: 370.170013 | G167: 42458900 | H167: 366.197449 | I167: 0.9892682717 | J167: 1 | K167: 363.77 | L167: 366.8 | M167: 363.72 | N167: 366.2 | O167: 42458900
A168: 153 | B168: 2020-12-07 | C168: 369.019989 | D168: 369.619995 | E168: 367.720001 | F168: 369.089996 | G168: 48944300 | H168: 365.128998 | I168: 0.9892682055 | J168: 1 | K168: 365.06 | L168: 365.65 | M168: 363.77 | N168: 365.13 | O168: 48944300
A169: 154 | B169: 2020-12-04 | C169: 367.320007 | D169: 369.850006 | E169: 367.220001 | F169: 369.850006 | G169: 50749900 | H169: 365.88089 | I169: 0.9892683089 | J169: 1 | K169: 363.38 | L169: 365.88 | M169: 363.28 | N169: 365.88 | O169: 50749900
A170: 155 | B170: 2020-12-03 | C170: 366.679993 | D170: 368.190002 | E170: 365.5 | F170: 366.690002 | G170: 62882000 | H170: 362.754791 | I170: 0.9892682893 | J170: 1 | K170: 362.74 | L170: 364.24 | M170: 361.58 | N170: 362.75 | O170: 62882000
A171: 156 | B171: 2020-12-02 | C171: 364.820007 | D171: 366.959991 | E171: 364.200012 | F171: 366.790009 | G171: 45927000 | H171: 362.853699 | I171: 0.9892682191 | J171: 1 | K171: 360.9 | L171: 363.02 | M171: 360.29 | N171: 362.85 | O171: 45927000
A172: 157 | B172: 2020-12-01 | C172: 365.570007 | D172: 367.679993 | E172: 364.929993 | F172: 366.019989 | G172: 74231400 | H172: 362.091949 | I172: 0.9892682364 | J172: 1 | K172: 361.65 | L172: 363.73 | M172: 361.01 | N172: 362.09 | O172: 74231400
A173: 158 | B173: 2020-11-30 | C173: 362.829987 | D173: 363.119995 | E173: 359.170013 | F173: 362.059998 | G173: 83872700 | H173: 358.1745 | I173: 0.9892683588 | J173: 1 | K173: 358.94 | L173: 359.22 | M173: 355.32 | N173: 358.17 | O173: 83872700
A174: 159 | B174: 2020-11-27 | C174: 363.839996 | D174: 364.179993 | E174: 362.579987 | F174: 363.670013 | G174: 28514100 | H174: 359.767242 | I174: 0.9892683728 | J174: 1 | K174: 359.94 | L174: 360.27 | M174: 358.69 | N174: 359.77 | O174: 28514100
A175: 160 | B175: 2020-11-25 | C175: 363.130005 | D175: 363.160004 | E175: 361.480011 | F175: 362.660004 | G175: 45330900 | H175: 358.768066 | I175: 0.9892683562 | J175: 1 | K175: 359.23 | L175: 359.26 | M175: 357.6 | N175: 358.77 | O175: 45330900
A176: 161 | B176: 2020-11-24 | C176: 360.209991 | D176: 363.809998 | E176: 359.290009 | F176: 363.220001 | G176: 62415900 | H176: 359.322021 | I176: 0.9892682672 | J176: 1 | K176: 356.34 | L176: 359.91 | M176: 355.43 | N176: 359.32 | O176: 62415900
A177: 162 | B177: 2020-11-23 | C177: 357.279999 | D177: 358.820007 | E177: 354.869995 | F177: 357.459991 | G177: 63230600 | H177: 353.62381 | I177: 0.9892682227 | J177: 1 | K177: 353.45 | L177: 354.97 | M177: 351.06 | N177: 353.62 | O177: 63230600
A178: 163 | B178: 2020-11-20 | C178: 357.5 | D178: 357.720001 | E178: 355.25 | F178: 355.329987 | G178: 70417300 | H178: 351.516693 | I178: 0.9892683023 | J178: 1 | K178: 353.66 | L178: 353.88 | M178: 351.44 | N178: 351.52 | O178: 70417300
A179: 164 | B179: 2020-11-19 | C179: 355.600006 | D179: 358.179993 | E179: 354.149994 | F179: 357.779999 | G179: 59940900 | H179: 353.940399 | I179: 0.9892682654 | J179: 1 | K179: 351.78 | L179: 354.34 | M179: 350.35 | N179: 353.94 | O179: 59940900
A180: 165 | B180: 2020-11-18 | C180: 360.910004 | D180: 361.5 | E180: 356.23999 | F180: 356.279999 | G180: 70591300 | H180: 352.456482 | I180: 0.9892682244 | J180: 1 | K180: 357.04 | L180: 357.62 | M180: 352.42 | N180: 352.46 | O180: 70591300
A181: 166 | B181: 2020-11-17 | C181: 359.970001 | D181: 361.920013 | E181: 358.339996 | F181: 360.619995 | G181: 66111000 | H181: 356.749908 | I181: 0.9892682407 | J181: 1 | K181: 356.11 | L181: 358.04 | M181: 354.49 | N181: 356.75 | O181: 66111000
A182: 167 | B182: 2020-11-16 | C182: 360.980011 | D182: 362.779999 | E182: 359.589996 | F182: 362.570007 | G182: 74541100 | H182: 358.678986 | I182: 0.9892682215 | J182: 1 | K182: 357.11 | L182: 358.89 | M182: 355.73 | N182: 358.68 | O182: 74541100
A183: 168 | B183: 2020-11-13 | C183: 355.269989 | D183: 358.899994 | E183: 354.709991 | F183: 358.100006 | G183: 62892200 | H183: 354.256989 | I183: 0.9892683135 | J183: 1 | K183: 351.46 | L183: 355.05 | M183: 350.9 | N183: 354.26 | O183: 62892200
A184: 169 | B184: 2020-11-12 | C184: 355.579987 | D184: 356.720001 | E184: 351.26001 | F184: 353.209991 | G184: 67546200 | H184: 349.419434 | I184: 0.9892682622 | J184: 1 | K184: 351.76 | L184: 352.89 | M184: 347.49 | N184: 349.42 | O184: 67546200
A185: 170 | B185: 2020-11-11 | C185: 356.399994 | D185: 357.559998 | E185: 355.059998 | F185: 356.670013 | G185: 58649000 | H185: 352.842346 | I185: 0.9892683241 | J185: 1 | K185: 352.58 | L185: 353.72 | M185: 351.25 | N185: 352.84 | O185: 58649000
A186: 171 | B186: 2020-11-10 | C186: 353.48999 | D186: 355.179993 | E186: 350.51001 | F186: 354.040009 | G186: 85552000 | H186: 350.24057 | I186: 0.9892683344 | J186: 1 | K186: 349.7 | L186: 351.37 | M186: 346.75 | N186: 350.24 | O186: 85552000
A187: 172 | B187: 2020-11-09 | C187: 363.970001 | D187: 364.380005 | E187: 354.059998 | F187: 354.559998 | G187: 172304200 | H187: 350.754944 | I187: 0.9892682366 | J187: 1 | K187: 360.06 | L187: 360.47 | M187: 350.26 | N187: 350.75 | O187: 172304200
A188: 173 | B188: 2020-11-06 | C188: 349.929993 | D188: 351.51001 | E188: 347.649994 | F188: 350.160004 | G188: 74973000 | H188: 346.402161 | I188: 0.9892682118 | J188: 1 | K188: 346.17 | L188: 347.74 | M188: 343.92 | N188: 346.4 | O188: 74973000
A189: 174 | B189: 2020-11-05 | C189: 349.23999 | D189: 352.190002 | E189: 348.859985 | F189: 350.23999 | G189: 82039700 | H189: 346.481323 | I189: 0.98926831 | J189: 1 | K189: 345.49 | L189: 348.41 | M189: 345.12 | N189: 346.48 | O189: 82039700
A190: 175 | B190: 2020-11-04 | C190: 340.859985 | D190: 347.940002 | E190: 339.589996 | F190: 343.540009 | G190: 126959700 | H190: 339.853241 | I190: 0.9892683009 | J190: 1 | K190: 337.2 | L190: 344.21 | M190: 335.95 | N190: 339.85 | O190: 126959700
A191: 176 | B191: 2020-11-03 | C191: 333.690002 | D191: 338.25 | E191: 330.290009 | F191: 336.029999 | G191: 93294200 | H191: 332.423798 | I191: 0.9892682171 | J191: 1 | K191: 330.11 | L191: 334.62 | M191: 326.75 | N191: 332.42 | O191: 93294200
A192: 177 | B192: 2020-11-02 | C192: 330.200012 | D192: 332.359985 | E192: 327.23999 | F192: 330.200012 | G192: 86068300 | H192: 326.656403 | I192: 0.9892682954 | J192: 1 | K192: 326.66 | L192: 328.79 | M192: 323.73 | N192: 326.66 | O192: 86068300
A193: 178 | B193: 2020-10-30 | C193: 328.279999 | D193: 329.690002 | E193: 322.600006 | F193: 326.540009 | G193: 120287300 | H193: 323.035675 | I193: 0.989268286 | J193: 1 | K193: 324.76 | L193: 326.15 | M193: 319.14 | N193: 323.04 | O193: 120287300
A194: 179 | B194: 2020-10-29 | C194: 326.910004 | D194: 333.399994 | E194: 325.089996 | F194: 329.980011 | G194: 90597700 | H194: 326.438751 | I194: 0.989268259 | J194: 1 | K194: 323.4 | L194: 329.82 | M194: 321.6 | N194: 326.44 | O194: 90597700
A195: 180 | B195: 2020-10-28 | C195: 332.100006 | D195: 338.25 | E195: 326.130005 | F195: 326.660004 | G195: 127094300 | H195: 323.154358 | I195: 0.9892682117 | J195: 1 | K195: 328.54 | L195: 334.62 | M195: 322.63 | N195: 323.15 | O195: 127094300
A196: 181 | B196: 2020-10-27 | C196: 339.76001 | D196: 340.119995 | E196: 337.98999 | F196: 338.220001 | G196: 65994100 | H196: 334.590332 | I196: 0.9892683195 | J196: 1 | K196: 336.11 | L196: 336.47 | M196: 334.36 | N196: 334.59 | O196: 65994100
A197: 182 | B197: 2020-10-26 | C197: 342.130005 | D197: 342.980011 | E197: 335.619995 | F197: 339.390015 | G197: 91473000 | H197: 335.747803 | I197: 0.9892683584 | J197: 1 | K197: 338.46 | L197: 339.3 | M197: 332.02 | N197: 335.75 | O197: 91473000
A198: 183 | B198: 2020-10-23 | C198: 345.929993 | D198: 345.98999 | E198: 343.130005 | F198: 345.779999 | G198: 49143900 | H198: 342.069183 | I198: 0.9892682746 | J198: 1 | K198: 342.22 | L198: 342.28 | M198: 339.45 | N198: 342.07 | O198: 49143900
A199: 184 | B199: 2020-10-22 | C199: 342.959991 | D199: 345.23999 | E199: 340.649994 | F199: 344.609985 | G199: 55399300 | H199: 340.911713 | I199: 0.989268239 | J199: 1 | K199: 339.28 | L199: 341.53 | M199: 336.99 | N199: 340.91 | O199: 55399300
A200: 185 | B200: 2020-10-21 | C200: 343.329987 | D200: 345.670013 | E200: 342.399994 | F200: 342.730011 | G200: 63575000 | H200: 339.051941 | I200: 0.9892683165 | J200: 1 | K200: 339.65 | L200: 341.96 | M200: 338.73 | N200: 339.05 | O200: 63575000
... 4300 more rows

Sheet CalculationsAndCharts
A1: Windowing.xlsm
A2: =InputPriceData!A1 -> SPDR S&P 500 ETF Trust (SPY) -NYSEArca (Daily)
A4: User Charting Controls | E4: Click to Shift Chart One Bar:
A5: Data Control | C5: TRUE
A6: =InputPriceData!$B$10 -> 7168 | B6: Available Input Data Rows | E6: Earliest: | F6: =OFFSET(InputPriceData!B15,CalculationsAndCharts!A6,0,1,1) -> 1993-01-29
A7: =MAX(A33:A56896) -> 2500 | B7: Available Calculation Rows | E7: Latest: | F7: =OFFSET(InputPriceData!B15,1,0,1,1) -> 2021-07-16
A8: =MIN(AvailableInputRows-DataPanRows,A7) -> 2500 | B8: Logically Available for Calc / Plot | E8: $ Change: | F8: =G33-G34 -> -5.05
A10: Historical Price Windowing Specifications | F10: Click to Shift
A11: 134 | B11: Input Data Offset (Pan) | F11: Points to Plot
A12: 288 | B12: Data Points to Plot (Zoom) | R12: 1
B13: First: | C13: =OFFSET(B32,A12,0,1,1) -> 2019-11-12
B14: ="Last: " & IF(OFFSET(InputPriceData!P15,1+A11,0,1,1)="","",TEXT(OFFSET(InputPriceData!P15,1+A11,0,1,1),"H:MM AM/PM")) -> Last: | C14: =B33 -> 2021-01-04
A15: User Controls | C15: Calculated "Semi-Constants"
C16: Length / 2 | D16: Length / 6.28 | E16: Length + 1 | F16: Length - 1
A17: 20 | B17: Length | C17: =A17/2 -> 10 | D17: =A17/6.28 -> 3.184713376 | E17: =A17+1 -> 21 | F17: =A17-1 -> 19
C19: Pedestal * 2
A20: 10 | B20: Pedestal | C20: =2*A20 -> 20
A25: Help! I would like to plot data
A26: From | B26: 2019-11-12 | C26: =OFFSET(InputPriceData!$A$15,MATCH(B26,OFFSET(InputPriceData!B15,1,0,InputPriceData!$B$10,1),0),0,1,1)-C27 -> 288 | E26: 68
A27: To | B27: 2021-01-04 | C27: =OFFSET(InputPriceData!$A$15,MATCH(B27,OFFSET(InputPriceData!$B$15,1,0,InputPriceData!$B$10,1),0),0,1,1)-1 -> 134 | E27: =$A$12-$E$26+1 -> 221
H28: Value @ Cursor => | I28: =OFFSET(A32,$E$27,0,1,1)&"(RR)" -> 221(RR) | J28: =OFFSET($B$32,E27,0,1,1) -> 2020-02-20 | K28: =TEXT(OFFSET(D32,$E$27,0,1,1),"#,##0.00")&"(o)" -> 329.39(o) | L28: =TEXT(OFFSET(E32,$E$27,0,1,1),"#,##0.00")&"(h)" -> 330.27(h) | M28: =TEXT(OFFSET(F32,$E$27,0,1,1),"#,##0.00")&"(l)" -> 325.43(l) | N28: =TEXT(OFFSET(G32,$E$27,0,1,1),"#,##0.00")&"(c)" -> 328.62(c) | O28: =TEXT(OFFSET(C32,$E$27,0,1,1),"#,##0.00,,""M""")&"(v)" -> 74.16M(v)
E29: Cursor ==> | U29: Indicator Display Work Area | AY29: Work Area For Chart Cursors
B30: =LogicallyAvailableRows -> 2500 | C30: <== Calculation Rel Row Limits ==> | H30: =LogicallyAvailableRows -> 2500 | J30: =LogicallyAvailableRows-$A$17 -> 2480 | K30: =J30-1 -> 2479 | M30: =LogicallyAvailableRows-$A$17+1 -> 2481 | N30: =M30-1 -> 2480 | P30: =LogicallyAvailableRows-$A$17+1 -> 2481 | Q30: =P30-1 -> 2480 | S30: =LogicallyAvailableRows-$A$17+1 -> 2481 | T30: =S30-1 -> 2480 | U30: Used to Switch Indicator Charts Between Filt and ROC Values
A31: Rel Row | I31: ="SMA("&A17&") Coefs" -> SMA(20) Coefs | J31: ="SMA("&A17&")" -> SMA(20) | K31: SMA ROC | L31: ="Triangle(" & A17 & ") Coefs" -> Triangle(20) Coefs | M31: ="Triangle("&A17&") Filt" -> Triangle(20) Filt | N31: Triangle ROC | O31: ="Hamming("&$A$17&","&$A$20&") Coefs" -> Hamming(20,10) Coefs | P31: ="Hamming("&$A$17&","&$A$20&") Filt" -> Hamming(20,10) Filt | Q31: ="Hamming("&$A$17&","&$A$20&") ROC" -> Hamming(20,10) ROC | R31: ="Hann("&$A$17&") Coefs" -> Hann(20) Coefs | S31: ="Hann("&$A$17&") Filt" -> Hann(20) Filt | T31: ="Hann("&$A$17&") ROC" -> Hann(20) ROC | U31: =IF($R$12=1,J31,K31) -> SMA(20) | V31: =IF($R$12=1,M31,N31) -> Triangle(20) Filt | W31: =IF($R$12=1,P31,Q31) -> Hamming(20,10) Filt | X31: =IF($R$12=1,S31,T31) -> Hann(20) Filt | AW31: Used To Color Vol Bars
B32: Date | C32: Volume | D32: Open | E32: High | F32: Low | G32: Close | H32: Deriv | AW32: Up Vol | AX32: Dn Vol | AY32: Volume Cursor | AZ32: =MAX(OFFSET(C33,0,0,A12,1)) -> 392220700 | BA32: Price Chart Cursor | BC32: Indicator 01 Cursor | BE32: Indicator 02 Cursor | BG32: Indicator 03 Cursor | BI32: Indicator 04 Cursor
A33: 1 | B33: =IF(A33>$B$30,NA(),IF($A33>$A$8,"",OFFSET(InputPriceData!$B$15,$A33+$A$11,0,1,1))) -> 2021-01-04 | C33: =IF(A33>$B$30,NA(),IF($A33>$A$8,"",OFFSET(InputPriceData!$G$15,CalculationsAndCharts!$A33+$A$11,IF($C$5,8,0),1,1))) -> 110210800 | D33: =IF(A33>$B$30,NA(),IF(A33>$A$8,"",OFFSET(InputPriceData!$C$15,CalculationsAndCharts!$A33+$A$11,IF($C$5,8,0),1,1))) -> 372.86 | E33: =IF(A33>$B$30,NA(),IF(A33>$A$8,"",OFFSET(InputPriceData!$D$15,CalculationsAndCharts!$A33+$A$11,IF($C$5,8,0),1,1))) -> 373 | F33: =IF(A33>$B$30,NA(),IF(A33>$A$8,"",OFFSET(InputPriceData!$E$15,CalculationsAndCharts!$A33+$A$11,IF($C$5,8,0),1,1))) -> 362.44 | G33: =IF(A33>$B$30,NA(),IF(A33>$A$8,"",OFFSET(InputPriceData!$F$15,CalculationsAndCharts!$A33+$A$11,IF($C$5,8,0),1,1))) -> 366.39 | H33: =IF(A33<=$H$30,G33-D33,NA()) -> -6.47 | I33: =IF($A33>$E$17+1,NA(),IF($A33=$E$17+1,SUM(OFFSET($I$33,0,0,$A$17,1)),IF(A33=$E$17,"-- SUM --",1))) -> 1 | J33: =IF(A33<=$J$30,SUMPRODUCT(OFFSET(H33,1,0,$A$17,1),OFFSET($I$33,0,0,$A$17,1))/OFFSET($I$33,$E$17,0,1,1),NA()) -> 0.141 | K33: =IF(A33<=$K$30,$D$17*(J33-J34),NA()) -> 0.02070063694 | L33: =IF($A33>$E$17+1,NA(),IF($A33=$E$17+1,SUM(OFFSET(L$33,0,0,$A$17,1)),IF($A33=$E$17,"-- Coef Sum--",IF($A33<$C$17,$A33,IF($A33=$C$17,$A33,$E$17-$A33))))) -> 1 | M33: =IF(A33<=$M$30,SUMPRODUCT(OFFSET($H33,0,0,$A$17,1),OFFSET($L$33,0,0,$A$17,1))/OFFSET($L$33,$E$17,0,1,1),NA()) -> -0.04181818182 | N33: =IF($A33<=$N$30,$D$17*(M33-M34),NA()) -> -0.2492762015 | O33: =IF($A33>$E$17+1,NA(),IF($A33=$E$17+1,SUM(OFFSET($O$33,0,0,$A$17,1)),IF(A33=$E$17,"-- SUM --",SIN(RADIANS($A$20+(180-$C$20)*($A33-1)/$F$17))))) -> 0.1736481777 | P33: =IF(A33<=P$30,SUMPRODUCT(OFFSET(O$33,0,0,$A$17,1),OFFSET($H33,0,0,$A$17,1))/OFFSET(O$33,$E$17,0,1,1),NA()) -> -0.06748342887 | Q33: =IF($A33<=Q$30,$D$17*(P33-P34),NA()) -> -0.32419989 | R33: =IF($A33>$E$17+1,NA(),IF($A33=$E$17+1,SUM(OFFSET(R$33,0,0,$A$17,1)),IF($A33=$E$17,"-- Coef Sum--",1-COS(RADIANS(360*$A33/$E$17))))) -> 0.04442719421 | S33: =IF($A33<=S$30,SUMPRODUCT(OFFSET(R$33,0,0,$A$17,1),OFFSET($H33,0,0,$A$17,1))/OFFSET(R$33,$E$17,0,1,1),NA()) -> -0.01204115561 | T33: =IF($A33<=T$30,$D$17*(S33-S34),NA()) -> -0.06826827139 | U33: =IF($R$12=1,J33,K33) -> 0.141 | V33: =IF($R$12=1,M33,N33) -> -0.04181818182 | W33: =IF($R$12=1,P33,Q33) -> -0.06748342887 | X33: =IF($R$12=1,S33,T33) -> -0.01204115561 | AW33: =IF(G33>=D33,C33,NA()) ->  | AX33: =IF(G33<D33,C33,NA()) -> 110210800 | AY33: =$E$27 -> 221 | AZ33: 0 | BA33: =$E$27 -> 221 | BB33: 208.75725 | BC33: =$E$27 -> 221 | BD33: -1.6 | BE33: =$E$27 -> 221 | BF33: -1.8 | BG33: =$E$27 -> 221 | BH33: -1.7 | BI33: =$E$27 -> 221 | BJ33: -2
A34: 2 | B34: =IF(A34>$B$30,NA(),IF($A34>$A$8,"",OFFSET(InputPriceData!$B$15,$A34+$A$11,0,1,1))) -> 2020-12-31 | C34: =IF(A34>$B$30,NA(),IF($A34>$A$8,"",OFFSET(InputPriceData!$G$15,CalculationsAndCharts!$A34+$A$11,IF($C$5,8,0),1,1))) -> 78520700 | D34: =IF(A34>$B$30,NA(),IF(A34>$A$8,"",OFFSET(InputPriceData!$C$15,CalculationsAndCharts!$A34+$A$11,IF($C$5,8,0),1,1))) -> 369.36 | E34: =IF(A34>$B$30,NA(),IF(A34>$A$8,"",OFFSET(InputPriceData!$D$15,CalculationsAndCharts!$A34+$A$11,IF($C$5,8,0),1,1))) -> 372.22 | F34: =IF(A34>$B$30,NA(),IF(A34>$A$8,"",OFFSET(InputPriceData!$E$15,CalculationsAndCharts!$A34+$A$11,IF($C$5,8,0),1,1))) -> 368.81 | G34: =IF(A34>$B$30,NA(),IF(A34>$A$8,"",OFFSET(InputPriceData!$F$15,CalculationsAndCharts!$A34+$A$11,IF($C$5,8,0),1,1))) -> 371.44 | H34: =IF(A34<=$H$30,G34-D34,NA()) -> 2.08 | I34: =IF($A34>$E$17+1,NA(),IF($A34=$E$17+1,SUM(OFFSET($I$33,0,0,$A$17,1)),IF(A34=$E$17,"-- SUM --",1))) -> 1 | J34: =IF(A34<=$J$30,SUMPRODUCT(OFFSET(H34,1,0,$A$17,1),OFFSET($I$33,0,0,$A$17,1))/OFFSET($I$33,$E$17,0,1,1),NA()) -> 0.1345 | K34: -0.1242038217 | L34: 2 | M34: 0.03645454545 | N34: -0.09959467284 | O34: 0.3159976685 | P34: 0.03431533658 | Q34: -0.1238399492 | R34: 0.1737612257 | S34: 0.009395081602 | T34: -0.07315571129 | U34: 0.1345 | V34: 0.03645454545 | W34: 0.03431533658 | X34: 0.009395081602 | AW34: 78520700 | AY34: =$E$27 -> 221 | AZ34: =CEILING(AZ32,10^INT(LOG10(AZ32))/8) -> 400000000 | BA34: =$E$27 -> 221 | BB34: 385.38975 | BC34: =$E$27 -> 221 | BD34: 1.6 | BE34: =$E$27 -> 221 | BF34: 1.8 | BG34: =$E$27 -> 221 | BH34: 1.7 | BI34: =$E$27 -> 221 | BJ34: 2
A35: 3 | B35: =IF(A35>$B$30,NA(),IF($A35>$A$8,"",OFFSET(InputPriceData!$B$15,$A35+$A$11,0,1,1))) -> 2020-12-30 | C35: =IF(A35>$B$30,NA(),IF($A35>$A$8,"",OFFSET(InputPriceData!$G$15,CalculationsAndCharts!$A35+$A$11,IF($C$5,8,0),1,1))) -> 49455300 | D35: =IF(A35>$B$30,NA(),IF(A35>$A$8,"",OFFSET(InputPriceData!$C$15,CalculationsAndCharts!$A35+$A$11,IF($C$5,8,0),1,1))) -> 369.91 | E35: =IF(A35>$B$30,NA(),IF(A35>$A$8,"",OFFSET(InputPriceData!$D$15,CalculationsAndCharts!$A35+$A$11,IF($C$5,8,0),1,1))) -> 370.67 | F35: =IF(A35>$B$30,NA(),IF(A35>$A$8,"",OFFSET(InputPriceData!$E$15,CalculationsAndCharts!$A35+$A$11,IF($C$5,8,0),1,1))) -> 369.15 | G35: =IF(A35>$B$30,NA(),IF(A35>$A$8,"",OFFSET(InputPriceData!$F$15,CalculationsAndCharts!$A35+$A$11,IF($C$5,8,0),1,1))) -> 369.57 | H35: -0.34 | I35: 1 | J35: 0.1735 | K35: -0.2484076433 | L35: 3 | M35: 0.06772727273 | N35: -0.09988419224 | O35: 0.4515333583 | P35: 0.07320108062 | Q35: -0.2112322183 | R35: 0.3765101981 | S35: 0.03236597495 | T35: -0.1172233178 | U35: 0.1735 | V35: 0.06772727273 | W35: 0.07320108062 | X35: 0.03236597495 | AX35: 49455300
A36: 4 | B36: =IF(A36>$B$30,NA(),IF($A36>$A$8,"",OFFSET(InputPriceData!$B$15,$A36+$A$11,0,1,1))) -> 2020-12-29 | C36: =IF(A36>$B$30,NA(),IF($A36>$A$8,"",OFFSET(InputPriceData!$G$15,CalculationsAndCharts!$A36+$A$11,IF($C$5,8,0),1,1))) -> 53680500 | D36: =IF(A36>$B$30,NA(),IF(A36>$A$8,"",OFFSET(InputPriceData!$C$15,CalculationsAndCharts!$A36+$A$11,IF($C$5,8,0),1,1))) -> 371.37 | E36: =IF(A36>$B$30,NA(),IF(A36>$A$8,"",OFFSET(InputPriceData!$D$15,CalculationsAndCharts!$A36+$A$11,IF($C$5,8,0),1,1))) -> 371.56 | F36: =IF(A36>$B$30,NA(),IF(A36>$A$8,"",OFFSET(InputPriceData!$E$15,CalculationsAndCharts!$A36+$A$11,IF($C$5,8,0),1,1))) -> 368.41 | G36: =IF(A36>$B$30,NA(),IF(A36>$A$8,"",OFFSET(InputPriceData!$F$15,CalculationsAndCharts!$A36+$A$11,IF($C$5,8,0),1,1))) -> 369.04 | H36: -2.33 | I36: 1 | J36: 0.2515 | K36: 0.09554140127 | L36: 4 | M36: 0.09909090909 | N36: -0.1189924725 | O36: 0.5773327154 | P36: 0.1395279972 | Q36: -0.1685892544 | R36: 0.6346589756 | S36: 0.06917409673 | T36: -0.1369284556 | U36: 0.2515 | V36: 0.09909090909 | W36: 0.1395279972 | X36: 0.06917409673 | AX36: 53680500
A37: 5 | B37: =IF(A37>$B$30,NA(),IF($A37>$A$8,"",OFFSET(InputPriceData!$B$15,$A37+$A$11,0,1,1))) -> 2020-12-28 | C37: =IF(A37>$B$30,NA(),IF($A37>$A$8,"",OFFSET(InputPriceData!$G$15,CalculationsAndCharts!$A37+$A$11,IF($C$5,8,0),1,1))) -> 39000400 | D37: =IF(A37>$B$30,NA(),IF(A37>$A$8,"",OFFSET(InputPriceData!$C$15,CalculationsAndCharts!$A37+$A$11,IF($C$5,8,0),1,1))) -> 369.32 | E37: =IF(A37>$B$30,NA(),IF(A37>$A$8,"",OFFSET(InputPriceData!$D$15,CalculationsAndCharts!$A37+$A$11,IF($C$5,8,0),1,1))) -> 370.16 | F37: =IF(A37>$B$30,NA(),IF(A37>$A$8,"",OFFSET(InputPriceData!$E$15,CalculationsAndCharts!$A37+$A$11,IF($C$5,8,0),1,1))) -> 368.65 | G37: =IF(A37>$B$30,NA(),IF(A37>$A$8,"",OFFSET(InputPriceData!$F$15,CalculationsAndCharts!$A37+$A$11,IF($C$5,8,0),1,1))) -> 369.75 | H37: 0.43 | I37: 1 | J37: 0.2215 | K37: 0.2197452229 | L37: 5 | M37: 0.1364545455 | N37: -0.1201505501 | O37: 0.6906831508 | P37: 0.1924650231 | Q37: -0.05554508667 | R37: 0.9252699064 | S37: 0.1121696318 | T37: -0.1561228056 | U37: 0.2215 | V37: 0.1364545455 | W37: 0.1924650231 | X37: 0.1121696318 | AW37: 39000400
A38: 6 | B38: =IF(A38>$B$30,NA(),IF($A38>$A$8,"",OFFSET(InputPriceData!$B$15,$A38+$A$11,0,1,1))) -> 2020-12-24 | C38: =IF(A38>$B$30,NA(),IF($A38>$A$8,"",OFFSET(InputPriceData!$G$15,CalculationsAndCharts!$A38+$A$11,IF($C$5,8,0),1,1))) -> 26457900 | D38: =IF(A38>$B$30,NA(),IF(A38>$A$8,"",OFFSET(InputPriceData!$C$15,CalculationsAndCharts!$A38+$A$11,IF($C$5,8,0),1,1))) -> 365.68 | E38: =IF(A38>$B$30,NA(),IF(A38>$A$8,"",OFFSET(InputPriceData!$D$15,CalculationsAndCharts!$A38+$A$11,IF($C$5,8,0),1,1))) -> 366.63 | F38: =IF(A38>$B$30,NA(),IF(A38>$A$8,"",OFFSET(InputPriceData!$E$15,CalculationsAndCharts!$A38+$A$11,IF($C$5,8,0),1,1))) -> 365.06 | G38: =IF(A38>$B$30,NA(),IF(A38>$A$8,"",OFFSET(InputPriceData!$F$15,CalculationsAndCharts!$A38+$A$11,IF($C$5,8,0),1,1))) -> 366.6 | H38: 0.92 | I38: 1 | J38: 0.1525 | K38: -0.5859872611 | L38: 6 | M38: 0.1741818182 | N38: -0.04024319629 | O38: 0.7891405094 | P38: 0.2099061803 | Q38: -0.03504921585 | R38: 1.222520934 | S38: 0.1611921927 | T38: -0.1700016071 | U38: 0.1525 | V38: 0.1741818182 | W38: 0.2099061803 | X38: 0.1611921927 | AW38: 26457900
A39: 7 | B39: =IF(A39>$B$30,NA(),IF($A39>$A$8,"",OFFSET(InputPriceData!$B$15,$A39+$A$11,0,1,1))) -> 2020-12-23 | C39: =IF(A39>$B$30,NA(),IF($A39>$A$8,"",OFFSET(InputPriceData!$G$15,CalculationsAndCharts!$A39+$A$11,IF($C$5,8,0),1,1))) -> 46201400 | D39: =IF(A39>$B$30,NA(),IF(A39>$A$8,"",OFFSET(InputPriceData!$C$15,CalculationsAndCharts!$A39+$A$11,IF($C$5,8,0),1,1))) -> 365.88 | E39: =IF(A39>$B$30,NA(),IF(A39>$A$8,"",OFFSET(InputPriceData!$D$15,CalculationsAndCharts!$A39+$A$11,IF($C$5,8,0),1,1))) -> 367.21 | F39: =IF(A39>$B$30,NA(),IF(A39>$A$8,"",OFFSET(InputPriceData!$E$15,CalculationsAndCharts!$A39+$A$11,IF($C$5,8,0),1,1))) -> 364.83 | G39: =IF(A39>$B$30,NA(),IF(A39>$A$8,"",OFFSET(InputPriceData!$F$15,CalculationsAndCharts!$A39+$A$11,IF($C$5,8,0),1,1))) -> 365.18 | H39: -0.7 | I39: 1 | J39: 0.3365 | K39: -0.1799363057 | L39: 7 | M39: 0.1868181818 | N39: -0.2298784019 | O39: 0.8705817729 | P39: 0.2209116341 | Q39: -0.1865564914 | R39: 1.5 | S39: 0.2145726974 | T39: -0.1766579159 | U39: 0.3365 | V39: 0.1868181818 | W39: 0.2209116341 | X39: 0.2145726974 | AX39: 46201400
A40: 8 | B40: =IF(A40>$B$30,NA(),IF($A40>$A$8,"",OFFSET(InputPriceData!$B$15,$A40+$A$11,0,1,1))) -> 2020-12-22 | C40: =IF(A40>$B$30,NA(),IF($A40>$A$8,"",OFFSET(InputPriceData!$G$15,CalculationsAndCharts!$A40+$A$11,IF($C$5,8,0),1,1))) -> 47949000 | D40: =IF(A40>$B$30,NA(),IF(A40>$A$8,"",OFFSET(InputPriceData!$C$15,CalculationsAndCharts!$A40+$A$11,IF($C$5,8,0),1,1))) -> 365.81 | E40: =IF(A40>$B$30,NA(),IF(A40>$A$8,"",OFFSET(InputPriceData!$D$15,CalculationsAndCharts!$A40+$A$11,IF($C$5,8,0),1,1))) -> 365.93 | F40: =IF(A40>$B$30,NA(),IF(A40>$A$8,"",OFFSET(InputPriceData!$E$15,CalculationsAndCharts!$A40+$A$11,IF($C$5,8,0),1,1))) -> 363.65 | G40: =IF(A40>$B$30,NA(),IF(A40>$A$8,"",OFFSET(InputPriceData!$F$15,CalculationsAndCharts!$A40+$A$11,IF($C$5,8,0),1,1))) -> 364.85 | H40: -0.96 | I40: 1 | J40: 0.393 | K40: 0.7977707006 | L40: 8 | M40: 0.259 | N40: -0.2596988998 | O40: 0.9332508379 | P40: 0.2794903724 | Q40: -0.1326518786 | R40: 1.733051872 | S40: 0.270043283 | T40: -0.1873583216 | U40: 0.393 | V40: 0.259 | W40: 0.2794903724 | X40: 0.270043283 | AX40: 47949000
A41: 9 | B41: =IF(A41>$B$30,NA(),IF($A41>$A$8,"",OFFSET(InputPriceData!$B$15,$A41+$A$11,0,1,1))) -> 2020-12-21 | C41: =IF(A41>$B$30,NA(),IF($A41>$A$8,"",OFFSET(InputPriceData!$G$15,CalculationsAndCharts!$A41+$A$11,IF($C$5,8,0),1,1))) -> 96386700 | D41: =IF(A41>$B$30,NA(),IF(A41>$A$8,"",OFFSET(InputPriceData!$C$15,CalculationsAndCharts!$A41+$A$11,IF($C$5,8,0),1,1))) -> 362.59 | E41: =IF(A41>$B$30,NA(),IF(A41>$A$8,"",OFFSET(InputPriceData!$D$15,CalculationsAndCharts!$A41+$A$11,IF($C$5,8,0),1,1))) -> 375.99 | F41: =IF(A41>$B$30,NA(),IF(A41>$A$8,"",OFFSET(InputPriceData!$E$15,CalculationsAndCharts!$A41+$A$11,IF($C$5,8,0),1,1))) -> 359.67 | G41: =IF(A41>$B$30,NA(),IF(A41>$A$8,"",OFFSET(InputPriceData!$F$15,CalculationsAndCharts!$A41+$A$11,IF($C$5,8,0),1,1))) -> 365.46 | H41: 2.87 | I41: 1 | J41: 0.1425 | K41: -0.627388535 | L41: 9 | M41: 0.3405454545 | N41: -0.09756803706 | O41: 0.9757963826 | P41: 0.3211430622 | Q41: 0.03560452785 | R41: 1.900968868 | S41: 0.3288737959 | T41: -0.1793224876 | U41: 0.1425 | V41: 0.3405454545 | W41: 0.3211430622 | X41: 0.3288737959 | AW41: 96386700
A42: 10 | B42: =IF(A42>$B$30,NA(),IF($A42>$A$8,"",OFFSET(InputPriceData!$B$15,$A42+$A$11,0,1,1))) -> 2020-12-18 | C42: =IF(A42>$B$30,NA(),IF($A42>$A$8,"",OFFSET(InputPriceData!$G$15,CalculationsAndCharts!$A42+$A$11,IF($C$5,8,0),1,1))) -> 136542300 | D42: =IF(A42>$B$30,NA(),IF(A42>$A$8,"",OFFSET(InputPriceData!$C$15,CalculationsAndCharts!$A42+$A$11,IF($C$5,8,0),1,1))) -> 368.55 | E42: =IF(A42>$B$30,NA(),IF(A42>$A$8,"",OFFSET(InputPriceData!$D$15,CalculationsAndCharts!$A42+$A$11,IF($C$5,8,0),1,1))) -> 368.73 | F42: =IF(A42>$B$30,NA(),IF(A42>$A$8,"",OFFSET(InputPriceData!$E$15,CalculationsAndCharts!$A42+$A$11,IF($C$5,8,0),1,1))) -> 364.63 | G42: =IF(A42>$B$30,NA(),IF(A42>$A$8,"",OFFSET(InputPriceData!$F$15,CalculationsAndCharts!$A42+$A$11,IF($C$5,8,0),1,1))) -> 366.77 | H42: -1.78 | I42: 1 | J42: 0.3395 | K42: 0.7770700637 | L42: 10 | M42: 0.3711818182 | N42: -0.1687898089 | O42: 0.9973010052 | P42: 0.3099632405 | Q42: -0.1737782716 | R42: 1.988830826 | S42: 0.3851810571 | T42: -0.1426191545 | U42: 0.3395 | V42: 0.3711818182 | W42: 0.3099632405 | X42: 0.3851810571 | AX42: 136542300
A43: 11 | B43: =IF(A43>$B$30,NA(),IF($A43>$A$8,"",OFFSET(InputPriceData!$B$15,$A43+$A$11,0,1,1))) -> 2020-12-17 | C43: =IF(A43>$B$30,NA(),IF($A43>$A$8,"",OFFSET(InputPriceData!$G$15,CalculationsAndCharts!$A43+$A$11,IF($C$5,8,0),1,1))) -> 64119500 | D43: =IF(A43>$B$30,NA(),IF(A43>$A$8,"",OFFSET(InputPriceData!$C$15,CalculationsAndCharts!$A43+$A$11,IF($C$5,8,0),1,1))) -> 367.95 | E43: =IF(A43>$B$30,NA(),IF(A43>$A$8,"",OFFSET(InputPriceData!$D$15,CalculationsAndCharts!$A43+$A$11,IF($C$5,8,0),1,1))) -> 368.46 | F43: =IF(A43>$B$30,NA(),IF(A43>$A$8,"",OFFSET(InputPriceData!$E$15,CalculationsAndCharts!$A43+$A$11,IF($C$5,8,0),1,1))) -> 367.07 | G43: =IF(A43>$B$30,NA(),IF(A43>$A$8,"",OFFSET(InputPriceData!$F$15,CalculationsAndCharts!$A43+$A$11,IF($C$5,8,0),1,1))) -> 368.25 | H43: 0.3 | I43: 1 | J43: 0.0955 | K43: -0.04617834395 | L43: 10 | M43: 0.4241818182 | N43: 0.08801389693 | O43: 0.9973010052 | P43: 0.3645296178 | Q43: 0.1267475068 | R43: 1.988830826 | S43: 0.4299634716 | T43: -0.06959479521 | U43: 0.0955 | V43: 0.4241818182 | W43: 0.3645296178 | X43: 0.4299634716 | AW43: 64119500
A44: 12 | B44: =IF(A44>$B$30,NA(),IF($A44>$A$8,"",OFFSET(InputPriceData!$B$15,$A44+$A$11,0,1,1))) -> 2020-12-16 | C44: =IF(A44>$B$30,NA(),IF($A44>$A$8,"",OFFSET(InputPriceData!$G$15,CalculationsAndCharts!$A44+$A$11,IF($C$5,8,0),1,1))) -> 58420500 | D44: =IF(A44>$B$30,NA(),IF(A44>$A$8,"",OFFSET(InputPriceData!$C$15,CalculationsAndCharts!$A44+$A$11,IF($C$5,8,0),1,1))) -> 365.85 | E44: =IF(A44>$B$30,NA(),IF(A44>$A$8,"",OFFSET(InputPriceData!$D$15,CalculationsAndCharts!$A44+$A$11,IF($C$5,8,0),1,1))) -> 367.18 | F44: =IF(A44>$B$30,NA(),IF(A44>$A$8,"",OFFSET(InputPriceData!$E$15,CalculationsAndCharts!$A44+$A$11,IF($C$5,8,0),1,1))) -> 364.91 | G44: =IF(A44>$B$30,NA(),IF(A44>$A$8,"",OFFSET(InputPriceData!$F$15,CalculationsAndCharts!$A44+$A$11,IF($C$5,8,0),1,1))) -> 366.2 | H44: 0.35 | I44: 1 | J44: 0.11 | K44: 0.09394904459 | L44: 9 | M44: 0.3965454545 | N44: 0.1175448755 | O44: 0.9757963826 | P44: 0.3247309007 | Q44: 0.08329096648 | R44: 1.900968868 | S44: 0.4518162373 | T44: 0.02618766156 | U44: 0.11 | V44: 0.3965454545 | W44: 0.3247309007 | X44: 0.4518162373 | AW44: 58420500
A45: 13 | B45: =IF(A45>$B$30,NA(),IF($A45>$A$8,"",OFFSET(InputPriceData!$B$15,$A45+$A$11,0,1,1))) -> 2020-12-15 | C45: =IF(A45>$B$30,NA(),IF($A45>$A$8,"",OFFSET(InputPriceData!$G$15,CalculationsAndCharts!$A45+$A$11,IF($C$5,8,0),1,1))) -> 63865300 | D45: =IF(A45>$B$30,NA(),IF(A45>$A$8,"",OFFSET(InputPriceData!$C$15,CalculationsAndCharts!$A45+$A$11,IF($C$5,8,0),1,1))) -> 363.46 | E45: =IF(A45>$B$30,NA(),IF(A45>$A$8,"",OFFSET(InputPriceData!$D$15,CalculationsAndCharts!$A45+$A$11,IF($C$5,8,0),1,1))) -> 365.62 | F45: =IF(A45>$B$30,NA(),IF(A45>$A$8,"",OFFSET(InputPriceData!$E$15,CalculationsAndCharts!$A45+$A$11,IF($C$5,8,0),1,1))) -> 361.99 | G45: =IF(A45>$B$30,NA(),IF(A45>$A$8,"",OFFSET(InputPriceData!$F$15,CalculationsAndCharts!$A45+$A$11,IF($C$5,8,0),1,1))) -> 365.62 | H45: 2.16 | I45: 1 | J45: 0.0805 | K45: -1.071656051 | L45: 8 | M45: 0.3596363636 | N45: 0.1311522872 | O45: 0.9332508379 | P45: 0.2985775372 | Q45: 0.04356900196 | R45: 1.733051872 | S45: 0.4435933116 | T45: 0.1091327015 | U45: 0.0805 | V45: 0.3596363636 | W45: 0.2985775372 | X45: 0.4435933116 | AW45: 63865300
A46: 14 | B46: =IF(A46>$B$30,NA(),IF($A46>$A$8,"",OFFSET(InputPriceData!$B$15,$A46+$A$11,0,1,1))) -> 2020-12-14 | C46: =IF(A46>$B$30,NA(),IF($A46>$A$8,"",OFFSET(InputPriceData!$G$15,CalculationsAndCharts!$A46+$A$11,IF($C$5,8,0),1,1))) -> 69216200 | D46: =IF(A46>$B$30,NA(),IF(A46>$A$8,"",OFFSET(InputPriceData!$C$15,CalculationsAndCharts!$A46+$A$11,IF($C$5,8,0),1,1))) -> 364.68 | E46: =IF(A46>$B$30,NA(),IF(A46>$A$8,"",OFFSET(InputPriceData!$D$15,CalculationsAndCharts!$A46+$A$11,IF($C$5,8,0),1,1))) -> 365.83 | F46: =IF(A46>$B$30,NA(),IF(A46>$A$8,"",OFFSET(InputPriceData!$E$15,CalculationsAndCharts!$A46+$A$11,IF($C$5,8,0),1,1))) -> 360.56 | G46: =IF(A46>$B$30,NA(),IF(A46>$A$8,"",OFFSET(InputPriceData!$F$15,CalculationsAndCharts!$A46+$A$11,IF($C$5,8,0),1,1))) -> 360.75 | H46: -3.93 | I46: 1 | J46: 0.417 | K46: 0.5939490446 | L46: 7 | M46: 0.3184545455 | N46: -0.02200347423 | O46: 0.8705817729 | P46: 0.2848968706 | Q46: -0.1545758282 | R46: 1.5 | S46: 0.4093256433 | T46: 0.1698490383 | U46: 0.417 | V46: 0.3184545455 | W46: 0.2848968706 | X46: 0.4093256433 | AX46: 69216200
A47: 15 | B47: =IF(A47>$B$30,NA(),IF($A47>$A$8,"",OFFSET(InputPriceData!$B$15,$A47+$A$11,0,1,1))) -> 2020-12-11 | C47: =IF(A47>$B$30,NA(),IF($A47>$A$8,"",OFFSET(InputPriceData!$G$15,CalculationsAndCharts!$A47+$A$11,IF($C$5,8,0),1,1))) -> 57698600 | D47: =IF(A47>$B$30,NA(),IF(A47>$A$8,"",OFFSET(InputPriceData!$C$15,CalculationsAndCharts!$A47+$A$11,IF($C$5,8,0),1,1))) -> 360.98 | E47: =IF(A47>$B$30,NA(),IF(A47>$A$8,"",OFFSET(InputPriceData!$D$15,CalculationsAndCharts!$A47+$A$11,IF($C$5,8,0),1,1))) -> 362.8 | F47: =IF(A47>$B$30,NA(),IF(A47>$A$8,"",OFFSET(InputPriceData!$E$15,CalculationsAndCharts!$A47+$A$11,IF($C$5,8,0),1,1))) -> 359.36 | G47: =IF(A47>$B$30,NA(),IF(A47>$A$8,"",OFFSET(InputPriceData!$F$15,CalculationsAndCharts!$A47+$A$11,IF($C$5,8,0),1,1))) -> 362.37 | H47: 1.39 | I47: 1 | J47: 0.2305 | K47: 0.1719745223 | L47: 6 | M47: 0.3253636364 | N47: 0.1323103648 | O47: 0.7891405094 | P47: 0.3334336806 | Q47: 0.151344908 | R47: 1.222520934 | S47: 0.3559930453 | T47: 0.2004488774 | U47: 0.2305 | V47: 0.3253636364 | W47: 0.3334336806 | X47: 0.3559930453 | AW47: 57698600
A48: 16 | B48: =IF(A48>$B$30,NA(),IF($A48>$A$8,"",OFFSET(InputPriceData!$B$15,$A48+$A$11,0,1,1))) -> 2020-12-10 | C48: =IF(A48>$B$30,NA(),IF($A48>$A$8,"",OFFSET(InputPriceData!$G$15,CalculationsAndCharts!$A48+$A$11,IF($C$5,8,0),1,1))) -> 57735400 | D48: =IF(A48>$B$30,NA(),IF(A48>$A$8,"",OFFSET(InputPriceData!$C$15,CalculationsAndCharts!$A48+$A$11,IF($C$5,8,0),1,1))) -> 361.45 | E48: =IF(A48>$B$30,NA(),IF(A48>$A$8,"",OFFSET(InputPriceData!$D$15,CalculationsAndCharts!$A48+$A$11,IF($C$5,8,0),1,1))) -> 363.91 | F48: =IF(A48>$B$30,NA(),IF(A48>$A$8,"",OFFSET(InputPriceData!$E$15,CalculationsAndCharts!$A48+$A$11,IF($C$5,8,0),1,1))) -> 360.52 | G48: =IF(A48>$B$30,NA(),IF(A48>$A$8,"",OFFSET(InputPriceData!$F$15,CalculationsAndCharts!$A48+$A$11,IF($C$5,8,0),1,1))) -> 362.79 | H48: 1.34 | I48: 1 | J48: 0.1765 | K48: -0.7213375796 | L48: 5 | M48: 0.2838181818 | N48: 0.0662999421 | O48: 0.6906831508 | P48: 0.2859113795 | Q48: 0.09716364517 | R48: 0.9252699064 | S48: 0.2930520978 | T48: 0.2101386958 | U48: 0.1765 | V48: 0.2838181818 | W48: 0.2859113795 | X48: 0.2930520978 | AW48: 57735400
A49: 17 | B49: =IF(A49>$B$30,NA(),IF($A49>$A$8,"",OFFSET(InputPriceData!$B$15,$A49+$A$11,0,1,1))) -> 2020-12-09 | C49: =IF(A49>$B$30,NA(),IF($A49>$A$8,"",OFFSET(InputPriceData!$G$15,CalculationsAndCharts!$A49+$A$11,IF($C$5,8,0),1,1))) -> 74098300 | D49: =IF(A49>$B$30,NA(),IF(A49>$A$8,"",OFFSET(InputPriceData!$C$15,CalculationsAndCharts!$A49+$A$11,IF($C$5,8,0),1,1))) -> 366.9 | E49: =IF(A49>$B$30,NA(),IF(A49>$A$8,"",OFFSET(InputPriceData!$D$15,CalculationsAndCharts!$A49+$A$11,IF($C$5,8,0),1,1))) -> 367.07 | F49: =IF(A49>$B$30,NA(),IF(A49>$A$8,"",OFFSET(InputPriceData!$E$15,CalculationsAndCharts!$A49+$A$11,IF($C$5,8,0),1,1))) -> 362.02 | G49: =IF(A49>$B$30,NA(),IF(A49>$A$8,"",OFFSET(InputPriceData!$F$15,CalculationsAndCharts!$A49+$A$11,IF($C$5,8,0),1,1))) -> 362.91 | H49: -3.99 | I49: 1 | J49: 0.403 | K49: 1.869426752 | L49: 4 | M49: 0.263 | N49: 0.08482918356 | O49: 0.5773327154 | P49: 0.2554019949 | Q49: 0.01382121046 | R49: 0.6346589756 | S49: 0.2270685473 | T49: 0.2141601787 | U49: 0.403 | V49: 0.263 | W49: 0.2554019949 | X49: 0.2270685473 | AX49: 74098300
A50: 18 | B50: =IF(A50>$B$30,NA(),IF($A50>$A$8,"",OFFSET(InputPriceData!$B$15,$A50+$A$11,0,1,1))) -> 2020-12-08 | C50: =IF(A50>$B$30,NA(),IF($A50>$A$8,"",OFFSET(InputPriceData!$G$15,CalculationsAndCharts!$A50+$A$11,IF($C$5,8,0),1,1))) -> 42458900 | D50: =IF(A50>$B$30,NA(),IF(A50>$A$8,"",OFFSET(InputPriceData!$C$15,CalculationsAndCharts!$A50+$A$11,IF($C$5,8,0),1,1))) -> 363.77 | E50: =IF(A50>$B$30,NA(),IF(A50>$A$8,"",OFFSET(InputPriceData!$D$15,CalculationsAndCharts!$A50+$A$11,IF($C$5,8,0),1,1))) -> 366.8 | F50: =IF(A50>$B$30,NA(),IF(A50>$A$8,"",OFFSET(InputPriceData!$E$15,CalculationsAndCharts!$A50+$A$11,IF($C$5,8,0),1,1))) -> 363.72 | G50: =IF(A50>$B$30,NA(),IF(A50>$A$8,"",OFFSET(InputPriceData!$F$15,CalculationsAndCharts!$A50+$A$11,IF($C$5,8,0),1,1))) -> 366.2 | H50: 2.43 | I50: 1 | J50: -0.184 | K50: -0.02547770701 | L50: 3 | M50: 0.2363636364 | N50: 0.5610885929 | O50: 0.4515333583 | P50: 0.2510621349 | Q50: 0.593090679 | R50: 0.3765101981 | S50: 0.1598222512 | T50: 0.2403862006 | U50: -0.184 | V50: 0.2363636364 | W50: 0.2510621349 | X50: 0.1598222512 | AW50: 42458900
A51: 19 | B51: =IF(A51>$B$30,NA(),IF($A51>$A$8,"",OFFSET(InputPriceData!$B$15,$A51+$A$11,0,1,1))) -> 2020-12-07 | C51: =IF(A51>$B$30,NA(),IF($A51>$A$8,"",OFFSET(InputPriceData!$G$15,CalculationsAndCharts!$A51+$A$11,IF($C$5,8,0),1,1))) -> 48944300 | D51: =IF(A51>$B$30,NA(),IF(A51>$A$8,"",OFFSET(InputPriceData!$C$15,CalculationsAndCharts!$A51+$A$11,IF($C$5,8,0),1,1))) -> 365.06 | E51: =IF(A51>$B$30,NA(),IF(A51>$A$8,"",OFFSET(InputPriceData!$D$15,CalculationsAndCharts!$A51+$A$11,IF($C$5,8,0),1,1))) -> 365.65 | F51: =IF(A51>$B$30,NA(),IF(A51>$A$8,"",OFFSET(InputPriceData!$E$15,CalculationsAndCharts!$A51+$A$11,IF($C$5,8,0),1,1))) -> 363.77 | G51: =IF(A51>$B$30,NA(),IF(A51>$A$8,"",OFFSET(InputPriceData!$F$15,CalculationsAndCharts!$A51+$A$11,IF($C$5,8,0),1,1))) -> 365.13 | H51: 0.07 | I51: 1 | J51: -0.176 | K51: 0.2404458599 | L51: 2 | M51: 0.06018181818 | N51: 0.4270411118 | O51: 0.3159976685 | P51: 0.06483166165 | Q51: 0.4291458837 | R51: 0.1737612257 | S51: 0.08434098418 | T51: 0.2959189896 | U51: -0.176 | V51: 0.06018181818 | W51: 0.06483166165 | X51: 0.08434098418 | AW51: 48944300
A52: 20 | B52: =IF(A52>$B$30,NA(),IF($A52>$A$8,"",OFFSET(InputPriceData!$B$15,$A52+$A$11,0,1,1))) -> 2020-12-04 | C52: =IF(A52>$B$30,NA(),IF($A52>$A$8,"",OFFSET(InputPriceData!$G$15,CalculationsAndCharts!$A52+$A$11,IF($C$5,8,0),1,1))) -> 50749900 | D52: =IF(A52>$B$30,NA(),IF(A52>$A$8,"",OFFSET(InputPriceData!$C$15,CalculationsAndCharts!$A52+$A$11,IF($C$5,8,0),1,1))) -> 363.38 | E52: =IF(A52>$B$30,NA(),IF(A52>$A$8,"",OFFSET(InputPriceData!$D$15,CalculationsAndCharts!$A52+$A$11,IF($C$5,8,0),1,1))) -> 365.88 | F52: =IF(A52>$B$30,NA(),IF(A52>$A$8,"",OFFSET(InputPriceData!$E$15,CalculationsAndCharts!$A52+$A$11,IF($C$5,8,0),1,1))) -> 363.28 | G52: =IF(A52>$B$30,NA(),IF(A52>$A$8,"",OFFSET(InputPriceData!$F$15,CalculationsAndCharts!$A52+$A$11,IF($C$5,8,0),1,1))) -> 365.88 | H52: 2.5 | I52: 1 | J52: -0.2515 | K52: -0.4203821656 | L52: 1 | M52: -0.07390909091 | N52: 0.3969310944 | O52: 0.1736481777 | P52: -0.06992014582 | Q52: 0.398763377 | R52: 0.04442719421 | S52: -0.008577578566 | T52: 0.3337821009 | U52: -0.2515 | V52: -0.07390909091 | W52: -0.06992014582 | X52: -0.008577578566 | AW52: 50749900
A53: 21 | B53: =IF(A53>$B$30,NA(),IF($A53>$A$8,"",OFFSET(InputPriceData!$B$15,$A53+$A$11,0,1,1))) -> 2020-12-03 | C53: =IF(A53>$B$30,NA(),IF($A53>$A$8,"",OFFSET(InputPriceData!$G$15,CalculationsAndCharts!$A53+$A$11,IF($C$5,8,0),1,1))) -> 62882000 | D53: =IF(A53>$B$30,NA(),IF(A53>$A$8,"",OFFSET(InputPriceData!$C$15,CalculationsAndCharts!$A53+$A$11,IF($C$5,8,0),1,1))) -> 362.74 | E53: =IF(A53>$B$30,NA(),IF(A53>$A$8,"",OFFSET(InputPriceData!$D$15,CalculationsAndCharts!$A53+$A$11,IF($C$5,8,0),1,1))) -> 364.24 | F53: =IF(A53>$B$30,NA(),IF(A53>$A$8,"",OFFSET(InputPriceData!$E$15,CalculationsAndCharts!$A53+$A$11,IF($C$5,8,0),1,1))) -> 361.58 | G53: =IF(A53>$B$30,NA(),IF(A53>$A$8,"",OFFSET(InputPriceData!$F$15,CalculationsAndCharts!$A53+$A$11,IF($C$5,8,0),1,1))) -> 362.75 | H53: 0.01 | I53: -- SUM -- | J53: -0.1195 | K53: -0.05732484076 | L53: -- Coef Sum-- | M53: -0.1985454545 | N53: 0.1777649102 | O53: -- SUM -- | P53: -0.1951318462 | Q53: 0.1816593079 | R53: -- Coef Sum-- | S53: -0.1133851583 | T53: 0.3347780635 | U53: -0.1195 | V53: -0.1985454545 | W53: -0.1951318462 | X53: -0.1133851583 | AW53: 62882000
A54: 22 | B54: =IF(A54>$B$30,NA(),IF($A54>$A$8,"",OFFSET(InputPriceData!$B$15,$A54+$A$11,0,1,1))) -> 2020-12-02 | C54: =IF(A54>$B$30,NA(),IF($A54>$A$8,"",OFFSET(InputPriceData!$G$15,CalculationsAndCharts!$A54+$A$11,IF($C$5,8,0),1,1))) -> 45927000 | D54: =IF(A54>$B$30,NA(),IF(A54>$A$8,"",OFFSET(InputPriceData!$C$15,CalculationsAndCharts!$A54+$A$11,IF($C$5,8,0),1,1))) -> 360.9 | E54: =IF(A54>$B$30,NA(),IF(A54>$A$8,"",OFFSET(InputPriceData!$D$15,CalculationsAndCharts!$A54+$A$11,IF($C$5,8,0),1,1))) -> 363.02 | F54: =IF(A54>$B$30,NA(),IF(A54>$A$8,"",OFFSET(InputPriceData!$E$15,CalculationsAndCharts!$A54+$A$11,IF($C$5,8,0),1,1))) -> 360.29 | G54: =IF(A54>$B$30,NA(),IF(A54>$A$8,"",OFFSET(InputPriceData!$F$15,CalculationsAndCharts!$A54+$A$11,IF($C$5,8,0),1,1))) -> 362.85 | H54: 1.95 | I54: 20 | J54: -0.1015 | K54: 0.07006369427 | L54: 110 | M54: -0.2543636364 | N54: -0.003474232774 | O54: 13.55053116 | P54: -0.2521728689 | Q54: 0.09944860234 | R54: 21 | S54: -0.2185054702 | T54: 0.2895206066 | U54: -0.1015 | V54: -0.2543636364 | W54: -0.2521728689 | X54: -0.2185054702 | AW54: 45927000
A55: 23 | B55: =IF(A55>$B$30,NA(),IF($A55>$A$8,"",OFFSET(InputPriceData!$B$15,$A55+$A$11,0,1,1))) -> 2020-12-01 | C55: =IF(A55>$B$30,NA(),IF($A55>$A$8,"",OFFSET(InputPriceData!$G$15,CalculationsAndCharts!$A55+$A$11,IF($C$5,8,0),1,1))) -> 74231400 | D55: =IF(A55>$B$30,NA(),IF(A55>$A$8,"",OFFSET(InputPriceData!$C$15,CalculationsAndCharts!$A55+$A$11,IF($C$5,8,0),1,1))) -> 361.65 | E55: =IF(A55>$B$30,NA(),IF(A55>$A$8,"",OFFSET(InputPriceData!$D$15,CalculationsAndCharts!$A55+$A$11,IF($C$5,8,0),1,1))) -> 363.73 | F55: =IF(A55>$B$30,NA(),IF(A55>$A$8,"",OFFSET(InputPriceData!$E$15,CalculationsAndCharts!$A55+$A$11,IF($C$5,8,0),1,1))) -> 361.01 | G55: =IF(A55>$B$30,NA(),IF(A55>$A$8,"",OFFSET(InputPriceData!$F$15,CalculationsAndCharts!$A55+$A$11,IF($C$5,8,0),1,1))) -> 362.09 | H55: 0.44 | J55: -0.1235 | K55: 0.1512738854 | M55: -0.2532727273 | N55: 0.004053271569 | P55: -0.28339973 | Q55: 0.01821329475 | S55: -0.3094149407 | T55: 0.216179842 | U55: -0.1235 | V55: -0.2532727273 | W55: -0.28339973 | X55: -0.3094149407 | AW55: 74231400
A56: 24 | B56: =IF(A56>$B$30,NA(),IF($A56>$A$8,"",OFFSET(InputPriceData!$B$15,$A56+$A$11,0,1,1))) -> 2020-11-30 | C56: =IF(A56>$B$30,NA(),IF($A56>$A$8,"",OFFSET(InputPriceData!$G$15,CalculationsAndCharts!$A56+$A$11,IF($C$5,8,0),1,1))) -> 83872700 | D56: =IF(A56>$B$30,NA(),IF(A56>$A$8,"",OFFSET(InputPriceData!$C$15,CalculationsAndCharts!$A56+$A$11,IF($C$5,8,0),1,1))) -> 358.94 | E56: =IF(A56>$B$30,NA(),IF(A56>$A$8,"",OFFSET(InputPriceData!$D$15,CalculationsAndCharts!$A56+$A$11,IF($C$5,8,0),1,1))) -> 359.22 | F56: =IF(A56>$B$30,NA(),IF(A56>$A$8,"",OFFSET(InputPriceData!$E$15,CalculationsAndCharts!$A56+$A$11,IF($C$5,8,0),1,1))) -> 355.32 | G56: =IF(A56>$B$30,NA(),IF(A56>$A$8,"",OFFSET(InputPriceData!$F$15,CalculationsAndCharts!$A56+$A$11,IF($C$5,8,0),1,1))) -> 358.17 | H56: -0.77 | J56: -0.171 | K56: -0.5111464968 | M56: -0.2545454545 | N56: 0.1676317313 | P56: -0.2891187046 | Q56: 0.04561154454 | S56: -0.377295411 | T56: 0.151321749 | U56: -0.171 | V56: -0.2545454545 | W56: -0.2891187046 | X56: -0.377295411 | AX56: 83872700
A57: 25 | B57: =IF(A57>$B$30,NA(),IF($A57>$A$8,"",OFFSET(InputPriceData!$B$15,$A57+$A$11,0,1,1))) -> 2020-11-27 | C57: =IF(A57>$B$30,NA(),IF($A57>$A$8,"",OFFSET(InputPriceData!$G$15,CalculationsAndCharts!$A57+$A$11,IF($C$5,8,0),1,1))) -> 28514100 | D57: =IF(A57>$B$30,NA(),IF(A57>$A$8,"",OFFSET(InputPriceData!$C$15,CalculationsAndCharts!$A57+$A$11,IF($C$5,8,0),1,1))) -> 359.94 | E57: =IF(A57>$B$30,NA(),IF(A57>$A$8,"",OFFSET(InputPriceData!$D$15,CalculationsAndCharts!$A57+$A$11,IF($C$5,8,0),1,1))) -> 360.27 | F57: =IF(A57>$B$30,NA(),IF(A57>$A$8,"",OFFSET(InputPriceData!$E$15,CalculationsAndCharts!$A57+$A$11,IF($C$5,8,0),1,1))) -> 358.69 | G57: =IF(A57>$B$30,NA(),IF(A57>$A$8,"",OFFSET(InputPriceData!$F$15,CalculationsAndCharts!$A57+$A$11,IF($C$5,8,0),1,1))) -> 359.77 | H57: -0.17 | J57: -0.0105 | K57: 0.7850318471 | M57: -0.3071818182 | N57: 0.1152287203 | P57: -0.3034407296 | Q57: -0.08010818713 | S57: -0.4248104402 | T57: 0.06190114972 | U57: -0.0105 | V57: -0.3071818182 | W57: -0.3034407296 | X57: -0.4248104402 | AX57: 28514100
A58: 26 | B58: =IF(A58>$B$30,NA(),IF($A58>$A$8,"",OFFSET(InputPriceData!$B$15,$A58+$A$11,0,1,1))) -> 2020-11-25 | C58: =IF(A58>$B$30,NA(),IF($A58>$A$8,"",OFFSET(InputPriceData!$G$15,CalculationsAndCharts!$A58+$A$11,IF($C$5,8,0),1,1))) -> 45330900 | D58: =IF(A58>$B$30,NA(),IF(A58>$A$8,"",OFFSET(InputPriceData!$C$15,CalculationsAndCharts!$A58+$A$11,IF($C$5,8,0),1,1))) -> 359.23 | E58: =IF(A58>$B$30,NA(),IF(A58>$A$8,"",OFFSET(InputPriceData!$D$15,CalculationsAndCharts!$A58+$A$11,IF($C$5,8,0),1,1))) -> 359.26 | F58: =IF(A58>$B$30,NA(),IF(A58>$A$8,"",OFFSET(InputPriceData!$E$15,CalculationsAndCharts!$A58+$A$11,IF($C$5,8,0),1,1))) -> 357.6 | G58: =IF(A58>$B$30,NA(),IF(A58>$A$8,"",OFFSET(InputPriceData!$F$15,CalculationsAndCharts!$A58+$A$11,IF($C$5,8,0),1,1))) -> 358.77 | H58: -0.46 | J58: -0.257 | K58: 0.7165605096 | M58: -0.3433636364 | N58: 0.2159814708 | P58: -0.2782867588 | Q58: 0.1444022758 | S58: -0.4442474012 | T58: -0.02351973786 | U58: -0.257 | V58: -0.3433636364 | W58: -0.2782867588 | X58: -0.4442474012 | AX58: 45330900
A59: 27 | B59: =IF(A59>$B$30,NA(),IF($A59>$A$8,"",OFFSET(InputPriceData!$B$15,$A59+$A$11,0,1,1))) -> 2020-11-24 | C59: =IF(A59>$B$30,NA(),IF($A59>$A$8,"",OFFSET(InputPriceData!$G$15,CalculationsAndCharts!$A59+$A$11,IF($C$5,8,0),1,1))) -> 62415900 | D59: =IF(A59>$B$30,NA(),IF(A59>$A$8,"",OFFSET(InputPriceData!$C$15,CalculationsAndCharts!$A59+$A$11,IF($C$5,8,0),1,1))) -> 356.34 | E59: =IF(A59>$B$30,NA(),IF(A59>$A$8,"",OFFSET(InputPriceData!$D$15,CalculationsAndCharts!$A59+$A$11,IF($C$5,8,0),1,1))) -> 359.91 | F59: =IF(A59>$B$30,NA(),IF(A59>$A$8,"",OFFSET(InputPriceData!$E$15,CalculationsAndCharts!$A59+$A$11,IF($C$5,8,0),1,1))) -> 355.43 | G59: =IF(A59>$B$30,NA(),IF(A59>$A$8,"",OFFSET(InputPriceData!$F$15,CalculationsAndCharts!$A59+$A$11,IF($C$5,8,0),1,1))) -> 359.32 | H59: 2.98 | J59: -0.482 | K59: 0.4585987261 | M59: -0.4111818182 | N59: 0.2964678633 | P59: -0.3236290734 | Q59: 0.1873782398 | S59: -0.4368622035 | T59: -0.06453917998 | U59: -0.482 | V59: -0.4111818182 | W59: -0.3236290734 | X59: -0.4368622035 | AW59: 62415900
A60: 28 | B60: =IF(A60>$B$30,NA(),IF($A60>$A$8,"",OFFSET(InputPriceData!$B$15,$A60+$A$11,0,1,1))) -> 2020-11-23 | C60: =IF(A60>$B$30,NA(),IF($A60>$A$8,"",OFFSET(InputPriceData!$G$15,CalculationsAndCharts!$A60+$A$11,IF($C$5,8,0),1,1))) -> 63230600 | D60: =IF(A60>$B$30,NA(),IF(A60>$A$8,"",OFFSET(InputPriceData!$C$15,CalculationsAndCharts!$A60+$A$11,IF($C$5,8,0),1,1))) -> 353.45 | E60: =IF(A60>$B$30,NA(),IF(A60>$A$8,"",OFFSET(InputPriceData!$D$15,CalculationsAndCharts!$A60+$A$11,IF($C$5,8,0),1,1))) -> 354.97 | F60: =IF(A60>$B$30,NA(),IF(A60>$A$8,"",OFFSET(InputPriceData!$E$15,CalculationsAndCharts!$A60+$A$11,IF($C$5,8,0),1,1))) -> 351.06 | G60: =IF(A60>$B$30,NA(),IF(A60>$A$8,"",OFFSET(InputPriceData!$F$15,CalculationsAndCharts!$A60+$A$11,IF($C$5,8,0),1,1))) -> 353.62 | H60: 0.17 | J60: -0.626 | K60: -0.3168789809 | M60: -0.5042727273 | N60: 0.03474232774 | P60: -0.3824658407 | Q60: 0.1413520812 | S60: -0.416596901 | T60: -0.05434578569 | U60: -0.626 | V60: -0.5042727273 | W60: -0.3824658407 | X60: -0.416596901 | AW60: 63230600
A61: 29 | B61: =IF(A61>$B$30,NA(),IF($A61>$A$8,"",OFFSET(InputPriceData!$B$15,$A61+$A$11,0,1,1))) -> 2020-11-20 | C61: =IF(A61>$B$30,NA(),IF($A61>$A$8,"",OFFSET(InputPriceData!$G$15,CalculationsAndCharts!$A61+$A$11,IF($C$5,8,0),1,1))) -> 70417300 | D61: =IF(A61>$B$30,NA(),IF(A61>$A$8,"",OFFSET(InputPriceData!$C$15,CalculationsAndCharts!$A61+$A$11,IF($C$5,8,0),1,1))) -> 353.66 | E61: =IF(A61>$B$30,NA(),IF(A61>$A$8,"",OFFSET(InputPriceData!$D$15,CalculationsAndCharts!$A61+$A$11,IF($C$5,8,0),1,1))) -> 353.88 | F61: =IF(A61>$B$30,NA(),IF(A61>$A$8,"",OFFSET(InputPriceData!$E$15,CalculationsAndCharts!$A61+$A$11,IF($C$5,8,0),1,1))) -> 351.44 | G61: =IF(A61>$B$30,NA(),IF(A61>$A$8,"",OFFSET(InputPriceData!$F$15,CalculationsAndCharts!$A61+$A$11,IF($C$5,8,0),1,1))) -> 351.52 | H61: -2.14 | J61: -0.5265 | K61: 0.08439490446 | M61: -0.5151818182 | N61: -0.2287203243 | P61: -0.4268503942 | Q61: 0.07981503206 | S61: -0.3995323243 | T61: 0.001168953799 | U61: -0.5265 | V61: -0.5151818182 | W61: -0.4268503942 | X61: -0.3995323243 | AX61: 70417300
A62: 30 | B62: =IF(A62>$B$30,NA(),IF($A62>$A$8,"",OFFSET(InputPriceData!$B$15,$A62+$A$11,0,1,1))) -> 2020-11-19 | C62: =IF(A62>$B$30,NA(),IF($A62>$A$8,"",OFFSET(InputPriceData!$G$15,CalculationsAndCharts!$A62+$A$11,IF($C$5,8,0),1,1))) -> 59940900 | D62: =IF(A62>$B$30,NA(),IF(A62>$A$8,"",OFFSET(InputPriceData!$C$15,CalculationsAndCharts!$A62+$A$11,IF($C$5,8,0),1,1))) -> 351.78 | E62: =IF(A62>$B$30,NA(),IF(A62>$A$8,"",OFFSET(InputPriceData!$D$15,CalculationsAndCharts!$A62+$A$11,IF($C$5,8,0),1,1))) -> 354.34 | F62: =IF(A62>$B$30,NA(),IF(A62>$A$8,"",OFFSET(InputPriceData!$E$15,CalculationsAndCharts!$A62+$A$11,IF($C$5,8,0),1,1))) -> 350.35 | G62: =IF(A62>$B$30,NA(),IF(A62>$A$8,"",OFFSET(InputPriceData!$F$15,CalculationsAndCharts!$A62+$A$11,IF($C$5,8,0),1,1))) -> 353.94 | H62: 2.16 | J62: -0.553 | K62: -0.6337579618 | M62: -0.4433636364 | N62: -0.1786334684 | P62: -0.4519123143 | Q62: 0.08261220362 | S62: -0.3998993758 | T62: 0.03333538924 | U62: -0.553 | V62: -0.4433636364 | W62: -0.4519123143 | X62: -0.3998993758 | AW62: 59940900
A63: 31 | B63: =IF(A63>$B$30,NA(),IF($A63>$A$8,"",OFFSET(InputPriceData!$B$15,$A63+$A$11,0,1,1))) -> 2020-11-18 | C63: =IF(A63>$B$30,NA(),IF($A63>$A$8,"",OFFSET(InputPriceData!$G$15,CalculationsAndCharts!$A63+$A$11,IF($C$5,8,0),1,1))) -> 70591300 | D63: =IF(A63>$B$30,NA(),IF(A63>$A$8,"",OFFSET(InputPriceData!$C$15,CalculationsAndCharts!$A63+$A$11,IF($C$5,8,0),1,1))) -> 357.04 | E63: =IF(A63>$B$30,NA(),IF(A63>$A$8,"",OFFSET(InputPriceData!$D$15,CalculationsAndCharts!$A63+$A$11,IF($C$5,8,0),1,1))) -> 357.62 | F63: =IF(A63>$B$30,NA(),IF(A63>$A$8,"",OFFSET(InputPriceData!$E$15,CalculationsAndCharts!$A63+$A$11,IF($C$5,8,0),1,1))) -> 352.42 | G63: =IF(A63>$B$30,NA(),IF(A63>$A$8,"",OFFSET(InputPriceData!$F$15,CalculationsAndCharts!$A63+$A$11,IF($C$5,8,0),1,1))) -> 352.46 | H63: -4.58 | J63: -0.354 | K63: 0.1146496815 | M63: -0.3872727273 | N63: -0.1184134337 | P63: -0.4778525462 | Q63: -0.03297286979 | S63: -0.410366688 | T63: 0.0557349358 | U63: -0.354 | V63: -0.3872727273 | W63: -0.4778525462 | X63: -0.410366688 | AX63: 70591300
A64: 32 | B64: =IF(A64>$B$30,NA(),IF($A64>$A$8,"",OFFSET(InputPriceData!$B$15,$A64+$A$11,0,1,1))) -> 2020-11-17 | C64: =IF(A64>$B$30,NA(),IF($A64>$A$8,"",OFFSET(InputPriceData!$G$15,CalculationsAndCharts!$A64+$A$11,IF($C$5,8,0),1,1))) -> 66111000 | D64: =IF(A64>$B$30,NA(),IF(A64>$A$8,"",OFFSET(InputPriceData!$C$15,CalculationsAndCharts!$A64+$A$11,IF($C$5,8,0),1,1))) -> 356.11 | E64: =IF(A64>$B$30,NA(),IF(A64>$A$8,"",OFFSET(InputPriceData!$D$15,CalculationsAndCharts!$A64+$A$11,IF($C$5,8,0),1,1))) -> 358.04 | F64: =IF(A64>$B$30,NA(),IF(A64>$A$8,"",OFFSET(InputPriceData!$E$15,CalculationsAndCharts!$A64+$A$11,IF($C$5,8,0),1,1))) -> 354.49 | G64: =IF(A64>$B$30,NA(),IF(A64>$A$8,"",OFFSET(InputPriceData!$F$15,CalculationsAndCharts!$A64+$A$11,IF($C$5,8,0),1,1))) -> 356.75 | H64: 0.64 | J64: -0.39 | K64: 1.296178344 | M64: -0.3500909091 | N64: 0.160104227 | P64: -0.4674990651 | Q64: 0.1253646888 | S64: -0.4278674579 | T64: 0.06145890727 | U64: -0.39 | V64: -0.3500909091 | W64: -0.4674990651 | X64: -0.4278674579 | AW64: 66111000
A65: 33 | B65: =IF(A65>$B$30,NA(),IF($A65>$A$8,"",OFFSET(InputPriceData!$B$15,$A65+$A$11,0,1,1))) -> 2020-11-16 | C65: =IF(A65>$B$30,NA(),IF($A65>$A$8,"",OFFSET(InputPriceData!$G$15,CalculationsAndCharts!$A65+$A$11,IF($C$5,8,0),1,1))) -> 74541100 | D65: =IF(A65>$B$30,NA(),IF(A65>$A$8,"",OFFSET(InputPriceData!$C$15,CalculationsAndCharts!$A65+$A$11,IF($C$5,8,0),1,1))) -> 357.11 | E65: =IF(A65>$B$30,NA(),IF(A65>$A$8,"",OFFSET(InputPriceData!$D$15,CalculationsAndCharts!$A65+$A$11,IF($C$5,8,0),1,1))) -> 358.89 | F65: =IF(A65>$B$30,NA(),IF(A65>$A$8,"",OFFSET(InputPriceData!$E$15,CalculationsAndCharts!$A65+$A$11,IF($C$5,8,0),1,1))) -> 355.73 | G65: =IF(A65>$B$30,NA(),IF(A65>$A$8,"",OFFSET(InputPriceData!$F$15,CalculationsAndCharts!$A65+$A$11,IF($C$5,8,0),1,1))) -> 358.68 | H65: 1.57 | J65: -0.797 | K65: 0.7101910828 | M65: -0.4003636364 | N65: 0.3986682108 | P65: -0.5068635774 | Q65: 0.3422199801 | S65: -0.4471655548 | T65: 0.07998065911 | U65: -0.797 | V65: -0.4003636364 | W65: -0.5068635774 | X65: -0.4471655548 | AW65: 74541100
A66: 34 | B66: =IF(A66>$B$30,NA(),IF($A66>$A$8,"",OFFSET(InputPriceData!$B$15,$A66+$A$11,0,1,1))) -> 2020-11-13 | C66: =IF(A66>$B$30,NA(),IF($A66>$A$8,"",OFFSET(InputPriceData!$G$15,CalculationsAndCharts!$A66+$A$11,IF($C$5,8,0),1,1))) -> 62892200 | D66: =IF(A66>$B$30,NA(),IF(A66>$A$8,"",OFFSET(InputPriceData!$C$15,CalculationsAndCharts!$A66+$A$11,IF($C$5,8,0),1,1))) -> 351.46 | E66: =IF(A66>$B$30,NA(),IF(A66>$A$8,"",OFFSET(InputPriceData!$D$15,CalculationsAndCharts!$A66+$A$11,IF($C$5,8,0),1,1))) -> 355.05 | F66: =IF(A66>$B$30,NA(),IF(A66>$A$8,"",OFFSET(InputPriceData!$E$15,CalculationsAndCharts!$A66+$A$11,IF($C$5,8,0),1,1))) -> 350.9 | G66: =IF(A66>$B$30,NA(),IF(A66>$A$8,"",OFFSET(InputPriceData!$F$15,CalculationsAndCharts!$A66+$A$11,IF($C$5,8,0),1,1))) -> 354.26 | H66: 2.8 | J66: -1.02 | K66: -0.9697452229 | M66: -0.5255454545 | N66: 0.3514765489 | P66: -0.6143206512 | Q66: 0.2792924037 | S66: -0.4722794817 | T66: 0.1617354671 | U66: -1.02 | V66: -0.5255454545 | W66: -0.6143206512 | X66: -0.4722794817 | AW66: 62892200
A67: 35 | B67: =IF(A67>$B$30,NA(),IF($A67>$A$8,"",OFFSET(InputPriceData!$B$15,$A67+$A$11,0,1,1))) -> 2020-11-12 | C67: =IF(A67>$B$30,NA(),IF($A67>$A$8,"",OFFSET(InputPriceData!$G$15,CalculationsAndCharts!$A67+$A$11,IF($C$5,8,0),1,1))) -> 67546200 | D67: =IF(A67>$B$30,NA(),IF(A67>$A$8,"",OFFSET(InputPriceData!$C$15,CalculationsAndCharts!$A67+$A$11,IF($C$5,8,0),1,1))) -> 351.76 | E67: =IF(A67>$B$30,NA(),IF(A67>$A$8,"",OFFSET(InputPriceData!$D$15,CalculationsAndCharts!$A67+$A$11,IF($C$5,8,0),1,1))) -> 352.89 | F67: =IF(A67>$B$30,NA(),IF(A67>$A$8,"",OFFSET(InputPriceData!$E$15,CalculationsAndCharts!$A67+$A$11,IF($C$5,8,0),1,1))) -> 347.49 | G67: =IF(A67>$B$30,NA(),IF(A67>$A$8,"",OFFSET(InputPriceData!$F$15,CalculationsAndCharts!$A67+$A$11,IF($C$5,8,0),1,1))) -> 349.42 | H67: -2.34 | J67: -0.7155 | K67: 0.4856687898 | M67: -0.6359090909 | N67: 0.2000579039 | P67: -0.7020184659 | Q67: -0.06213639949 | S67: -0.5230644184 | T67: 0.2444809104 | U67: -0.7155 | V67: -0.6359090909 | W67: -0.7020184659 | X67: -0.5230644184 | AX67: 67546200
A68: 36 | B68: =IF(A68>$B$30,NA(),IF($A68>$A$8,"",OFFSET(InputPriceData!$B$15,$A68+$A$11,0,1,1))) -> 2020-11-11 | C68: =IF(A68>$B$30,NA(),IF($A68>$A$8,"",OFFSET(InputPriceData!$G$15,CalculationsAndCharts!$A68+$A$11,IF($C$5,8,0),1,1))) -> 58649000 | D68: =IF(A68>$B$30,NA(),IF(A68>$A$8,"",OFFSET(InputPriceData!$C$15,CalculationsAndCharts!$A68+$A$11,IF($C$5,8,0),1,1))) -> 352.58 | E68: =IF(A68>$B$30,NA(),IF(A68>$A$8,"",OFFSET(InputPriceData!$D$15,CalculationsAndCharts!$A68+$A$11,IF($C$5,8,0),1,1))) -> 353.72 | F68: =IF(A68>$B$30,NA(),IF(A68>$A$8,"",OFFSET(InputPriceData!$E$15,CalculationsAndCharts!$A68+$A$11,IF($C$5,8,0),1,1))) -> 351.25 | G68: =IF(A68>$B$30,NA(),IF(A68>$A$8,"",OFFSET(InputPriceData!$F$15,CalculationsAndCharts!$A68+$A$11,IF($C$5,8,0),1,1))) -> 352.84 | H68: 0.26 | J68: -0.868 | K68: 0.4251592357 | M68: -0.6987272727 | N68: 0.2805442965 | P68: -0.6825076365 | Q68: 0.1263272561 | S68: -0.5998314243 | T68: 0.3021343928 | U68: -0.868 | V68: -0.6987272727 | W68: -0.6825076365 | X68: -0.5998314243 | AW68: 58649000
A69: 37 | B69: =IF(A69>$B$30,NA(),IF($A69>$A$8,"",OFFSET(InputPriceData!$B$15,$A69+$A$11,0,1,1))) -> 2020-11-10 | C69: =IF(A69>$B$30,NA(),IF($A69>$A$8,"",OFFSET(InputPriceData!$G$15,CalculationsAndCharts!$A69+$A$11,IF($C$5,8,0),1,1))) -> 85552000 | D69: =IF(A69>$B$30,NA(),IF(A69>$A$8,"",OFFSET(InputPriceData!$C$15,CalculationsAndCharts!$A69+$A$11,IF($C$5,8,0),1,1))) -> 349.7 | E69: =IF(A69>$B$30,NA(),IF(A69>$A$8,"",OFFSET(InputPriceData!$D$15,CalculationsAndCharts!$A69+$A$11,IF($C$5,8,0),1,1))) -> 351.37 | F69: =IF(A69>$B$30,NA(),IF(A69>$A$8,"",OFFSET(InputPriceData!$E$15,CalculationsAndCharts!$A69+$A$11,IF($C$5,8,0),1,1))) -> 346.75 | G69: =IF(A69>$B$30,NA(),IF(A69>$A$8,"",OFFSET(InputPriceData!$F$15,CalculationsAndCharts!$A69+$A$11,IF($C$5,8,0),1,1))) -> 350.24 | H69: 0.54 | J69: -1.0015 | K69: -1.929936306 | M69: -0.7868181818 | N69: 0.13462652 | P69: -0.7221743949 | Q69: 0.1384814245 | S69: -0.6947016236 | T69: 0.3520764599 | U69: -1.0015 | V69: -0.7868181818 | W69: -0.7221743949 | X69: -0.6947016236 | AW69: 85552000
A70: 38 | B70: =IF(A70>$B$30,NA(),IF($A70>$A$8,"",OFFSET(InputPriceData!$B$15,$A70+$A$11,0,1,1))) -> 2020-11-09 | C70: =IF(A70>$B$30,NA(),IF($A70>$A$8,"",OFFSET(InputPriceData!$G$15,CalculationsAndCharts!$A70+$A$11,IF($C$5,8,0),1,1))) -> 172304200 | D70: =IF(A70>$B$30,NA(),IF(A70>$A$8,"",OFFSET(InputPriceData!$C$15,CalculationsAndCharts!$A70+$A$11,IF($C$5,8,0),1,1))) -> 360.06 | E70: =IF(A70>$B$30,NA(),IF(A70>$A$8,"",OFFSET(InputPriceData!$D$15,CalculationsAndCharts!$A70+$A$11,IF($C$5,8,0),1,1))) -> 360.47 | F70: =IF(A70>$B$30,NA(),IF(A70>$A$8,"",OFFSET(InputPriceData!$E$15,CalculationsAndCharts!$A70+$A$11,IF($C$5,8,0),1,1))) -> 350.26 | G70: =IF(A70>$B$30,NA(),IF(A70>$A$8,"",OFFSET(InputPriceData!$F$15,CalculationsAndCharts!$A70+$A$11,IF($C$5,8,0),1,1))) -> 350.75 | H70: -9.31 | J70: -0.3955 | K70: -0.1671974522 | M70: -0.8290909091 | N70: -0.08482918356 | P70: -0.7656575622 | Q70: -0.1249013859 | S70: -0.805253632 | T70: 0.3715434906 | U70: -0.3955 | V70: -0.8290909091 | W70: -0.7656575622 | X70: -0.805253632 | AX70: 172304200
A71: 39 | B71: =IF(A71>$B$30,NA(),IF($A71>$A$8,"",OFFSET(InputPriceData!$B$15,$A71+$A$11,0,1,1))) -> 2020-11-06 | C71: =IF(A71>$B$30,NA(),IF($A71>$A$8,"",OFFSET(InputPriceData!$G$15,CalculationsAndCharts!$A71+$A$11,IF($C$5,8,0),1,1))) -> 74973000 | D71: =IF(A71>$B$30,NA(),IF(A71>$A$8,"",OFFSET(InputPriceData!$C$15,CalculationsAndCharts!$A71+$A$11,IF($C$5,8,0),1,1))) -> 346.17 | E71: =IF(A71>$B$30,NA(),IF(A71>$A$8,"",OFFSET(InputPriceData!$D$15,CalculationsAndCharts!$A71+$A$11,IF($C$5,8,0),1,1))) -> 347.74 | F71: =IF(A71>$B$30,NA(),IF(A71>$A$8,"",OFFSET(InputPriceData!$E$15,CalculationsAndCharts!$A71+$A$11,IF($C$5,8,0),1,1))) -> 343.92 | G71: =IF(A71>$B$30,NA(),IF(A71>$A$8,"",OFFSET(InputPriceData!$F$15,CalculationsAndCharts!$A71+$A$11,IF($C$5,8,0),1,1))) -> 346.4 | H71: 0.23 | J71: -0.343 | K71: 0.01114649682 | M71: -0.8024545455 | N71: 0.06485234511 | P71: -0.726438527 | Q71: 0.1726176084 | S71: -0.9219182881 | T71: 0.2713527692 | U71: -0.343 | V71: -0.8024545455 | W71: -0.726438527 | X71: -0.9219182881 | AW71: 74973000
A72: 40 | B72: =IF(A72>$B$30,NA(),IF($A72>$A$8,"",OFFSET(InputPriceData!$B$15,$A72+$A$11,0,1,1))) -> 2020-11-05 | C72: =IF(A72>$B$30,NA(),IF($A72>$A$8,"",OFFSET(InputPriceData!$G$15,CalculationsAndCharts!$A72+$A$11,IF($C$5,8,0),1,1))) -> 82039700 | D72: =IF(A72>$B$30,NA(),IF(A72>$A$8,"",OFFSET(InputPriceData!$C$15,CalculationsAndCharts!$A72+$A$11,IF($C$5,8,0),1,1))) -> 345.49 | E72: =IF(A72>$B$30,NA(),IF(A72>$A$8,"",OFFSET(InputPriceData!$D$15,CalculationsAndCharts!$A72+$A$11,IF($C$5,8,0),1,1))) -> 348.41 | F72: =IF(A72>$B$30,NA(),IF(A72>$A$8,"",OFFSET(InputPriceData!$E$15,CalculationsAndCharts!$A72+$A$11,IF($C$5,8,0),1,1))) -> 345.12 | G72: =IF(A72>$B$30,NA(),IF(A72>$A$8,"",OFFSET(InputPriceData!$F$15,CalculationsAndCharts!$A72+$A$11,IF($C$5,8,0),1,1))) -> 346.48 | H72: 0.99 | J72: -0.3465 | K72: 0.006369426752 | M72: -0.8228181818 | N72: 0.07440648523 | P72: -0.7806404561 | Q72: 0.08677695062 | S72: -1.007123058 | T72: 0.07105195949 | U72: -0.3465 | V72: -0.8228181818 | W72: -0.7806404561 | X72: -1.007123058 | AW72: 82039700
A73: 41 | B73: =IF(A73>$B$30,NA(),IF($A73>$A$8,"",OFFSET(InputPriceData!$B$15,$A73+$A$11,0,1,1))) -> 2020-11-04 | C73: =IF(A73>$B$30,NA(),IF($A73>$A$8,"",OFFSET(InputPriceData!$G$15,CalculationsAndCharts!$A73+$A$11,IF($C$5,8,0),1,1))) -> 126959700 | D73: =IF(A73>$B$30,NA(),IF(A73>$A$8,"",OFFSET(InputPriceData!$C$15,CalculationsAndCharts!$A73+$A$11,IF($C$5,8,0),1,1))) -> 337.2 | E73: =IF(A73>$B$30,NA(),IF(A73>$A$8,"",OFFSET(InputPriceData!$D$15,CalculationsAndCharts!$A73+$A$11,IF($C$5,8,0),1,1))) -> 344.21 | F73: =IF(A73>$B$30,NA(),IF(A73>$A$8,"",OFFSET(InputPriceData!$E$15,CalculationsAndCharts!$A73+$A$11,IF($C$5,8,0),1,1))) -> 335.95 | G73: =IF(A73>$B$30,NA(),IF(A73>$A$8,"",OFFSET(InputPriceData!$F$15,CalculationsAndCharts!$A73+$A$11,IF($C$5,8,0),1,1))) -> 339.85 | H73: 2.65 | J73: -0.3485 | K73: 1.151273885 | M73: -0.8461818182 | N73: 4.950038963e-15 | P73: -0.8078884185 | Q73: -0.0925046841 | S73: -1.029433373 | T73: -0.1511257954 | U73: -0.3485 | V73: -0.8461818182 | W73: -0.8078884185 | X73: -1.029433373 | AW73: 126959700
A74: 42 | B74: =IF(A74>$B$30,NA(),IF($A74>$A$8,"",OFFSET(InputPriceData!$B$15,$A74+$A$11,0,1,1))) -> 2020-11-03 | C74: =IF(A74>$B$30,NA(),IF($A74>$A$8,"",OFFSET(InputPriceData!$G$15,CalculationsAndCharts!$A74+$A$11,IF($C$5,8,0),1,1))) -> 93294200 | D74: =IF(A74>$B$30,NA(),IF(A74>$A$8,"",OFFSET(InputPriceData!$C$15,CalculationsAndCharts!$A74+$A$11,IF($C$5,8,0),1,1))) -> 330.11 | E74: =IF(A74>$B$30,NA(),IF(A74>$A$8,"",OFFSET(InputPriceData!$D$15,CalculationsAndCharts!$A74+$A$11,IF($C$5,8,0),1,1))) -> 334.62 | F74: =IF(A74>$B$30,NA(),IF(A74>$A$8,"",OFFSET(InputPriceData!$E$15,CalculationsAndCharts!$A74+$A$11,IF($C$5,8,0),1,1))) -> 326.75 | G74: =IF(A74>$B$30,NA(),IF(A74>$A$8,"",OFFSET(InputPriceData!$F$15,CalculationsAndCharts!$A74+$A$11,IF($C$5,8,0),1,1))) -> 332.42 | H74: 2.31 | J74: -0.71 | K74: -0.5828025478 | M74: -0.8461818182 | N74: 0.04603358425 | P74: -0.7788419477 | Q74: -0.02148466663 | S74: -0.9819798731 | T74: -0.3197871275 | U74: -0.71 | V74: -0.8461818182 | W74: -0.7788419477 | X74: -0.9819798731 | AW74: 93294200
A75: 43 | B75: =IF(A75>$B$30,NA(),IF($A75>$A$8,"",OFFSET(InputPriceData!$B$15,$A75+$A$11,0,1,1))) -> 2020-11-02 | C75: =IF(A75>$B$30,NA(),IF($A75>$A$8,"",OFFSET(InputPriceData!$G$15,CalculationsAndCharts!$A75+$A$11,IF($C$5,8,0),1,1))) -> 86068300 | D75: =IF(A75>$B$30,NA(),IF(A75>$A$8,"",OFFSET(InputPriceData!$C$15,CalculationsAndCharts!$A75+$A$11,IF($C$5,8,0),1,1))) -> 326.66 | E75: =IF(A75>$B$30,NA(),IF(A75>$A$8,"",OFFSET(InputPriceData!$D$15,CalculationsAndCharts!$A75+$A$11,IF($C$5,8,0),1,1))) -> 328.79 | F75: =IF(A75>$B$30,NA(),IF(A75>$A$8,"",OFFSET(InputPriceData!$E$15,CalculationsAndCharts!$A75+$A$11,IF($C$5,8,0),1,1))) -> 323.73 | G75: =IF(A75>$B$30,NA(),IF(A75>$A$8,"",OFFSET(InputPriceData!$F$15,CalculationsAndCharts!$A75+$A$11,IF($C$5,8,0),1,1))) -> 326.66 | H75: 0 | J75: -0.527 | K75: -0.6114649682 | M75: -0.8606363636 | N75: -0.3193398958 | P75: -0.7720957624 | Q75: -0.3500128953 | S75: -0.8815667151 | T75: -0.4181266076 | U75: -0.527 | V75: -0.8606363636 | W75: -0.7720957624 | X75: -0.8815667151 | AW75: 86068300
A76: 44 | B76: =IF(A76>$B$30,NA(),IF($A76>$A$8,"",OFFSET(InputPriceData!$B$15,$A76+$A$11,0,1,1))) -> 2020-10-30 | C76: =IF(A76>$B$30,NA(),IF($A76>$A$8,"",OFFSET(InputPriceData!$G$15,CalculationsAndCharts!$A76+$A$11,IF($C$5,8,0),1,1))) -> 120287300 | D76: =IF(A76>$B$30,NA(),IF(A76>$A$8,"",OFFSET(InputPriceData!$C$15,CalculationsAndCharts!$A76+$A$11,IF($C$5,8,0),1,1))) -> 324.76 | E76: =IF(A76>$B$30,NA(),IF(A76>$A$8,"",OFFSET(InputPriceData!$D$15,CalculationsAndCharts!$A76+$A$11,IF($C$5,8,0),1,1))) -> 326.15 | F76: =IF(A76>$B$30,NA(),IF(A76>$A$8,"",OFFSET(InputPriceData!$E$15,CalculationsAndCharts!$A76+$A$11,IF($C$5,8,0),1,1))) -> 319.14 | G76: =IF(A76>$B$30,NA(),IF(A76>$A$8,"",OFFSET(InputPriceData!$F$15,CalculationsAndCharts!$A76+$A$11,IF($C$5,8,0),1,1))) -> 323.04 | H76: -1.72 | J76: -0.335 | K76: 0.5875796178 | M76: -0.7603636364 | N76: -0.6189924725 | P76: -0.6621917133 | Q76: -0.4694438887 | S76: -0.7502749603 | T76: -0.5026928914 | U76: -0.335 | V76: -0.7603636364 | W76: -0.6621917133 | X76: -0.7502749603 | AX76: 120287300
A77: 45 | B77: =IF(A77>$B$30,NA(),IF($A77>$A$8,"",OFFSET(InputPriceData!$B$15,$A77+$A$11,0,1,1))) -> 2020-10-29 | C77: =IF(A77>$B$30,NA(),IF($A77>$A$8,"",OFFSET(InputPriceData!$G$15,CalculationsAndCharts!$A77+$A$11,IF($C$5,8,0),1,1))) -> 90597700 | D77: =IF(A77>$B$30,NA(),IF(A77>$A$8,"",OFFSET(InputPriceData!$C$15,CalculationsAndCharts!$A77+$A$11,IF($C$5,8,0),1,1))) -> 323.4 | E77: =IF(A77>$B$30,NA(),IF(A77>$A$8,"",OFFSET(InputPriceData!$D$15,CalculationsAndCharts!$A77+$A$11,IF($C$5,8,0),1,1))) -> 329.82 | F77: =IF(A77>$B$30,NA(),IF(A77>$A$8,"",OFFSET(InputPriceData!$E$15,CalculationsAndCharts!$A77+$A$11,IF($C$5,8,0),1,1))) -> 321.6 | G77: =IF(A77>$B$30,NA(),IF(A77>$A$8,"",OFFSET(InputPriceData!$F$15,CalculationsAndCharts!$A77+$A$11,IF($C$5,8,0),1,1))) -> 326.44 | H77: 3.04 | J77: -0.5195 | K77: -1.141719745 | M77: -0.566 | N77: -0.4898668211 | P77: -0.5147863323 | Q77: -0.3746554055 | S77: -0.5924293924 | T77: -0.5640853885 | U77: -0.5195 | V77: -0.566 | W77: -0.5147863323 | X77: -0.5924293924 | AW77: 90597700
A78: 46 | B78: =IF(A78>$B$30,NA(),IF($A78>$A$8,"",OFFSET(InputPriceData!$B$15,$A78+$A$11,0,1,1))) -> 2020-10-28 | C78: =IF(A78>$B$30,NA(),IF($A78>$A$8,"",OFFSET(InputPriceData!$G$15,CalculationsAndCharts!$A78+$A$11,IF($C$5,8,0),1,1))) -> 127094300 | D78: =IF(A78>$B$30,NA(),IF(A78>$A$8,"",OFFSET(InputPriceData!$C$15,CalculationsAndCharts!$A78+$A$11,IF($C$5,8,0),1,1))) -> 328.54 | E78: =IF(A78>$B$30,NA(),IF(A78>$A$8,"",OFFSET(InputPriceData!$D$15,CalculationsAndCharts!$A78+$A$11,IF($C$5,8,0),1,1))) -> 334.62 | F78: =IF(A78>$B$30,NA(),IF(A78>$A$8,"",OFFSET(InputPriceData!$E$15,CalculationsAndCharts!$A78+$A$11,IF($C$5,8,0),1,1))) -> 322.63 | G78: =IF(A78>$B$30,NA(),IF(A78>$A$8,"",OFFSET(InputPriceData!$F$15,CalculationsAndCharts!$A78+$A$11,IF($C$5,8,0),1,1))) -> 323.15 | H78: -5.39 | J78: -0.161 | K78: 0.01114649682 | M78: -0.4121818182 | N78: -0.6016213086 | P78: -0.3971445349 | Q78: -0.637754872 | S78: -0.4153065804 | T78: -0.5740762949 | U78: -0.161 | V78: -0.4121818182 | W78: -0.3971445349 | X78: -0.4153065804 | AX78: 127094300
A79: 47 | B79: =IF(A79>$B$30,NA(),IF($A79>$A$8,"",OFFSET(InputPriceData!$B$15,$A79+$A$11,0,1,1))) -> 2020-10-27 | C79: =IF(A79>$B$30,NA(),IF($A79>$A$8,"",OFFSET(InputPriceData!$G$15,CalculationsAndCharts!$A79+$A$11,IF($C$5,8,0),1,1))) -> 65994100 | D79: =IF(A79>$B$30,NA(),IF(A79>$A$8,"",OFFSET(InputPriceData!$C$15,CalculationsAndCharts!$A79+$A$11,IF($C$5,8,0),1,1))) -> 336.11 | E79: =IF(A79>$B$30,NA(),IF(A79>$A$8,"",OFFSET(InputPriceData!$D$15,CalculationsAndCharts!$A79+$A$11,IF($C$5,8,0),1,1))) -> 336.47 | F79: =IF(A79>$B$30,NA(),IF(A79>$A$8,"",OFFSET(InputPriceData!$E$15,CalculationsAndCharts!$A79+$A$11,IF($C$5,8,0),1,1))) -> 334.36 | G79: =IF(A79>$B$30,NA(),IF(A79>$A$8,"",OFFSET(InputPriceData!$F$15,CalculationsAndCharts!$A79+$A$11,IF($C$5,8,0),1,1))) -> 334.59 | H79: -1.52 | J79: -0.1645 | K79: -0.5843949045 | M79: -0.2232727273 | N79: -0.5419803127 | P79: -0.1968895051 | Q79: -0.3647264125 | S79: -0.2350466238 | T79: -0.5501712991 | U79: -0.1645 | V79: -0.2232727273 | W79: -0.1968895051 | X79: -0.2350466238 | AX79: 65994100
A80: 48 | B80: =IF(A80>$B$30,NA(),IF($A80>$A$8,"",OFFSET(InputPriceData!$B$15,$A80+$A$11,0,1,1))) -> 2020-10-26 | C80: =IF(A80>$B$30,NA(),IF($A80>$A$8,"",OFFSET(InputPriceData!$G$15,CalculationsAndCharts!$A80+$A$11,IF($C$5,8,0),1,1))) -> 91473000 | D80: =IF(A80>$B$30,NA(),IF(A80>$A$8,"",OFFSET(InputPriceData!$C$15,CalculationsAndCharts!$A80+$A$11,IF($C$5,8,0),1,1))) -> 338.46 | E80: =IF(A80>$B$30,NA(),IF(A80>$A$8,"",OFFSET(InputPriceData!$D$15,CalculationsAndCharts!$A80+$A$11,IF($C$5,8,0),1,1))) -> 339.3 | F80: =IF(A80>$B$30,NA(),IF(A80>$A$8,"",OFFSET(InputPriceData!$E$15,CalculationsAndCharts!$A80+$A$11,IF($C$5,8,0),1,1))) -> 332.02 | G80: =IF(A80>$B$30,NA(),IF(A80>$A$8,"",OFFSET(InputPriceData!$F$15,CalculationsAndCharts!$A80+$A$11,IF($C$5,8,0),1,1))) -> 335.75 | H80: -2.71 | J80: 0.019 | K80: -0.9920382166 | M80: -0.05309090909 | N80: -0.5060799074 | P80: -0.08236541159 | Q80: -0.3753746543 | S80: -0.06229283588 | T80: -0.5196927825 | U80: 0.019 | V80: -0.05309090909 | W80: -0.08236541159 | X80: -0.06229283588 | AX80: 91473000
A81: 49 | B81: =IF(A81>$B$30,NA(),IF($A81>$A$8,"",OFFSET(InputPriceData!$B$15,$A81+$A$11,0,1,1))) -> 2020-10-23 | C81: =IF(A81>$B$30,NA(),IF($A81>$A$8,"",OFFSET(InputPriceData!$G$15,CalculationsAndCharts!$A81+$A$11,IF($C$5,8,0),1,1))) -> 49143900 | D81: =IF(A81>$B$30,NA(),IF(A81>$A$8,"",OFFSET(InputPriceData!$C$15,CalculationsAndCharts!$A81+$A$11,IF($C$5,8,0),1,1))) -> 342.22 | E81: =IF(A81>$B$30,NA(),IF(A81>$A$8,"",OFFSET(InputPriceData!$D$15,CalculationsAndCharts!$A81+$A$11,IF($C$5,8,0),1,1))) -> 342.28 | F81: =IF(A81>$B$30,NA(),IF(A81>$A$8,"",OFFSET(InputPriceData!$E$15,CalculationsAndCharts!$A81+$A$11,IF($C$5,8,0),1,1))) -> 339.45 | G81: =IF(A81>$B$30,NA(),IF(A81>$A$8,"",OFFSET(InputPriceData!$F$15,CalculationsAndCharts!$A81+$A$11,IF($C$5,8,0),1,1))) -> 342.07 | H81: -0.15 | J81: 0.3305 | K81: -0.1003184713 | M81: 0.1058181818 | N81: -0.4852345107 | P81: 0.03550222987 | Q81: -0.5052264348 | S81: 0.1008906978 | T81: -0.5189691104 | U81: 0.3305 | V81: 0.1058181818 | W81: 0.03550222987 | X81: 0.1008906978 | AX81: 49143900
A82: 50 | B82: =IF(A82>$B$30,NA(),IF($A82>$A$8,"",OFFSET(InputPriceData!$B$15,$A82+$A$11,0,1,1))) -> 2020-10-22 | C82: =IF(A82>$B$30,NA(),IF($A82>$A$8,"",OFFSET(InputPriceData!$G$15,CalculationsAndCharts!$A82+$A$11,IF($C$5,8,0),1,1))) -> 55399300 | D82: =IF(A82>$B$30,NA(),IF(A82>$A$8,"",OFFSET(InputPriceData!$C$15,CalculationsAndCharts!$A82+$A$11,IF($C$5,8,0),1,1))) -> 339.28 | E82: =IF(A82>$B$30,NA(),IF(A82>$A$8,"",OFFSET(InputPriceData!$D$15,CalculationsAndCharts!$A82+$A$11,IF($C$5,8,0),1,1))) -> 341.53 | F82: =IF(A82>$B$30,NA(),IF(A82>$A$8,"",OFFSET(InputPriceData!$E$15,CalculationsAndCharts!$A82+$A$11,IF($C$5,8,0),1,1))) -> 336.99 | G82: =IF(A82>$B$30,NA(),IF(A82>$A$8,"",OFFSET(InputPriceData!$F$15,CalculationsAndCharts!$A82+$A$11,IF($C$5,8,0),1,1))) -> 340.91 | H82: 1.63 | J82: 0.362 | K82: 1.205414013 | M82: 0.2581818182 | N82: -0.4826288361 | P82: 0.1941433304 | Q82: -0.5280773001 | S82: 0.2638469985 | T82: -0.5475929578 | U82: 0.362 | V82: 0.2581818182 | W82: 0.1941433304 | X82: 0.2638469985 | AW82: 55399300
A83: 51 | B83: =IF(A83>$B$30,NA(),IF($A83>$A$8,"",OFFSET(InputPriceData!$B$15,$A83+$A$11,0,1,1))) -> 2020-10-21 | C83: =IF(A83>$B$30,NA(),IF($A83>$A$8,"",OFFSET(InputPriceData!$G$15,CalculationsAndCharts!$A83+$A$11,IF($C$5,8,0),1,1))) -> 63575000 | D83: =IF(A83>$B$30,NA(),IF(A83>$A$8,"",OFFSET(InputPriceData!$C$15,CalculationsAndCharts!$A83+$A$11,IF($C$5,8,0),1,1))) -> 339.65 | E83: =IF(A83>$B$30,NA(),IF(A83>$A$8,"",OFFSET(InputPriceData!$D$15,CalculationsAndCharts!$A83+$A$11,IF($C$5,8,0),1,1))) -> 341.96 | F83: =IF(A83>$B$30,NA(),IF(A83>$A$8,"",OFFSET(InputPriceData!$E$15,CalculationsAndCharts!$A83+$A$11,IF($C$5,8,0),1,1))) -> 338.73 | G83: =IF(A83>$B$30,NA(),IF(A83>$A$8,"",OFFSET(InputPriceData!$F$15,CalculationsAndCharts!$A83+$A$11,IF($C$5,8,0),1,1))) -> 339.05 | H83: -0.6 | J83: -0.0165 | K83: -0.2866242038 | M83: 0.4097272727 | N83: -0.1910828025 | P83: 0.3599596027 | Q83: -0.2257000193 | S83: 0.4357911872 | T83: -0.4777705092 | U83: -0.0165 | V83: 0.4097272727 | W83: 0.3599596027 | X83: 0.4357911872 | AX83: 63575000
A84: 52 | B84: =IF(A84>$B$30,NA(),IF($A84>$A$8,"",OFFSET(InputPriceData!$B$15,$A84+$A$11,0,1,1))) -> 2020-10-20 | C84: =IF(A84>$B$30,NA(),IF($A84>$A$8,"",OFFSET(InputPriceData!$G$15,CalculationsAndCharts!$A84+$A$11,IF($C$5,8,0),1,1))) -> 60051900 | D84: =IF(A84>$B$30,NA(),IF(A84>$A$8,"",OFFSET(InputPriceData!$C$15,CalculationsAndCharts!$A84+$A$11,IF($C$5,8,0),1,1))) -> 339.77 | E84: =IF(A84>$B$30,NA(),IF(A84>$A$8,"",OFFSET(InputPriceData!$D$15,CalculationsAndCharts!$A84+$A$11,IF($C$5,8,0),1,1))) -> 343.16 | F84: =IF(A84>$B$30,NA(),IF(A84>$A$8,"",OFFSET(InputPriceData!$E$15,CalculationsAndCharts!$A84+$A$11,IF($C$5,8,0),1,1))) -> 338.96 | G84: =IF(A84>$B$30,NA(),IF(A84>$A$8,"",OFFSET(InputPriceData!$F$15,CalculationsAndCharts!$A84+$A$11,IF($C$5,8,0),1,1))) -> 339.69 | H84: -0.08 | J84: 0.0735 | K84: -1.246815287 | M84: 0.4697272727 | N84: -0.290387956 | P84: 0.4308294087 | Q84: -0.2952500798 | S84: 0.5858111271 | T84: -0.315099419 | U84: 0.0735 | V84: 0.4697272727 | W84: 0.4308294087 | X84: 0.5858111271 | AX84: 60051900
A85: 53 | B85: =IF(A85>$B$30,NA(),IF($A85>$A$8,"",OFFSET(InputPriceData!$B$15,$A85+$A$11,0,1,1))) -> 2020-10-19 | C85: =IF(A85>$B$30,NA(),IF($A85>$A$8,"",OFFSET(InputPriceData!$G$15,CalculationsAndCharts!$A85+$A$11,IF($C$5,8,0),1,1))) -> 68425600 | D85: =IF(A85>$B$30,NA(),IF(A85>$A$8,"",OFFSET(InputPriceData!$C$15,CalculationsAndCharts!$A85+$A$11,IF($C$5,8,0),1,1))) -> 344.91 | E85: =IF(A85>$B$30,NA(),IF(A85>$A$8,"",OFFSET(InputPriceData!$D$15,CalculationsAndCharts!$A85+$A$11,IF($C$5,8,0),1,1))) -> 345.58 | F85: =IF(A85>$B$30,NA(),IF(A85>$A$8,"",OFFSET(InputPriceData!$E$15,CalculationsAndCharts!$A85+$A$11,IF($C$5,8,0),1,1))) -> 337.38 | G85: =IF(A85>$B$30,NA(),IF(A85>$A$8,"",OFFSET(InputPriceData!$F$15,CalculationsAndCharts!$A85+$A$11,IF($C$5,8,0),1,1))) -> 338.34 | H85: -6.57 | J85: 0.465 | K85: 0.4792993631 | M85: 0.5609090909 | N85: -0.3610306891 | P85: 0.5235379338 | Q85: -0.3388641553 | S85: 0.6847523447 | T85: -0.1490896788 | U85: 0.465 | V85: 0.5609090909 | W85: 0.5235379338 | X85: 0.6847523447 | AX85: 68425600
A86: 54 | B86: =IF(A86>$B$30,NA(),IF($A86>$A$8,"",OFFSET(InputPriceData!$B$15,$A86+$A$11,0,1,1))) -> 2020-10-16 | C86: =IF(A86>$B$30,NA(),IF($A86>$A$8,"",OFFSET(InputPriceData!$G$15,CalculationsAndCharts!$A86+$A$11,IF($C$5,8,0),1,1))) -> 89501900 | D86: =IF(A86>$B$30,NA(),IF(A86>$A$8,"",OFFSET(InputPriceData!$C$15,CalculationsAndCharts!$A86+$A$11,IF($C$5,8,0),1,1))) -> 345.22 | E86: =IF(A86>$B$30,NA(),IF(A86>$A$8,"",OFFSET(InputPriceData!$D$15,CalculationsAndCharts!$A86+$A$11,IF($C$5,8,0),1,1))) -> 346.99 | F86: =IF(A86>$B$30,NA(),IF(A86>$A$8,"",OFFSET(InputPriceData!$E$15,CalculationsAndCharts!$A86+$A$11,IF($C$5,8,0),1,1))) -> 343.38 | G86: =IF(A86>$B$30,NA(),IF(A86>$A$8,"",OFFSET(InputPriceData!$F$15,CalculationsAndCharts!$A86+$A$11,IF($C$5,8,0),1,1))) -> 343.56 | H86: -1.66 | J86: 0.3145 | K86: 0.2388535032 | M86: 0.6742727273 | N86: 0.131731326 | P86: 0.6299412785 | Q86: 0.1605274739 | S86: 0.7315665038 | T86: 0.008337775048 | U86: 0.3145 | V86: 0.6742727273 | W86: 0.6299412785 | X86: 0.7315665038 | AX86: 89501900
A87: 55 | B87: =IF(A87>$B$30,NA(),IF($A87>$A$8,"",OFFSET(InputPriceData!$B$15,$A87+$A$11,0,1,1))) -> 2020-10-15 | C87: =IF(A87>$B$30,NA(),IF($A87>$A$8,"",OFFSET(InputPriceData!$G$15,CalculationsAndCharts!$A87+$A$11,IF($C$5,8,0),1,1))) -> 60357700 | D87: =IF(A87>$B$30,NA(),IF(A87>$A$8,"",OFFSET(InputPriceData!$C$15,CalculationsAndCharts!$A87+$A$11,IF($C$5,8,0),1,1))) -> 340.02 | E87: =IF(A87>$B$30,NA(),IF(A87>$A$8,"",OFFSET(InputPriceData!$D$15,CalculationsAndCharts!$A87+$A$11,IF($C$5,8,0),1,1))) -> 344.29 | F87: =IF(A87>$B$30,NA(),IF(A87>$A$8,"",OFFSET(InputPriceData!$E$15,CalculationsAndCharts!$A87+$A$11,IF($C$5,8,0),1,1))) -> 339.45 | G87: =IF(A87>$B$30,NA(),IF(A87>$A$8,"",OFFSET(InputPriceData!$F$15,CalculationsAndCharts!$A87+$A$11,IF($C$5,8,0),1,1))) -> 343.77 | H87: 3.75 | J87: 0.2395 | K87: -0.02229299363 | M87: 0.6329090909 | N87: 0.157209033 | P87: 0.5795356517 | Q87: 0.1702882383 | S87: 0.7289484425 | T87: 0.125879401 | U87: 0.2395 | V87: 0.6329090909 | W87: 0.5795356517 | X87: 0.7289484425 | AW87: 60357700
A88: 56 | B88: =IF(A88>$B$30,NA(),IF($A88>$A$8,"",OFFSET(InputPriceData!$B$15,$A88+$A$11,0,1,1))) -> 2020-10-14 | C88: =IF(A88>$B$30,NA(),IF($A88>$A$8,"",OFFSET(InputPriceData!$G$15,CalculationsAndCharts!$A88+$A$11,IF($C$5,8,0),1,1))) -> 57727900 | D88: =IF(A88>$B$30,NA(),IF(A88>$A$8,"",OFFSET(InputPriceData!$C$15,CalculationsAndCharts!$A88+$A$11,IF($C$5,8,0),1,1))) -> 346.99 | E88: =IF(A88>$B$30,NA(),IF(A88>$A$8,"",OFFSET(InputPriceData!$D$15,CalculationsAndCharts!$A88+$A$11,IF($C$5,8,0),1,1))) -> 348.15 | F88: =IF(A88>$B$30,NA(),IF(A88>$A$8,"",OFFSET(InputPriceData!$E$15,CalculationsAndCharts!$A88+$A$11,IF($C$5,8,0),1,1))) -> 343.41 | G88: =IF(A88>$B$30,NA(),IF(A88>$A$8,"",OFFSET(InputPriceData!$F$15,CalculationsAndCharts!$A88+$A$11,IF($C$5,8,0),1,1))) -> 344.2 | H88: -2.79 | J88: 0.2465 | K88: -0.1910828025 | M88: 0.5835454545 | N88: 0.1580775912 | P88: 0.5260651449 | Q88: 0.1580240257 | S88: 0.6894223106 | T88: 0.2490125097 | U88: 0.2465 | V88: 0.5835454545 | W88: 0.5260651449 | X88: 0.6894223106 | AX88: 57727900
A89: 57 | B89: =IF(A89>$B$30,NA(),IF($A89>$A$8,"",OFFSET(InputPriceData!$B$15,$A89+$A$11,0,1,1))) -> 2020-10-13 | C89: =IF(A89>$B$30,NA(),IF($A89>$A$8,"",OFFSET(InputPriceData!$G$15,CalculationsAndCharts!$A89+$A$11,IF($C$5,8,0),1,1))) -> 73255500 | D89: =IF(A89>$B$30,NA(),IF(A89>$A$8,"",OFFSET(InputPriceData!$C$15,CalculationsAndCharts!$A89+$A$11,IF($C$5,8,0),1,1))) -> 348.5 | E89: =IF(A89>$B$30,NA(),IF(A89>$A$8,"",OFFSET(InputPriceData!$D$15,CalculationsAndCharts!$A89+$A$11,IF($C$5,8,0),1,1))) -> 348.69 | F89: =IF(A89>$B$30,NA(),IF(A89>$A$8,"",OFFSET(InputPriceData!$E$15,CalculationsAndCharts!$A89+$A$11,IF($C$5,8,0),1,1))) -> 345.34 | G89: =IF(A89>$B$30,NA(),IF(A89>$A$8,"",OFFSET(InputPriceData!$F$15,CalculationsAndCharts!$A89+$A$11,IF($C$5,8,0),1,1))) -> 346.37 | H89: -2.13 | J89: 0.3065 | K89: 0.2961783439 | M89: 0.5339090909 | N89: 0.2712796757 | P89: 0.4764456008 | Q89: 0.3116065062 | S89: 0.6112323825 | T89: 0.3806080963 | U89: 0.3065 | V89: 0.5339090909 | W89: 0.4764456008 | X89: 0.6112323825 | AX89: 73255500
A90: 58 | B90: =IF(A90>$B$30,NA(),IF($A90>$A$8,"",OFFSET(InputPriceData!$B$15,$A90+$A$11,0,1,1))) -> 2020-10-12 | C90: =IF(A90>$B$30,NA(),IF($A90>$A$8,"",OFFSET(InputPriceData!$G$15,CalculationsAndCharts!$A90+$A$11,IF($C$5,8,0),1,1))) -> 80388500 | D90: =IF(A90>$B$30,NA(),IF(A90>$A$8,"",OFFSET(InputPriceData!$C$15,CalculationsAndCharts!$A90+$A$11,IF($C$5,8,0),1,1))) -> 345.84 | E90: =IF(A90>$B$30,NA(),IF(A90>$A$8,"",OFFSET(InputPriceData!$D$15,CalculationsAndCharts!$A90+$A$11,IF($C$5,8,0),1,1))) -> 350.22 | F90: =IF(A90>$B$30,NA(),IF(A90>$A$8,"",OFFSET(InputPriceData!$E$15,CalculationsAndCharts!$A90+$A$11,IF($C$5,8,0),1,1))) -> 345.31 | G90: =IF(A90>$B$30,NA(),IF(A90>$A$8,"",OFFSET(InputPriceData!$F$15,CalculationsAndCharts!$A90+$A$11,IF($C$5,8,0),1,1))) -> 348.65 | H90: 2.81 | J90: 0.2135 | K90: 0.4792993631 | M90: 0.4487272727 | N90: 0.2872032426 | P90: 0.3786011579 | Q90: 0.3979381406 | S90: 0.4917214403 | T90: 0.4451016439 | U90: 0.2135 | V90: 0.4487272727 | W90: 0.3786011579 | X90: 0.4917214403 | AW90: 80388500
A91: 59 | B91: =IF(A91>$B$30,NA(),IF($A91>$A$8,"",OFFSET(InputPriceData!$B$15,$A91+$A$11,0,1,1))) -> 2020-10-09 | C91: =IF(A91>$B$30,NA(),IF($A91>$A$8,"",OFFSET(InputPriceData!$G$15,CalculationsAndCharts!$A91+$A$11,IF($C$5,8,0),1,1))) -> 59528600 | D91: =IF(A91>$B$30,NA(),IF(A91>$A$8,"",OFFSET(InputPriceData!$C$15,CalculationsAndCharts!$A91+$A$11,IF($C$5,8,0),1,1))) -> 341.85 | E91: =IF(A91>$B$30,NA(),IF(A91>$A$8,"",OFFSET(InputPriceData!$D$15,CalculationsAndCharts!$A91+$A$11,IF($C$5,8,0),1,1))) -> 343.62 | F91: =IF(A91>$B$30,NA(),IF(A91>$A$8,"",OFFSET(InputPriceData!$E$15,CalculationsAndCharts!$A91+$A$11,IF($C$5,8,0),1,1))) -> 341.19 | G91: =IF(A91>$B$30,NA(),IF(A91>$A$8,"",OFFSET(InputPriceData!$F$15,CalculationsAndCharts!$A91+$A$11,IF($C$5,8,0),1,1))) -> 343.13 | H91: 1.28 | J91: 0.063 | K91: 1.390127389 | M91: 0.3585454545 | N91: 0.4597568037 | P91: 0.2536485818 | Q91: 0.3857213397 | S91: 0.3519595241 | T91: 0.4798827336 | U91: 0.063 | V91: 0.3585454545 | W91: 0.2536485818 | X91: 0.3519595241 | AW91: 59528600
A92: 60 | B92: =IF(A92>$B$30,NA(),IF($A92>$A$8,"",OFFSET(InputPriceData!$B$15,$A92+$A$11,0,1,1))) -> 2020-10-08 | C92: =IF(A92>$B$30,NA(),IF($A92>$A$8,"",OFFSET(InputPriceData!$G$15,CalculationsAndCharts!$A92+$A$11,IF($C$5,8,0),1,1))) -> 45242500 | D92: =IF(A92>$B$30,NA(),IF(A92>$A$8,"",OFFSET(InputPriceData!$C$15,CalculationsAndCharts!$A92+$A$11,IF($C$5,8,0),1,1))) -> 339.17 | E92: =IF(A92>$B$30,NA(),IF(A92>$A$8,"",OFFSET(InputPriceData!$D$15,CalculationsAndCharts!$A92+$A$11,IF($C$5,8,0),1,1))) -> 340.16 | F92: =IF(A92>$B$30,NA(),IF(A92>$A$8,"",OFFSET(InputPriceData!$E$15,CalculationsAndCharts!$A92+$A$11,IF($C$5,8,0),1,1))) -> 338.19 | G92: =IF(A92>$B$30,NA(),IF(A92>$A$8,"",OFFSET(InputPriceData!$F$15,CalculationsAndCharts!$A92+$A$11,IF($C$5,8,0),1,1))) -> 340.09 | H92: 0.92 | J92: -0.3735 | K92: 0.0652866242 | M92: 0.2141818182 | N92: 0.8902721482 | P92: 0.1325320811 | Q92: 0.6560771185 | S92: 0.2012763458 | T92: 0.5638565078 | U92: -0.3735 | V92: 0.2141818182 | W92: 0.1325320811 | X92: 0.2012763458 | AW92: 45242500
A93: 61 | B93: =IF(A93>$B$30,NA(),IF($A93>$A$8,"",OFFSET(InputPriceData!$B$15,$A93+$A$11,0,1,1))) -> 2020-10-07 | C93: =IF(A93>$B$30,NA(),IF($A93>$A$8,"",OFFSET(InputPriceData!$G$15,CalculationsAndCharts!$A93+$A$11,IF($C$5,8,0),1,1))) -> 56999600 | D93: =IF(A93>$B$30,NA(),IF(A93>$A$8,"",OFFSET(InputPriceData!$C$15,CalculationsAndCharts!$A93+$A$11,IF($C$5,8,0),1,1))) -> 334.49 | E93: =IF(A93>$B$30,NA(),IF(A93>$A$8,"",OFFSET(InputPriceData!$D$15,CalculationsAndCharts!$A93+$A$11,IF($C$5,8,0),1,1))) -> 337.96 | F93: =IF(A93>$B$30,NA(),IF(A93>$A$8,"",OFFSET(InputPriceData!$E$15,CalculationsAndCharts!$A93+$A$11,IF($C$5,8,0),1,1))) -> 334.46 | G93: =IF(A93>$B$30,NA(),IF(A93>$A$8,"",OFFSET(InputPriceData!$F$15,CalculationsAndCharts!$A93+$A$11,IF($C$5,8,0),1,1))) -> 337.1 | H93: 2.61 | J93: -0.394 | K93: -0.2340764331 | M93: -0.06536363636 | N93: 0.628836132 | P93: -0.07347613414 | Q93: 0.4900240431 | S93: 0.02422540231 | T93: 0.6503491732 | U93: -0.394 | V93: -0.06536363636 | W93: -0.07347613414 | X93: 0.02422540231 | AW93: 56999600
A94: 62 | B94: =IF(A94>$B$30,NA(),IF($A94>$A$8,"",OFFSET(InputPriceData!$B$15,$A94+$A$11,0,1,1))) -> 2020-10-06 | C94: =IF(A94>$B$30,NA(),IF($A94>$A$8,"",OFFSET(InputPriceData!$G$15,CalculationsAndCharts!$A94+$A$11,IF($C$5,8,0),1,1))) -> 90128900 | D94: =IF(A94>$B$30,NA(),IF(A94>$A$8,"",OFFSET(InputPriceData!$C$15,CalculationsAndCharts!$A94+$A$11,IF($C$5,8,0),1,1))) -> 336.26 | E94: =IF(A94>$B$30,NA(),IF(A94>$A$8,"",OFFSET(InputPriceData!$D$15,CalculationsAndCharts!$A94+$A$11,IF($C$5,8,0),1,1))) -> 338.5 | F94: =IF(A94>$B$30,NA(),IF(A94>$A$8,"",OFFSET(InputPriceData!$E$15,CalculationsAndCharts!$A94+$A$11,IF($C$5,8,0),1,1))) -> 330.79 | G94: =IF(A94>$B$30,NA(),IF(A94>$A$8,"",OFFSET(InputPriceData!$F$15,CalculationsAndCharts!$A94+$A$11,IF($C$5,8,0),1,1))) -> 331.34 | H94: -4.92 | J94: -0.3205 | K94: 1.141719745 | M94: -0.2628181818 | N94: 0.4664157499 | P94: -0.2273436837 | Q94: 0.4910792198 | S94: -0.1799842381 | T94: 0.7112607968 | U94: -0.3205 | V94: -0.2628181818 | W94: -0.2273436837 | X94: -0.1799842381 | AX94: 90128900
A95: 63 | B95: =IF(A95>$B$30,NA(),IF($A95>$A$8,"",OFFSET(InputPriceData!$B$15,$A95+$A$11,0,1,1))) -> 2020-10-05 | C95: =IF(A95>$B$30,NA(),IF($A95>$A$8,"",OFFSET(InputPriceData!$G$15,CalculationsAndCharts!$A95+$A$11,IF($C$5,8,0),1,1))) -> 45713100 | D95: =IF(A95>$B$30,NA(),IF(A95>$A$8,"",OFFSET(InputPriceData!$C$15,CalculationsAndCharts!$A95+$A$11,IF($C$5,8,0),1,1))) -> 332.45 | E95: =IF(A95>$B$30,NA(),IF(A95>$A$8,"",OFFSET(InputPriceData!$D$15,CalculationsAndCharts!$A95+$A$11,IF($C$5,8,0),1,1))) -> 336.31 | F95: =IF(A95>$B$30,NA(),IF(A95>$A$8,"",OFFSET(InputPriceData!$E$15,CalculationsAndCharts!$A95+$A$11,IF($C$5,8,0),1,1))) -> 332.4 | G95: =IF(A95>$B$30,NA(),IF(A95>$A$8,"",OFFSET(InputPriceData!$F$15,CalculationsAndCharts!$A95+$A$11,IF($C$5,8,0),1,1))) -> 336.11 | H95: 3.66 | J95: -0.679 | K95: 1.982484076 | M95: -0.4092727273 | N95: 0.7967573827 | P95: -0.3815425587 | Q95: 0.8102804046 | S95: -0.4033201283 | T95: 0.7403032365 | U95: -0.679 | V95: -0.4092727273 | W95: -0.3815425587 | X95: -0.4033201283 | AW95: 45713100
A96: 64 | B96: =IF(A96>$B$30,NA(),IF($A96>$A$8,"",OFFSET(InputPriceData!$B$15,$A96+$A$11,0,1,1))) -> 2020-10-02 | C96: =IF(A96>$B$30,NA(),IF($A96>$A$8,"",OFFSET(InputPriceData!$G$15,CalculationsAndCharts!$A96+$A$11,IF($C$5,8,0),1,1))) -> 89431100 | D96: =IF(A96>$B$30,NA(),IF(A96>$A$8,"",OFFSET(InputPriceData!$C$15,CalculationsAndCharts!$A96+$A$11,IF($C$5,8,0),1,1))) -> 328.14 | E96: =IF(A96>$B$30,NA(),IF(A96>$A$8,"",OFFSET(InputPriceData!$D$15,CalculationsAndCharts!$A96+$A$11,IF($C$5,8,0),1,1))) -> 333.39 | F96: =IF(A96>$B$30,NA(),IF(A96>$A$8,"",OFFSET(InputPriceData!$E$15,CalculationsAndCharts!$A96+$A$11,IF($C$5,8,0),1,1))) -> 327.64 | G96: =IF(A96>$B$30,NA(),IF(A96>$A$8,"",OFFSET(InputPriceData!$F$15,CalculationsAndCharts!$A96+$A$11,IF($C$5,8,0),1,1))) -> 330.26 | H96: 2.12 | J96: -1.3015 | K96: -0.5796178344 | M96: -0.6594545455 | N96: 0.8911407064 | P96: -0.6359706057 | Q96: 1.029819602 | S96: -0.6357753445 | T96: 0.7883244622 | U96: -1.3015 | V96: -0.6594545455 | W96: -0.6359706057 | X96: -0.6357753445 | AW96: 89431100
A97: 65 | B97: =IF(A97>$B$30,NA(),IF($A97>$A$8,"",OFFSET(InputPriceData!$B$15,$A97+$A$11,0,1,1))) -> 2020-10-01 | C97: =IF(A97>$B$30,NA(),IF($A97>$A$8,"",OFFSET(InputPriceData!$G$15,CalculationsAndCharts!$A97+$A$11,IF($C$5,8,0),1,1))) -> 88698700 | D97: =IF(A97>$B$30,NA(),IF(A97>$A$8,"",OFFSET(InputPriceData!$C$15,CalculationsAndCharts!$A97+$A$11,IF($C$5,8,0),1,1))) -> 334.07 | E97: =IF(A97>$B$30,NA(),IF(A97>$A$8,"",OFFSET(InputPriceData!$D$15,CalculationsAndCharts!$A97+$A$11,IF($C$5,8,0),1,1))) -> 335.1 | F97: =IF(A97>$B$30,NA(),IF(A97>$A$8,"",OFFSET(InputPriceData!$E$15,CalculationsAndCharts!$A97+$A$11,IF($C$5,8,0),1,1))) -> 331.41 | G97: =IF(A97>$B$30,NA(),IF(A97>$A$8,"",OFFSET(InputPriceData!$F$15,CalculationsAndCharts!$A97+$A$11,IF($C$5,8,0),1,1))) -> 333.42 | H97: -0.65 | J97: -1.1195 | K97: =IF(A97<=$K$30,$D$17*(J97-J98),NA()) -> -0.0923566879 | L97: =IF($A97>$E$17+1,NA(),IF($A97=$E$17+1,SUM(OFFSET(L$33,0,0,$A$17,1)),IF($A97=$E$17,"-- Coef Sum--",IF($A97<$C$17,$A97,IF($A97=$C$17,$A97,$E$17-$A97))))) ->  | M97: =IF(A97<=$M$30,SUMPRODUCT(OFFSET($H97,0,0,$A$17,1),OFFSET($L$33,0,0,$A$17,1))/OFFSET($L$33,$E$17,0,1,1),NA()) -> -0.9392727273 | N97: =IF($A97<=$N$30,$D$17*(M97-M98),NA()) -> 0.6731325999 | O97: =IF($A97>$E$17+1,NA(),IF($A97=$E$17+1,SUM(OFFSET($O$33,0,0,$A$17,1)),IF(A97=$E$17,"-- SUM --",SIN(RADIANS($A$20+(180-$C$20)*($A97-1)/$F$17))))) ->  | P97: =IF(A97<=P$30,SUMPRODUCT(OFFSET(O$33,0,0,$A$17,1),OFFSET($H97,0,0,$A$17,1))/OFFSET(O$33,$E$17,0,1,1),NA()) -> -0.9593339608 | Q97: =IF($A97<=Q$30,$D$17*(P97-P98),NA()) -> 0.6842871807 | R97: =IF($A97>$E$17+1,NA(),IF($A97=$E$17+1,SUM(OFFSET(R$33,0,0,$A$17,1)),IF($A97=$E$17,"-- Coef Sum--",1-COS(RADIANS(360*$A97/$E$17))))) ->  | S97: =IF($A97<=S$30,SUMPRODUCT(OFFSET(R$33,0,0,$A$17,1),OFFSET($H97,0,0,$A$17,1))/OFFSET(R$33,$E$17,0,1,1),NA()) -> -0.8833092257 | T97: =IF($A97<=T$30,$D$17*(S97-S98),NA()) -> 0.8546958372 | U97: =IF($R$12=1,J97,K97) -> -1.1195 | V97: =IF($R$12=1,M97,N97) -> -0.9392727273 | W97: =IF($R$12=1,P97,Q97) -> -0.9593339608 | X97: =IF($R$12=1,S97,T97) -> -0.8833092257 | AW97: =IF(G97>=D97,C97,NA()) ->  | AX97: =IF(G97<D97,C97,NA()) -> 88698700
A98: 66 | B98: =IF(A98>$B$30,NA(),IF($A98>$A$8,"",OFFSET(InputPriceData!$B$15,$A98+$A$11,0,1,1))) -> 2020-09-30 | C98: =IF(A98>$B$30,NA(),IF($A98>$A$8,"",OFFSET(InputPriceData!$G$15,CalculationsAndCharts!$A98+$A$11,IF($C$5,8,0),1,1))) -> 104081100 | D98: =IF(A98>$B$30,NA(),IF(A98>$A$8,"",OFFSET(InputPriceData!$C$15,CalculationsAndCharts!$A98+$A$11,IF($C$5,8,0),1,1))) -> 329.52 | E98: =IF(A98>$B$30,NA(),IF(A98>$A$8,"",OFFSET(InputPriceData!$D$15,CalculationsAndCharts!$A98+$A$11,IF($C$5,8,0),1,1))) -> 334.66 | F98: =IF(A98>$B$30,NA(),IF(A98>$A$8,"",OFFSET(InputPriceData!$E$15,CalculationsAndCharts!$A98+$A$11,IF($C$5,8,0),1,1))) -> 329.31 | G98: =IF(A98>$B$30,NA(),IF(A98>$A$8,"",OFFSET(InputPriceData!$F$15,CalculationsAndCharts!$A98+$A$11,IF($C$5,8,0),1,1))) -> 331.3 | H98: =IF(A98<=$H$30,G98-D98,NA()) -> 1.78 | I98: =IF($A98>$E$17+1,NA(),IF($A98=$E$17+1,SUM(OFFSET($I$33,0,0,$A$17,1)),IF(A98=$E$17,"-- SUM --",1))) ->  | J98: =IF(A98<=$J$30,SUMPRODUCT(OFFSET(H98,1,0,$A$17,1),OFFSET($I$33,0,0,$A$17,1))/OFFSET($I$33,$E$17,0,1,1),NA()) -> -1.0905 | K98: -0.08917197452 | M98: -1.150636364 | N98: 0.6120440069 | P98: -1.174200136 | Q98: 0.5647555951 | S98: -1.151683719 | T98: 0.8189821661 | U98: -1.0905 | V98: -1.150636364 | W98: -1.174200136 | X98: -1.151683719 | AW98: 104081100
A99: 67 | B99: =IF(A99>$B$30,NA(),IF($A99>$A$8,"",OFFSET(InputPriceData!$B$15,$A99+$A$11,0,1,1))) -> 2020-09-29 | C99: =IF(A99>$B$30,NA(),IF($A99>$A$8,"",OFFSET(InputPriceData!$G$15,CalculationsAndCharts!$A99+$A$11,IF($C$5,8,0),1,1))) -> 51304000 | D99: =IF(A99>$B$30,NA(),IF(A99>$A$8,"",OFFSET(InputPriceData!$C$15,CalculationsAndCharts!$A99+$A$11,IF($C$5,8,0),1,1))) -> 330.39 | E99: =IF(A99>$B$30,NA(),IF(A99>$A$8,"",OFFSET(InputPriceData!$D$15,CalculationsAndCharts!$A99+$A$11,IF($C$5,8,0),1,1))) -> 331.18 | F99: =IF(A99>$B$30,NA(),IF(A99>$A$8,"",OFFSET(InputPriceData!$E$15,CalculationsAndCharts!$A99+$A$11,IF($C$5,8,0),1,1))) -> 328.06 | G99: =IF(A99>$B$30,NA(),IF(A99>$A$8,"",OFFSET(InputPriceData!$F$15,CalculationsAndCharts!$A99+$A$11,IF($C$5,8,0),1,1))) -> 328.8 | H99: -1.59 | J99: -1.0625 | K99: -0.02547770701 | M99: -1.342818182 | N99: 0.4866821077 | P99: -1.351533392 | Q99: 0.4463216443 | S99: -1.408844119 | T99: 0.7091508319 | U99: -1.0625 | V99: -1.342818182 | W99: -1.351533392 | X99: -1.408844119 | AX99: 51304000
A100: 68 | B100: =IF(A100>$B$30,NA(),IF($A100>$A$8,"",OFFSET(InputPriceData!$B$15,$A100+$A$11,0,1,1))) -> 2020-09-28 | C100: =IF(A100>$B$30,NA(),IF($A100>$A$8,"",OFFSET(InputPriceData!$G$15,CalculationsAndCharts!$A100+$A$11,IF($C$5,8,0),1,1))) -> 64584600 | D100: =IF(A100>$B$30,NA(),IF(A100>$A$8,"",OFFSET(InputPriceData!$C$15,CalculationsAndCharts!$A100+$A$11,IF($C$5,8,0),1,1))) -> 329.64 | E100: =IF(A100>$B$30,NA(),IF(A100>$A$8,"",OFFSET(InputPriceData!$D$15,CalculationsAndCharts!$A100+$A$11,IF($C$5,8,0),1,1))) -> 331.37 | F100: =IF(A100>$B$30,NA(),IF(A100>$A$8,"",OFFSET(InputPriceData!$E$15,CalculationsAndCharts!$A100+$A$11,IF($C$5,8,0),1,1))) -> 328.59 | G100: =IF(A100>$B$30,NA(),IF(A100>$A$8,"",OFFSET(InputPriceData!$F$15,CalculationsAndCharts!$A100+$A$11,IF($C$5,8,0),1,1))) -> 330.6 | H100: 0.96 | J100: -1.0545 | K100: 0.9968152866 | M100: -1.495636364 | N100: 0.5008685582 | P100: -1.491678389 | Q100: 0.3626141601 | S100: -1.63151748 | T100: 0.536982086 | U100: -1.0545 | V100: -1.495636364 | W100: -1.491678389 | X100: -1.63151748 | AW100: 64584600
A101: 69 | B101: =IF(A101>$B$30,NA(),IF($A101>$A$8,"",OFFSET(InputPriceData!$B$15,$A101+$A$11,0,1,1))) -> 2020-09-25 | C101: =IF(A101>$B$30,NA(),IF($A101>$A$8,"",OFFSET(InputPriceData!$G$15,CalculationsAndCharts!$A101+$A$11,IF($C$5,8,0),1,1))) -> 71069400 | D101: =IF(A101>$B$30,NA(),IF(A101>$A$8,"",OFFSET(InputPriceData!$C$15,CalculationsAndCharts!$A101+$A$11,IF($C$5,8,0),1,1))) -> 319.12 | E101: =IF(A101>$B$30,NA(),IF(A101>$A$8,"",OFFSET(InputPriceData!$D$15,CalculationsAndCharts!$A101+$A$11,IF($C$5,8,0),1,1))) -> 326.04 | F101: =IF(A101>$B$30,NA(),IF(A101>$A$8,"",OFFSET(InputPriceData!$E$15,CalculationsAndCharts!$A101+$A$11,IF($C$5,8,0),1,1))) -> 318.19 | G101: =IF(A101>$B$30,NA(),IF(A101>$A$8,"",OFFSET(InputPriceData!$F$15,CalculationsAndCharts!$A101+$A$11,IF($C$5,8,0),1,1))) -> 325.2 | H101: 6.08 | J101: -1.3675 | K101: -0.08121019108 | M101: -1.652909091 | N101: 0.4557035321 | P101: -1.605539235 | Q101: 0.2671533376 | S101: -1.800129855 | T101: 0.3065222219 | U101: -1.3675 | V101: -1.652909091 | W101: -1.605539235 | X101: -1.800129855 | AW101: 71069400
A102: 70 | B102: =IF(A102>$B$30,NA(),IF($A102>$A$8,"",OFFSET(InputPriceData!$B$15,$A102+$A$11,0,1,1))) -> 2020-09-24 | C102: =IF(A102>$B$30,NA(),IF($A102>$A$8,"",OFFSET(InputPriceData!$G$15,CalculationsAndCharts!$A102+$A$11,IF($C$5,8,0),1,1))) -> 76681300 | D102: =IF(A102>$B$30,NA(),IF(A102>$A$8,"",OFFSET(InputPriceData!$C$15,CalculationsAndCharts!$A102+$A$11,IF($C$5,8,0),1,1))) -> 317.77 | E102: =IF(A102>$B$30,NA(),IF(A102>$A$8,"",OFFSET(InputPriceData!$D$15,CalculationsAndCharts!$A102+$A$11,IF($C$5,8,0),1,1))) -> 323.29 | F102: =IF(A102>$B$30,NA(),IF(A102>$A$8,"",OFFSET(InputPriceData!$E$15,CalculationsAndCharts!$A102+$A$11,IF($C$5,8,0),1,1))) -> 316.37 | G102: =IF(A102>$B$30,NA(),IF(A102>$A$8,"",OFFSET(InputPriceData!$F$15,CalculationsAndCharts!$A102+$A$11,IF($C$5,8,0),1,1))) -> 320.03 | H102: 2.26 | J102: -1.342 | K102: -1.393312102 | M102: -1.796 | N102: -0.07672264042 | P102: -1.689425383 | Q102: -0.1965750722 | S102: -1.896377833 | T102: 0.07880846872 | U102: -1.342 | V102: -1.796 | W102: -1.689425383 | X102: -1.896377833 | AW102: 76681300
A103: 71 | B103: =IF(A103>$B$30,NA(),IF($A103>$A$8,"",OFFSET(InputPriceData!$B$15,$A103+$A$11,0,1,1))) -> 2020-09-23 | C103: =IF(A103>$B$30,NA(),IF($A103>$A$8,"",OFFSET(InputPriceData!$G$15,CalculationsAndCharts!$A103+$A$11,IF($C$5,8,0),1,1))) -> 93112200 | D103: =IF(A103>$B$30,NA(),IF(A103>$A$8,"",OFFSET(InputPriceData!$C$15,CalculationsAndCharts!$A103+$A$11,IF($C$5,8,0),1,1))) -> 327.35 | E103: =IF(A103>$B$30,NA(),IF(A103>$A$8,"",OFFSET(InputPriceData!$D$15,CalculationsAndCharts!$A103+$A$11,IF($C$5,8,0),1,1))) -> 327.65 | F103: =IF(A103>$B$30,NA(),IF(A103>$A$8,"",OFFSET(InputPriceData!$E$15,CalculationsAndCharts!$A103+$A$11,IF($C$5,8,0),1,1))) -> 318.64 | G103: =IF(A103>$B$30,NA(),IF(A103>$A$8,"",OFFSET(InputPriceData!$F$15,CalculationsAndCharts!$A103+$A$11,IF($C$5,8,0),1,1))) -> 319.18 | H103: -8.17 | J103: -0.9045 | K103: 0.148089172 | M103: -1.771909091 | N103: -0.3213665316 | P103: -1.62770081 | Q103: -0.4592268633 | S103: -1.921123692 | T103: -0.1222875476 | U103: -0.9045 | V103: -1.771909091 | W103: -1.62770081 | X103: -1.921123692 | AX103: 93112200
A104: 72 | B104: =IF(A104>$B$30,NA(),IF($A104>$A$8,"",OFFSET(InputPriceData!$B$15,$A104+$A$11,0,1,1))) -> 2020-09-22 | C104: =IF(A104>$B$30,NA(),IF($A104>$A$8,"",OFFSET(InputPriceData!$G$15,CalculationsAndCharts!$A104+$A$11,IF($C$5,8,0),1,1))) -> 63612100 | D104: =IF(A104>$B$30,NA(),IF(A104>$A$8,"",OFFSET(InputPriceData!$C$15,CalculationsAndCharts!$A104+$A$11,IF($C$5,8,0),1,1))) -> 325.04 | E104: =IF(A104>$B$30,NA(),IF(A104>$A$8,"",OFFSET(InputPriceData!$D$15,CalculationsAndCharts!$A104+$A$11,IF($C$5,8,0),1,1))) -> 327.35 | F104: =IF(A104>$B$30,NA(),IF(A104>$A$8,"",OFFSET(InputPriceData!$E$15,CalculationsAndCharts!$A104+$A$11,IF($C$5,8,0),1,1))) -> 322.36 | G104: =IF(A104>$B$30,NA(),IF(A104>$A$8,"",OFFSET(InputPriceData!$F$15,CalculationsAndCharts!$A104+$A$11,IF($C$5,8,0),1,1))) -> 326.76 | H104: 1.72 | J104: -0.951 | K104: -0.04458598726 | M104: -1.671 | N104: -0.1438911407 | P104: -1.483503575 | Q104: -0.2450163766 | S104: -1.882725402 | T104: -0.3615669102 | U104: -0.951 | V104: -1.671 | W104: -1.483503575 | X104: -1.882725402 | AW104: 63612100
A105: 73 | B105: =IF(A105>$B$30,NA(),IF($A105>$A$8,"",OFFSET(InputPriceData!$B$15,$A105+$A$11,0,1,1))) -> 2020-09-21 | C105: =IF(A105>$B$30,NA(),IF($A105>$A$8,"",OFFSET(InputPriceData!$G$15,CalculationsAndCharts!$A105+$A$11,IF($C$5,8,0),1,1))) -> 99450800 | D105: =IF(A105>$B$30,NA(),IF(A105>$A$8,"",OFFSET(InputPriceData!$C$15,CalculationsAndCharts!$A105+$A$11,IF($C$5,8,0),1,1))) -> 322.2 | E105: =IF(A105>$B$30,NA(),IF(A105>$A$8,"",OFFSET(InputPriceData!$D$15,CalculationsAndCharts!$A105+$A$11,IF($C$5,8,0),1,1))) -> 323.62 | F105: =IF(A105>$B$30,NA(),IF(A105>$A$8,"",OFFSET(InputPriceData!$E$15,CalculationsAndCharts!$A105+$A$11,IF($C$5,8,0),1,1))) -> 318.28 | G105: =IF(A105>$B$30,NA(),IF(A105>$A$8,"",OFFSET(InputPriceData!$F$15,CalculationsAndCharts!$A105+$A$11,IF($C$5,8,0),1,1))) -> 323.46 | H105: 1.26 | J105: -0.937 | K105: -1.202229299 | M105: -1.625818182 | N105: -0.4397799653 | P105: -1.406568433 | Q105: -0.4613777007 | S105: -1.769193392 | T105: -0.6278748749 | U105: -0.937 | V105: -1.625818182 | W105: -1.406568433 | X105: -1.769193392 | AW105: 99450800
A106: 74 | B106: =IF(A106>$B$30,NA(),IF($A106>$A$8,"",OFFSET(InputPriceData!$B$15,$A106+$A$11,0,1,1))) -> 2020-09-18 | C106: =IF(A106>$B$30,NA(),IF($A106>$A$8,"",OFFSET(InputPriceData!$G$15,CalculationsAndCharts!$A106+$A$11,IF($C$5,8,0),1,1))) -> 105877900 | D106: =IF(A106>$B$30,NA(),IF(A106>$A$8,"",OFFSET(InputPriceData!$C$15,CalculationsAndCharts!$A106+$A$11,IF($C$5,8,0),1,1))) -> 331.77 | E106: =IF(A106>$B$30,NA(),IF(A106>$A$8,"",OFFSET(InputPriceData!$D$15,CalculationsAndCharts!$A106+$A$11,IF($C$5,8,0),1,1))) -> 331.89 | F106: =IF(A106>$B$30,NA(),IF(A106>$A$8,"",OFFSET(InputPriceData!$E$15,CalculationsAndCharts!$A106+$A$11,IF($C$5,8,0),1,1))) -> 324.45 | G106: =IF(A106>$B$30,NA(),IF(A106>$A$8,"",OFFSET(InputPriceData!$F$15,CalculationsAndCharts!$A106+$A$11,IF($C$5,8,0),1,1))) -> 327.1 | H106: -4.67 | J106: -0.5595 | K106: 0.6433121019 | M106: -1.487727273 | N106: -0.9603358425 | P106: -1.261695835 | Q106: -0.7372501484 | S106: -1.572040681 | T106: -0.8480954277 | U106: -0.5595 | V106: -1.487727273 | W106: -1.261695835 | X106: -1.572040681 | AX106: 105877900
A107: 75 | B107: =IF(A107>$B$30,NA(),IF($A107>$A$8,"",OFFSET(InputPriceData!$B$15,$A107+$A$11,0,1,1))) -> 2020-09-17 | C107: =IF(A107>$B$30,NA(),IF($A107>$A$8,"",OFFSET(InputPriceData!$G$15,CalculationsAndCharts!$A107+$A$11,IF($C$5,8,0),1,1))) -> 91523300 | D107: =IF(A107>$B$30,NA(),IF(A107>$A$8,"",OFFSET(InputPriceData!$C$15,CalculationsAndCharts!$A107+$A$11,IF($C$5,8,0),1,1))) -> 328.66 | E107: =IF(A107>$B$30,NA(),IF(A107>$A$8,"",OFFSET(InputPriceData!$D$15,CalculationsAndCharts!$A107+$A$11,IF($C$5,8,0),1,1))) -> 332.74 | F107: =IF(A107>$B$30,NA(),IF(A107>$A$8,"",OFFSET(InputPriceData!$E$15,CalculationsAndCharts!$A107+$A$11,IF($C$5,8,0),1,1))) -> 328.1 | G107: =IF(A107>$B$30,NA(),IF(A107>$A$8,"",OFFSET(InputPriceData!$F$15,CalculationsAndCharts!$A107+$A$11,IF($C$5,8,0),1,1))) -> 330.91 | H107: 2.25 | J107: -0.7615 | K107: -0.4697452229 | M107: -1.186181818 | N107: -0.9858135495 | P107: -1.030199288 | Q107: -0.5111303842 | S107: -1.305738717 | T107: -1.023277811 | U107: -0.7615 | V107: -1.186181818 | W107: -1.030199288 | X107: -1.305738717 | AW107: 91523300
A108: 76 | B108: =IF(A108>$B$30,NA(),IF($A108>$A$8,"",OFFSET(InputPriceData!$B$15,$A108+$A$11,0,1,1))) -> 2020-09-16 | C108: =IF(A108>$B$30,NA(),IF($A108>$A$8,"",OFFSET(InputPriceData!$G$15,CalculationsAndCharts!$A108+$A$11,IF($C$5,8,0),1,1))) -> 82096000 | D108: =IF(A108>$B$30,NA(),IF(A108>$A$8,"",OFFSET(InputPriceData!$C$15,CalculationsAndCharts!$A108+$A$11,IF($C$5,8,0),1,1))) -> 336.5 | E108: =IF(A108>$B$30,NA(),IF(A108>$A$8,"",OFFSET(InputPriceData!$D$15,CalculationsAndCharts!$A108+$A$11,IF($C$5,8,0),1,1))) -> 338.03 | F108: =IF(A108>$B$30,NA(),IF(A108>$A$8,"",OFFSET(InputPriceData!$E$15,CalculationsAndCharts!$A108+$A$11,IF($C$5,8,0),1,1))) -> 333.55 | G108: =IF(A108>$B$30,NA(),IF(A108>$A$8,"",OFFSET(InputPriceData!$F$15,CalculationsAndCharts!$A108+$A$11,IF($C$5,8,0),1,1))) -> 333.85 | H108: -2.65 | J108: -0.614 | K108: -0.1433121019 | M108: -0.8766363636 | N108: -0.9047481181 | P108: -0.8697043477 | Q108: -0.703677193 | S108: -0.9844294843 | T108: -1.113803362 | U108: -0.614 | V108: -0.8766363636 | W108: -0.8697043477 | X108: -0.9844294843 | AX108: 82096000
A109: 77 | B109: =IF(A109>$B$30,NA(),IF($A109>$A$8,"",OFFSET(InputPriceData!$B$15,$A109+$A$11,0,1,1))) -> 2020-09-15 | C109: =IF(A109>$B$30,NA(),IF($A109>$A$8,"",OFFSET(InputPriceData!$G$15,CalculationsAndCharts!$A109+$A$11,IF($C$5,8,0),1,1))) -> 52920900 | D109: =IF(A109>$B$30,NA(),IF(A109>$A$8,"",OFFSET(InputPriceData!$C$15,CalculationsAndCharts!$A109+$A$11,IF($C$5,8,0),1,1))) -> 336.11 | E109: =IF(A109>$B$30,NA(),IF(A109>$A$8,"",OFFSET(InputPriceData!$D$15,CalculationsAndCharts!$A109+$A$11,IF($C$5,8,0),1,1))) -> 337 | F109: =IF(A109>$B$30,NA(),IF(A109>$A$8,"",OFFSET(InputPriceData!$E$15,CalculationsAndCharts!$A109+$A$11,IF($C$5,8,0),1,1))) -> 333.5 | G109: =IF(A109>$B$30,NA(),IF(A109>$A$8,"",OFFSET(InputPriceData!$F$15,CalculationsAndCharts!$A109+$A$11,IF($C$5,8,0),1,1))) -> 335.18 | H109: -0.93 | J109: -0.569 | K109: 0.08280254777 | M109: -0.5925454545 | N109: -0.7886508396 | P109: -0.6487497091 | Q109: -0.6429323501 | S109: -0.6346952285 | T109: -1.109876734 | U109: -0.569 | V109: -0.5925454545 | W109: -0.6487497091 | X109: -0.6346952285 | AX109: 52920900
A110: 78 | B110: =IF(A110>$B$30,NA(),IF($A110>$A$8,"",OFFSET(InputPriceData!$B$15,$A110+$A$11,0,1,1))) -> 2020-09-14 | C110: =IF(A110>$B$30,NA(),IF($A110>$A$8,"",OFFSET(InputPriceData!$G$15,CalculationsAndCharts!$A110+$A$11,IF($C$5,8,0),1,1))) -> 65605700 | D110: =IF(A110>$B$30,NA(),IF(A110>$A$8,"",OFFSET(InputPriceData!$C$15,CalculationsAndCharts!$A110+$A$11,IF($C$5,8,0),1,1))) -> 332.54 | E110: =IF(A110>$B$30,NA(),IF(A110>$A$8,"",OFFSET(InputPriceData!$D$15,CalculationsAndCharts!$A110+$A$11,IF($C$5,8,0),1,1))) -> 335.38 | F110: =IF(A110>$B$30,NA(),IF(A110>$A$8,"",OFFSET(InputPriceData!$E$15,CalculationsAndCharts!$A110+$A$11,IF($C$5,8,0),1,1))) -> 329.32 | G110: =IF(A110>$B$30,NA(),IF(A110>$A$8,"",OFFSET(InputPriceData!$F$15,CalculationsAndCharts!$A110+$A$11,IF($C$5,8,0),1,1))) -> 333.49 | H110: 0.95 | J110: -0.595 | K110: -0.3105095541 | M110: -0.3449090909 | N110: -0.7715691951 | P110: -0.4468689512 | Q110: -0.6472557555 | S110: -0.286193934 | T110: -1.034148009 | U110: -0.595 | V110: -0.3449090909 | W110: -0.4468689512 | X110: -0.286193934 | AW110: 65605700
A111: 79 | B111: =IF(A111>$B$30,NA(),IF($A111>$A$8,"",OFFSET(InputPriceData!$B$15,$A111+$A$11,0,1,1))) -> 2020-09-11 | C111: =IF(A111>$B$30,NA(),IF($A111>$A$8,"",OFFSET(InputPriceData!$G$15,CalculationsAndCharts!$A111+$A$11,IF($C$5,8,0),1,1))) -> 84680200 | D111: =IF(A111>$B$30,NA(),IF(A111>$A$8,"",OFFSET(InputPriceData!$C$15,CalculationsAndCharts!$A111+$A$11,IF($C$5,8,0),1,1))) -> 330.89 | E111: =IF(A111>$B$30,NA(),IF(A111>$A$8,"",OFFSET(InputPriceData!$D$15,CalculationsAndCharts!$A111+$A$11,IF($C$5,8,0),1,1))) -> 332.02 | F111: =IF(A111>$B$30,NA(),IF(A111>$A$8,"",OFFSET(InputPriceData!$E$15,CalculationsAndCharts!$A111+$A$11,IF($C$5,8,0),1,1))) -> 326.14 | G111: =IF(A111>$B$30,NA(),IF(A111>$A$8,"",OFFSET(InputPriceData!$F$15,CalculationsAndCharts!$A111+$A$11,IF($C$5,8,0),1,1))) -> 329.16 | H111: -1.73 | J111: -0.4975 | K111: -1.557324841 | M111: -0.1026363636 | N111: -0.7782281413 | P111: -0.243630644 | Q111: -0.7201546027 | S111: 0.03852854098 | T111: -0.8707753322 | U111: -0.4975 | V111: -0.1026363636 | W111: -0.243630644 | X111: 0.03852854098 | AX111: 84680200
A112: 80 | B112: =IF(A112>$B$30,NA(),IF($A112>$A$8,"",OFFSET(InputPriceData!$B$15,$A112+$A$11,0,1,1))) -> 2020-09-10 | C112: =IF(A112>$B$30,NA(),IF($A112>$A$8,"",OFFSET(InputPriceData!$G$15,CalculationsAndCharts!$A112+$A$11,IF($C$5,8,0),1,1))) -> 90569500 | D112: =IF(A112>$B$30,NA(),IF(A112>$A$8,"",OFFSET(InputPriceData!$C$15,CalculationsAndCharts!$A112+$A$11,IF($C$5,8,0),1,1))) -> 336.8 | E112: =IF(A112>$B$30,NA(),IF(A112>$A$8,"",OFFSET(InputPriceData!$D$15,CalculationsAndCharts!$A112+$A$11,IF($C$5,8,0),1,1))) -> 337.5 | F112: =IF(A112>$B$30,NA(),IF(A112>$A$8,"",OFFSET(InputPriceData!$E$15,CalculationsAndCharts!$A112+$A$11,IF($C$5,8,0),1,1))) -> 327.97 | G112: =IF(A112>$B$30,NA(),IF(A112>$A$8,"",OFFSET(InputPriceData!$F$15,CalculationsAndCharts!$A112+$A$11,IF($C$5,8,0),1,1))) -> 328.99 | H112: -7.81 | J112: -0.0085 | K112: 0.9856687898 | M112: 0.1417272727 | N112: -0.7101910828 | P112: -0.01750209873 | Q112: -0.7803038228 | S112: 0.3119519953 | T112: -0.650040874 | U112: -0.0085 | V112: 0.1417272727 | W112: -0.01750209873 | X112: 0.3119519953 | AX112: 90569500
A113: 81 | B113: =IF(A113>$B$30,NA(),IF($A113>$A$8,"",OFFSET(InputPriceData!$B$15,$A113+$A$11,0,1,1))) -> 2020-09-09 | C113: =IF(A113>$B$30,NA(),IF($A113>$A$8,"",OFFSET(InputPriceData!$G$15,CalculationsAndCharts!$A113+$A$11,IF($C$5,8,0),1,1))) -> 91462300 | D113: =IF(A113>$B$30,NA(),IF(A113>$A$8,"",OFFSET(InputPriceData!$C$15,CalculationsAndCharts!$A113+$A$11,IF($C$5,8,0),1,1))) -> 332.6 | E113: =IF(A113>$B$30,NA(),IF(A113>$A$8,"",OFFSET(InputPriceData!$D$15,CalculationsAndCharts!$A113+$A$11,IF($C$5,8,0),1,1))) -> 337.43 | F113: =IF(A113>$B$30,NA(),IF(A113>$A$8,"",OFFSET(InputPriceData!$E$15,CalculationsAndCharts!$A113+$A$11,IF($C$5,8,0),1,1))) -> 331.67 | G113: =IF(A113>$B$30,NA(),IF(A113>$A$8,"",OFFSET(InputPriceData!$F$15,CalculationsAndCharts!$A113+$A$11,IF($C$5,8,0),1,1))) -> 334.8 | H113: 2.2 | J113: -0.318 | K113: -0.6305732484 | M113: 0.3647272727 | N113: -0.2715691951 | P113: 0.2275133016 | Q113: -0.2560978254 | S113: 0.5160648297 | T113: -0.4222135675 | U113: -0.318 | V113: 0.3647272727 | W113: 0.2275133016 | X113: 0.5160648297 | AW113: 91462300
A114: 82 | B114: =IF(A114>$B$30,NA(),IF($A114>$A$8,"",OFFSET(InputPriceData!$B$15,$A114+$A$11,0,1,1))) -> 2020-09-08 | C114: =IF(A114>$B$30,NA(),IF($A114>$A$8,"",OFFSET(InputPriceData!$G$15,CalculationsAndCharts!$A114+$A$11,IF($C$5,8,0),1,1))) -> 114465300 | D114: =IF(A114>$B$30,NA(),IF(A114>$A$8,"",OFFSET(InputPriceData!$C$15,CalculationsAndCharts!$A114+$A$11,IF($C$5,8,0),1,1))) -> 331.77 | E114: =IF(A114>$B$30,NA(),IF(A114>$A$8,"",OFFSET(InputPriceData!$D$15,CalculationsAndCharts!$A114+$A$11,IF($C$5,8,0),1,1))) -> 337.61 | F114: =IF(A114>$B$30,NA(),IF(A114>$A$8,"",OFFSET(InputPriceData!$E$15,CalculationsAndCharts!$A114+$A$11,IF($C$5,8,0),1,1))) -> 327.99 | G114: =IF(A114>$B$30,NA(),IF(A114>$A$8,"",OFFSET(InputPriceData!$F$15,CalculationsAndCharts!$A114+$A$11,IF($C$5,8,0),1,1))) -> 328.32 | H114: -3.45 | J114: -0.12 | K114: -0.7611464968 | M114: 0.45 | N114: -0.3103647944 | P114: 0.3079280188 | Q114: -0.3937327099 | S114: 0.6486398899 | T114: -0.1712216461 | U114: -0.12 | V114: 0.45 | W114: 0.3079280188 | X114: 0.6486398899 | AX114: 114465300
A115: 83 | B115: =IF(A115>$B$30,NA(),IF($A115>$A$8,"",OFFSET(InputPriceData!$B$15,$A115+$A$11,0,1,1))) -> 2020-09-04 | C115: =IF(A115>$B$30,NA(),IF($A115>$A$8,"",OFFSET(InputPriceData!$G$15,CalculationsAndCharts!$A115+$A$11,IF($C$5,8,0),1,1))) -> 139156300 | D115: =IF(A115>$B$30,NA(),IF(A115>$A$8,"",OFFSET(InputPriceData!$C$15,CalculationsAndCharts!$A115+$A$11,IF($C$5,8,0),1,1))) -> 341.05 | E115: =IF(A115>$B$30,NA(),IF(A115>$A$8,"",OFFSET(InputPriceData!$D$15,CalculationsAndCharts!$A115+$A$11,IF($C$5,8,0),1,1))) -> 342.73 | F115: =IF(A115>$B$30,NA(),IF(A115>$A$8,"",OFFSET(InputPriceData!$E$15,CalculationsAndCharts!$A115+$A$11,IF($C$5,8,0),1,1))) -> 329.96 | G115: =IF(A115>$B$30,NA(),IF(A115>$A$8,"",OFFSET(InputPriceData!$F$15,CalculationsAndCharts!$A115+$A$11,IF($C$5,8,0),1,1))) -> 337.54 | H115: -3.51 | J115: 0.119 | K115: -2.090764331 | M115: 0.5474545455 | N115: -0.179791546 | P115: 0.4315600897 | Q115: -0.2945553304 | S115: 0.7024034868 | T115: 0.0745693901 | U115: 0.119 | V115: 0.5474545455 | W115: 0.4315600897 | X115: 0.7024034868 | AX115: 139156300
A116: 84 | B116: =IF(A116>$B$30,NA(),IF($A116>$A$8,"",OFFSET(InputPriceData!$B$15,$A116+$A$11,0,1,1))) -> 2020-09-03 | C116: =IF(A116>$B$30,NA(),IF($A116>$A$8,"",OFFSET(InputPriceData!$G$15,CalculationsAndCharts!$A116+$A$11,IF($C$5,8,0),1,1))) -> 148011100 | D116: =IF(A116>$B$30,NA(),IF(A116>$A$8,"",OFFSET(InputPriceData!$C$15,CalculationsAndCharts!$A116+$A$11,IF($C$5,8,0),1,1))) -> 350.65 | E116: =IF(A116>$B$30,NA(),IF(A116>$A$8,"",OFFSET(InputPriceData!$D$15,CalculationsAndCharts!$A116+$A$11,IF($C$5,8,0),1,1))) -> 351.15 | F116: =IF(A116>$B$30,NA(),IF(A116>$A$8,"",OFFSET(InputPriceData!$E$15,CalculationsAndCharts!$A116+$A$11,IF($C$5,8,0),1,1))) -> 337.56 | G116: =IF(A116>$B$30,NA(),IF(A116>$A$8,"",OFFSET(InputPriceData!$F$15,CalculationsAndCharts!$A116+$A$11,IF($C$5,8,0),1,1))) -> 340.32 | H116: -10.33 | J116: 0.7755 | K116: 0.3757961783 | M116: 0.6039090909 | N116: -0.03126809496 | P116: 0.5240504635 | Q116: -0.2882639587 | S116: 0.6789886983 | T116: 0.2394197843 | U116: 0.7755 | V116: 0.6039090909 | W116: 0.5240504635 | X116: 0.6789886983 | AX116: 148011100
A117: 85 | B117: =IF(A117>$B$30,NA(),IF($A117>$A$8,"",OFFSET(InputPriceData!$B$15,$A117+$A$11,0,1,1))) -> 2020-09-02 | C117: =IF(A117>$B$30,NA(),IF($A117>$A$8,"",OFFSET(InputPriceData!$G$15,CalculationsAndCharts!$A117+$A$11,IF($C$5,8,0),1,1))) -> 69540000 | D117: =IF(A117>$B$30,NA(),IF(A117>$A$8,"",OFFSET(InputPriceData!$C$15,CalculationsAndCharts!$A117+$A$11,IF($C$5,8,0),1,1))) -> 349.46 | E117: =IF(A117>$B$30,NA(),IF(A117>$A$8,"",OFFSET(InputPriceData!$D$15,CalculationsAndCharts!$A117+$A$11,IF($C$5,8,0),1,1))) -> 353.49 | F117: =IF(A117>$B$30,NA(),IF(A117>$A$8,"",OFFSET(InputPriceData!$E$15,CalculationsAndCharts!$A117+$A$11,IF($C$5,8,0),1,1))) -> 348.24 | G117: =IF(A117>$B$30,NA(),IF(A117>$A$8,"",OFFSET(InputPriceData!$F$15,CalculationsAndCharts!$A117+$A$11,IF($C$5,8,0),1,1))) -> 352.45 | H117: 2.99 | J117: 0.6575 | K117: 0.03025477707 | M117: 0.6137272727 | N117: 0.2811233353 | P117: 0.6145653465 | Q117: 0.1873080123 | S117: 0.603810886 | T117: 0.2666397429 | U117: 0.6575 | V117: 0.6137272727 | W117: 0.6145653465 | X117: 0.603810886 | AW117: 69540000
A118: 86 | B118: =IF(A118>$B$30,NA(),IF($A118>$A$8,"",OFFSET(InputPriceData!$B$15,$A118+$A$11,0,1,1))) -> 2020-09-01 | C118: =IF(A118>$B$30,NA(),IF($A118>$A$8,"",OFFSET(InputPriceData!$G$15,CalculationsAndCharts!$A118+$A$11,IF($C$5,8,0),1,1))) -> 54908700 | D118: =IF(A118>$B$30,NA(),IF(A118>$A$8,"",OFFSET(InputPriceData!$C$15,CalculationsAndCharts!$A118+$A$11,IF($C$5,8,0),1,1))) -> 345.07 | E118: =IF(A118>$B$30,NA(),IF(A118>$A$8,"",OFFSET(InputPriceData!$D$15,CalculationsAndCharts!$A118+$A$11,IF($C$5,8,0),1,1))) -> 347.53 | F118: =IF(A118>$B$30,NA(),IF(A118>$A$8,"",OFFSET(InputPriceData!$E$15,CalculationsAndCharts!$A118+$A$11,IF($C$5,8,0),1,1))) -> 344.11 | G118: =IF(A118>$B$30,NA(),IF(A118>$A$8,"",OFFSET(InputPriceData!$F$15,CalculationsAndCharts!$A118+$A$11,IF($C$5,8,0),1,1))) -> 347.43 | H118: 2.36 | J118: 0.648 | K118: -0.2372611465 | M118: 0.5254545455 | N118: 0.08859293573 | P118: 0.5557506306 | Q118: 0.03424713779 | S118: 0.5200860067 | T118: 0.2018491568 | U118: 0.648 | V118: 0.5254545455 | W118: 0.5557506306 | X118: 0.5200860067 | AW118: 54908700
A119: 87 | B119: =IF(A119>$B$30,NA(),IF($A119>$A$8,"",OFFSET(InputPriceData!$B$15,$A119+$A$11,0,1,1))) -> 2020-08-31 | C119: =IF(A119>$B$30,NA(),IF($A119>$A$8,"",OFFSET(InputPriceData!$G$15,CalculationsAndCharts!$A119+$A$11,IF($C$5,8,0),1,1))) -> 66099200 | D119: =IF(A119>$B$30,NA(),IF(A119>$A$8,"",OFFSET(InputPriceData!$C$15,CalculationsAndCharts!$A119+$A$11,IF($C$5,8,0),1,1))) -> 345.21 | E119: =IF(A119>$B$30,NA(),IF(A119>$A$8,"",OFFSET(InputPriceData!$D$15,CalculationsAndCharts!$A119+$A$11,IF($C$5,8,0),1,1))) -> 346.14 | F119: =IF(A119>$B$30,NA(),IF(A119>$A$8,"",OFFSET(InputPriceData!$E$15,CalculationsAndCharts!$A119+$A$11,IF($C$5,8,0),1,1))) -> 343.94 | G119: =IF(A119>$B$30,NA(),IF(A119>$A$8,"",OFFSET(InputPriceData!$F$15,CalculationsAndCharts!$A119+$A$11,IF($C$5,8,0),1,1))) -> 344.18 | H119: -1.03 | J119: 0.7225 | K119: 0.08121019108 | M119: 0.4976363636 | N119: 0.01476548929 | P119: 0.5449970294 | Q119: -0.03603344053 | S119: 0.4567053715 | T119: 0.1374494364 | U119: 0.7225 | V119: 0.4976363636 | W119: 0.5449970294 | X119: 0.4567053715 | AX119: 66099200
A120: 88 | B120: =IF(A120>$B$30,NA(),IF($A120>$A$8,"",OFFSET(InputPriceData!$B$15,$A120+$A$11,0,1,1))) -> 2020-08-28 | C120: =IF(A120>$B$30,NA(),IF($A120>$A$8,"",OFFSET(InputPriceData!$G$15,CalculationsAndCharts!$A120+$A$11,IF($C$5,8,0),1,1))) -> 48588900 | D120: =IF(A120>$B$30,NA(),IF(A120>$A$8,"",OFFSET(InputPriceData!$C$15,CalculationsAndCharts!$A120+$A$11,IF($C$5,8,0),1,1))) -> 344.31 | E120: =IF(A120>$B$30,NA(),IF(A120>$A$8,"",OFFSET(InputPriceData!$D$15,CalculationsAndCharts!$A120+$A$11,IF($C$5,8,0),1,1))) -> 345.57 | F120: =IF(A120>$B$30,NA(),IF(A120>$A$8,"",OFFSET(InputPriceData!$E$15,CalculationsAndCharts!$A120+$A$11,IF($C$5,8,0),1,1))) -> 343.04 | G120: =IF(A120>$B$30,NA(),IF(A120>$A$8,"",OFFSET(InputPriceData!$F$15,CalculationsAndCharts!$A120+$A$11,IF($C$5,8,0),1,1))) -> 345.43 | H120: 1.12 | J120: 0.697 | K120: -0.351910828 | M120: 0.493 | N120: 0.03850607991 | P120: 0.5563115297 | Q120: 0.02954216495 | S120: 0.4135462485 | T120: 0.06258848523 | U120: 0.697 | V120: 0.493 | W120: 0.5563115297 | X120: 0.4135462485 | AW120: 48588900
A121: 89 | B121: =IF(A121>$B$30,NA(),IF($A121>$A$8,"",OFFSET(InputPriceData!$B$15,$A121+$A$11,0,1,1))) -> 2020-08-27 | C121: =IF(A121>$B$30,NA(),IF($A121>$A$8,"",OFFSET(InputPriceData!$G$15,CalculationsAndCharts!$A121+$A$11,IF($C$5,8,0),1,1))) -> 58034100 | D121: =IF(A121>$B$30,NA(),IF(A121>$A$8,"",OFFSET(InputPriceData!$C$15,CalculationsAndCharts!$A121+$A$11,IF($C$5,8,0),1,1))) -> 343.4 | E121: =IF(A121>$B$30,NA(),IF(A121>$A$8,"",OFFSET(InputPriceData!$D$15,CalculationsAndCharts!$A121+$A$11,IF($C$5,8,0),1,1))) -> 344.76 | F121: =IF(A121>$B$30,NA(),IF(A121>$A$8,"",OFFSET(InputPriceData!$E$15,CalculationsAndCharts!$A121+$A$11,IF($C$5,8,0),1,1))) -> 341.44 | G121: =IF(A121>$B$30,NA(),IF(A121>$A$8,"",OFFSET(InputPriceData!$F$15,CalculationsAndCharts!$A121+$A$11,IF($C$5,8,0),1,1))) -> 343.22 | H121: -0.18 | J121: 0.8075 | K121: -0.03025477707 | M121: 0.4809090909 | N121: -0.03387376954 | P121: 0.5470352899 | Q121: -0.05866422187 | S121: 0.3938934641 | T121: -0.03501439867 | U121: 0.8075 | V121: 0.4809090909 | W121: 0.5470352899 | X121: 0.3938934641 | AX121: 58034100
A122: 90 | B122: =IF(A122>$B$30,NA(),IF($A122>$A$8,"",OFFSET(InputPriceData!$B$15,$A122+$A$11,0,1,1))) -> 2020-08-26 | C122: =IF(A122>$B$30,NA(),IF($A122>$A$8,"",OFFSET(InputPriceData!$G$15,CalculationsAndCharts!$A122+$A$11,IF($C$5,8,0),1,1))) -> 50790200 | D122: =IF(A122>$B$30,NA(),IF(A122>$A$8,"",OFFSET(InputPriceData!$C$15,CalculationsAndCharts!$A122+$A$11,IF($C$5,8,0),1,1))) -> 339.7 | E122: =IF(A122>$B$30,NA(),IF(A122>$A$8,"",OFFSET(InputPriceData!$D$15,CalculationsAndCharts!$A122+$A$11,IF($C$5,8,0),1,1))) -> 342.75 | F122: =IF(A122>$B$30,NA(),IF(A122>$A$8,"",OFFSET(InputPriceData!$E$15,CalculationsAndCharts!$A122+$A$11,IF($C$5,8,0),1,1))) -> 339.12 | G122: =IF(A122>$B$30,NA(),IF(A122>$A$8,"",OFFSET(InputPriceData!$F$15,CalculationsAndCharts!$A122+$A$11,IF($C$5,8,0),1,1))) -> 342.47 | H122: 2.77 | J122: 0.817 | K122: 0.2898089172 | M122: 0.4915454545 | N122: -0.05095541401 | P122: 0.5654558556 | Q122: -0.102205388 | S122: 0.4048879853 | T122: -0.1567930478 | U122: 0.817 | V122: 0.4915454545 | W122: 0.5654558556 | X122: 0.4048879853 | AW122: 50790200
A123: 91 | B123: =IF(A123>$B$30,NA(),IF($A123>$A$8,"",OFFSET(InputPriceData!$B$15,$A123+$A$11,0,1,1))) -> 2020-08-25 | C123: =IF(A123>$B$30,NA(),IF($A123>$A$8,"",OFFSET(InputPriceData!$G$15,CalculationsAndCharts!$A123+$A$11,IF($C$5,8,0),1,1))) -> 38463400 | D123: =IF(A123>$B$30,NA(),IF(A123>$A$8,"",OFFSET(InputPriceData!$C$15,CalculationsAndCharts!$A123+$A$11,IF($C$5,8,0),1,1))) -> 338.49 | E123: =IF(A123>$B$30,NA(),IF(A123>$A$8,"",OFFSET(InputPriceData!$D$15,CalculationsAndCharts!$A123+$A$11,IF($C$5,8,0),1,1))) -> 339.16 | F123: =IF(A123>$B$30,NA(),IF(A123>$A$8,"",OFFSET(InputPriceData!$E$15,CalculationsAndCharts!$A123+$A$11,IF($C$5,8,0),1,1))) -> 337.25 | G123: =IF(A123>$B$30,NA(),IF(A123>$A$8,"",OFFSET(InputPriceData!$F$15,CalculationsAndCharts!$A123+$A$11,IF($C$5,8,0),1,1))) -> 339.07 | H123: 0.58 | J123: 0.726 | K123: -0.1242038217 | M123: 0.5075454545 | N123: -0.1537348002 | P123: 0.5975483474 | Q123: -0.1006878505 | S123: 0.4541210023 | T123: -0.2587783058 | U123: 0.726 | V123: 0.5075454545 | W123: 0.5975483474 | X123: 0.4541210023 | AW123: 38463400
A124: 92 | B124: =IF(A124>$B$30,NA(),IF($A124>$A$8,"",OFFSET(InputPriceData!$B$15,$A124+$A$11,0,1,1))) -> 2020-08-24 | C124: =IF(A124>$B$30,NA(),IF($A124>$A$8,"",OFFSET(InputPriceData!$G$15,CalculationsAndCharts!$A124+$A$11,IF($C$5,8,0),1,1))) -> 48588700 | D124: =IF(A124>$B$30,NA(),IF(A124>$A$8,"",OFFSET(InputPriceData!$C$15,CalculationsAndCharts!$A124+$A$11,IF($C$5,8,0),1,1))) -> 337.1 | E124: =IF(A124>$B$30,NA(),IF(A124>$A$8,"",OFFSET(InputPriceData!$D$15,CalculationsAndCharts!$A124+$A$11,IF($C$5,8,0),1,1))) -> 337.97 | F124: =IF(A124>$B$30,NA(),IF(A124>$A$8,"",OFFSET(InputPriceData!$E$15,CalculationsAndCharts!$A124+$A$11,IF($C$5,8,0),1,1))) -> 334.47 | G124: =IF(A124>$B$30,NA(),IF(A124>$A$8,"",OFFSET(InputPriceData!$F$15,CalculationsAndCharts!$A124+$A$11,IF($C$5,8,0),1,1))) -> 337.89 | H124: 0.79 | J124: 0.765 | K124: 0.2563694268 | M124: 0.5558181818 | N124: -0.3167342212 | P124: 0.6291643324 | Q124: -0.1481415043 | S124: 0.5353773903 | T124: -0.3174226712 | U124: 0.765 | V124: 0.5558181818 | W124: 0.6291643324 | X124: 0.5353773903 | AW124: 48588700
A125: 93 | B125: =IF(A125>$B$30,NA(),IF($A125>$A$8,"",OFFSET(InputPriceData!$B$15,$A125+$A$11,0,1,1))) -> 2020-08-21 | C125: =IF(A125>$B$30,NA(),IF($A125>$A$8,"",OFFSET(InputPriceData!$G$15,CalculationsAndCharts!$A125+$A$11,IF($C$5,8,0),1,1))) -> 55106600 | D125: =IF(A125>$B$30,NA(),IF(A125>$A$8,"",OFFSET(InputPriceData!$C$15,CalculationsAndCharts!$A125+$A$11,IF($C$5,8,0),1,1))) -> 332.96 | E125: =IF(A125>$B$30,NA(),IF(A125>$A$8,"",OFFSET(InputPriceData!$D$15,CalculationsAndCharts!$A125+$A$11,IF($C$5,8,0),1,1))) -> 334.73 | F125: =IF(A125>$B$30,NA(),IF(A125>$A$8,"",OFFSET(InputPriceData!$E$15,CalculationsAndCharts!$A125+$A$11,IF($C$5,8,0),1,1))) -> 332.6 | G125: =IF(A125>$B$30,NA(),IF(A125>$A$8,"",OFFSET(InputPriceData!$F$15,CalculationsAndCharts!$A125+$A$11,IF($C$5,8,0),1,1))) -> 334.5 | H125: 1.54 | J125: 0.6845 | K125: 1.00955414 | M125: 0.6552727273 | N125: -0.286045165 | P125: 0.6756807648 | Q125: -0.1109857216 | S125: 0.6350481091 | T125: -0.3487385165 | U125: 0.6845 | V125: 0.6552727273 | W125: 0.6756807648 | X125: 0.6350481091 | AW125: 55106600
A126: 94 | B126: =IF(A126>$B$30,NA(),IF($A126>$A$8,"",OFFSET(InputPriceData!$B$15,$A126+$A$11,0,1,1))) -> 2020-08-20 | C126: =IF(A126>$B$30,NA(),IF($A126>$A$8,"",OFFSET(InputPriceData!$G$15,CalculationsAndCharts!$A126+$A$11,IF($C$5,8,0),1,1))) -> 42207800 | D126: =IF(A126>$B$30,NA(),IF(A126>$A$8,"",OFFSET(InputPriceData!$C$15,CalculationsAndCharts!$A126+$A$11,IF($C$5,8,0),1,1))) -> 330.44 | E126: =IF(A126>$B$30,NA(),IF(A126>$A$8,"",OFFSET(InputPriceData!$D$15,CalculationsAndCharts!$A126+$A$11,IF($C$5,8,0),1,1))) -> 333.83 | F126: =IF(A126>$B$30,NA(),IF(A126>$A$8,"",OFFSET(InputPriceData!$E$15,CalculationsAndCharts!$A126+$A$11,IF($C$5,8,0),1,1))) -> 330.3 | G126: =IF(A126>$B$30,NA(),IF(A126>$A$8,"",OFFSET(InputPriceData!$F$15,CalculationsAndCharts!$A126+$A$11,IF($C$5,8,0),1,1))) -> 333.32 | H126: 2.88 | J126: 0.3675 | K126: -0.6353503185 | M126: 0.7450909091 | N126: -0.1126230457 | P126: 0.7105302813 | Q126: 0.03436322174 | S126: 0.7445520033 | T126: -0.3095855584 | U126: 0.3675 | V126: 0.7450909091 | W126: 0.7105302813 | X126: 0.7445520033 | AW126: 42207800
A127: 95 | B127: =IF(A127>$B$30,NA(),IF($A127>$A$8,"",OFFSET(InputPriceData!$B$15,$A127+$A$11,0,1,1))) -> 2020-08-19 | C127: =IF(A127>$B$30,NA(),IF($A127>$A$8,"",OFFSET(InputPriceData!$G$15,CalculationsAndCharts!$A127+$A$11,IF($C$5,8,0),1,1))) -> 68054200 | D127: =IF(A127>$B$30,NA(),IF(A127>$A$8,"",OFFSET(InputPriceData!$C$15,CalculationsAndCharts!$A127+$A$11,IF($C$5,8,0),1,1))) -> 334.07 | E127: =IF(A127>$B$30,NA(),IF(A127>$A$8,"",OFFSET(InputPriceData!$D$15,CalculationsAndCharts!$A127+$A$11,IF($C$5,8,0),1,1))) -> 334.63 | F127: =IF(A127>$B$30,NA(),IF(A127>$A$8,"",OFFSET(InputPriceData!$E$15,CalculationsAndCharts!$A127+$A$11,IF($C$5,8,0),1,1))) -> 331.68 | G127: =IF(A127>$B$30,NA(),IF(A127>$A$8,"",OFFSET(InputPriceData!$F$15,CalculationsAndCharts!$A127+$A$11,IF($C$5,8,0),1,1))) -> 332.28 | H127: -1.79 | J127: 0.567 | K127: 0.2738853503 | M127: 0.7804545455 | N127: -0.1603937464 | P127: 0.6997402297 | Q127: -0.1589066535 | S127: 0.8417618686 | T127: -0.204655462 | U127: 0.567 | V127: 0.7804545455 | W127: 0.6997402297 | X127: 0.8417618686 | AX127: 68054200
A128: 96 | B128: =IF(A128>$B$30,NA(),IF($A128>$A$8,"",OFFSET(InputPriceData!$B$15,$A128+$A$11,0,1,1))) -> 2020-08-18 | C128: =IF(A128>$B$30,NA(),IF($A128>$A$8,"",OFFSET(InputPriceData!$G$15,CalculationsAndCharts!$A128+$A$11,IF($C$5,8,0),1,1))) -> 38733900 | D128: =IF(A128>$B$30,NA(),IF(A128>$A$8,"",OFFSET(InputPriceData!$C$15,CalculationsAndCharts!$A128+$A$11,IF($C$5,8,0),1,1))) -> 333.37 | E128: =IF(A128>$B$30,NA(),IF(A128>$A$8,"",OFFSET(InputPriceData!$D$15,CalculationsAndCharts!$A128+$A$11,IF($C$5,8,0),1,1))) -> 334.12 | F128: =IF(A128>$B$30,NA(),IF(A128>$A$8,"",OFFSET(InputPriceData!$E$15,CalculationsAndCharts!$A128+$A$11,IF($C$5,8,0),1,1))) -> 331.67 | G128: =IF(A128>$B$30,NA(),IF(A128>$A$8,"",OFFSET(InputPriceData!$F$15,CalculationsAndCharts!$A128+$A$11,IF($C$5,8,0),1,1))) -> 333.67 | H128: 0.3 | J128: 0.481 | K128: -0.4585987261 | M128: 0.8308181818 | N128: 0.0136074117 | P128: 0.7496369189 | Q128: 0.03976729202 | S128: 0.9060236837 | T128: -0.07945219917 | U128: 0.481 | V128: 0.8308181818 | W128: 0.7496369189 | X128: 0.9060236837 | AW128: 38733900
A129: 97 | B129: =IF(A129>$B$30,NA(),IF($A129>$A$8,"",OFFSET(InputPriceData!$B$15,$A129+$A$11,0,1,1))) -> 2020-08-17 | C129: =IF(A129>$B$30,NA(),IF($A129>$A$8,"",OFFSET(InputPriceData!$G$15,CalculationsAndCharts!$A129+$A$11,IF($C$5,8,0),1,1))) -> 35481000 | D129: =IF(A129>$B$30,NA(),IF(A129>$A$8,"",OFFSET(InputPriceData!$C$15,CalculationsAndCharts!$A129+$A$11,IF($C$5,8,0),1,1))) -> 332.98 | E129: =IF(A129>$B$30,NA(),IF(A129>$A$8,"",OFFSET(InputPriceData!$D$15,CalculationsAndCharts!$A129+$A$11,IF($C$5,8,0),1,1))) -> 333.37 | F129: =IF(A129>$B$30,NA(),IF(A129>$A$8,"",OFFSET(InputPriceData!$E$15,CalculationsAndCharts!$A129+$A$11,IF($C$5,8,0),1,1))) -> 331.91 | G129: =IF(A129>$B$30,NA(),IF(A129>$A$8,"",OFFSET(InputPriceData!$F$15,CalculationsAndCharts!$A129+$A$11,IF($C$5,8,0),1,1))) -> 332.95 | H129: -0.03 | J129: 0.625 | K129: 0.09394904459 | M129: 0.8265454545 | N129: -0.001447596989 | P129: 0.7371499892 | Q129: -0.04755845442 | S129: 0.9309716742 | T129: 0.03313718746 | U129: 0.625 | V129: 0.8265454545 | W129: 0.7371499892 | X129: 0.9309716742 | AX129: 35481000
A130: 98 | B130: =IF(A130>$B$30,NA(),IF($A130>$A$8,"",OFFSET(InputPriceData!$B$15,$A130+$A$11,0,1,1))) -> 2020-08-14 | C130: =IF(A130>$B$30,NA(),IF($A130>$A$8,"",OFFSET(InputPriceData!$G$15,CalculationsAndCharts!$A130+$A$11,IF($C$5,8,0),1,1))) -> 47260400 | D130: =IF(A130>$B$30,NA(),IF(A130>$A$8,"",OFFSET(InputPriceData!$C$15,CalculationsAndCharts!$A130+$A$11,IF($C$5,8,0),1,1))) -> 331.47 | E130: =IF(A130>$B$30,NA(),IF(A130>$A$8,"",OFFSET(InputPriceData!$D$15,CalculationsAndCharts!$A130+$A$11,IF($C$5,8,0),1,1))) -> 332.47 | F130: =IF(A130>$B$30,NA(),IF(A130>$A$8,"",OFFSET(InputPriceData!$E$15,CalculationsAndCharts!$A130+$A$11,IF($C$5,8,0),1,1))) -> 330.69 | G130: =IF(A130>$B$30,NA(),IF(A130>$A$8,"",OFFSET(InputPriceData!$F$15,CalculationsAndCharts!$A130+$A$11,IF($C$5,8,0),1,1))) -> 331.9 | H130: 0.43 | J130: 0.5955 | K130: -0.1210191083 | M130: 0.827 | N130: 0.03503184713 | P130: 0.7520833439 | Q130: 0.03308352441 | S130: 0.9205665974 | T130: 0.1264773958 | U130: 0.5955 | V130: 0.827 | W130: 0.7520833439 | X130: 0.9205665974 | AW130: 47260400
A131: 99 | B131: =IF(A131>$B$30,NA(),IF($A131>$A$8,"",OFFSET(InputPriceData!$B$15,$A131+$A$11,0,1,1))) -> 2020-08-13 | C131: =IF(A131>$B$30,NA(),IF($A131>$A$8,"",OFFSET(InputPriceData!$G$15,CalculationsAndCharts!$A131+$A$11,IF($C$5,8,0),1,1))) -> 41816100 | D131: =IF(A131>$B$30,NA(),IF(A131>$A$8,"",OFFSET(InputPriceData!$C$15,CalculationsAndCharts!$A131+$A$11,IF($C$5,8,0),1,1))) -> 331.67 | E131: =IF(A131>$B$30,NA(),IF(A131>$A$8,"",OFFSET(InputPriceData!$D$15,CalculationsAndCharts!$A131+$A$11,IF($C$5,8,0),1,1))) -> 333.29 | F131: =IF(A131>$B$30,NA(),IF(A131>$A$8,"",OFFSET(InputPriceData!$E$15,CalculationsAndCharts!$A131+$A$11,IF($C$5,8,0),1,1))) -> 330.9 | G131: =IF(A131>$B$30,NA(),IF(A131>$A$8,"",OFFSET(InputPriceData!$F$15,CalculationsAndCharts!$A131+$A$11,IF($C$5,8,0),1,1))) -> 331.89 | H131: 0.22 | J131: 0.6335 | K131: 0.4012738854 | M131: 0.816 | N131: 0.07064273306 | P131: 0.7416951172 | Q131: 0.02686088509 | S131: 0.8808526951 | T131: 0.2057497749 | U131: 0.6335 | V131: 0.816 | W131: 0.7416951172 | X131: 0.8808526951 | AW131: 41816100
A132: 100 | B132: =IF(A132>$B$30,NA(),IF($A132>$A$8,"",OFFSET(InputPriceData!$B$15,$A132+$A$11,0,1,1))) -> 2020-08-12 | C132: =IF(A132>$B$30,NA(),IF($A132>$A$8,"",OFFSET(InputPriceData!$G$15,CalculationsAndCharts!$A132+$A$11,IF($C$5,8,0),1,1))) -> 53774400 | D132: =IF(A132>$B$30,NA(),IF(A132>$A$8,"",OFFSET(InputPriceData!$C$15,CalculationsAndCharts!$A132+$A$11,IF($C$5,8,0),1,1))) -> 330.52 | E132: =IF(A132>$B$30,NA(),IF(A132>$A$8,"",OFFSET(InputPriceData!$D$15,CalculationsAndCharts!$A132+$A$11,IF($C$5,8,0),1,1))) -> 333.32 | F132: =IF(A132>$B$30,NA(),IF(A132>$A$8,"",OFFSET(InputPriceData!$E$15,CalculationsAndCharts!$A132+$A$11,IF($C$5,8,0),1,1))) -> 330.49 | G132: =IF(A132>$B$30,NA(),IF(A132>$A$8,"",OFFSET(InputPriceData!$F$15,CalculationsAndCharts!$A132+$A$11,IF($C$5,8,0),1,1))) -> 332.49 | H132: 1.97 | J132: 0.5075 | K132: -1.517515924 | M132: 0.7938181818 | N132: 0.2246670527 | P132: 0.7332607993 | Q132: 0.1097868594 | S132: 0.8162472657 | T132: 0.2682226376 | U132: 0.5075 | V132: 0.7938181818 | W132: 0.7332607993 | X132: 0.8162472657 | AW132: 53774400
A133: 101 | B133: =IF(A133>$B$30,NA(),IF($A133>$A$8,"",OFFSET(InputPriceData!$B$15,$A133+$A$11,0,1,1))) -> 2020-08-11 | C133: =IF(A133>$B$30,NA(),IF($A133>$A$8,"",OFFSET(InputPriceData!$G$15,CalculationsAndCharts!$A133+$A$11,IF($C$5,8,0),1,1))) -> 69601100 | D133: =IF(A133>$B$30,NA(),IF(A133>$A$8,"",OFFSET(InputPriceData!$C$15,CalculationsAndCharts!$A133+$A$11,IF($C$5,8,0),1,1))) -> 331.91 | E133: =IF(A133>$B$30,NA(),IF(A133>$A$8,"",OFFSET(InputPriceData!$D$15,CalculationsAndCharts!$A133+$A$11,IF($C$5,8,0),1,1))) -> 332.59 | F133: =IF(A133>$B$30,NA(),IF(A133>$A$8,"",OFFSET(InputPriceData!$E$15,CalculationsAndCharts!$A133+$A$11,IF($C$5,8,0),1,1))) -> 327.14 | G133: =IF(A133>$B$30,NA(),IF(A133>$A$8,"",OFFSET(InputPriceData!$F$15,CalculationsAndCharts!$A133+$A$11,IF($C$5,8,0),1,1))) -> 327.92 | H133: -3.99 | J133: 0.984 | K133: 0.9108280255 | M133: 0.7232727273 | N133: 0.05703532137 | P133: 0.6987877255 | Q133: -0.1781228293 | S133: 0.7320253575 | T133: 0.2879976912 | U133: 0.984 | V133: 0.7232727273 | W133: 0.6987877255 | X133: 0.7320253575 | AX133: 69601100
A134: 102 | B134: =IF(A134>$B$30,NA(),IF($A134>$A$8,"",OFFSET(InputPriceData!$B$15,$A134+$A$11,0,1,1))) -> 2020-08-10 | C134: =IF(A134>$B$30,NA(),IF($A134>$A$8,"",OFFSET(InputPriceData!$G$15,CalculationsAndCharts!$A134+$A$11,IF($C$5,8,0),1,1))) -> 44282100 | D134: =IF(A134>$B$30,NA(),IF(A134>$A$8,"",OFFSET(InputPriceData!$C$15,CalculationsAndCharts!$A134+$A$11,IF($C$5,8,0),1,1))) -> 330.14 | E134: =IF(A134>$B$30,NA(),IF(A134>$A$8,"",OFFSET(InputPriceData!$D$15,CalculationsAndCharts!$A134+$A$11,IF($C$5,8,0),1,1))) -> 330.84 | F134: =IF(A134>$B$30,NA(),IF(A134>$A$8,"",OFFSET(InputPriceData!$E$15,CalculationsAndCharts!$A134+$A$11,IF($C$5,8,0),1,1))) -> 328.07 | G134: =IF(A134>$B$30,NA(),IF(A134>$A$8,"",OFFSET(InputPriceData!$F$15,CalculationsAndCharts!$A134+$A$11,IF($C$5,8,0),1,1))) -> 330.65 | H134: 0.51 | J134: 0.698 | K134: -0.3121019108 | M134: 0.7053636364 | N134: 0.3329473075 | P134: 0.7547182939 | Q134: 0.2883515604 | S134: 0.6415940825 | T134: 0.2663497186 | U134: 0.698 | V134: 0.7053636364 | W134: 0.7547182939 | X134: 0.6415940825 | AW134: 44282100
A135: 103 | B135: =IF(A135>$B$30,NA(),IF($A135>$A$8,"",OFFSET(InputPriceData!$B$15,$A135+$A$11,0,1,1))) -> 2020-08-07 | C135: =IF(A135>$B$30,NA(),IF($A135>$A$8,"",OFFSET(InputPriceData!$G$15,CalculationsAndCharts!$A135+$A$11,IF($C$5,8,0),1,1))) -> 57308300 | D135: =IF(A135>$B$30,NA(),IF(A135>$A$8,"",OFFSET(InputPriceData!$C$15,CalculationsAndCharts!$A135+$A$11,IF($C$5,8,0),1,1))) -> 328.39 | E135: =IF(A135>$B$30,NA(),IF(A135>$A$8,"",OFFSET(InputPriceData!$D$15,CalculationsAndCharts!$A135+$A$11,IF($C$5,8,0),1,1))) -> 329.97 | F135: =IF(A135>$B$30,NA(),IF(A135>$A$8,"",OFFSET(InputPriceData!$E$15,CalculationsAndCharts!$A135+$A$11,IF($C$5,8,0),1,1))) -> 327.42 | G135: =IF(A135>$B$30,NA(),IF(A135>$A$8,"",OFFSET(InputPriceData!$F$15,CalculationsAndCharts!$A135+$A$11,IF($C$5,8,0),1,1))) -> 329.66 | H135: 1.27 | J135: 0.796 | K135: 0.8312101911 | M135: 0.6008181818 | N135: 0.2680949624 | P135: 0.6641759039 | Q135: 0.155810564 | S135: 0.5579602709 | T135: 0.2109291275 | U135: 0.796 | V135: 0.6008181818 | W135: 0.6641759039 | X135: 0.5579602709 | AW135: 57308300
A136: 104 | B136: =IF(A136>$B$30,NA(),IF($A136>$A$8,"",OFFSET(InputPriceData!$B$15,$A136+$A$11,0,1,1))) -> 2020-08-06 | C136: =IF(A136>$B$30,NA(),IF($A136>$A$8,"",OFFSET(InputPriceData!$G$15,CalculationsAndCharts!$A136+$A$11,IF($C$5,8,0),1,1))) -> 43679400 | D136: =IF(A136>$B$30,NA(),IF(A136>$A$8,"",OFFSET(InputPriceData!$C$15,CalculationsAndCharts!$A136+$A$11,IF($C$5,8,0),1,1))) -> 326.62 | E136: =IF(A136>$B$30,NA(),IF(A136>$A$8,"",OFFSET(InputPriceData!$D$15,CalculationsAndCharts!$A136+$A$11,IF($C$5,8,0),1,1))) -> 329.55 | F136: =IF(A136>$B$30,NA(),IF(A136>$A$8,"",OFFSET(InputPriceData!$E$15,CalculationsAndCharts!$A136+$A$11,IF($C$5,8,0),1,1))) -> 326.27 | G136: =IF(A136>$B$30,NA(),IF(A136>$A$8,"",OFFSET(InputPriceData!$F$15,CalculationsAndCharts!$A136+$A$11,IF($C$5,8,0),1,1))) -> 329.42 | H136: 2.8 | J136: 0.535 | K136: -0.1464968153 | M136: 0.5166363636 | N136: 0.1991893457 | P136: 0.6152513868 | Q136: 0.2840441812 | S136: 0.4917285248 | T136: 0.1433019504 | U136: 0.535 | V136: 0.5166363636 | W136: 0.6152513868 | X136: 0.4917285248 | AW136: 43679400
A137: 105 | B137: =IF(A137>$B$30,NA(),IF($A137>$A$8,"",OFFSET(InputPriceData!$B$15,$A137+$A$11,0,1,1))) -> 2020-08-05 | C137: =IF(A137>$B$30,NA(),IF($A137>$A$8,"",OFFSET(InputPriceData!$G$15,CalculationsAndCharts!$A137+$A$11,IF($C$5,8,0),1,1))) -> 42697700 | D137: =IF(A137>$B$30,NA(),IF(A137>$A$8,"",OFFSET(InputPriceData!$C$15,CalculationsAndCharts!$A137+$A$11,IF($C$5,8,0),1,1))) -> 326.61 | E137: =IF(A137>$B$30,NA(),IF(A137>$A$8,"",OFFSET(InputPriceData!$D$15,CalculationsAndCharts!$A137+$A$11,IF($C$5,8,0),1,1))) -> 327.51 | F137: =IF(A137>$B$30,NA(),IF(A137>$A$8,"",OFFSET(InputPriceData!$E$15,CalculationsAndCharts!$A137+$A$11,IF($C$5,8,0),1,1))) -> 326.32 | G137: =IF(A137>$B$30,NA(),IF(A137>$A$8,"",OFFSET(InputPriceData!$F$15,CalculationsAndCharts!$A137+$A$11,IF($C$5,8,0),1,1))) -> 327.24 | H137: 0.63 | J137: 0.581 | K137: 0.597133758 | M137: 0.4540909091 | N137: 0.03676896352 | P137: 0.5260615139 | Q137: 0.1310468747 | S137: 0.4467317124 | T137: 0.09622510538 | U137: 0.581 | V137: 0.4540909091 | W137: 0.5260615139 | X137: 0.4467317124 | AW137: 42697700
A138: 106 | B138: =IF(A138>$B$30,NA(),IF($A138>$A$8,"",OFFSET(InputPriceData!$B$15,$A138+$A$11,0,1,1))) -> 2020-08-04 | C138: =IF(A138>$B$30,NA(),IF($A138>$A$8,"",OFFSET(InputPriceData!$G$15,CalculationsAndCharts!$A138+$A$11,IF($C$5,8,0),1,1))) -> 41917900 | D138: =IF(A138>$B$30,NA(),IF(A138>$A$8,"",OFFSET(InputPriceData!$C$15,CalculationsAndCharts!$A138+$A$11,IF($C$5,8,0),1,1))) -> 323.05 | E138: =IF(A138>$B$30,NA(),IF(A138>$A$8,"",OFFSET(InputPriceData!$D$15,CalculationsAndCharts!$A138+$A$11,IF($C$5,8,0),1,1))) -> 325.22 | F138: =IF(A138>$B$30,NA(),IF(A138>$A$8,"",OFFSET(InputPriceData!$E$15,CalculationsAndCharts!$A138+$A$11,IF($C$5,8,0),1,1))) -> 323.05 | G138: =IF(A138>$B$30,NA(),IF(A138>$A$8,"",OFFSET(InputPriceData!$F$15,CalculationsAndCharts!$A138+$A$11,IF($C$5,8,0),1,1))) -> 325.22 | H138: 2.17 | J138: 0.3935 | K138: -0.03343949045 | M138: 0.4425454545 | N138: 0.08685581934 | P138: 0.4849127952 | Q138: 0.2272081609 | S138: 0.4165170293 | T138: 0.06391005003 | U138: 0.3935 | V138: 0.4425454545 | W138: 0.4849127952 | X138: 0.4165170293 | AW138: 41917900
A139: 107 | B139: =IF(A139>$B$30,NA(),IF($A139>$A$8,"",OFFSET(InputPriceData!$B$15,$A139+$A$11,0,1,1))) -> 2020-08-03 | C139: =IF(A139>$B$30,NA(),IF($A139>$A$8,"",OFFSET(InputPriceData!$G$15,CalculationsAndCharts!$A139+$A$11,IF($C$5,8,0),1,1))) -> 53077900 | D139: =IF(A139>$B$30,NA(),IF(A139>$A$8,"",OFFSET(InputPriceData!$C$15,CalculationsAndCharts!$A139+$A$11,IF($C$5,8,0),1,1))) -> 323.5 | E139: =IF(A139>$B$30,NA(),IF(A139>$A$8,"",OFFSET(InputPriceData!$D$15,CalculationsAndCharts!$A139+$A$11,IF($C$5,8,0),1,1))) -> 324.78 | F139: =IF(A139>$B$30,NA(),IF(A139>$A$8,"",OFFSET(InputPriceData!$E$15,CalculationsAndCharts!$A139+$A$11,IF($C$5,8,0),1,1))) -> 322.92 | G139: =IF(A139>$B$30,NA(),IF(A139>$A$8,"",OFFSET(InputPriceData!$F$15,CalculationsAndCharts!$A139+$A$11,IF($C$5,8,0),1,1))) -> 323.96 | H139: 0.46 | J139: 0.404 | K139: 0.4124203822 | M139: 0.4152727273 | N139: 0.04603358425 | P139: 0.4135694327 | Q139: 0.1324503649 | S139: 0.3964492736 | T139: 0.05091249836 | U139: 0.404 | V139: 0.4152727273 | W139: 0.4135694327 | X139: 0.3964492736 | AW139: 53077900
A140: 108 | B140: =IF(A140>$B$30,NA(),IF($A140>$A$8,"",OFFSET(InputPriceData!$B$15,$A140+$A$11,0,1,1))) -> 2020-07-31 | C140: =IF(A140>$B$30,NA(),IF($A140>$A$8,"",OFFSET(InputPriceData!$G$15,CalculationsAndCharts!$A140+$A$11,IF($C$5,8,0),1,1))) -> 84986800 | D140: =IF(A140>$B$30,NA(),IF(A140>$A$8,"",OFFSET(InputPriceData!$C$15,CalculationsAndCharts!$A140+$A$11,IF($C$5,8,0),1,1))) -> 321.12 | E140: =IF(A140>$B$30,NA(),IF(A140>$A$8,"",OFFSET(InputPriceData!$D$15,CalculationsAndCharts!$A140+$A$11,IF($C$5,8,0),1,1))) -> 321.84 | F140: =IF(A140>$B$30,NA(),IF(A140>$A$8,"",OFFSET(InputPriceData!$E$15,CalculationsAndCharts!$A140+$A$11,IF($C$5,8,0),1,1))) -> 316.61 | G140: =IF(A140>$B$30,NA(),IF(A140>$A$8,"",OFFSET(InputPriceData!$F$15,CalculationsAndCharts!$A140+$A$11,IF($C$5,8,0),1,1))) -> 321.73 | H140: 0.61 | J140: 0.2745 | K140: 0.1751592357 | M140: 0.4008181818 | N140: 0.1679212507 | P140: 0.3719800181 | Q140: 0.2283177055 | S140: 0.3804627491 | T140: 0.05993696901 | U140: 0.2745 | V140: 0.4008181818 | W140: 0.3719800181 | X140: 0.3804627491 | AW140: 84986800
A141: 109 | B141: =IF(A141>$B$30,NA(),IF($A141>$A$8,"",OFFSET(InputPriceData!$B$15,$A141+$A$11,0,1,1))) -> 2020-07-30 | C141: =IF(A141>$B$30,NA(),IF($A141>$A$8,"",OFFSET(InputPriceData!$G$15,CalculationsAndCharts!$A141+$A$11,IF($C$5,8,0),1,1))) -> 61861700 | D141: =IF(A141>$B$30,NA(),IF(A141>$A$8,"",OFFSET(InputPriceData!$C$15,CalculationsAndCharts!$A141+$A$11,IF($C$5,8,0),1,1))) -> 317.18 | E141: =IF(A141>$B$30,NA(),IF(A141>$A$8,"",OFFSET(InputPriceData!$D$15,CalculationsAndCharts!$A141+$A$11,IF($C$5,8,0),1,1))) -> 319.65 | F141: =IF(A141>$B$30,NA(),IF(A141>$A$8,"",OFFSET(InputPriceData!$E$15,CalculationsAndCharts!$A141+$A$11,IF($C$5,8,0),1,1))) -> 314.95 | G141: =IF(A141>$B$30,NA(),IF(A141>$A$8,"",OFFSET(InputPriceData!$F$15,CalculationsAndCharts!$A141+$A$11,IF($C$5,8,0),1,1))) -> 319.21 | H141: 2.03 | J141: 0.2195 | K141: -0.2133757962 | M141: 0.3480909091 | N141: 0.1470758541 | P141: 0.3002882586 | Q141: 0.1864127626 | S141: 0.3616425409 | T141: 0.07791931526 | U141: 0.2195 | V141: 0.3480909091 | W141: 0.3002882586 | X141: 0.3616425409 | AW141: 61861700
A142: 110 | B142: =IF(A142>$B$30,NA(),IF($A142>$A$8,"",OFFSET(InputPriceData!$B$15,$A142+$A$11,0,1,1))) -> 2020-07-29 | C142: =IF(A142>$B$30,NA(),IF($A142>$A$8,"",OFFSET(InputPriceData!$G$15,CalculationsAndCharts!$A142+$A$11,IF($C$5,8,0),1,1))) -> 48454200 | D142: =IF(A142>$B$30,NA(),IF(A142>$A$8,"",OFFSET(InputPriceData!$C$15,CalculationsAndCharts!$A142+$A$11,IF($C$5,8,0),1,1))) -> 317.39 | E142: =IF(A142>$B$30,NA(),IF(A142>$A$8,"",OFFSET(InputPriceData!$D$15,CalculationsAndCharts!$A142+$A$11,IF($C$5,8,0),1,1))) -> 320.95 | F142: =IF(A142>$B$30,NA(),IF(A142>$A$8,"",OFFSET(InputPriceData!$E$15,CalculationsAndCharts!$A142+$A$11,IF($C$5,8,0),1,1))) -> 317.35 | G142: =IF(A142>$B$30,NA(),IF(A142>$A$8,"",OFFSET(InputPriceData!$F$15,CalculationsAndCharts!$A142+$A$11,IF($C$5,8,0),1,1))) -> 320.35 | H142: 2.96 | J142: 0.2865 | K142: -0.6751592357 | M142: 0.3019090909 | N142: -0.02374059062 | P142: 0.2417546512 | Q142: -0.03013193585 | S142: 0.3371758759 | T142: 0.07152801658 | U142: 0.2865 | V142: 0.3019090909 | W142: 0.2417546512 | X142: 0.3371758759 | AW142: 48454200
A143: 111 | B143: =IF(A143>$B$30,NA(),IF($A143>$A$8,"",OFFSET(InputPriceData!$B$15,$A143+$A$11,0,1,1))) -> 2020-07-28 | C143: =IF(A143>$B$30,NA(),IF($A143>$A$8,"",OFFSET(InputPriceData!$G$15,CalculationsAndCharts!$A143+$A$11,IF($C$5,8,0),1,1))) -> 57495000 | D143: =IF(A143>$B$30,NA(),IF(A143>$A$8,"",OFFSET(InputPriceData!$C$15,CalculationsAndCharts!$A143+$A$11,IF($C$5,8,0),1,1))) -> 317.7 | E143: =IF(A143>$B$30,NA(),IF(A143>$A$8,"",OFFSET(InputPriceData!$D$15,CalculationsAndCharts!$A143+$A$11,IF($C$5,8,0),1,1))) -> 318.89 | F143: =IF(A143>$B$30,NA(),IF(A143>$A$8,"",OFFSET(InputPriceData!$E$15,CalculationsAndCharts!$A143+$A$11,IF($C$5,8,0),1,1))) -> 316.14 | G143: =IF(A143>$B$30,NA(),IF(A143>$A$8,"",OFFSET(InputPriceData!$F$15,CalculationsAndCharts!$A143+$A$11,IF($C$5,8,0),1,1))) -> 316.46 | H143: -1.24 | J143: 0.4985 | K143: 1.208598726 | M143: 0.3093636364 | N143: -0.05182397221 | P143: 0.251216079 | Q143: -0.2363016363 | S143: 0.3147160787 | T143: 0.04321747297 | U143: 0.4985 | V143: 0.3093636364 | W143: 0.251216079 | X143: 0.3147160787 | AX143: 57495000
A144: 112 | B144: =IF(A144>$B$30,NA(),IF($A144>$A$8,"",OFFSET(InputPriceData!$B$15,$A144+$A$11,0,1,1))) -> 2020-07-27 | C144: =IF(A144>$B$30,NA(),IF($A144>$A$8,"",OFFSET(InputPriceData!$G$15,CalculationsAndCharts!$A144+$A$11,IF($C$5,8,0),1,1))) -> 48293000 | D144: =IF(A144>$B$30,NA(),IF(A144>$A$8,"",OFFSET(InputPriceData!$C$15,CalculationsAndCharts!$A144+$A$11,IF($C$5,8,0),1,1))) -> 316.91 | E144: =IF(A144>$B$30,NA(),IF(A144>$A$8,"",OFFSET(InputPriceData!$D$15,CalculationsAndCharts!$A144+$A$11,IF($C$5,8,0),1,1))) -> 318.66 | F144: =IF(A144>$B$30,NA(),IF(A144>$A$8,"",OFFSET(InputPriceData!$E$15,CalculationsAndCharts!$A144+$A$11,IF($C$5,8,0),1,1))) -> 316.06 | G144: =IF(A144>$B$30,NA(),IF(A144>$A$8,"",OFFSET(InputPriceData!$F$15,CalculationsAndCharts!$A144+$A$11,IF($C$5,8,0),1,1))) -> 318.48 | H144: 1.57 | J144: 0.119 | K144: -0.6194267516 | M144: 0.3256363636 | N144: 0.1679212507 | P144: 0.3254147928 | Q144: 0.1119328397 | S144: 0.3011457921 | T144: 0.04300270293 | U144: 0.119 | V144: 0.3256363636 | W144: 0.3254147928 | X144: 0.3011457921 | AW144: 48293000
A145: 113 | B145: =IF(A145>$B$30,NA(),IF($A145>$A$8,"",OFFSET(InputPriceData!$B$15,$A145+$A$11,0,1,1))) -> 2020-07-24 | C145: =IF(A145>$B$30,NA(),IF($A145>$A$8,"",OFFSET(InputPriceData!$G$15,CalculationsAndCharts!$A145+$A$11,IF($C$5,8,0),1,1))) -> 73766600 | D145: =IF(A145>$B$30,NA(),IF(A145>$A$8,"",OFFSET(InputPriceData!$C$15,CalculationsAndCharts!$A145+$A$11,IF($C$5,8,0),1,1))) -> 316.24 | E145: =IF(A145>$B$30,NA(),IF(A145>$A$8,"",OFFSET(InputPriceData!$D$15,CalculationsAndCharts!$A145+$A$11,IF($C$5,8,0),1,1))) -> 317.26 | F145: =IF(A145>$B$30,NA(),IF(A145>$A$8,"",OFFSET(InputPriceData!$E$15,CalculationsAndCharts!$A145+$A$11,IF($C$5,8,0),1,1))) -> 314.56 | G145: =IF(A145>$B$30,NA(),IF(A145>$A$8,"",OFFSET(InputPriceData!$F$15,CalculationsAndCharts!$A145+$A$11,IF($C$5,8,0),1,1))) -> 316.17 | H145: -0.07 | J145: 0.3135 | K145: 0.3503184713 | M145: 0.2729090909 | N145: -0.04545454545 | P145: 0.2902678812 | Q145: -0.1275474962 | S145: 0.2876429434 | T145: 0.05601287476 | U145: 0.3135 | V145: 0.2729090909 | W145: 0.2902678812 | X145: 0.2876429434 | AX145: 73766600
A146: 114 | B146: =IF(A146>$B$30,NA(),IF($A146>$A$8,"",OFFSET(InputPriceData!$B$15,$A146+$A$11,0,1,1))) -> 2020-07-23 | C146: =IF(A146>$B$30,NA(),IF($A146>$A$8,"",OFFSET(InputPriceData!$G$15,CalculationsAndCharts!$A146+$A$11,IF($C$5,8,0),1,1))) -> 75738000 | D146: =IF(A146>$B$30,NA(),IF(A146>$A$8,"",OFFSET(InputPriceData!$C$15,CalculationsAndCharts!$A146+$A$11,IF($C$5,8,0),1,1))) -> 321.68 | E146: =IF(A146>$B$30,NA(),IF(A146>$A$8,"",OFFSET(InputPriceData!$D$15,CalculationsAndCharts!$A146+$A$11,IF($C$5,8,0),1,1))) -> 322.43 | F146: =IF(A146>$B$30,NA(),IF(A146>$A$8,"",OFFSET(InputPriceData!$E$15,CalculationsAndCharts!$A146+$A$11,IF($C$5,8,0),1,1))) -> 316.76 | G146: =IF(A146>$B$30,NA(),IF(A146>$A$8,"",OFFSET(InputPriceData!$F$15,CalculationsAndCharts!$A146+$A$11,IF($C$5,8,0),1,1))) -> 318.22 | H146: -3.46 | J146: 0.2035 | K146: 0.576433121 | M146: 0.2871818182 | N146: 0.1438911407 | P146: 0.330317795 | Q146: 0.1313180487 | S146: 0.2700549008 | T146: 0.08654936724 | U146: 0.2035 | V146: 0.2871818182 | W146: 0.330317795 | X146: 0.2700549008 | AX146: 75738000
A147: 115 | B147: =IF(A147>$B$30,NA(),IF($A147>$A$8,"",OFFSET(InputPriceData!$B$15,$A147+$A$11,0,1,1))) -> 2020-07-22 | C147: =IF(A147>$B$30,NA(),IF($A147>$A$8,"",OFFSET(InputPriceData!$G$15,CalculationsAndCharts!$A147+$A$11,IF($C$5,8,0),1,1))) -> 57792900 | D147: =IF(A147>$B$30,NA(),IF(A147>$A$8,"",OFFSET(InputPriceData!$C$15,CalculationsAndCharts!$A147+$A$11,IF($C$5,8,0),1,1))) -> 319.86 | E147: =IF(A147>$B$30,NA(),IF(A147>$A$8,"",OFFSET(InputPriceData!$D$15,CalculationsAndCharts!$A147+$A$11,IF($C$5,8,0),1,1))) -> 322.4 | F147: =IF(A147>$B$30,NA(),IF(A147>$A$8,"",OFFSET(InputPriceData!$E$15,CalculationsAndCharts!$A147+$A$11,IF($C$5,8,0),1,1))) -> 319.74 | G147: =IF(A147>$B$30,NA(),IF(A147>$A$8,"",OFFSET(InputPriceData!$F$15,CalculationsAndCharts!$A147+$A$11,IF($C$5,8,0),1,1))) -> 322.06 | H147: 2.2 | J147: 0.0225 | K147: -0.6385350318 | M147: 0.242 | N147: 0.2599884192 | P147: 0.2890839277 | Q147: 0.3279239319 | S147: 0.2428783994 | T147: 0.1333137578 | U147: 0.0225 | V147: 0.242 | W147: 0.2890839277 | X147: 0.2428783994 | AW147: 57792900
A148: 116 | B148: =IF(A148>$B$30,NA(),IF($A148>$A$8,"",OFFSET(InputPriceData!$B$15,$A148+$A$11,0,1,1))) -> 2020-07-21 | C148: =IF(A148>$B$30,NA(),IF($A148>$A$8,"",OFFSET(InputPriceData!$G$15,CalculationsAndCharts!$A148+$A$11,IF($C$5,8,0),1,1))) -> 57292200 | D148: =IF(A148>$B$30,NA(),IF(A148>$A$8,"",OFFSET(InputPriceData!$C$15,CalculationsAndCharts!$A148+$A$11,IF($C$5,8,0),1,1))) -> 321.66 | E148: =IF(A148>$B$30,NA(),IF(A148>$A$8,"",OFFSET(InputPriceData!$D$15,CalculationsAndCharts!$A148+$A$11,IF($C$5,8,0),1,1))) -> 322.13 | F148: =IF(A148>$B$30,NA(),IF(A148>$A$8,"",OFFSET(InputPriceData!$E$15,CalculationsAndCharts!$A148+$A$11,IF($C$5,8,0),1,1))) -> 319.19 | G148: =IF(A148>$B$30,NA(),IF(A148>$A$8,"",OFFSET(InputPriceData!$F$15,CalculationsAndCharts!$A148+$A$11,IF($C$5,8,0),1,1))) -> 320.24 | H148: -1.42 | J148: 0.223 | K148: 1.321656051 | M148: 0.1603636364 | N148: 0.1204400695 | P148: 0.1861158131 | Q148: 0.1268251899 | S148: 0.2010178795 | T148: 0.151860467 | U148: 0.223 | V148: 0.1603636364 | W148: 0.1861158131 | X148: 0.2010178795 | AX148: 57292200
A149: 117 | B149: =IF(A149>$B$30,NA(),IF($A149>$A$8,"",OFFSET(InputPriceData!$B$15,$A149+$A$11,0,1,1))) -> 2020-07-20 | C149: =IF(A149>$B$30,NA(),IF($A149>$A$8,"",OFFSET(InputPriceData!$G$15,CalculationsAndCharts!$A149+$A$11,IF($C$5,8,0),1,1))) -> 56308800 | D149: =IF(A149>$B$30,NA(),IF(A149>$A$8,"",OFFSET(InputPriceData!$C$15,CalculationsAndCharts!$A149+$A$11,IF($C$5,8,0),1,1))) -> 316.71 | E149: =IF(A149>$B$30,NA(),IF(A149>$A$8,"",OFFSET(InputPriceData!$D$15,CalculationsAndCharts!$A149+$A$11,IF($C$5,8,0),1,1))) -> 320.36 | F149: =IF(A149>$B$30,NA(),IF(A149>$A$8,"",OFFSET(InputPriceData!$E$15,CalculationsAndCharts!$A149+$A$11,IF($C$5,8,0),1,1))) -> 315.91 | G149: =IF(A149>$B$30,NA(),IF(A149>$A$8,"",OFFSET(InputPriceData!$F$15,CalculationsAndCharts!$A149+$A$11,IF($C$5,8,0),1,1))) -> 319.56 | H149: 2.85 | J149: -0.192 | K149: -0.3025477707 | M149: 0.1225454545 | N149: 0.2929936306 | P149: 0.1462927035 | Q149: 0.4524766375 | S149: 0.1533336928 | T149: 0.1814382731 | U149: -0.192 | V149: 0.1225454545 | W149: 0.1462927035 | X149: 0.1533336928 | AW149: 56308800
A150: 118 | B150: =IF(A150>$B$30,NA(),IF($A150>$A$8,"",OFFSET(InputPriceData!$B$15,$A150+$A$11,0,1,1))) -> 2020-07-17 | C150: =IF(A150>$B$30,NA(),IF($A150>$A$8,"",OFFSET(InputPriceData!$G$15,CalculationsAndCharts!$A150+$A$11,IF($C$5,8,0),1,1))) -> 62774900 | D150: =IF(A150>$B$30,NA(),IF(A150>$A$8,"",OFFSET(InputPriceData!$C$15,CalculationsAndCharts!$A150+$A$11,IF($C$5,8,0),1,1))) -> 317.16 | E150: =IF(A150>$B$30,NA(),IF(A150>$A$8,"",OFFSET(InputPriceData!$D$15,CalculationsAndCharts!$A150+$A$11,IF($C$5,8,0),1,1))) -> 317.84 | F150: =IF(A150>$B$30,NA(),IF(A150>$A$8,"",OFFSET(InputPriceData!$E$15,CalculationsAndCharts!$A150+$A$11,IF($C$5,8,0),1,1))) -> 315.05 | G150: =IF(A150>$B$30,NA(),IF(A150>$A$8,"",OFFSET(InputPriceData!$F$15,CalculationsAndCharts!$A150+$A$11,IF($C$5,8,0),1,1))) -> 317 | H150: -0.16 | J150: -0.097 | K150: 0.5318471338 | M150: 0.03054545455 | N150: 0.1221771859 | P150: 0.004215039325 | Q150: 0.2291104401 | S150: 0.09636207509 | T150: 0.2295253354 | U150: -0.097 | V150: 0.03054545455 | W150: 0.004215039325 | X150: 0.09636207509 | AX150: 62774900
A151: 119 | B151: =IF(A151>$B$30,NA(),IF($A151>$A$8,"",OFFSET(InputPriceData!$B$15,$A151+$A$11,0,1,1))) -> 2020-07-16 | C151: =IF(A151>$B$30,NA(),IF($A151>$A$8,"",OFFSET(InputPriceData!$G$15,CalculationsAndCharts!$A151+$A$11,IF($C$5,8,0),1,1))) -> 54622500 | D151: =IF(A151>$B$30,NA(),IF(A151>$A$8,"",OFFSET(InputPriceData!$C$15,CalculationsAndCharts!$A151+$A$11,IF($C$5,8,0),1,1))) -> 315.1 | E151: =IF(A151>$B$30,NA(),IF(A151>$A$8,"",OFFSET(InputPriceData!$D$15,CalculationsAndCharts!$A151+$A$11,IF($C$5,8,0),1,1))) -> 316.56 | F151: =IF(A151>$B$30,NA(),IF(A151>$A$8,"",OFFSET(InputPriceData!$E$15,CalculationsAndCharts!$A151+$A$11,IF($C$5,8,0),1,1))) -> 314.41 | G151: =IF(A151>$B$30,NA(),IF(A151>$A$8,"",OFFSET(InputPriceData!$F$15,CalculationsAndCharts!$A151+$A$11,IF($C$5,8,0),1,1))) -> 316.08 | H151: 0.98 | J151: -0.264 | K151: 0.3057324841 | M151: -0.007818181818 | N151: 0.1647365373 | P151: -0.06772563887 | Q151: 0.3449196176 | S151: 0.02429111979 | T151: 0.2795192491 | U151: -0.264 | V151: -0.007818181818 | W151: -0.06772563887 | X151: 0.02429111979 | AW151: 54622500
A152: 120 | B152: =IF(A152>$B$30,NA(),IF($A152>$A$8,"",OFFSET(InputPriceData!$B$15,$A152+$A$11,0,1,1))) -> 2020-07-15 | C152: =IF(A152>$B$30,NA(),IF($A152>$A$8,"",OFFSET(InputPriceData!$G$15,CalculationsAndCharts!$A152+$A$11,IF($C$5,8,0),1,1))) -> 87196500 | D152: =IF(A152>$B$30,NA(),IF(A152>$A$8,"",OFFSET(InputPriceData!$C$15,CalculationsAndCharts!$A152+$A$11,IF($C$5,8,0),1,1))) -> 317.68 | E152: =IF(A152>$B$30,NA(),IF(A152>$A$8,"",OFFSET(InputPriceData!$D$15,CalculationsAndCharts!$A152+$A$11,IF($C$5,8,0),1,1))) -> 318.3 | F152: =IF(A152>$B$30,NA(),IF(A152>$A$8,"",OFFSET(InputPriceData!$E$15,CalculationsAndCharts!$A152+$A$11,IF($C$5,8,0),1,1))) -> 314.58 | G152: =IF(A152>$B$30,NA(),IF(A152>$A$8,"",OFFSET(InputPriceData!$F$15,CalculationsAndCharts!$A152+$A$11,IF($C$5,8,0),1,1))) -> 317.13 | H152: -0.55 | J152: -0.36 | K152: -0.5286624204 | M152: -0.05954545455 | N152: 0.3592935727 | P152: -0.1760303988 | Q152: 0.3747956966 | S152: -0.06347792444 | T152: 0.3427436281 | U152: -0.36 | V152: -0.05954545455 | W152: -0.1760303988 | X152: -0.06347792444 | AX152: 87196500
A153: 121 | B153: =IF(A153>$B$30,NA(),IF($A153>$A$8,"",OFFSET(InputPriceData!$B$15,$A153+$A$11,0,1,1))) -> 2020-07-14 | C153: =IF(A153>$B$30,NA(),IF($A153>$A$8,"",OFFSET(InputPriceData!$G$15,CalculationsAndCharts!$A153+$A$11,IF($C$5,8,0),1,1))) -> 93657000 | D153: =IF(A153>$B$30,NA(),IF(A153>$A$8,"",OFFSET(InputPriceData!$C$15,CalculationsAndCharts!$A153+$A$11,IF($C$5,8,0),1,1))) -> 308.7 | E153: =IF(A153>$B$30,NA(),IF(A153>$A$8,"",OFFSET(InputPriceData!$D$15,CalculationsAndCharts!$A153+$A$11,IF($C$5,8,0),1,1))) -> 315.07 | F153: =IF(A153>$B$30,NA(),IF(A153>$A$8,"",OFFSET(InputPriceData!$E$15,CalculationsAndCharts!$A153+$A$11,IF($C$5,8,0),1,1))) -> 307.42 | G153: =IF(A153>$B$30,NA(),IF(A153>$A$8,"",OFFSET(InputPriceData!$F$15,CalculationsAndCharts!$A153+$A$11,IF($C$5,8,0),1,1))) -> 314.24 | H153: 5.54 | J153: -0.194 | K153: -0.199044586 | M153: -0.1723636364 | N153: 0.3300521135 | P153: -0.2937162475 | Q153: 0.03536208677 | S153: -0.1710994237 | T153: 0.3353581239 | U153: -0.194 | V153: -0.1723636364 | W153: -0.2937162475 | X153: -0.1710994237 | AW153: 93657000
A154: 122 | B154: =IF(A154>$B$30,NA(),IF($A154>$A$8,"",OFFSET(InputPriceData!$B$15,$A154+$A$11,0,1,1))) -> 2020-07-13 | C154: =IF(A154>$B$30,NA(),IF($A154>$A$8,"",OFFSET(InputPriceData!$G$15,CalculationsAndCharts!$A154+$A$11,IF($C$5,8,0),1,1))) -> 102997500 | D154: =IF(A154>$B$30,NA(),IF(A154>$A$8,"",OFFSET(InputPriceData!$C$15,CalculationsAndCharts!$A154+$A$11,IF($C$5,8,0),1,1))) -> 315.43 | E154: =IF(A154>$B$30,NA(),IF(A154>$A$8,"",OFFSET(InputPriceData!$D$15,CalculationsAndCharts!$A154+$A$11,IF($C$5,8,0),1,1))) -> 317.97 | F154: =IF(A154>$B$30,NA(),IF(A154>$A$8,"",OFFSET(InputPriceData!$E$15,CalculationsAndCharts!$A154+$A$11,IF($C$5,8,0),1,1))) -> 309.52 | G154: =IF(A154>$B$30,NA(),IF(A154>$A$8,"",OFFSET(InputPriceData!$F$15,CalculationsAndCharts!$A154+$A$11,IF($C$5,8,0),1,1))) -> 310.22 | H154: -5.21 | J154: -0.1315 | K154: 2.208598726 | M154: -0.276 | N154: 0.1968731905 | P154: -0.3048199428 | Q154: -0.02641549958 | S154: -0.2764018746 | T154: 0.2987809553 | U154: -0.1315 | V154: -0.276 | W154: -0.3048199428 | X154: -0.2764018746 | AX154: 102997500
A155: 123 | B155: =IF(A155>$B$30,NA(),IF($A155>$A$8,"",OFFSET(InputPriceData!$B$15,$A155+$A$11,0,1,1))) -> 2020-07-10 | C155: =IF(A155>$B$30,NA(),IF($A155>$A$8,"",OFFSET(InputPriceData!$G$15,CalculationsAndCharts!$A155+$A$11,IF($C$5,8,0),1,1))) -> 57550400 | D155: =IF(A155>$B$30,NA(),IF(A155>$A$8,"",OFFSET(InputPriceData!$C$15,CalculationsAndCharts!$A155+$A$11,IF($C$5,8,0),1,1))) -> 309.7 | E155: =IF(A155>$B$30,NA(),IF(A155>$A$8,"",OFFSET(InputPriceData!$D$15,CalculationsAndCharts!$A155+$A$11,IF($C$5,8,0),1,1))) -> 313.21 | F155: =IF(A155>$B$30,NA(),IF(A155>$A$8,"",OFFSET(InputPriceData!$E$15,CalculationsAndCharts!$A155+$A$11,IF($C$5,8,0),1,1))) -> 308.17 | G155: =IF(A155>$B$30,NA(),IF(A155>$A$8,"",OFFSET(InputPriceData!$F$15,CalculationsAndCharts!$A155+$A$11,IF($C$5,8,0),1,1))) -> 312.93 | H155: 3.23 | J155: -0.825 | K155: -0.006369426752 | M155: -0.3378181818 | N155: 0.5920671685 | P155: -0.2965254759 | Q155: 0.5953590454 | S155: -0.3702190945 | T155: 0.3362469325 | U155: -0.825 | V155: -0.3378181818 | W155: -0.2965254759 | X155: -0.3702190945 | AW155: 57550400
A156: 124 | B156: =IF(A156>$B$30,NA(),IF($A156>$A$8,"",OFFSET(InputPriceData!$B$15,$A156+$A$11,0,1,1))) -> 2020-07-09 | C156: =IF(A156>$B$30,NA(),IF($A156>$A$8,"",OFFSET(InputPriceData!$G$15,CalculationsAndCharts!$A156+$A$11,IF($C$5,8,0),1,1))) -> 83354200 | D156: =IF(A156>$B$30,NA(),IF(A156>$A$8,"",OFFSET(InputPriceData!$C$15,CalculationsAndCharts!$A156+$A$11,IF($C$5,8,0),1,1))) -> 312.19 | E156: =IF(A156>$B$30,NA(),IF(A156>$A$8,"",OFFSET(InputPriceData!$D$15,CalculationsAndCharts!$A156+$A$11,IF($C$5,8,0),1,1))) -> 312.45 | F156: =IF(A156>$B$30,NA(),IF(A156>$A$8,"",OFFSET(InputPriceData!$E$15,CalculationsAndCharts!$A156+$A$11,IF($C$5,8,0),1,1))) -> 306.12 | G156: =IF(A156>$B$30,NA(),IF(A156>$A$8,"",OFFSET(InputPriceData!$F$15,CalculationsAndCharts!$A156+$A$11,IF($C$5,8,0),1,1))) -> 309.77 | H156: -2.42 | J156: -0.823 | K156: 0.1703821656 | M156: -0.5237272727 | N156: 0.5141864505 | P156: -0.4834682161 | Q156: 0.4428926704 | S156: -0.4758006313 | T156: 0.4182180938 | U156: -0.823 | V156: -0.5237272727 | W156: -0.4834682161 | X156: -0.4758006313 | AX156: 83354200
A157: 125 | B157: =IF(A157>$B$30,NA(),IF($A157>$A$8,"",OFFSET(InputPriceData!$B$15,$A157+$A$11,0,1,1))) -> 2020-07-08 | C157: =IF(A157>$B$30,NA(),IF($A157>$A$8,"",OFFSET(InputPriceData!$G$15,CalculationsAndCharts!$A157+$A$11,IF($C$5,8,0),1,1))) -> 54638600 | D157: =IF(A157>$B$30,NA(),IF(A157>$A$8,"",OFFSET(InputPriceData!$C$15,CalculationsAndCharts!$A157+$A$11,IF($C$5,8,0),1,1))) -> 309.99 | E157: =IF(A157>$B$30,NA(),IF(A157>$A$8,"",OFFSET(InputPriceData!$D$15,CalculationsAndCharts!$A157+$A$11,IF($C$5,8,0),1,1))) -> 311.66 | F157: =IF(A157>$B$30,NA(),IF(A157>$A$8,"",OFFSET(InputPriceData!$E$15,CalculationsAndCharts!$A157+$A$11,IF($C$5,8,0),1,1))) -> 308.11 | G157: =IF(A157>$B$30,NA(),IF(A157>$A$8,"",OFFSET(InputPriceData!$F$15,CalculationsAndCharts!$A157+$A$11,IF($C$5,8,0),1,1))) -> 311.54 | H157: 1.55 | J157: -0.8765 | K157: -0.7165605096 | M157: -0.6851818182 | N157: 0.36537348 | P157: -0.6225365147 | Q157: 0.4739417898 | S157: -0.6071211128 | T157: 0.4812874162 | U157: -0.8765 | V157: -0.6851818182 | W157: -0.6225365147 | X157: -0.6071211128 | AW157: 54638600
A158: 126 | B158: =IF(A158>$B$30,NA(),IF($A158>$A$8,"",OFFSET(InputPriceData!$B$15,$A158+$A$11,0,1,1))) -> 2020-07-07 | C158: =IF(A158>$B$30,NA(),IF($A158>$A$8,"",OFFSET(InputPriceData!$G$15,CalculationsAndCharts!$A158+$A$11,IF($C$5,8,0),1,1))) -> 82910000 | D158: =IF(A158>$B$30,NA(),IF(A158>$A$8,"",OFFSET(InputPriceData!$C$15,CalculationsAndCharts!$A158+$A$11,IF($C$5,8,0),1,1))) -> 310.75 | E158: =IF(A158>$B$30,NA(),IF(A158>$A$8,"",OFFSET(InputPriceData!$D$15,CalculationsAndCharts!$A158+$A$11,IF($C$5,8,0),1,1))) -> 312.86 | F158: =IF(A158>$B$30,NA(),IF(A158>$A$8,"",OFFSET(InputPriceData!$E$15,CalculationsAndCharts!$A158+$A$11,IF($C$5,8,0),1,1))) -> 308.77 | G158: =IF(A158>$B$30,NA(),IF(A158>$A$8,"",OFFSET(InputPriceData!$F$15,CalculationsAndCharts!$A158+$A$11,IF($C$5,8,0),1,1))) -> 309.17 | H158: -1.58 | J158: -0.6515 | K158: -0.2229299363 | M158: -0.7999090909 | N158: 0.2698320787 | P158: -0.7713542366 | Q158: 0.2314201361 | S158: -0.7582453615 | T158: 0.4728230373 | U158: -0.6515 | V158: -0.7999090909 | W158: -0.7713542366 | X158: -0.7582453615 | AX158: 82910000
A159: 127 | B159: =IF(A159>$B$30,NA(),IF($A159>$A$8,"",OFFSET(InputPriceData!$B$15,$A159+$A$11,0,1,1))) -> 2020-07-06 | C159: =IF(A159>$B$30,NA(),IF($A159>$A$8,"",OFFSET(InputPriceData!$G$15,CalculationsAndCharts!$A159+$A$11,IF($C$5,8,0),1,1))) -> 61713800 | D159: =IF(A159>$B$30,NA(),IF(A159>$A$8,"",OFFSET(InputPriceData!$C$15,CalculationsAndCharts!$A159+$A$11,IF($C$5,8,0),1,1))) -> 311.73 | E159: =IF(A159>$B$30,NA(),IF(A159>$A$8,"",OFFSET(InputPriceData!$D$15,CalculationsAndCharts!$A159+$A$11,IF($C$5,8,0),1,1))) -> 313.02 | F159: =IF(A159>$B$30,NA(),IF(A159>$A$8,"",OFFSET(InputPriceData!$E$15,CalculationsAndCharts!$A159+$A$11,IF($C$5,8,0),1,1))) -> 310.93 | G159: =IF(A159>$B$30,NA(),IF(A159>$A$8,"",OFFSET(InputPriceData!$F$15,CalculationsAndCharts!$A159+$A$11,IF($C$5,8,0),1,1))) -> 312.4 | H159: 0.67 | J159: -0.5815 | K159: -0.3550955414 | M159: -0.8846363636 | N159: 0.1728430805 | P159: -0.8440201594 | Q159: 0.1767110667 | S159: -0.9067117952 | T159: 0.3885239159 | U159: -0.5815 | V159: -0.8846363636 | W159: -0.8440201594 | X159: -0.9067117952 | AW159: 61713800
A160: 128 | B160: =IF(A160>$B$30,NA(),IF($A160>$A$8,"",OFFSET(InputPriceData!$B$15,$A160+$A$11,0,1,1))) -> 2020-07-02 | C160: =IF(A160>$B$30,NA(),IF($A160>$A$8,"",OFFSET(InputPriceData!$G$15,CalculationsAndCharts!$A160+$A$11,IF($C$5,8,0),1,1))) -> 69344200 | D160: =IF(A160>$B$30,NA(),IF(A160>$A$8,"",OFFSET(InputPriceData!$C$15,CalculationsAndCharts!$A160+$A$11,IF($C$5,8,0),1,1))) -> 309.63 | E160: =IF(A160>$B$30,NA(),IF(A160>$A$8,"",OFFSET(InputPriceData!$D$15,CalculationsAndCharts!$A160+$A$11,IF($C$5,8,0),1,1))) -> 311.07 | F160: =IF(A160>$B$30,NA(),IF(A160>$A$8,"",OFFSET(InputPriceData!$E$15,CalculationsAndCharts!$A160+$A$11,IF($C$5,8,0),1,1))) -> 306.94 | G160: =IF(A160>$B$30,NA(),IF(A160>$A$8,"",OFFSET(InputPriceData!$F$15,CalculationsAndCharts!$A160+$A$11,IF($C$5,8,0),1,1))) -> 307.65 | H160: -1.98 | J160: -0.47 | K160: -0.1544585987 | M160: -0.9389090909 | N160: 0.03879559931 | P160: -0.8995074343 | Q160: 0.07797673822 | S160: -1.028708305 | T160: 0.2479405561 | U160: -0.47 | V160: -0.9389090909 | W160: -0.8995074343 | X160: -1.028708305 | AX160: 69344200
A161: 129 | B161: =IF(A161>$B$30,NA(),IF($A161>$A$8,"",OFFSET(InputPriceData!$B$15,$A161+$A$11,0,1,1))) -> 2020-07-01 | C161: =IF(A161>$B$30,NA(),IF($A161>$A$8,"",OFFSET(InputPriceData!$G$15,CalculationsAndCharts!$A161+$A$11,IF($C$5,8,0),1,1))) -> 72396500 | D161: =IF(A161>$B$30,NA(),IF(A161>$A$8,"",OFFSET(InputPriceData!$C$15,CalculationsAndCharts!$A161+$A$11,IF($C$5,8,0),1,1))) -> 305.03 | E161: =IF(A161>$B$30,NA(),IF(A161>$A$8,"",OFFSET(InputPriceData!$D$15,CalculationsAndCharts!$A161+$A$11,IF($C$5,8,0),1,1))) -> 307.31 | F161: =IF(A161>$B$30,NA(),IF(A161>$A$8,"",OFFSET(InputPriceData!$E$15,CalculationsAndCharts!$A161+$A$11,IF($C$5,8,0),1,1))) -> 304.53 | G161: =IF(A161>$B$30,NA(),IF(A161>$A$8,"",OFFSET(InputPriceData!$F$15,CalculationsAndCharts!$A161+$A$11,IF($C$5,8,0),1,1))) -> 305.96 | H161: 0.93 | J161: -0.4215 | K161: =IF(A161<=$K$30,$D$17*(J161-J162),NA()) -> 0.4458598726 | L161: =IF($A161>$E$17+1,NA(),IF($A161=$E$17+1,SUM(OFFSET(L$33,0,0,$A$17,1)),IF($A161=$E$17,"-- Coef Sum--",IF($A161<$C$17,$A161,IF($A161=$C$17,$A161,$E$17-$A161))))) ->  | M161: =IF(A161<=$M$30,SUMPRODUCT(OFFSET($H161,0,0,$A$17,1),OFFSET($L$33,0,0,$A$17,1))/OFFSET($L$33,$E$17,0,1,1),NA()) -> -0.9510909091 | N161: =IF($A161<=$N$30,$D$17*(M161-M162),NA()) -> 0.02316155182 | O161: =IF($A161>$E$17+1,NA(),IF($A161=$E$17+1,SUM(OFFSET($O$33,0,0,$A$17,1)),IF(A161=$E$17,"-- SUM --",SIN(RADIANS($A$20+(180-$C$20)*($A161-1)/$F$17))))) ->  | P161: =IF(A161<=P$30,SUMPRODUCT(OFFSET(O$33,0,0,$A$17,1),OFFSET($H161,0,0,$A$17,1))/OFFSET(O$33,$E$17,0,1,1),NA()) -> -0.9239921301 | Q161: =IF($A161<=Q$30,$D$17*(P161-P162),NA()) -> 0.02543146681 | R161: =IF($A161>$E$17+1,NA(),IF($A161=$E$17+1,SUM(OFFSET(R$33,0,0,$A$17,1)),IF($A161=$E$17,"-- Coef Sum--",1-COS(RADIANS(360*$A161/$E$17))))) ->  | S161: =IF($A161<=S$30,SUMPRODUCT(OFFSET(R$33,0,0,$A$17,1),OFFSET($H161,0,0,$A$17,1))/OFFSET(R$33,$E$17,0,1,1),NA()) -> -1.106561639 | T161: =IF($A161<=T$30,$D$17*(S161-S162),NA()) -> 0.06201477726 | U161: =IF($R$12=1,J161,K161) -> -0.4215 | V161: =IF($R$12=1,M161,N161) -> -0.9510909091 | W161: =IF($R$12=1,P161,Q161) -> -0.9239921301 | X161: =IF($R$12=1,S161,T161) -> -1.106561639 | AW161: =IF(G161>=D161,C161,NA()) -> 72396500 | AX161: =IF(G161<D161,C161,NA()) -> 
A162: 130 | B162: =IF(A162>$B$30,NA(),IF($A162>$A$8,"",OFFSET(InputPriceData!$B$15,$A162+$A$11,0,1,1))) -> 2020-06-30 | C162: =IF(A162>$B$30,NA(),IF($A162>$A$8,"",OFFSET(InputPriceData!$G$15,CalculationsAndCharts!$A162+$A$11,IF($C$5,8,0),1,1))) -> 113394800 | D162: =IF(A162>$B$30,NA(),IF(A162>$A$8,"",OFFSET(InputPriceData!$C$15,CalculationsAndCharts!$A162+$A$11,IF($C$5,8,0),1,1))) -> 299.53 | E162: =IF(A162>$B$30,NA(),IF(A162>$A$8,"",OFFSET(InputPriceData!$D$15,CalculationsAndCharts!$A162+$A$11,IF($C$5,8,0),1,1))) -> 305.65 | F162: =IF(A162>$B$30,NA(),IF(A162>$A$8,"",OFFSET(InputPriceData!$E$15,CalculationsAndCharts!$A162+$A$11,IF($C$5,8,0),1,1))) -> 299.36 | G162: =IF(A162>$B$30,NA(),IF(A162>$A$8,"",OFFSET(InputPriceData!$F$15,CalculationsAndCharts!$A162+$A$11,IF($C$5,8,0),1,1))) -> 303.83 | H162: =IF(A162<=$H$30,G162-D162,NA()) -> 4.3 | I162: =IF($A162>$E$17+1,NA(),IF($A162=$E$17+1,SUM(OFFSET($I$33,0,0,$A$17,1)),IF(A162=$E$17,"-- SUM --",1))) ->  | J162: =IF(A162<=$J$30,SUMPRODUCT(OFFSET(H162,1,0,$A$17,1),OFFSET($I$33,0,0,$A$17,1))/OFFSET($I$33,$E$17,0,1,1),NA()) -> -0.5615 | K162: 0.1751592357 | M162: -0.9583636364 | N162: -0.187029531 | P162: -0.9319776107 | Q162: -0.09759013241 | S162: -1.126034279 | T162: -0.1594032421 | U162: -0.5615 | V162: -0.9583636364 | W162: -0.9319776107 | X162: -1.126034279 | AW162: 113394800
A163: 131 | B163: =IF(A163>$B$30,NA(),IF($A163>$A$8,"",OFFSET(InputPriceData!$B$15,$A163+$A$11,0,1,1))) -> 2020-06-29 | C163: =IF(A163>$B$30,NA(),IF($A163>$A$8,"",OFFSET(InputPriceData!$G$15,CalculationsAndCharts!$A163+$A$11,IF($C$5,8,0),1,1))) -> 79773300 | D163: =IF(A163>$B$30,NA(),IF(A163>$A$8,"",OFFSET(InputPriceData!$C$15,CalculationsAndCharts!$A163+$A$11,IF($C$5,8,0),1,1))) -> 296.99 | E163: =IF(A163>$B$30,NA(),IF(A163>$A$8,"",OFFSET(InputPriceData!$D$15,CalculationsAndCharts!$A163+$A$11,IF($C$5,8,0),1,1))) -> 300.14 | F163: =IF(A163>$B$30,NA(),IF(A163>$A$8,"",OFFSET(InputPriceData!$E$15,CalculationsAndCharts!$A163+$A$11,IF($C$5,8,0),1,1))) -> 294.54 | G163: =IF(A163>$B$30,NA(),IF(A163>$A$8,"",OFFSET(InputPriceData!$F$15,CalculationsAndCharts!$A163+$A$11,IF($C$5,8,0),1,1))) -> 299.99 | H163: 3 | J163: -0.6165 | K163: -1.248407643 | M163: -0.8996363636 | N163: -0.1815286624 | P163: -0.9013343091 | Q163: -0.3833765025 | S163: -1.075981661 | T163: -0.3543279258 | U163: -0.6165 | V163: -0.8996363636 | W163: -0.9013343091 | X163: -1.075981661 | AW163: 79773300
A164: 132 | B164: =IF(A164>$B$30,NA(),IF($A164>$A$8,"",OFFSET(InputPriceData!$B$15,$A164+$A$11,0,1,1))) -> 2020-06-26 | C164: =IF(A164>$B$30,NA(),IF($A164>$A$8,"",OFFSET(InputPriceData!$G$15,CalculationsAndCharts!$A164+$A$11,IF($C$5,8,0),1,1))) -> 127961000 | D164: =IF(A164>$B$30,NA(),IF(A164>$A$8,"",OFFSET(InputPriceData!$C$15,CalculationsAndCharts!$A164+$A$11,IF($C$5,8,0),1,1))) -> 301.67 | E164: =IF(A164>$B$30,NA(),IF(A164>$A$8,"",OFFSET(InputPriceData!$D$15,CalculationsAndCharts!$A164+$A$11,IF($C$5,8,0),1,1))) -> 301.89 | F164: =IF(A164>$B$30,NA(),IF(A164>$A$8,"",OFFSET(InputPriceData!$E$15,CalculationsAndCharts!$A164+$A$11,IF($C$5,8,0),1,1))) -> 295.03 | G164: =IF(A164>$B$30,NA(),IF(A164>$A$8,"",OFFSET(InputPriceData!$F$15,CalculationsAndCharts!$A164+$A$11,IF($C$5,8,0),1,1))) -> 295.65 | H164: -6.02 | J164: -0.2245 | K164: 0.8694267516 | M164: -0.8426363636 | N164: -0.1792125072 | P164: -0.7809540873 | Q164: -0.6603988683 | S164: -0.9647226927 | T164: -0.4936487036 | U164: -0.2245 | V164: -0.8426363636 | W164: -0.7809540873 | X164: -0.9647226927 | AX164: 127961000
A165: 133 | B165: =IF(A165>$B$30,NA(),IF($A165>$A$8,"",OFFSET(InputPriceData!$B$15,$A165+$A$11,0,1,1))) -> 2020-06-25 | C165: =IF(A165>$B$30,NA(),IF($A165>$A$8,"",OFFSET(InputPriceData!$G$15,CalculationsAndCharts!$A165+$A$11,IF($C$5,8,0),1,1))) -> 89468000 | D165: =IF(A165>$B$30,NA(),IF(A165>$A$8,"",OFFSET(InputPriceData!$C$15,CalculationsAndCharts!$A165+$A$11,IF($C$5,8,0),1,1))) -> 299.02 | E165: =IF(A165>$B$30,NA(),IF(A165>$A$8,"",OFFSET(InputPriceData!$D$15,CalculationsAndCharts!$A165+$A$11,IF($C$5,8,0),1,1))) -> 303.13 | F165: =IF(A165>$B$30,NA(),IF(A165>$A$8,"",OFFSET(InputPriceData!$E$15,CalculationsAndCharts!$A165+$A$11,IF($C$5,8,0),1,1))) -> 296.86 | G165: =IF(A165>$B$30,NA(),IF(A165>$A$8,"",OFFSET(InputPriceData!$F$15,CalculationsAndCharts!$A165+$A$11,IF($C$5,8,0),1,1))) -> 302.84 | H165: 3.82 | J165: -0.4975 | K165: -1.122611465 | M165: -0.7863636364 | N165: -0.3801389693 | P165: -0.5735888427 | Q165: -0.3506462929 | S165: -0.8097169998 | T165: -0.6106666856 | U165: -0.4975 | V165: -0.7863636364 | W165: -0.5735888427 | X165: -0.8097169998 | AW165: 89468000
A166: 134 | B166: =IF(A166>$B$30,NA(),IF($A166>$A$8,"",OFFSET(InputPriceData!$B$15,$A166+$A$11,0,1,1))) -> 2020-06-24 | C166: =IF(A166>$B$30,NA(),IF($A166>$A$8,"",OFFSET(InputPriceData!$G$15,CalculationsAndCharts!$A166+$A$11,IF($C$5,8,0),1,1))) -> 132813500 | D166: =IF(A166>$B$30,NA(),IF(A166>$A$8,"",OFFSET(InputPriceData!$C$15,CalculationsAndCharts!$A166+$A$11,IF($C$5,8,0),1,1))) -> 305.29 | E166: =IF(A166>$B$30,NA(),IF(A166>$A$8,"",OFFSET(InputPriceData!$D$15,CalculationsAndCharts!$A166+$A$11,IF($C$5,8,0),1,1))) -> 305.95 | F166: =IF(A166>$B$30,NA(),IF(A166>$A$8,"",OFFSET(InputPriceData!$E$15,CalculationsAndCharts!$A166+$A$11,IF($C$5,8,0),1,1))) -> 297.67 | G166: =IF(A166>$B$30,NA(),IF(A166>$A$8,"",OFFSET(InputPriceData!$F$15,CalculationsAndCharts!$A166+$A$11,IF($C$5,8,0),1,1))) -> 299.63 | H166: -5.66 | J166: -0.145 | K166: 0.2197452229 | M166: -0.667 | N166: -0.9079328315 | P166: -0.4634859067 | Q166: -0.6423777702 | S166: -0.6179676605 | T166: -0.686562413 | U166: -0.145 | V166: -0.667 | W166: -0.4634859067 | X166: -0.6179676605 | AX166: 132813500
A167: 135 | B167: =IF(A167>$B$30,NA(),IF($A167>$A$8,"",OFFSET(InputPriceData!$B$15,$A167+$A$11,0,1,1))) -> 2020-06-23 | C167: =IF(A167>$B$30,NA(),IF($A167>$A$8,"",OFFSET(InputPriceData!$G$15,CalculationsAndCharts!$A167+$A$11,IF($C$5,8,0),1,1))) -> 68471200 | D167: =IF(A167>$B$30,NA(),IF(A167>$A$8,"",OFFSET(InputPriceData!$C$15,CalculationsAndCharts!$A167+$A$11,IF($C$5,8,0),1,1))) -> 308.89 | E167: =IF(A167>$B$30,NA(),IF(A167>$A$8,"",OFFSET(InputPriceData!$D$15,CalculationsAndCharts!$A167+$A$11,IF($C$5,8,0),1,1))) -> 309.88 | F167: =IF(A167>$B$30,NA(),IF(A167>$A$8,"",OFFSET(InputPriceData!$E$15,CalculationsAndCharts!$A167+$A$11,IF($C$5,8,0),1,1))) -> 307.04 | G167: =IF(A167>$B$30,NA(),IF(A167>$A$8,"",OFFSET(InputPriceData!$F$15,CalculationsAndCharts!$A167+$A$11,IF($C$5,8,0),1,1))) -> 307.47 | H167: -1.42 | J167: -0.214 | K167: 0.2770700637 | M167: -0.3819090909 | N167: -0.7180081065 | P167: -0.2617792869 | Q167: -0.3152821539 | S167: -0.4023870628 | T167: -0.7043511899 | U167: -0.214 | V167: -0.3819090909 | W167: -0.2617792869 | X167: -0.4023870628 | AX167: 68471200
A168: 136 | B168: =IF(A168>$B$30,NA(),IF($A168>$A$8,"",OFFSET(InputPriceData!$B$15,$A168+$A$11,0,1,1))) -> 2020-06-22 | C168: =IF(A168>$B$30,NA(),IF($A168>$A$8,"",OFFSET(InputPriceData!$G$15,CalculationsAndCharts!$A168+$A$11,IF($C$5,8,0),1,1))) -> 74649400 | D168: =IF(A168>$B$30,NA(),IF(A168>$A$8,"",OFFSET(InputPriceData!$C$15,CalculationsAndCharts!$A168+$A$11,IF($C$5,8,0),1,1))) -> 303.47 | E168: =IF(A168>$B$30,NA(),IF(A168>$A$8,"",OFFSET(InputPriceData!$D$15,CalculationsAndCharts!$A168+$A$11,IF($C$5,8,0),1,1))) -> 306.49 | F168: =IF(A168>$B$30,NA(),IF(A168>$A$8,"",OFFSET(InputPriceData!$E$15,CalculationsAndCharts!$A168+$A$11,IF($C$5,8,0),1,1))) -> 302.25 | G168: =IF(A168>$B$30,NA(),IF(A168>$A$8,"",OFFSET(InputPriceData!$F$15,CalculationsAndCharts!$A168+$A$11,IF($C$5,8,0),1,1))) -> 306.06 | H168: 2.59 | J168: -0.301 | K168: -0.5700636943 | M168: -0.1564545455 | N168: -0.6030689056 | P168: -0.1627806906 | Q168: -0.3045578373 | S168: -0.1812207892 | T168: -0.6941187402 | U168: -0.301 | V168: -0.1564545455 | W168: -0.1627806906 | X168: -0.1812207892 | AW168: 74649400
A169: 137 | B169: =IF(A169>$B$30,NA(),IF($A169>$A$8,"",OFFSET(InputPriceData!$B$15,$A169+$A$11,0,1,1))) -> 2020-06-19 | C169: =IF(A169>$B$30,NA(),IF($A169>$A$8,"",OFFSET(InputPriceData!$G$15,CalculationsAndCharts!$A169+$A$11,IF($C$5,8,0),1,1))) -> 135549600 | D169: =IF(A169>$B$30,NA(),IF(A169>$A$8,"",OFFSET(InputPriceData!$C$15,CalculationsAndCharts!$A169+$A$11,IF($C$5,8,0),1,1))) -> 309.56 | E169: =IF(A169>$B$30,NA(),IF(A169>$A$8,"",OFFSET(InputPriceData!$D$15,CalculationsAndCharts!$A169+$A$11,IF($C$5,8,0),1,1))) -> 309.77 | F169: =IF(A169>$B$30,NA(),IF(A169>$A$8,"",OFFSET(InputPriceData!$E$15,CalculationsAndCharts!$A169+$A$11,IF($C$5,8,0),1,1))) -> 302.03 | G169: =IF(A169>$B$30,NA(),IF(A169>$A$8,"",OFFSET(InputPriceData!$F$15,CalculationsAndCharts!$A169+$A$11,IF($C$5,8,0),1,1))) -> 304.11 | H169: -5.45 | J169: -0.122 | K169: 0.1035031847 | M169: 0.03290909091 | N169: -0.4794441228 | P169: -0.06714952966 | Q169: -0.368342896 | S169: 0.03673249523 | T169: -0.6074556298 | U169: -0.122 | V169: 0.03290909091 | W169: -0.06714952966 | X169: 0.03673249523 | AX169: 135549600
A170: 138 | B170: =IF(A170>$B$30,NA(),IF($A170>$A$8,"",OFFSET(InputPriceData!$B$15,$A170+$A$11,0,1,1))) -> 2020-06-18 | C170: =IF(A170>$B$30,NA(),IF($A170>$A$8,"",OFFSET(InputPriceData!$G$15,CalculationsAndCharts!$A170+$A$11,IF($C$5,8,0),1,1))) -> 80828700 | D170: =IF(A170>$B$30,NA(),IF(A170>$A$8,"",OFFSET(InputPriceData!$C$15,CalculationsAndCharts!$A170+$A$11,IF($C$5,8,0),1,1))) -> 304.12 | E170: =IF(A170>$B$30,NA(),IF(A170>$A$8,"",OFFSET(InputPriceData!$D$15,CalculationsAndCharts!$A170+$A$11,IF($C$5,8,0),1,1))) -> 306.37 | F170: =IF(A170>$B$30,NA(),IF(A170>$A$8,"",OFFSET(InputPriceData!$E$15,CalculationsAndCharts!$A170+$A$11,IF($C$5,8,0),1,1))) -> 303.63 | G170: =IF(A170>$B$30,NA(),IF(A170>$A$8,"",OFFSET(InputPriceData!$F$15,CalculationsAndCharts!$A170+$A$11,IF($C$5,8,0),1,1))) -> 305.86 | H170: 1.74 | J170: -0.1545 | K170: -0.003184713376 | M170: 0.1834545455 | N170: -0.286045165 | P170: 0.04851013966 | Q170: -0.1879146725 | S170: 0.227473563 | T170: -0.4808314586 | U170: -0.1545 | V170: 0.1834545455 | W170: 0.04851013966 | X170: 0.227473563 | AW170: 80828700
A171: 139 | B171: =IF(A171>$B$30,NA(),IF($A171>$A$8,"",OFFSET(InputPriceData!$B$15,$A171+$A$11,0,1,1))) -> 2020-06-17 | C171: =IF(A171>$B$30,NA(),IF($A171>$A$8,"",OFFSET(InputPriceData!$G$15,CalculationsAndCharts!$A171+$A$11,IF($C$5,8,0),1,1))) -> 83398900 | D171: =IF(A171>$B$30,NA(),IF(A171>$A$8,"",OFFSET(InputPriceData!$C$15,CalculationsAndCharts!$A171+$A$11,IF($C$5,8,0),1,1))) -> 308.1 | E171: =IF(A171>$B$30,NA(),IF(A171>$A$8,"",OFFSET(InputPriceData!$D$15,CalculationsAndCharts!$A171+$A$11,IF($C$5,8,0),1,1))) -> 308.42 | F171: =IF(A171>$B$30,NA(),IF(A171>$A$8,"",OFFSET(InputPriceData!$E$15,CalculationsAndCharts!$A171+$A$11,IF($C$5,8,0),1,1))) -> 304.96 | G171: =IF(A171>$B$30,NA(),IF(A171>$A$8,"",OFFSET(InputPriceData!$F$15,CalculationsAndCharts!$A171+$A$11,IF($C$5,8,0),1,1))) -> 305.74 | H171: -2.36 | J171: -0.1535 | K171: -0.699044586 | M171: 0.2732727273 | N171: -0.2064273306 | P171: 0.1075153468 | Q171: -0.1642689144 | S171: 0.378454641 | T171: -0.3280575966 | U171: -0.1535 | V171: 0.2732727273 | W171: 0.1075153468 | X171: 0.378454641 | AX171: 83398900
A172: 140 | B172: =IF(A172>$B$30,NA(),IF($A172>$A$8,"",OFFSET(InputPriceData!$B$15,$A172+$A$11,0,1,1))) -> 2020-06-16 | C172: =IF(A172>$B$30,NA(),IF($A172>$A$8,"",OFFSET(InputPriceData!$G$15,CalculationsAndCharts!$A172+$A$11,IF($C$5,8,0),1,1))) -> 137627500 | D172: =IF(A172>$B$30,NA(),IF(A172>$A$8,"",OFFSET(InputPriceData!$C$15,CalculationsAndCharts!$A172+$A$11,IF($C$5,8,0),1,1))) -> 309.49 | E172: =IF(A172>$B$30,NA(),IF(A172>$A$8,"",OFFSET(InputPriceData!$D$15,CalculationsAndCharts!$A172+$A$11,IF($C$5,8,0),1,1))) -> 309.65 | F172: =IF(A172>$B$30,NA(),IF(A172>$A$8,"",OFFSET(InputPriceData!$E$15,CalculationsAndCharts!$A172+$A$11,IF($C$5,8,0),1,1))) -> 301.83 | G172: =IF(A172>$B$30,NA(),IF(A172>$A$8,"",OFFSET(InputPriceData!$F$15,CalculationsAndCharts!$A172+$A$11,IF($C$5,8,0),1,1))) -> 307.02 | H172: -2.47 | J172: 0.066 | K172: 0.800955414 | M172: 0.3380909091 | N172: -0.09525188188 | P172: 0.159095786 | Q172: -0.1665358154 | S172: 0.4814647263 | T172: -0.1474818811 | U172: 0.066 | V172: 0.3380909091 | W172: 0.159095786 | X172: 0.4814647263 | AX172: 137627500
A173: 141 | B173: =IF(A173>$B$30,NA(),IF($A173>$A$8,"",OFFSET(InputPriceData!$B$15,$A173+$A$11,0,1,1))) -> 2020-06-15 | C173: =IF(A173>$B$30,NA(),IF($A173>$A$8,"",OFFSET(InputPriceData!$G$15,CalculationsAndCharts!$A173+$A$11,IF($C$5,8,0),1,1))) -> 135782700 | D173: =IF(A173>$B$30,NA(),IF(A173>$A$8,"",OFFSET(InputPriceData!$C$15,CalculationsAndCharts!$A173+$A$11,IF($C$5,8,0),1,1))) -> 292.36 | E173: =IF(A173>$B$30,NA(),IF(A173>$A$8,"",OFFSET(InputPriceData!$D$15,CalculationsAndCharts!$A173+$A$11,IF($C$5,8,0),1,1))) -> 302.42 | F173: =IF(A173>$B$30,NA(),IF(A173>$A$8,"",OFFSET(InputPriceData!$E$15,CalculationsAndCharts!$A173+$A$11,IF($C$5,8,0),1,1))) -> 291.1 | G173: =IF(A173>$B$30,NA(),IF(A173>$A$8,"",OFFSET(InputPriceData!$F$15,CalculationsAndCharts!$A173+$A$11,IF($C$5,8,0),1,1))) -> 301.22 | H173: 8.86 | J173: -0.1855 | K173: -1.571656051 | M173: 0.368 | N173: -0.03618992472 | P173: 0.211388032 | Q173: -0.1377125238 | S173: 0.527774037 | T173: -0.02508469456 | U173: -0.1855 | V173: 0.368 | W173: 0.211388032 | X173: 0.527774037 | AW173: 135782700
A174: 142 | B174: =IF(A174>$B$30,NA(),IF($A174>$A$8,"",OFFSET(InputPriceData!$B$15,$A174+$A$11,0,1,1))) -> 2020-06-12 | C174: =IF(A174>$B$30,NA(),IF($A174>$A$8,"",OFFSET(InputPriceData!$G$15,CalculationsAndCharts!$A174+$A$11,IF($C$5,8,0),1,1))) -> 194678900 | D174: =IF(A174>$B$30,NA(),IF(A174>$A$8,"",OFFSET(InputPriceData!$C$15,CalculationsAndCharts!$A174+$A$11,IF($C$5,8,0),1,1))) -> 302.39 | E174: =IF(A174>$B$30,NA(),IF(A174>$A$8,"",OFFSET(InputPriceData!$D$15,CalculationsAndCharts!$A174+$A$11,IF($C$5,8,0),1,1))) -> 303.21 | F174: =IF(A174>$B$30,NA(),IF(A174>$A$8,"",OFFSET(InputPriceData!$E$15,CalculationsAndCharts!$A174+$A$11,IF($C$5,8,0),1,1))) -> 292.93 | G174: =IF(A174>$B$30,NA(),IF(A174>$A$8,"",OFFSET(InputPriceData!$F$15,CalculationsAndCharts!$A174+$A$11,IF($C$5,8,0),1,1))) -> 298.43 | H174: -3.96 | J174: 0.308 | K174: -0.9968152866 | M174: 0.3793636364 | N174: -0.3561088593 | P174: 0.2546297645 | Q174: -0.7238568376 | S174: 0.5356506311 | T174: 0.07697069162 | U174: 0.308 | V174: 0.3793636364 | W174: 0.2546297645 | X174: 0.5356506311 | AX174: 194678900
A175: 143 | B175: =IF(A175>$B$30,NA(),IF($A175>$A$8,"",OFFSET(InputPriceData!$B$15,$A175+$A$11,0,1,1))) -> 2020-06-11 | C175: =IF(A175>$B$30,NA(),IF($A175>$A$8,"",OFFSET(InputPriceData!$G$15,CalculationsAndCharts!$A175+$A$11,IF($C$5,8,0),1,1))) -> 209243600 | D175: =IF(A175>$B$30,NA(),IF(A175>$A$8,"",OFFSET(InputPriceData!$C$15,CalculationsAndCharts!$A175+$A$11,IF($C$5,8,0),1,1))) -> 305.54 | E175: =IF(A175>$B$30,NA(),IF(A175>$A$8,"",OFFSET(InputPriceData!$D$15,CalculationsAndCharts!$A175+$A$11,IF($C$5,8,0),1,1))) -> 306.22 | F175: =IF(A175>$B$30,NA(),IF(A175>$A$8,"",OFFSET(InputPriceData!$E$15,CalculationsAndCharts!$A175+$A$11,IF($C$5,8,0),1,1))) -> 294.31 | G175: =IF(A175>$B$30,NA(),IF(A175>$A$8,"",OFFSET(InputPriceData!$F$15,CalculationsAndCharts!$A175+$A$11,IF($C$5,8,0),1,1))) -> 294.9 | H175: -10.64 | J175: 0.621 | K175: 0.7324840764 | M175: 0.4911818182 | N175: -0.1094383324 | P175: 0.4819208115 | Q175: -0.3810246983 | S175: 0.5114818339 | T175: 0.19489233 | U175: 0.621 | V175: 0.4911818182 | W175: 0.4819208115 | X175: 0.5114818339 | AX175: 209243600
A176: 144 | B176: =IF(A176>$B$30,NA(),IF($A176>$A$8,"",OFFSET(InputPriceData!$B$15,$A176+$A$11,0,1,1))) -> 2020-06-10 | C176: =IF(A176>$B$30,NA(),IF($A176>$A$8,"",OFFSET(InputPriceData!$G$15,CalculationsAndCharts!$A176+$A$11,IF($C$5,8,0),1,1))) -> 95000800 | D176: =IF(A176>$B$30,NA(),IF(A176>$A$8,"",OFFSET(InputPriceData!$C$15,CalculationsAndCharts!$A176+$A$11,IF($C$5,8,0),1,1))) -> 315.32 | E176: =IF(A176>$B$30,NA(),IF(A176>$A$8,"",OFFSET(InputPriceData!$D$15,CalculationsAndCharts!$A176+$A$11,IF($C$5,8,0),1,1))) -> 316.27 | F176: =IF(A176>$B$30,NA(),IF(A176>$A$8,"",OFFSET(InputPriceData!$E$15,CalculationsAndCharts!$A176+$A$11,IF($C$5,8,0),1,1))) -> 312.18 | G176: =IF(A176>$B$30,NA(),IF(A176>$A$8,"",OFFSET(InputPriceData!$F$15,CalculationsAndCharts!$A176+$A$11,IF($C$5,8,0),1,1))) -> 312.94 | H176: -2.38 | J176: 0.391 | K176: -0.2595541401 | M176: 0.5255454545 | N176: 0.3934568616 | P176: 0.6015625667 | Q176: 0.3356094189 | S176: 0.4502856423 | T176: 0.273667371 | U176: 0.391 | V176: 0.5255454545 | W176: 0.6015625667 | X176: 0.4502856423 | AX176: 95000800
A177: 145 | B177: =IF(A177>$B$30,NA(),IF($A177>$A$8,"",OFFSET(InputPriceData!$B$15,$A177+$A$11,0,1,1))) -> 2020-06-09 | C177: =IF(A177>$B$30,NA(),IF($A177>$A$8,"",OFFSET(InputPriceData!$G$15,CalculationsAndCharts!$A177+$A$11,IF($C$5,8,0),1,1))) -> 77479200 | D177: =IF(A177>$B$30,NA(),IF(A177>$A$8,"",OFFSET(InputPriceData!$C$15,CalculationsAndCharts!$A177+$A$11,IF($C$5,8,0),1,1))) -> 314.22 | E177: =IF(A177>$B$30,NA(),IF(A177>$A$8,"",OFFSET(InputPriceData!$D$15,CalculationsAndCharts!$A177+$A$11,IF($C$5,8,0),1,1))) -> 317.14 | F177: =IF(A177>$B$30,NA(),IF(A177>$A$8,"",OFFSET(InputPriceData!$E$15,CalculationsAndCharts!$A177+$A$11,IF($C$5,8,0),1,1))) -> 313.29 | G177: =IF(A177>$B$30,NA(),IF(A177>$A$8,"",OFFSET(InputPriceData!$F$15,CalculationsAndCharts!$A177+$A$11,IF($C$5,8,0),1,1))) -> 314.7 | H177: 0.48 | J177: 0.4725 | K177: 0.2531847134 | M177: 0.402 | N177: 0.3604516503 | P177: 0.4961812092 | Q177: 0.3386082941 | S177: 0.3643540878 | T177: 0.2732150928 | U177: 0.4725 | V177: 0.402 | W177: 0.4961812092 | X177: 0.3643540878 | AW177: 77479200
A178: 146 | B178: =IF(A178>$B$30,NA(),IF($A178>$A$8,"",OFFSET(InputPriceData!$B$15,$A178+$A$11,0,1,1))) -> 2020-06-08 | C178: =IF(A178>$B$30,NA(),IF($A178>$A$8,"",OFFSET(InputPriceData!$G$15,CalculationsAndCharts!$A178+$A$11,IF($C$5,8,0),1,1))) -> 73641200 | D178: =IF(A178>$B$30,NA(),IF(A178>$A$8,"",OFFSET(InputPriceData!$C$15,CalculationsAndCharts!$A178+$A$11,IF($C$5,8,0),1,1))) -> 314.14 | E178: =IF(A178>$B$30,NA(),IF(A178>$A$8,"",OFFSET(InputPriceData!$D$15,CalculationsAndCharts!$A178+$A$11,IF($C$5,8,0),1,1))) -> 317.27 | F178: =IF(A178>$B$30,NA(),IF(A178>$A$8,"",OFFSET(InputPriceData!$E$15,CalculationsAndCharts!$A178+$A$11,IF($C$5,8,0),1,1))) -> 313.56 | G178: =IF(A178>$B$30,NA(),IF(A178>$A$8,"",OFFSET(InputPriceData!$F$15,CalculationsAndCharts!$A178+$A$11,IF($C$5,8,0),1,1))) -> 317.06 | H178: 2.92 | J178: 0.393 | K178: 0.3391719745 | M178: 0.2888181818 | N178: 0.2515923567 | P178: 0.3898582049 | Q178: 0.324085372 | S178: 0.2785645487 | T178: 0.212508108 | U178: 0.393 | V178: 0.2888181818 | W178: 0.3898582049 | X178: 0.2785645487 | AW178: 73641200
A179: 147 | B179: =IF(A179>$B$30,NA(),IF($A179>$A$8,"",OFFSET(InputPriceData!$B$15,$A179+$A$11,0,1,1))) -> 2020-06-05 | C179: =IF(A179>$B$30,NA(),IF($A179>$A$8,"",OFFSET(InputPriceData!$G$15,CalculationsAndCharts!$A179+$A$11,IF($C$5,8,0),1,1))) -> 150524700 | D179: =IF(A179>$B$30,NA(),IF(A179>$A$8,"",OFFSET(InputPriceData!$C$15,CalculationsAndCharts!$A179+$A$11,IF($C$5,8,0),1,1))) -> 311.2 | E179: =IF(A179>$B$30,NA(),IF(A179>$A$8,"",OFFSET(InputPriceData!$D$15,CalculationsAndCharts!$A179+$A$11,IF($C$5,8,0),1,1))) -> 315.17 | F179: =IF(A179>$B$30,NA(),IF(A179>$A$8,"",OFFSET(InputPriceData!$E$15,CalculationsAndCharts!$A179+$A$11,IF($C$5,8,0),1,1))) -> 311.14 | G179: =IF(A179>$B$30,NA(),IF(A179>$A$8,"",OFFSET(InputPriceData!$F$15,CalculationsAndCharts!$A179+$A$11,IF($C$5,8,0),1,1))) -> 313.27 | H179: 2.07 | J179: 0.2865 | K179: 0.6321656051 | M179: 0.2098181818 | N179: 0.1392588303 | P179: 0.2880953981 | Q179: 0.2491661989 | S179: 0.2118370027 | T179: 0.1472697588 | U179: 0.2865 | V179: 0.2098181818 | W179: 0.2880953981 | X179: 0.2118370027 | AW179: 150524700
A180: 148 | B180: =IF(A180>$B$30,NA(),IF($A180>$A$8,"",OFFSET(InputPriceData!$B$15,$A180+$A$11,0,1,1))) -> 2020-06-04 | C180: =IF(A180>$B$30,NA(),IF($A180>$A$8,"",OFFSET(InputPriceData!$G$15,CalculationsAndCharts!$A180+$A$11,IF($C$5,8,0),1,1))) -> 75794400 | D180: =IF(A180>$B$30,NA(),IF(A180>$A$8,"",OFFSET(InputPriceData!$C$15,CalculationsAndCharts!$A180+$A$11,IF($C$5,8,0),1,1))) -> 305.2 | E180: =IF(A180>$B$30,NA(),IF(A180>$A$8,"",OFFSET(InputPriceData!$D$15,CalculationsAndCharts!$A180+$A$11,IF($C$5,8,0),1,1))) -> 307.06 | F180: =IF(A180>$B$30,NA(),IF(A180>$A$8,"",OFFSET(InputPriceData!$E$15,CalculationsAndCharts!$A180+$A$11,IF($C$5,8,0),1,1))) -> 303.21 | G180: =IF(A180>$B$30,NA(),IF(A180>$A$8,"",OFFSET(InputPriceData!$F$15,CalculationsAndCharts!$A180+$A$11,IF($C$5,8,0),1,1))) -> 305.45 | H180: 0.25 | J180: 0.088 | K180: 0.3742038217 | M180: 0.1660909091 | N180: 0.164447018 | P180: 0.2098572116 | Q180: 0.3321470597 | S180: 0.1655942985 | T180: 0.1280338788 | U180: 0.088 | V180: 0.1660909091 | W180: 0.2098572116 | X180: 0.1655942985 | AW180: 75794400
A181: 149 | B181: =IF(A181>$B$30,NA(),IF($A181>$A$8,"",OFFSET(InputPriceData!$B$15,$A181+$A$11,0,1,1))) -> 2020-06-03 | C181: =IF(A181>$B$30,NA(),IF($A181>$A$8,"",OFFSET(InputPriceData!$G$15,CalculationsAndCharts!$A181+$A$11,IF($C$5,8,0),1,1))) -> 92567600 | D181: =IF(A181>$B$30,NA(),IF(A181>$A$8,"",OFFSET(InputPriceData!$C$15,CalculationsAndCharts!$A181+$A$11,IF($C$5,8,0),1,1))) -> 304.35 | E181: =IF(A181>$B$30,NA(),IF(A181>$A$8,"",OFFSET(InputPriceData!$D$15,CalculationsAndCharts!$A181+$A$11,IF($C$5,8,0),1,1))) -> 307.27 | F181: =IF(A181>$B$30,NA(),IF(A181>$A$8,"",OFFSET(InputPriceData!$E$15,CalculationsAndCharts!$A181+$A$11,IF($C$5,8,0),1,1))) -> 304.05 | G181: =IF(A181>$B$30,NA(),IF(A181>$A$8,"",OFFSET(InputPriceData!$F$15,CalculationsAndCharts!$A181+$A$11,IF($C$5,8,0),1,1))) -> 306.25 | H181: 1.9 | J181: -0.0295 | K181: -0.2022292994 | M181: 0.1144545455 | N181: 0.1340474812 | P181: 0.1055630349 | Q181: 0.3357723082 | S181: 0.1253916605 | T181: 0.1411481191 | U181: -0.0295 | V181: 0.1144545455 | W181: 0.1055630349 | X181: 0.1253916605 | AW181: 92567600
A182: 150 | B182: =IF(A182>$B$30,NA(),IF($A182>$A$8,"",OFFSET(InputPriceData!$B$15,$A182+$A$11,0,1,1))) -> 2020-06-02 | C182: =IF(A182>$B$30,NA(),IF($A182>$A$8,"",OFFSET(InputPriceData!$G$15,CalculationsAndCharts!$A182+$A$11,IF($C$5,8,0),1,1))) -> 74267200 | D182: =IF(A182>$B$30,NA(),IF(A182>$A$8,"",OFFSET(InputPriceData!$C$15,CalculationsAndCharts!$A182+$A$11,IF($C$5,8,0),1,1))) -> 300.73 | E182: =IF(A182>$B$30,NA(),IF(A182>$A$8,"",OFFSET(InputPriceData!$D$15,CalculationsAndCharts!$A182+$A$11,IF($C$5,8,0),1,1))) -> 302.28 | F182: =IF(A182>$B$30,NA(),IF(A182>$A$8,"",OFFSET(InputPriceData!$E$15,CalculationsAndCharts!$A182+$A$11,IF($C$5,8,0),1,1))) -> 299.31 | G182: =IF(A182>$B$30,NA(),IF(A182>$A$8,"",OFFSET(InputPriceData!$F$15,CalculationsAndCharts!$A182+$A$11,IF($C$5,8,0),1,1))) -> 302.23 | H182: 1.5 | J182: 0.034 | K182: 0.6958598726 | M182: 0.07236363636 | N182: -0.0133178923 | P182: 0.0001305300703 | Q182: 0.1519905753 | S182: 0.0810711511 | T182: 0.1405753516 | U182: 0.034 | V182: 0.07236363636 | W182: 0.0001305300703 | X182: 0.0810711511 | AW182: 74267200
A183: 151 | B183: =IF(A183>$B$30,NA(),IF($A183>$A$8,"",OFFSET(InputPriceData!$B$15,$A183+$A$11,0,1,1))) -> 2020-06-01 | C183: =IF(A183>$B$30,NA(),IF($A183>$A$8,"",OFFSET(InputPriceData!$G$15,CalculationsAndCharts!$A183+$A$11,IF($C$5,8,0),1,1))) -> 55758300 | D183: =IF(A183>$B$30,NA(),IF(A183>$A$8,"",OFFSET(InputPriceData!$C$15,CalculationsAndCharts!$A183+$A$11,IF($C$5,8,0),1,1))) -> 297.85 | E183: =IF(A183>$B$30,NA(),IF(A183>$A$8,"",OFFSET(InputPriceData!$D$15,CalculationsAndCharts!$A183+$A$11,IF($C$5,8,0),1,1))) -> 300.39 | F183: =IF(A183>$B$30,NA(),IF(A183>$A$8,"",OFFSET(InputPriceData!$E$15,CalculationsAndCharts!$A183+$A$11,IF($C$5,8,0),1,1))) -> 297.3 | G183: =IF(A183>$B$30,NA(),IF(A183>$A$8,"",OFFSET(InputPriceData!$F$15,CalculationsAndCharts!$A183+$A$11,IF($C$5,8,0),1,1))) -> 299.75 | H183: 1.9 | J183: -0.1845 | K183: 0.4824840764 | M183: 0.07654545455 | N183: 0.181239143 | P183: -0.04759451057 | Q183: 0.218552232 | S183: 0.0369304907 | T183: 0.1483981532 | U183: -0.1845 | V183: 0.07654545455 | W183: -0.04759451057 | X183: 0.0369304907 | AW183: 55758300
A184: 152 | B184: =IF(A184>$B$30,NA(),IF($A184>$A$8,"",OFFSET(InputPriceData!$B$15,$A184+$A$11,0,1,1))) -> 2020-05-29 | C184: =IF(A184>$B$30,NA(),IF($A184>$A$8,"",OFFSET(InputPriceData!$G$15,CalculationsAndCharts!$A184+$A$11,IF($C$5,8,0),1,1))) -> 119090800 | D184: =IF(A184>$B$30,NA(),IF(A184>$A$8,"",OFFSET(InputPriceData!$C$15,CalculationsAndCharts!$A184+$A$11,IF($C$5,8,0),1,1))) -> 296.72 | E184: =IF(A184>$B$30,NA(),IF(A184>$A$8,"",OFFSET(InputPriceData!$D$15,CalculationsAndCharts!$A184+$A$11,IF($C$5,8,0),1,1))) -> 299.17 | F184: =IF(A184>$B$30,NA(),IF(A184>$A$8,"",OFFSET(InputPriceData!$E$15,CalculationsAndCharts!$A184+$A$11,IF($C$5,8,0),1,1))) -> 293.78 | G184: =IF(A184>$B$30,NA(),IF(A184>$A$8,"",OFFSET(InputPriceData!$F$15,CalculationsAndCharts!$A184+$A$11,IF($C$5,8,0),1,1))) -> 298.54 | H184: 1.82 | J184: -0.336 | K184: -0.5238853503 | M184: 0.01963636364 | N184: 0.443254198 | P184: -0.1162199114 | Q184: 0.1782018287 | S184: -0.009666529401 | T184: 0.1907367556 | U184: -0.336 | V184: 0.01963636364 | W184: -0.1162199114 | X184: -0.009666529401 | AW184: 119090800
A185: 153 | B185: =IF(A185>$B$30,NA(),IF($A185>$A$8,"",OFFSET(InputPriceData!$B$15,$A185+$A$11,0,1,1))) -> 2020-05-28 | C185: =IF(A185>$B$30,NA(),IF($A185>$A$8,"",OFFSET(InputPriceData!$G$15,CalculationsAndCharts!$A185+$A$11,IF($C$5,8,0),1,1))) -> 90405200 | D185: =IF(A185>$B$30,NA(),IF(A185>$A$8,"",OFFSET(InputPriceData!$C$15,CalculationsAndCharts!$A185+$A$11,IF($C$5,8,0),1,1))) -> 298.86 | E185: =IF(A185>$B$30,NA(),IF(A185>$A$8,"",OFFSET(InputPriceData!$D$15,CalculationsAndCharts!$A185+$A$11,IF($C$5,8,0),1,1))) -> 301.01 | F185: =IF(A185>$B$30,NA(),IF(A185>$A$8,"",OFFSET(InputPriceData!$E$15,CalculationsAndCharts!$A185+$A$11,IF($C$5,8,0),1,1))) -> 296.5 | G185: =IF(A185>$B$30,NA(),IF(A185>$A$8,"",OFFSET(InputPriceData!$F$15,CalculationsAndCharts!$A185+$A$11,IF($C$5,8,0),1,1))) -> 297.22 | H185: -1.64 | J185: -0.1715 | K185: 1.047770701 | M185: -0.1195454545 | N185: 0.3870874349 | P185: -0.1721752856 | Q185: 0.006305366381 | S185: -0.06955787067 | T185: 0.2382266196 | U185: -0.1715 | V185: -0.1195454545 | W185: -0.1721752856 | X185: -0.06955787067 | AX185: 90405200
A186: 154 | B186: =IF(A186>$B$30,NA(),IF($A186>$A$8,"",OFFSET(InputPriceData!$B$15,$A186+$A$11,0,1,1))) -> 2020-05-27 | C186: =IF(A186>$B$30,NA(),IF($A186>$A$8,"",OFFSET(InputPriceData!$G$15,CalculationsAndCharts!$A186+$A$11,IF($C$5,8,0),1,1))) -> 104817400 | D186: =IF(A186>$B$30,NA(),IF(A186>$A$8,"",OFFSET(InputPriceData!$C$15,CalculationsAndCharts!$A186+$A$11,IF($C$5,8,0),1,1))) -> 296.38 | E186: =IF(A186>$B$30,NA(),IF(A186>$A$8,"",OFFSET(InputPriceData!$D$15,CalculationsAndCharts!$A186+$A$11,IF($C$5,8,0),1,1))) -> 297.8 | F186: =IF(A186>$B$30,NA(),IF(A186>$A$8,"",OFFSET(InputPriceData!$E$15,CalculationsAndCharts!$A186+$A$11,IF($C$5,8,0),1,1))) -> 291.23 | G186: =IF(A186>$B$30,NA(),IF(A186>$A$8,"",OFFSET(InputPriceData!$F$15,CalculationsAndCharts!$A186+$A$11,IF($C$5,8,0),1,1))) -> 297.77 | H186: 1.39 | J186: -0.5005 | K186: -0.7484076433 | M186: -0.2410909091 | N186: 0.2559351477 | P186: -0.1741551707 | Q186: 0.2927764412 | S186: -0.1443610292 | T186: 0.2896125703 | U186: -0.5005 | V186: -0.2410909091 | W186: -0.1741551707 | X186: -0.1443610292 | AW186: 104817400
A187: 155 | B187: =IF(A187>$B$30,NA(),IF($A187>$A$8,"",OFFSET(InputPriceData!$B$15,$A187+$A$11,0,1,1))) -> 2020-05-26 | C187: =IF(A187>$B$30,NA(),IF($A187>$A$8,"",OFFSET(InputPriceData!$G$15,CalculationsAndCharts!$A187+$A$11,IF($C$5,8,0),1,1))) -> 88951400 | D187: =IF(A187>$B$30,NA(),IF(A187>$A$8,"",OFFSET(InputPriceData!$C$15,CalculationsAndCharts!$A187+$A$11,IF($C$5,8,0),1,1))) -> 296.2 | E187: =IF(A187>$B$30,NA(),IF(A187>$A$8,"",OFFSET(InputPriceData!$D$15,CalculationsAndCharts!$A187+$A$11,IF($C$5,8,0),1,1))) -> 296.45 | F187: =IF(A187>$B$30,NA(),IF(A187>$A$8,"",OFFSET(InputPriceData!$E$15,CalculationsAndCharts!$A187+$A$11,IF($C$5,8,0),1,1))) -> 289.85 | G187: =IF(A187>$B$30,NA(),IF(A187>$A$8,"",OFFSET(InputPriceData!$F$15,CalculationsAndCharts!$A187+$A$11,IF($C$5,8,0),1,1))) -> 293.4 | H187: -2.8 | J187: -0.2655 | K187: -0.2149681529 | M187: -0.3214545455 | N187: 0.01968731905 | P187: -0.2660869732 | Q187: 0.08849060167 | S187: -0.2352993763 | T187: 0.335747228 | U187: -0.2655 | V187: -0.3214545455 | W187: -0.2660869732 | X187: -0.2352993763 | AX187: 88951400
A188: 156 | B188: =IF(A188>$B$30,NA(),IF($A188>$A$8,"",OFFSET(InputPriceData!$B$15,$A188+$A$11,0,1,1))) -> 2020-05-22 | C188: =IF(A188>$B$30,NA(),IF($A188>$A$8,"",OFFSET(InputPriceData!$G$15,CalculationsAndCharts!$A188+$A$11,IF($C$5,8,0),1,1))) -> 63958200 | D188: =IF(A188>$B$30,NA(),IF(A188>$A$8,"",OFFSET(InputPriceData!$C$15,CalculationsAndCharts!$A188+$A$11,IF($C$5,8,0),1,1))) -> 288.98 | E188: =IF(A188>$B$30,NA(),IF(A188>$A$8,"",OFFSET(InputPriceData!$D$15,CalculationsAndCharts!$A188+$A$11,IF($C$5,8,0),1,1))) -> 290.02 | F188: =IF(A188>$B$30,NA(),IF(A188>$A$8,"",OFFSET(InputPriceData!$E$15,CalculationsAndCharts!$A188+$A$11,IF($C$5,8,0),1,1))) -> 287.65 | G188: =IF(A188>$B$30,NA(),IF(A188>$A$8,"",OFFSET(InputPriceData!$F$15,CalculationsAndCharts!$A188+$A$11,IF($C$5,8,0),1,1))) -> 289.83 | H188: 0.85 | J188: -0.198 | K188: -0.07802547771 | M188: -0.3276363636 | N188: 0.1366531558 | P188: -0.2938730221 | Q188: 0.1106058121 | S188: -0.3407240059 | T188: 0.3149255466 | U188: -0.198 | V188: -0.3276363636 | W188: -0.2938730221 | X188: -0.3407240059 | AW188: 63958200
A189: 157 | B189: =IF(A189>$B$30,NA(),IF($A189>$A$8,"",OFFSET(InputPriceData!$B$15,$A189+$A$11,0,1,1))) -> 2020-05-21 | C189: =IF(A189>$B$30,NA(),IF($A189>$A$8,"",OFFSET(InputPriceData!$G$15,CalculationsAndCharts!$A189+$A$11,IF($C$5,8,0),1,1))) -> 78293900 | D189: =IF(A189>$B$30,NA(),IF(A189>$A$8,"",OFFSET(InputPriceData!$C$15,CalculationsAndCharts!$A189+$A$11,IF($C$5,8,0),1,1))) -> 291.15 | E189: =IF(A189>$B$30,NA(),IF(A189>$A$8,"",OFFSET(InputPriceData!$D$15,CalculationsAndCharts!$A189+$A$11,IF($C$5,8,0),1,1))) -> 292.02 | F189: =IF(A189>$B$30,NA(),IF(A189>$A$8,"",OFFSET(InputPriceData!$E$15,CalculationsAndCharts!$A189+$A$11,IF($C$5,8,0),1,1))) -> 288.11 | G189: =IF(A189>$B$30,NA(),IF(A189>$A$8,"",OFFSET(InputPriceData!$F$15,CalculationsAndCharts!$A189+$A$11,IF($C$5,8,0),1,1))) -> 289.28 | H189: -1.87 | J189: -0.1735 | K189: 0.05573248408 | M189: -0.3705454545 | N189: 0.1887666474 | P189: -0.3286032471 | Q189: 0.1118074126 | S189: -0.4396106275 | T189: 0.2474584232 | U189: -0.1735 | V189: -0.3705454545 | W189: -0.3286032471 | X189: -0.4396106275 | AX189: 78293900
A190: 158 | B190: =IF(A190>$B$30,NA(),IF($A190>$A$8,"",OFFSET(InputPriceData!$B$15,$A190+$A$11,0,1,1))) -> 2020-05-20 | C190: =IF(A190>$B$30,NA(),IF($A190>$A$8,"",OFFSET(InputPriceData!$G$15,CalculationsAndCharts!$A190+$A$11,IF($C$5,8,0),1,1))) -> 85861700 | D190: =IF(A190>$B$30,NA(),IF(A190>$A$8,"",OFFSET(InputPriceData!$C$15,CalculationsAndCharts!$A190+$A$11,IF($C$5,8,0),1,1))) -> 290.2 | E190: =IF(A190>$B$30,NA(),IF(A190>$A$8,"",OFFSET(InputPriceData!$D$15,CalculationsAndCharts!$A190+$A$11,IF($C$5,8,0),1,1))) -> 292.21 | F190: =IF(A190>$B$30,NA(),IF(A190>$A$8,"",OFFSET(InputPriceData!$E$15,CalculationsAndCharts!$A190+$A$11,IF($C$5,8,0),1,1))) -> 289.96 | G190: =IF(A190>$B$30,NA(),IF(A190>$A$8,"",OFFSET(InputPriceData!$F$15,CalculationsAndCharts!$A190+$A$11,IF($C$5,8,0),1,1))) -> 291.29 | H190: 1.09 | J190: -0.191 | K190: 0.2038216561 | M190: -0.4298181818 | N190: 0.1120440069 | P190: -0.3637107747 | Q190: 0.1310700315 | S190: -0.5173125724 | T190: 0.1554432761 | U190: -0.191 | V190: -0.4298181818 | W190: -0.3637107747 | X190: -0.5173125724 | AW190: 85861700
A191: 159 | B191: =IF(A191>$B$30,NA(),IF($A191>$A$8,"",OFFSET(InputPriceData!$B$15,$A191+$A$11,0,1,1))) -> 2020-05-19 | C191: =IF(A191>$B$30,NA(),IF($A191>$A$8,"",OFFSET(InputPriceData!$G$15,CalculationsAndCharts!$A191+$A$11,IF($C$5,8,0),1,1))) -> 95189300 | D191: =IF(A191>$B$30,NA(),IF(A191>$A$8,"",OFFSET(InputPriceData!$C$15,CalculationsAndCharts!$A191+$A$11,IF($C$5,8,0),1,1))) -> 288.76 | E191: =IF(A191>$B$30,NA(),IF(A191>$A$8,"",OFFSET(InputPriceData!$D$15,CalculationsAndCharts!$A191+$A$11,IF($C$5,8,0),1,1))) -> 290.58 | F191: =IF(A191>$B$30,NA(),IF(A191>$A$8,"",OFFSET(InputPriceData!$E$15,CalculationsAndCharts!$A191+$A$11,IF($C$5,8,0),1,1))) -> 286.41 | G191: =IF(A191>$B$30,NA(),IF(A191>$A$8,"",OFFSET(InputPriceData!$F$15,CalculationsAndCharts!$A191+$A$11,IF($C$5,8,0),1,1))) -> 286.42 | H191: -2.34 | J191: -0.255 | K191: 0.4649681529 | M191: -0.465 | N191: 0.06456282571 | P191: -0.4048667646 | Q191: 0.1961592291 | S191: -0.5661217611 | T191: 0.06376509978 | U191: -0.255 | V191: -0.465 | W191: -0.4048667646 | X191: -0.5661217611 | AX191: 95189300
A192: 160 | B192: =IF(A192>$B$30,NA(),IF($A192>$A$8,"",OFFSET(InputPriceData!$B$15,$A192+$A$11,0,1,1))) -> 2020-05-18 | C192: =IF(A192>$B$30,NA(),IF($A192>$A$8,"",OFFSET(InputPriceData!$G$15,CalculationsAndCharts!$A192+$A$11,IF($C$5,8,0),1,1))) -> 119703800 | D192: =IF(A192>$B$30,NA(),IF(A192>$A$8,"",OFFSET(InputPriceData!$C$15,CalculationsAndCharts!$A192+$A$11,IF($C$5,8,0),1,1))) -> 287.48 | E192: =IF(A192>$B$30,NA(),IF(A192>$A$8,"",OFFSET(InputPriceData!$D$15,CalculationsAndCharts!$A192+$A$11,IF($C$5,8,0),1,1))) -> 291.11 | F192: =IF(A192>$B$30,NA(),IF(A192>$A$8,"",OFFSET(InputPriceData!$E$15,CalculationsAndCharts!$A192+$A$11,IF($C$5,8,0),1,1))) -> 287.14 | G192: =IF(A192>$B$30,NA(),IF(A192>$A$8,"",OFFSET(InputPriceData!$F$15,CalculationsAndCharts!$A192+$A$11,IF($C$5,8,0),1,1))) -> 289.4 | H192: 1.92 | J192: -0.401 | K192: 0.4124203822 | M192: -0.4852727273 | N192: 0.2284308049 | P192: -0.4664607625 | Q192: 0.2894285294 | S192: -0.5861440025 | T192: -0.0108734496 | U192: -0.401 | V192: -0.4852727273 | W192: -0.4664607625 | X192: -0.5861440025 | AW192: 119703800
A193: 161 | B193: =IF(A193>$B$30,NA(),IF($A193>$A$8,"",OFFSET(InputPriceData!$B$15,$A193+$A$11,0,1,1))) -> 2020-05-15 | C193: =IF(A193>$B$30,NA(),IF($A193>$A$8,"",OFFSET(InputPriceData!$G$15,CalculationsAndCharts!$A193+$A$11,IF($C$5,8,0),1,1))) -> 111146300 | D193: =IF(A193>$B$30,NA(),IF(A193>$A$8,"",OFFSET(InputPriceData!$C$15,CalculationsAndCharts!$A193+$A$11,IF($C$5,8,0),1,1))) -> 277.01 | E193: =IF(A193>$B$30,NA(),IF(A193>$A$8,"",OFFSET(InputPriceData!$D$15,CalculationsAndCharts!$A193+$A$11,IF($C$5,8,0),1,1))) -> 280.89 | F193: =IF(A193>$B$30,NA(),IF(A193>$A$8,"",OFFSET(InputPriceData!$E$15,CalculationsAndCharts!$A193+$A$11,IF($C$5,8,0),1,1))) -> 276 | G193: =IF(A193>$B$30,NA(),IF(A193>$A$8,"",OFFSET(InputPriceData!$F$15,CalculationsAndCharts!$A193+$A$11,IF($C$5,8,0),1,1))) -> 280.84 | H193: 3.83 | J193: -0.5305 | K193: 0.949044586 | M193: -0.557 | N193: 0.1456282571 | P193: -0.5573413207 | Q193: 0.1405172363 | S193: -0.5827297393 | T193: -0.0889926072 | U193: -0.5305 | V193: -0.557 | W193: -0.5573413207 | X193: -0.5827297393 | AW193: 111146300
A194: 162 | B194: =IF(A194>$B$30,NA(),IF($A194>$A$8,"",OFFSET(InputPriceData!$B$15,$A194+$A$11,0,1,1))) -> 2020-05-14 | C194: =IF(A194>$B$30,NA(),IF($A194>$A$8,"",OFFSET(InputPriceData!$G$15,CalculationsAndCharts!$A194+$A$11,IF($C$5,8,0),1,1))) -> 121977900 | D194: =IF(A194>$B$30,NA(),IF(A194>$A$8,"",OFFSET(InputPriceData!$C$15,CalculationsAndCharts!$A194+$A$11,IF($C$5,8,0),1,1))) -> 273.65 | E194: =IF(A194>$B$30,NA(),IF(A194>$A$8,"",OFFSET(InputPriceData!$D$15,CalculationsAndCharts!$A194+$A$11,IF($C$5,8,0),1,1))) -> 279.69 | F194: =IF(A194>$B$30,NA(),IF(A194>$A$8,"",OFFSET(InputPriceData!$E$15,CalculationsAndCharts!$A194+$A$11,IF($C$5,8,0),1,1))) -> 267.81 | G194: =IF(A194>$B$30,NA(),IF(A194>$A$8,"",OFFSET(InputPriceData!$F$15,CalculationsAndCharts!$A194+$A$11,IF($C$5,8,0),1,1))) -> 279.56 | H194: 5.91 | J194: -0.8285 | K194: -0.7261146497 | M194: -0.6027272727 | N194: -0.07035321367 | P194: -0.6014637329 | Q194: -0.008751091746 | S194: -0.5547860606 | T194: -0.1284812987 | U194: -0.8285 | V194: -0.6027272727 | W194: -0.6014637329 | X194: -0.5547860606 | AW194: 121977900
A195: 163 | B195: =IF(A195>$B$30,NA(),IF($A195>$A$8,"",OFFSET(InputPriceData!$B$15,$A195+$A$11,0,1,1))) -> 2020-05-13 | C195: =IF(A195>$B$30,NA(),IF($A195>$A$8,"",OFFSET(InputPriceData!$G$15,CalculationsAndCharts!$A195+$A$11,IF($C$5,8,0),1,1))) -> 144721100 | D195: =IF(A195>$B$30,NA(),IF(A195>$A$8,"",OFFSET(InputPriceData!$C$15,CalculationsAndCharts!$A195+$A$11,IF($C$5,8,0),1,1))) -> 280.63 | E195: =IF(A195>$B$30,NA(),IF(A195>$A$8,"",OFFSET(InputPriceData!$D$15,CalculationsAndCharts!$A195+$A$11,IF($C$5,8,0),1,1))) -> 281.74 | F195: =IF(A195>$B$30,NA(),IF(A195>$A$8,"",OFFSET(InputPriceData!$E$15,CalculationsAndCharts!$A195+$A$11,IF($C$5,8,0),1,1))) -> 273.66 | G195: =IF(A195>$B$30,NA(),IF(A195>$A$8,"",OFFSET(InputPriceData!$F$15,CalculationsAndCharts!$A195+$A$11,IF($C$5,8,0),1,1))) -> 276.25 | H195: -4.38 | J195: -0.6005 | K195: -1.550955414 | M195: -0.5806363636 | N195: -0.2339316734 | P195: -0.5987158901 | Q195: -0.3270972607 | S195: -0.5144429329 | T195: -0.09180631418 | U195: -0.6005 | V195: -0.5806363636 | W195: -0.5987158901 | X195: -0.5144429329 | AX195: 144721100
A196: 164 | B196: =IF(A196>$B$30,NA(),IF($A196>$A$8,"",OFFSET(InputPriceData!$B$15,$A196+$A$11,0,1,1))) -> 2020-05-12 | C196: =IF(A196>$B$30,NA(),IF($A196>$A$8,"",OFFSET(InputPriceData!$G$15,CalculationsAndCharts!$A196+$A$11,IF($C$5,8,0),1,1))) -> 95870800 | D196: =IF(A196>$B$30,NA(),IF(A196>$A$8,"",OFFSET(InputPriceData!$C$15,CalculationsAndCharts!$A196+$A$11,IF($C$5,8,0),1,1))) -> 288.21 | E196: =IF(A196>$B$30,NA(),IF(A196>$A$8,"",OFFSET(InputPriceData!$D$15,CalculationsAndCharts!$A196+$A$11,IF($C$5,8,0),1,1))) -> 288.65 | F196: =IF(A196>$B$30,NA(),IF(A196>$A$8,"",OFFSET(InputPriceData!$E$15,CalculationsAndCharts!$A196+$A$11,IF($C$5,8,0),1,1))) -> 281.08 | G196: =IF(A196>$B$30,NA(),IF(A196>$A$8,"",OFFSET(InputPriceData!$F$15,CalculationsAndCharts!$A196+$A$11,IF($C$5,8,0),1,1))) -> 281.23 | H196: -6.98 | J196: -0.1135 | K196: 0.5684713376 | M196: -0.5071818182 | N196: -0.2895193978 | P196: -0.4960073502 | Q196: -0.339080412 | S196: -0.4856157502 | T196: -0.05647383629 | U196: -0.1135 | V196: -0.5071818182 | W196: -0.4960073502 | X196: -0.4856157502 | AX196: 95870800
A197: 165 | B197: =IF(A197>$B$30,NA(),IF($A197>$A$8,"",OFFSET(InputPriceData!$B$15,$A197+$A$11,0,1,1))) -> 2020-05-11 | C197: =IF(A197>$B$30,NA(),IF($A197>$A$8,"",OFFSET(InputPriceData!$G$15,CalculationsAndCharts!$A197+$A$11,IF($C$5,8,0),1,1))) -> 79514200 | D197: =IF(A197>$B$30,NA(),IF(A197>$A$8,"",OFFSET(InputPriceData!$C$15,CalculationsAndCharts!$A197+$A$11,IF($C$5,8,0),1,1))) -> 284.83 | E197: =IF(A197>$B$30,NA(),IF(A197>$A$8,"",OFFSET(InputPriceData!$D$15,CalculationsAndCharts!$A197+$A$11,IF($C$5,8,0),1,1))) -> 288.42 | F197: =IF(A197>$B$30,NA(),IF(A197>$A$8,"",OFFSET(InputPriceData!$E$15,CalculationsAndCharts!$A197+$A$11,IF($C$5,8,0),1,1))) -> 284.37 | G197: =IF(A197>$B$30,NA(),IF(A197>$A$8,"",OFFSET(InputPriceData!$F$15,CalculationsAndCharts!$A197+$A$11,IF($C$5,8,0),1,1))) -> 286.94 | H197: 2.11 | J197: -0.292 | K197: 0.1146496815 | M197: -0.4162727273 | N197: -0.1404169079 | P197: -0.3895361009 | Q197: 0.01015792997 | S197: -0.4678829656 | T197: -0.1014203891 | U197: -0.292 | V197: -0.4162727273 | W197: -0.3895361009 | X197: -0.4678829656 | AW197: 79514200
A198: 166 | B198: =IF(A198>$B$30,NA(),IF($A198>$A$8,"",OFFSET(InputPriceData!$B$15,$A198+$A$11,0,1,1))) -> 2020-05-08 | C198: =IF(A198>$B$30,NA(),IF($A198>$A$8,"",OFFSET(InputPriceData!$G$15,CalculationsAndCharts!$A198+$A$11,IF($C$5,8,0),1,1))) -> 76452400 | D198: =IF(A198>$B$30,NA(),IF(A198>$A$8,"",OFFSET(InputPriceData!$C$15,CalculationsAndCharts!$A198+$A$11,IF($C$5,8,0),1,1))) -> 285.56 | E198: =IF(A198>$B$30,NA(),IF(A198>$A$8,"",OFFSET(InputPriceData!$D$15,CalculationsAndCharts!$A198+$A$11,IF($C$5,8,0),1,1))) -> 287.39 | F198: =IF(A198>$B$30,NA(),IF(A198>$A$8,"",OFFSET(InputPriceData!$E$15,CalculationsAndCharts!$A198+$A$11,IF($C$5,8,0),1,1))) -> 284.35 | G198: =IF(A198>$B$30,NA(),IF(A198>$A$8,"",OFFSET(InputPriceData!$F$15,CalculationsAndCharts!$A198+$A$11,IF($C$5,8,0),1,1))) -> 286.89 | H198: 1.33 | J198: -0.328 | K198: -0.9585987261 | M198: -0.3721818182 | N198: -0.100463231 | P198: -0.3927256909 | Q198: -0.1286606847 | S198: -0.4360369634 | T198: -0.1644401179 | U198: -0.328 | V198: -0.3721818182 | W198: -0.3927256909 | X198: -0.4360369634 | AW198: 76452400
A199: 167 | B199: =IF(A199>$B$30,NA(),IF($A199>$A$8,"",OFFSET(InputPriceData!$B$15,$A199+$A$11,0,1,1))) -> 2020-05-07 | C199: =IF(A199>$B$30,NA(),IF($A199>$A$8,"",OFFSET(InputPriceData!$G$15,CalculationsAndCharts!$A199+$A$11,IF($C$5,8,0),1,1))) -> 75250400 | D199: =IF(A199>$B$30,NA(),IF(A199>$A$8,"",OFFSET(InputPriceData!$C$15,CalculationsAndCharts!$A199+$A$11,IF($C$5,8,0),1,1))) -> 282.28 | E199: =IF(A199>$B$30,NA(),IF(A199>$A$8,"",OFFSET(InputPriceData!$D$15,CalculationsAndCharts!$A199+$A$11,IF($C$5,8,0),1,1))) -> 284.28 | F199: =IF(A199>$B$30,NA(),IF(A199>$A$8,"",OFFSET(InputPriceData!$E$15,CalculationsAndCharts!$A199+$A$11,IF($C$5,8,0),1,1))) -> 281.68 | G199: =IF(A199>$B$30,NA(),IF(A199>$A$8,"",OFFSET(InputPriceData!$F$15,CalculationsAndCharts!$A199+$A$11,IF($C$5,8,0),1,1))) -> 282.22 | H199: -0.06 | J199: -0.027 | K199: 0.826433121 | M199: -0.3406363636 | N199: -0.2877822814 | P199: -0.3523262359 | Q199: -0.4468106476 | S199: -0.3844027664 | T199: -0.2339370522 | U199: -0.027 | V199: -0.3406363636 | W199: -0.3523262359 | X199: -0.3844027664 | AX199: 75250400
A200: 168 | B200: =IF(A200>$B$30,NA(),IF($A200>$A$8,"",OFFSET(InputPriceData!$B$15,$A200+$A$11,0,1,1))) -> 2020-05-06 | C200: =IF(A200>$B$30,NA(),IF($A200>$A$8,"",OFFSET(InputPriceData!$G$15,CalculationsAndCharts!$A200+$A$11,IF($C$5,8,0),1,1))) -> 73632600 | D200: =IF(A200>$B$30,NA(),IF(A200>$A$8,"",OFFSET(InputPriceData!$C$15,CalculationsAndCharts!$A200+$A$11,IF($C$5,8,0),1,1))) -> 282.57 | E200: =IF(A200>$B$30,NA(),IF(A200>$A$8,"",OFFSET(InputPriceData!$D$15,CalculationsAndCharts!$A200+$A$11,IF($C$5,8,0),1,1))) -> 282.98 | F200: =IF(A200>$B$30,NA(),IF(A200>$A$8,"",OFFSET(InputPriceData!$E$15,CalculationsAndCharts!$A200+$A$11,IF($C$5,8,0),1,1))) -> 278.39 | G200: =IF(A200>$B$30,NA(),IF(A200>$A$8,"",OFFSET(InputPriceData!$F$15,CalculationsAndCharts!$A200+$A$11,IF($C$5,8,0),1,1))) -> 278.85 | H200: -3.72 | J200: -0.2865 | K200: -1.168789809 | M200: -0.2502727273 | N200: -0.04661262305 | P200: -0.2120276925 | Q200: -0.08078414608 | S200: -0.310946532 | T200: -0.2542153265 | U200: -0.2865 | V200: -0.2502727273 | W200: -0.2120276925 | X200: -0.310946532 | AX200: 73632600
A201: 169 | B201: =IF(A201>$B$30,NA(),IF($A201>$A$8,"",OFFSET(InputPriceData!$B$15,$A201+$A$11,0,1,1))) -> 2020-05-05 | C201: =IF(A201>$B$30,NA(),IF($A201>$A$8,"",OFFSET(InputPriceData!$G$15,CalculationsAndCharts!$A201+$A$11,IF($C$5,8,0),1,1))) -> 79569900 | D201: =IF(A201>$B$30,NA(),IF(A201>$A$8,"",OFFSET(InputPriceData!$C$15,CalculationsAndCharts!$A201+$A$11,IF($C$5,8,0),1,1))) -> 281.2 | E201: =IF(A201>$B$30,NA(),IF(A201>$A$8,"",OFFSET(InputPriceData!$D$15,CalculationsAndCharts!$A201+$A$11,IF($C$5,8,0),1,1))) -> 283.76 | F201: =IF(A201>$B$30,NA(),IF(A201>$A$8,"",OFFSET(InputPriceData!$E$15,CalculationsAndCharts!$A201+$A$11,IF($C$5,8,0),1,1))) -> 278.32 | G201: =IF(A201>$B$30,NA(),IF(A201>$A$8,"",OFFSET(InputPriceData!$F$15,CalculationsAndCharts!$A201+$A$11,IF($C$5,8,0),1,1))) -> 280.75 | H201: -0.45 | J201: 0.0805 | K201: 0.8423566879 | M201: -0.2356363636 | N201: -0.2217718587 | P201: -0.1866614707 | Q201: -0.2835903894 | S201: -0.2311229195 | T201: -0.2637634853 | U201: 0.0805 | V201: -0.2356363636 | W201: -0.1866614707 | X201: -0.2311229195 | AX201: 79569900
A202: 170 | B202: =IF(A202>$B$30,NA(),IF($A202>$A$8,"",OFFSET(InputPriceData!$B$15,$A202+$A$11,0,1,1))) -> 2020-05-04 | C202: =IF(A202>$B$30,NA(),IF($A202>$A$8,"",OFFSET(InputPriceData!$G$15,CalculationsAndCharts!$A202+$A$11,IF($C$5,8,0),1,1))) -> 80873200 | D202: =IF(A202>$B$30,NA(),IF(A202>$A$8,"",OFFSET(InputPriceData!$C$15,CalculationsAndCharts!$A202+$A$11,IF($C$5,8,0),1,1))) -> 275.41 | E202: =IF(A202>$B$30,NA(),IF(A202>$A$8,"",OFFSET(InputPriceData!$D$15,CalculationsAndCharts!$A202+$A$11,IF($C$5,8,0),1,1))) -> 278.51 | F202: =IF(A202>$B$30,NA(),IF(A202>$A$8,"",OFFSET(InputPriceData!$E$15,CalculationsAndCharts!$A202+$A$11,IF($C$5,8,0),1,1))) -> 273.83 | G202: =IF(A202>$B$30,NA(),IF(A202>$A$8,"",OFFSET(InputPriceData!$F$15,CalculationsAndCharts!$A202+$A$11,IF($C$5,8,0),1,1))) -> 278.18 | H202: 2.77 | J202: -0.184 | K202: -1.431528662 | M202: -0.166 | N202: -0.2695425594 | P202: -0.0976140884 | Q202: -0.1065252919 | S202: -0.1483011851 | T202: -0.3074135053 | U202: -0.184 | V202: -0.166 | W202: -0.0976140884 | X202: -0.1483011851 | AW202: 80873200
A203: 171 | B203: =IF(A203>$B$30,NA(),IF($A203>$A$8,"",OFFSET(InputPriceData!$B$15,$A203+$A$11,0,1,1))) -> 2020-05-01 | C203: =IF(A203>$B$30,NA(),IF($A203>$A$8,"",OFFSET(InputPriceData!$G$15,CalculationsAndCharts!$A203+$A$11,IF($C$5,8,0),1,1))) -> 125180000 | D203: =IF(A203>$B$30,NA(),IF(A203>$A$8,"",OFFSET(InputPriceData!$C$15,CalculationsAndCharts!$A203+$A$11,IF($C$5,8,0),1,1))) -> 279.89 | E203: =IF(A203>$B$30,NA(),IF(A203>$A$8,"",OFFSET(InputPriceData!$D$15,CalculationsAndCharts!$A203+$A$11,IF($C$5,8,0),1,1))) -> 285.14 | F203: =IF(A203>$B$30,NA(),IF(A203>$A$8,"",OFFSET(InputPriceData!$E$15,CalculationsAndCharts!$A203+$A$11,IF($C$5,8,0),1,1))) -> 276.17 | G203: =IF(A203>$B$30,NA(),IF(A203>$A$8,"",OFFSET(InputPriceData!$F$15,CalculationsAndCharts!$A203+$A$11,IF($C$5,8,0),1,1))) -> 277.42 | H203: -2.47 | J203: 0.2655 | K203: 0.09394904459 | M203: -0.08136363636 | N203: -0.5315576144 | P203: -0.06416514675 | Q203: -0.5223869613 | S203: -0.05177334443 | T203: -0.3350675166 | U203: 0.2655 | V203: -0.08136363636 | W203: -0.06416514675 | X203: -0.05177334443 | AX203: 125180000
A204: 172 | B204: =IF(A204>$B$30,NA(),IF($A204>$A$8,"",OFFSET(InputPriceData!$B$15,$A204+$A$11,0,1,1))) -> 2020-04-30 | C204: =IF(A204>$B$30,NA(),IF($A204>$A$8,"",OFFSET(InputPriceData!$G$15,CalculationsAndCharts!$A204+$A$11,IF($C$5,8,0),1,1))) -> 122901700 | D204: =IF(A204>$B$30,NA(),IF(A204>$A$8,"",OFFSET(InputPriceData!$C$15,CalculationsAndCharts!$A204+$A$11,IF($C$5,8,0),1,1))) -> 286.17 | E204: =IF(A204>$B$30,NA(),IF(A204>$A$8,"",OFFSET(InputPriceData!$D$15,CalculationsAndCharts!$A204+$A$11,IF($C$5,8,0),1,1))) -> 287.75 | F204: =IF(A204>$B$30,NA(),IF(A204>$A$8,"",OFFSET(InputPriceData!$E$15,CalculationsAndCharts!$A204+$A$11,IF($C$5,8,0),1,1))) -> 283.11 | G204: =IF(A204>$B$30,NA(),IF(A204>$A$8,"",OFFSET(InputPriceData!$F$15,CalculationsAndCharts!$A204+$A$11,IF($C$5,8,0),1,1))) -> 284.96 | H204: -1.21 | J204: 0.236 | K204: 0.7022292994 | M204: 0.08554545455 | N204: -0.3734800232 | P204: 0.0998643591 | Q204: -0.3068760046 | S204: 0.05343785579 | T204: -0.3627291386 | U204: 0.236 | V204: 0.08554545455 | W204: 0.0998643591 | X204: 0.05343785579 | AX204: 122901700
A205: 173 | B205: =IF(A205>$B$30,NA(),IF($A205>$A$8,"",OFFSET(InputPriceData!$B$15,$A205+$A$11,0,1,1))) -> 2020-04-29 | C205: =IF(A205>$B$30,NA(),IF($A205>$A$8,"",OFFSET(InputPriceData!$G$15,CalculationsAndCharts!$A205+$A$11,IF($C$5,8,0),1,1))) -> 118745600 | D205: =IF(A205>$B$30,NA(),IF(A205>$A$8,"",OFFSET(InputPriceData!$C$15,CalculationsAndCharts!$A205+$A$11,IF($C$5,8,0),1,1))) -> 285.99 | E205: =IF(A205>$B$30,NA(),IF(A205>$A$8,"",OFFSET(InputPriceData!$D$15,CalculationsAndCharts!$A205+$A$11,IF($C$5,8,0),1,1))) -> 289.28 | F205: =IF(A205>$B$30,NA(),IF(A205>$A$8,"",OFFSET(InputPriceData!$E$15,CalculationsAndCharts!$A205+$A$11,IF($C$5,8,0),1,1))) -> 284.89 | G205: =IF(A205>$B$30,NA(),IF(A205>$A$8,"",OFFSET(InputPriceData!$F$15,CalculationsAndCharts!$A205+$A$11,IF($C$5,8,0),1,1))) -> 287.64 | H205: 1.65 | J205: 0.0155 | K205: -1.756369427 | M205: 0.2028181818 | N205: -0.2547770701 | P205: 0.1962234246 | Q205: -0.1323501694 | S205: 0.1673348053 | T205: -0.3522316689 | U205: 0.0155 | V205: 0.2028181818 | W205: 0.1962234246 | X205: 0.1673348053 | AW205: 118745600
A206: 174 | B206: =IF(A206>$B$30,NA(),IF($A206>$A$8,"",OFFSET(InputPriceData!$B$15,$A206+$A$11,0,1,1))) -> 2020-04-28 | C206: =IF(A206>$B$30,NA(),IF($A206>$A$8,"",OFFSET(InputPriceData!$G$15,CalculationsAndCharts!$A206+$A$11,IF($C$5,8,0),1,1))) -> 105270000 | D206: =IF(A206>$B$30,NA(),IF(A206>$A$8,"",OFFSET(InputPriceData!$C$15,CalculationsAndCharts!$A206+$A$11,IF($C$5,8,0),1,1))) -> 285.49 | E206: =IF(A206>$B$30,NA(),IF(A206>$A$8,"",OFFSET(InputPriceData!$D$15,CalculationsAndCharts!$A206+$A$11,IF($C$5,8,0),1,1))) -> 285.87 | F206: =IF(A206>$B$30,NA(),IF(A206>$A$8,"",OFFSET(InputPriceData!$E$15,CalculationsAndCharts!$A206+$A$11,IF($C$5,8,0),1,1))) -> 279.98 | G206: =IF(A206>$B$30,NA(),IF(A206>$A$8,"",OFFSET(InputPriceData!$F$15,CalculationsAndCharts!$A206+$A$11,IF($C$5,8,0),1,1))) -> 280.3 | H206: -5.19 | J206: 0.567 | K206: 0.2786624204 | M206: 0.2828181818 | N206: -0.3865083961 | P206: 0.2377813777 | Q206: -0.4731845972 | S206: 0.2779355493 | T206: -0.3282239174 | U206: 0.567 | V206: 0.2828181818 | W206: 0.2377813777 | X206: 0.2779355493 | AX206: 105270000
A207: 175 | B207: =IF(A207>$B$30,NA(),IF($A207>$A$8,"",OFFSET(InputPriceData!$B$15,$A207+$A$11,0,1,1))) -> 2020-04-27 | C207: =IF(A207>$B$30,NA(),IF($A207>$A$8,"",OFFSET(InputPriceData!$G$15,CalculationsAndCharts!$A207+$A$11,IF($C$5,8,0),1,1))) -> 77896600 | D207: =IF(A207>$B$30,NA(),IF(A207>$A$8,"",OFFSET(InputPriceData!$C$15,CalculationsAndCharts!$A207+$A$11,IF($C$5,8,0),1,1))) -> 279.7 | E207: =IF(A207>$B$30,NA(),IF(A207>$A$8,"",OFFSET(InputPriceData!$D$15,CalculationsAndCharts!$A207+$A$11,IF($C$5,8,0),1,1))) -> 282.79 | F207: =IF(A207>$B$30,NA(),IF(A207>$A$8,"",OFFSET(InputPriceData!$E$15,CalculationsAndCharts!$A207+$A$11,IF($C$5,8,0),1,1))) -> 279.21 | G207: =IF(A207>$B$30,NA(),IF(A207>$A$8,"",OFFSET(InputPriceData!$F$15,CalculationsAndCharts!$A207+$A$11,IF($C$5,8,0),1,1))) -> 281.6 | H207: 1.9 | J207: 0.4795 | K207: -1.474522293 | M207: 0.4041818182 | N207: -0.2029530979 | P207: 0.3863613413 | Q207: -0.1908379323 | S207: 0.3809978594 | T207: -0.3392605778 | U207: 0.4795 | V207: 0.4041818182 | W207: 0.3863613413 | X207: 0.3809978594 | AW207: 77896600
... 918 more rows

Sheet Follow
A1: Stocks and Indexes I wish to follow
A3: To ease following a stock, enter a Yahoo Finance acceptable symbol in column "A" anywhere below cell "A9".
A4: Thereafter you may doubleclick the cell containing a symbol of interest to initiate data retrieval and charting for that symbol.
A7: Symbol
A8: To | B8: Description | C8: Last Trade as of most recent check
A9: Follow | C9: Date | D9: Time | E9: Open | F9: High | G9: Low | H9: Close | I9: Volume | J9: Change | K9: Retrieved @
A10: A | B10: Agilent Technologies, Inc. (A) -NYSE (Daily) | C10: 2020-03-09 | D10: 16:04:00 | E10: 72.589996 | F10: 74.190002 | G10: 70.169998 | H10: 70.75 | I10: 4591093 | J10: -7.809998 | K10: 2020-03-09T16:59:21
A11: AA | B11: Alcoa Corporation (AA) -NYSE (Daily) | C11: 2020-01-31 | D11: 16:04:00 | E11: 14.01 | F11: 14.24 | G11: 13.62 | H11: 13.95 | I11: 9931500 | J11: -0.34 | K11: 2020-02-02T15:07:13
A12: AAL | B12: American Airlines Group Inc. (AAL) -NasdaqGS (Daily) | C12: 2020-03-09 | D12: 16:00:00 | E12: 14.87 | F12: 15.79 | G12: 14.46 | H12: 14.75 | I12: 41078614 | J12: -1.22 | K12: 2020-03-09T17:00:15
A13: AAPL | B13: Apple Inc. (AAPL) -NasdaqGS (Daily) | C13: 2020-06-17 | D13: 16:00:00 | E13: 355.149994 | F13: 355.369995 | G13: 351.089996 | H13: 351.589996 | I13: 27604481 | J13: -0.489991 | K13: 2020-06-17T17:45:34
A14: ADM | B14: Archer-Daniels-Midland Company (ADM) -NYSE (Weekly) | C14: 2018-07-13 | D14: 16:00:00 | E14: 47.5 | F14: 47.84 | G14: 47.169998 | H14: 47.57 | I14: 2402809 | J14: 0
A15: ADBE | B15: Adobe Inc. (ADBE) -NasdaqGS (Daily) | C15: 2020-06-17 | D15: 16:00:00 | E15: 414 | F15: 417.425995 | G15: 411.429993 | H15: 413.48999 | I15: 2026063 | J15: 1.819977 | K15: 2020-06-17T17:42:59
A16: ALGN | B16: Align Technology, Inc. (ALGN) -NasdaqGS (Daily) | C16: 2020-01-30 | D16: 16:00:00 | E16: 248.740005 | F16: 264.450012 | G16: 248.350006 | H16: 262.890015 | I16: 1833160 | J16: 1.290009
A17: AMC | B17: AMC Entertainment Holdings, Inc. (AMC) -NYSE (Weekly) | C17: 2018-07-13 | D17: 16:02:00 | E17: 17.049999 | F17: 17.15 | G17: 16.525 | H17: 17.049999 | I17: 1442776 | J17: 0
A18: AMD | B18: Advanced Micro Devices, Inc. (AMD) -NasdaqGS (Daily) | C18: 2020-08-19 | D18: 12:40:00 | E18: 81.775703 | F18: 81.849998 | G18: 80.449997 | H18: 80.760002 | I18: 18434143 | J18: -0.900002 | K18: 2020-08-19T12:40:49
A19: BSX | B19: Boston Scientific Corporation C (BSX) -NYQ (Daily) | C19: 2015-03-13 | D19: 16:01:00 | E19: 16.84 | F19: 16.91 | G19: 16.44 | H19: 16.61 | I19: 7262460 | J19: -0.28
A20: CASY | B20: Casey's General Stores, Inc. (CASY) -NasdaqGS (Daily) | C20: 2019-04-10 | D20: 16:00:00 | E20: 128.979996 | F20: 130.330002 | G20: 128.779999 | H20: 130.179993 | I20: 351300 | J20: 1.489991
A21: CAT | B21: Caterpillar Inc. (CAT) -NYSE (Daily) | C21: 2020-03-13 | D21: 11:48:00 | E21: 98.389999 | F21: 99.910004 | G21: 90.150101 | H21: 90.269997 | I21: 3568294 | J21: -1.990005 | K21: 2020-03-13T11:48:53
A22: CSCO | B22: Cisco Systems, In (CSCO) -NasdaqNM (Daily) | C22: 2015-02-19 | D22: 16:00:00 | E22: 29.32 | F22: 29.39 | G22: 29.13 | H22: 29.31 | I22: 21469012 | J22: -0.18
A23: CVS | B23: CVS Health Corporation (CVS) -NYSE (Daily) | C23: 2020-03-09 | D23: 16:07:00 | E23: 59.75 | F23: 63 | G23: 59.599998 | H23: 61.299999 | I23: 13065424 | J23: -2.850003 | K23: 2020-03-09T17:51:54
A24: DIS | B24: The Walt Disney Company (DIS) -NYSE (Daily) | C24: 2020-03-09 | D24: 16:07:00 | E24: 108.690002 | F24: 110.43 | G24: 104.279999 | H24: 104.349998 | I24: 26101127 | J24: -10.919999 | K24: 2020-03-09T16:59:51
A25: F | B25: Ford Motor Company (F) -NYSE (Daily) | C25: 2020-01-31 | D25: 16:03:00 | E25: 8.78 | F25: 8.84 | G25: 8.74 | H25: 8.82 | I25: 59781000 | J25: -0.02 | K25: 2020-02-02T15:09:03
A26: FAS | B26: Direxion Daily Financial Bull 3X ETF (FAS) -NYSEArca (Daily) | C26: 2017-10-13 | D26: 16:00:00 | E26: 58.099998 | F26: 58.939999 | G26: 57.43 | H26: 58.450001 | I26: 1709300 | J26: 0.07
A27: FB | B27: Facebook, Inc. (FB) -NasdaqGS (Daily) | C27: 2020-02-14 | D27: 16:00:00 | E27: 214 | F27: 214.929993 | G27: 212.649994 | H27: 214.179993 | I27: 10727400 | J27: 1.039994 | K27: 2020-02-15T17:19:34
A28: GSK | B28: GlaxoSmithKline plc (GSK) -NYSE (Daily) | C28: 2021-01-15 | D28: 16:00:00 | E28: 38.41 | F28: 38.66 | G28: 38.209999 | H28: 38.470001 | I28: 3100400 | J28: 0.310001 | K28: 2021-01-17T18:07:58
A29: GDX | B29: VanEck Vectors Gold Miners ETF (GDX) -NYSEArca (Daily) | C29: 2020-01-31 | D29: 16:00:00 | E29: 28.799999 | F29: 29.24 | G29: 28.76 | H29: 28.99 | I29: 41946000 | J29: 0.26 | K29: 2020-02-02T15:11:17
A30: GOOG | B30: Alphabet Inc. (GOOG) -NasdaqGS (Daily) | C30: 2021-06-10 | D30: 16:00:00 | E30: 2494.01001 | F30: 2523.26001 | G30: 2494.01001 | H30: 2521.600098 | I30: 1390763 | J30: 30.200196 | K30: 2021-06-10T16:45:42
A31: HAL | B31: Halliburton Company (HAL) -NYSE (Daily) | C31: 2020-09-17 | D31: 11:11:00 | E31: 14.73 | F31: 14.945 | G31: 14.57 | H31: 14.91 | I31: 4265279 | J31: -0.16 | K31: 2020-09-17T11:11:52
A32: HD | B32: The Home Depot, Inc. (HD) -NYSE (Daily) | C32: 2020-03-13 | D32: 11:54:00 | E32: 200.449997 | F32: 201.179993 | G32: 192.270096 | H32: 193.449997 | I32: 3274582 | J32: 2.860001 | K32: 2020-03-13T11:54:29
A33: HSY | B33: The Hershey Company (HSY) -NYSE (Daily) | C33: 2021-01-15 | D33: 16:00:00 | E33: 147.089996 | F33: 149.490005 | G33: 146.880005 | H33: 148.460007 | I33: 1193700 | J33: 1.040009 | K33: 2021-01-17T18:06:10
A34: HTLD | B34: Heartland Express, Inc. (HTLD) -NasdaqGS (Daily) | C34: 2020-03-09 | D34: 16:00:00 | E34: 17.33 | F34: 17.690001 | G34: 16.82 | H34: 16.879999 | I34: 284762 | J34: -1.280001 | K34: 2020-03-09T17:00:56
A35: IDEX | B35: Ideanomics, Inc. (IDEX) -NasdaqGS (Daily) | C35: 2021-02-19 | D35: 10:11:00 | E35: 3.99 | F35: 4.15 | G35: 3.88 | H35: 3.92 | I35: 8623006 | J35: 0.19 | K35: 2021-02-19T10:11:40
A36: IBM | B36: International Business Machines Corporation (IBM) -NYSE (Daily) | C36: 2021-02-09 | D36: 16:00:00 | E36: 121.900002 | F36: 122.565002 | G36: 121.050003 | H36: 122.099998 | I36: 4173266 | J36: -1.510003 | K36: 2021-02-09T17:01:49
A37: INTC | B37: Intel Corporation (INTC) -NasdaqGS (Daily) | C37: 2020-02-14 | D37: 16:00:00 | E37: 67.519997 | F37: 67.860001 | G37: 66.82 | H37: 67.269997 | I37: 13402800 | J37: -0.170005 | K37: 2020-02-15T17:21:41
A38: JAH | B38: Jarden Corporation Common Stock (JAH) -NYQ (Daily) | C38: 2016-01-08 | D38: 16:02:00 | E38: 53.82 | F38: 53.88 | G38: 52.65 | H38: 52.73 | I38: 4519480 | J38: -0.81
A39: JNJ | B39: Johnson & Johnson (JNJ) -NYSE (Daily) | C39: 2019-08-14 | D39: 10:33:00 | E39: 132.529999 | F39: 132.539993 | G39: 131.419998 | H39: 131.759995 | I39: 870520 | J39: -0.169998
A40: KO | B40: The Coca-Cola Company (KO) -NYSE (Daily) | C40: 2020-03-09 | D40: 16:07:00 | E40: 52.049999 | F40: 53.580002 | G40: 51.474998 | H40: 51.860001 | I40: 27771279 | J40: -3.399997 | K40: 2020-03-09T17:05:43
A41: LOW | B41: Lowe's Companies, Inc. (LOW) -NYSE (Daily) | C41: 2020-03-09 | D41: 16:03:00 | E41: 97.82 | F41: 99.82 | G41: 93.150101 | H41: 94.220001 | I41: 8167579 | J41: -11.089997 | K41: 2020-03-09T16:57:19
A42: LMT | B42: Lockheed Martin Corporation (LMT) -NYSE (Daily) | C42: 2021-02-09 | D42: 16:04:00 | E42: 338.540009 | F42: 344.48999 | G42: 336.570007 | H42: 342.339996 | I42: 1545066 | J42: 4.5 | K42: 2021-02-09T16:56:05
A43: MCD | B43: McDonald's Corporation (MCD) -NYSE (Daily) | C43: 2020-03-09 | D43: 16:01:00 | E43: 187.669998 | F43: 194.470001 | G43: 184.100006 | H43: 186.860001 | I43: 7601343 | J43: -12 | K43: 2020-03-09T16:58:16
A44: MDT | B44: Medtronic plc (MDT) -NYSE (Daily) | C44: 2020-03-09 | D44: 16:07:00 | E44: 94.019997 | F44: 95.470001 | G44: 91.709999 | H44: 92.400002 | I44: 9000931 | J44: -6.659996 | K44: 2020-03-09T17:48:45
A45: MGM | B45: MGM Resorts International (MGM) -NYSE (Daily) | C45: 2020-03-09 | D45: 16:02:00 | E45: 18.6 | F45: 19.58 | G45: 17.530001 | H45: 17.879999 | I45: 26050818 | J45: -2.51 | K45: 2020-03-09T17:13:53
A46: MO | B46: Altria Group, Inc. (MO) -NYSE (Daily) | C46: 2020-01-31 | D46: 16:05:00 | E46: 48.25 | F46: 48.799999 | G46: 47.240002 | H46: 47.529999 | I46: 11790800 | J46: -0.470001 | K46: 2020-02-02T15:20:55
A47: MSFT | B47: Microsoft Corporation (MSFT) -NasdaqGS (Daily) | C47: 2020-03-09 | D47: 16:00:00 | E47: 151 | F47: 157.75 | G47: 150 | H47: 150.619995 | I47: 69167627 | J47: -10.950012 | K47: 2020-03-09T17:06:41
A48: NFLX | B48: Netflix, Inc. (NFLX) -NasdaqGS (Daily) | C48: 2020-03-09 | D48: 16:00:00 | E48: 343.859985 | F48: 357.470001 | G48: 341.720886 | H48: 346.48999 | I48: 6746188 | J48: -22.480011 | K48: 2020-03-09T17:23:37
A49: NUGT | B49: Direxion Daily Gold Miners Index Bull 3X Shares (NUGT) -NYSEArca (Daily) | C49: 2020-01-31 | D49: 16:00:00 | E49: 32.439999 | F49: 33.830002 | G49: 32.240002 | H49: 33.02 | I49: 11325200 | J49: 0.84 | K49: 2020-02-02T15:21:51
A50: NVS | B50: Novartis AG (NVS) -NYSE (Daily) | C50: 2020-03-06 | D50: 16:02:00 | E50: 84.330002 | F50: 85.830002 | G50: 83.970001 | H50: 85.720001 | I50: 5624700 | J50: -0.089997 | K50: 2020-03-08T16:56:35
A51: NVDA | B51: NVIDIA Corporation (NVDA) -NasdaqGS (Daily) | C51: 2020-12-14 | D51: 16:00:00 | E51: 523.515015 | F51: 535.549988 | G51: 523.099976 | H51: 532.349976 | I51: 6580666 | J51: 11.819947 | K51: 2020-12-14T18:31:17
A52: PRU | B52: Prudential Financial, Inc. (PRU) -NYSE (Daily) | C52: 2020-03-09 | D52: 16:02:00 | E52: 63.75 | F52: 65.830002 | G52: 57.375 | H52: 58.240002 | I52: 7614493 | J52: -11.569996 | K52: 2020-03-09T17:11:43
A53: PSEC | B53: Prospect Capital Corporation (PSEC) -NasdaqGS (Daily) | C53: 2020-02-14 | D53: 16:00:00 | E53: 6.53 | F53: 6.56 | G53: 6.51 | H53: 6.52 | I53: 1235500 | J53: -0.04 | K53: 2020-02-15T14:43:16
A54: RPM | B54: RPM International Inc. (RPM) -NYSE (Daily) | C54: 2020-03-09 | D54: 16:02:00 | E54: 64.470001 | F54: 66.730003 | G54: 63.5 | H54: 65.290001 | I54: 1115882 | J54: -2.919998 | K54: 2020-03-09T17:10:08
A55: RSP | B55: Invesco S&P 500 Equal Weight ETF (RSP) -NYSEArca (Daily) | C55: 2020-01-31 | D55: 16:00:00 | E55: 115.279999 | F55: 115.32 | G55: 113.230003 | H55: 113.540001 | I55: 747600 | J55: -2.309997 | K55: 2020-02-02T15:28:52
A56: SPR | B56: Spirit AeroSystems Holdings, Inc. (SPR) -NYSE (Daily) | C56: 2020-03-09 | D56: 16:06:00 | E56: 43.700001 | F56: 43.880001 | G56: 41.5 | H56: 42.139999 | I56: 2091368 | J56: -5.23 | K56: 2020-03-09T17:09:37
A57: SQ | B57: Square, Inc. (SQ) -NYSE (Daily) | C57: 2020-10-02 | D57: 16:00:00 | E57: 164.050003 | F57: 171.240005 | G57: 163.800995 | H57: 169.610001 | I57: 11150500 | J57: 1.119996 | K57: 2020-10-04T20:00:52
A58: SWKS | B58: Skyworks Solutions, Inc. (SWKS) -NasdaqGS (Daily) | C58: 2020-01-31 | D58: 16:00:00 | E58: 115.5 | F58: 115.739998 | G58: 112.720001 | H58: 113.150002 | I58: 2444600 | J58: -3.080001 | K58: 2020-02-02T15:26:46
A59: TOL | B59: Toll Brothers, Inc. (TOL) -NYSE (Daily) | C59: 2020-03-09 | D59: 16:07:00 | E59: 34.759998 | F59: 35.314999 | G59: 32.060001 | H59: 34.110001 | I59: 3127968 | J59: -2.86 | K59: 2020-03-09T17:12:09
A60: TSLA | B60: Tesla, Inc. (TSLA) -NasdaqGS (Daily) | C60: 2020-03-13 | D60: 12:08:00 | E60: 595 | F60: 607.570007 | G60: 502.01001 | H60: 510 | I60: 12224537 | J60: -50.549988 | K60: 2020-03-13T12:08:39
A61: TXN | B61: Texas Instruments Incorporated (TXN) -NasdaqGS (Daily) | C61: 2020-06-19 | D61: 11:30:00 | E61: 128.059998 | F61: 128.179993 | G61: 126.07 | H61: 126.370003 | I61: 2078988 | J61: 0.39 | K61: 2020-06-19T11:31:00
A62: UNP | B62: Union Pacific Corporation (UNP) -NYSE (Daily) | C62: 2020-03-09 | D62: 16:07:00 | E62: 145.199997 | F62: 145.580002 | G62: 133.179993 | H62: 135.839996 | I62: 9380024 | J62: -20.25 | K62: 2020-03-09T17:11:21
A63: VZ | B63: Verizon Communications Inc. (VZ) -NYSE (Daily) | C63: 2019-04-10 | D63: 16:00:00 | E63: 58.400002 | F63: 58.700001 | G63: 58.360001 | H63: 58.610001 | I63: 8022000 | J63: 0.209999
A64: WBA | B64: Walgreens Boots Alliance, Inc. (WBA) -NasdaqGS (Daily) | C64: 2020-01-31 | D64: 16:00:00 | E64: 51.709999 | F64: 51.919998 | G64: 50.66 | H64: 50.849998 | I64: 6532300 | J64: -1.100003 | K64: 2020-02-02T15:28:06
A65: WMT | B65: Walmart Inc. (WMT) -NYSE (Daily) | C65: 2020-03-09 | D65: 16:01:00 | E65: 113.82 | F65: 120.629997 | G65: 112.730003 | H65: 117.160004 | I65: 19567750 | J65: -0.069999 | K65: 2020-03-09T17:10:39
A67: ^AEX | B67: AEX-INDEX (^AEX) -Amsterdam (Daily) | C67: 2020-03-09 | D67: 18:05:00 | E67: 506.950012 | F67: 506.950012 | G67: 485.730011 | H67: 490.660004 | I67: 0 | J67: -40.629974 | K67: 2020-03-09T17:41:58
A68: ^AORD | B68: ALL ORDINARIES (^AORD) -ASX (Daily) | C68: 2020-03-09 | D68: 16:17:00 | E68: 6472.399902 | F68: 6287.299805 | G68: 5822.399902 | H68: 5822.399902 | I68: 0 | J68: -465.100098 | K68: 2020-03-09T17:45:59
A69: ^DJI | B69: Dow Jones Industrial Average (^DJI) -DJI (Daily) | C69: 2021-01-15 | D69: 17:18:00 | E69: 30926.76953 | F69: 30941.98047 | G69: 30612.66992 | H69: 30814.25977 | I69: 433000000 | J69: -177.259765 | K69: 2021-01-18T09:45:18
A70: ^FTSE | B70: FTSE 100 (^FTSE) -FTSE Index (Daily) | C70: 2020-03-09 | D70: 16:45:00 | E70: 6462.549805 | F70: 6462.549805 | G70: 5891.560059 | H70: 5965.77002 | I70: 0 | J70: -496.830078 | K70: 2020-03-09T17:43:57
A71: ^GSPC | B71: S&P 500 (^GSPC) -SNP (Daily) | C71: 2021-06-18 | D71: 12:45:00 | E71: 4204.779785 | F71: 4204.779785 | G71: 4172.109863 | H71: 4181.169922 | I71: 1341384000 | J71: 4181.169922 | K71: 2021-06-18T12:45:53
A72: ^HSI | B72: HANG SENG INDEX (^HSI) -HKSE (Daily) | C72: 2020-03-09 | D72: 16:08:00 | E72: 25134.01953 | F72: 25321.2793 | G72: 24948.38086 | H72: 25040.46094 | I72: 0 | J72: -1106.208984 | K72: 2020-03-09T17:39:06
A73: ^MID | B73: S&P MID CAP 400 INDEX (^MID) -NYSE (Daily) | C73: 2020-02-14 | D73: 16:06:00 | E73: 2099.459961 | F73: 2100.51001 | G73: 2089.610107 | H73: 2096.610107 | I73: 0 | J73: -0.679932 | K73: 2020-02-14T21:04:41
A74: ^NDX | B74: NASDAQ 100 (^NDX) -Nasdaq GIDS (Daily) | C74: 2021-06-17 | D74: 17:15:00 | E74: 13946.70019 | F74: 14205.43457 | G74: 13946.52148 | H74: 14163.80859 | I74: 618547720 | J74: 180.798828 | K74: 2021-06-18T09:08:44
A75: ^NYA | B75: NYSE COMPOSITE (DJ) (^NYA) -NYSE (Weekly) | C75: 2021-01-11 | D75: 16:10:00 | E75: 14828.03027 | F75: 15129.12012 | G75: 14791.65039 | H75: 14894.16992 | I75: 24551330000 | J75: -72.660156 | K75: 2021-01-18T09:10:33
A76: ^OEX | B76: S&P 100 INDEX (^OEX) -Chicago Options (Daily) | C76: 2019-09-13 | D76: 16:56:00 | E76: 1332.27002 | F76: 1334.420044 | G76: 1328.73999 | H76: 1330.969971 | I76: 3520060000 | J76: -1.010009
A77: ^RUT | B77: Russell 2000 (^RUT) -Chicago Options (Daily) | C77: 2021-01-15 | D77: 16:00:00 | E77: 2154.689941 | F77: 2154.689941 | G77: 2102.530029 | H77: 2123.199951 | I77: 53530600 | J77: -32.150147 | K77: 2021-01-18T08:41:42
A78: ^SSEC | B78: SSE Composite Index (^SSEC) -Shanghai (Daily) | C78: 2020-03-09 | D78: 15:00:00 | E78: 3039.939453 | F78: 2989.205078 | G78: 2940.713867 | H78: 2943.290771 | I78: 2801367936 | J78: -388.231202 | K78: 2020-03-09T17:38:09
A79: ^VIX | B79: CBOE Volatility Index (^VIX) -Chicago Options (Daily) | C79: 2020-03-09 | D79: 16:14:00 | E79: 41.939999 | F79: 62.119999 | G79: 41.939999 | H79: 54.459999 | I79: 0 | J79: 12.52 | K79: 2020-03-09T17:38:36
A80: IWM | B80: iShares Russell 2000 ETF (IWM) -NYSEArca (Daily) | C80: 2021-02-19 | D80: 09:56:00 | E80: 222.460007 | F80: 223.080002 | G80: 222.169998 | H80: 222.970001 | I80: 3614630 | J80: 2.380005 | K80: 2021-02-19T09:56:07
A81: QQQ | B81: Invesco QQQ Trust (QQQ) -NasdaqGM (Daily) | C81: 2020-08-27 | D81: 15:01:00 | E81: 293.079987 | F81: 293.851013 | G81: 288.704987 | H81: 291.994995 | I81: 41822663 | J81: 0.035004 | K81: 2020-08-27T15:02:03
A82: XLE | B82: Energy Select Sector SPDR Fund (XLE) -NYSEArca (Daily) | C82: 2020-07-10 | D82: 16:00:00 | E82: 34.240002 | F82: 35.580002 | G82: 34.240002 | H82: 35.540001 | I82: 25223900 | J82: 1.100002 | K82: 2020-07-11T16:34:13
A83: SPY | B83: SPDR S&P 500 ETF Trust (SPY) -NYSEArca (Daily) | C83: 2021-07-16 | D83: 16:00:00 | E83: 436.01001 | F83: 436.059998 | G83: 430.920013 | H83: 431.339996 | I83: 75784700 | J83: -3.410004 | K83: 2021-07-17T18:35:45
A85: ACAD | B85: ACADIA Pharmaceut (ACAD) -NasdaqNM (Daily) | C85: 2014-07-21 | D85: 16:00:00 | E85: 20.13 | F85: 20.55 | G85: 19.8101 | H85: 20.31 | I85: 691016
A86: CLDX | B86: Celldex Therapeut (CLDX) -NasdaqNM (Daily) | C86: 2015-02-02 | D86: 16:00:00 | E86: 21.47 | F86: 21.69 | G86: 20.11 | H86: 21.02 | I86: 1570418 | J86: -0.4
A87: ICPT | B87: Intercept Pharmac (ICPT) -NasdaqNM (Daily) | C87: 2014-07-21 | D87: 16:00:00 | E87: 215.97 | F87: 218.43 | G87: 213.05 | H87: 218.14 | I87: 191276
A88: INO | B88: Inovio Pharmaceut (INO) -AMEX (Daily) | C88: 2014-07-21 | D88: 16:00:00 | E88: 10.3 | F88: 11.08 | G88: 10.1 | H88: 11.01 | I88: 1800796
A89: JCP | B89: J. C. Penney Company, Inc. (JCP) -NYSE (Daily) | C89: 2017-12-07 | D89: 16:01:00 | E89: 3.34 | F89: 3.4 | G89: 3.25 | H89: 3.27 | I89: 14485464 | J89: -0.07
A90: LCI | B90: Lannett Co Inc Co (LCI) -NYSE (Daily) | C90: 2014-07-21 | D90: 16:02:00 | E90: 38.09 | F90: 38.803 | G90: 36.5101 | H90: 37.76 | I90: 611367
A91: NPSP | B91: NPS Pharmaceutica (NPSP) -NasdaqNM (Daily) | C91: 2014-07-21 | D91: 15:59:00 | E91: 28.75 | F91: 29.43 | G91: 28.31 | H91: 29.29 | I91: 1126758
A92: PBYI | B92: Puma Biotechnolog (PBYI) -NYSE (Daily) | C92: 2014-07-21 | D92: 16:02:00 | E92: 58.27 | F92: 59.46 | G92: 57.39 | H92: 58.98 | I92: 348030

Sheet Normalized
B1: Normalized Coefficients
B2: Determined by dividing each calculated coefficient
B3: by the sum of the coefficients
B5: =CalculationsAndCharts!I31 -> SMA(20) Coefs | C5: =CalculationsAndCharts!L31 -> Triangle(20) Coefs | D5: =CalculationsAndCharts!O31 -> Hamming(20,10) Coefs | E5: =CalculationsAndCharts!R31 -> Hann(20) Coefs
A7: 1 | B7: =CalculationsAndCharts!I33/CalculationsAndCharts!$I$54 -> 0.05 | C7: =CalculationsAndCharts!L33/CalculationsAndCharts!$L$54 -> 0.009090909091 | D7: =CalculationsAndCharts!O33/CalculationsAndCharts!$O$54 -> 0.01281486133 | E7: =CalculationsAndCharts!R33/CalculationsAndCharts!$R$54 -> 0.002115580677
A8: 2 | B8: =CalculationsAndCharts!I34/CalculationsAndCharts!$I$54 -> 0.05 | C8: =CalculationsAndCharts!L34/CalculationsAndCharts!$L$54 -> 0.01818181818 | D8: =CalculationsAndCharts!O34/CalculationsAndCharts!$O$54 -> 0.02331994701 | E8: =CalculationsAndCharts!R34/CalculationsAndCharts!$R$54 -> 0.00827434408
A9: 3 | B9: =CalculationsAndCharts!I35/CalculationsAndCharts!$I$54 -> 0.05 | C9: =CalculationsAndCharts!L35/CalculationsAndCharts!$L$54 -> 0.02727272727 | D9: =CalculationsAndCharts!O35/CalculationsAndCharts!$O$54 -> 0.03332218886 | E9: =CalculationsAndCharts!R35/CalculationsAndCharts!$R$54 -> 0.01792905705
A10: 4 | B10: =CalculationsAndCharts!I36/CalculationsAndCharts!$I$54 -> 0.05 | C10: =CalculationsAndCharts!L36/CalculationsAndCharts!$L$54 -> 0.03636363636 | D10: =CalculationsAndCharts!O36/CalculationsAndCharts!$O$54 -> 0.04260591033 | E10: =CalculationsAndCharts!R36/CalculationsAndCharts!$R$54 -> 0.03022185598
A11: 5 | B11: =CalculationsAndCharts!I37/CalculationsAndCharts!$I$54 -> 0.05 | C11: =CalculationsAndCharts!L37/CalculationsAndCharts!$L$54 -> 0.04545454545 | D11: =CalculationsAndCharts!O37/CalculationsAndCharts!$O$54 -> 0.05097092821 | E11: =CalculationsAndCharts!R37/CalculationsAndCharts!$R$54 -> 0.04406047173
A12: 6 | B12: =CalculationsAndCharts!I38/CalculationsAndCharts!$I$54 -> 0.05 | C12: =CalculationsAndCharts!L38/CalculationsAndCharts!$L$54 -> 0.05454545455 | D12: =CalculationsAndCharts!O38/CalculationsAndCharts!$O$54 -> 0.05823686911 | E12: =CalculationsAndCharts!R38/CalculationsAndCharts!$R$54 -> 0.05821528257
A13: 7 | B13: =CalculationsAndCharts!I39/CalculationsAndCharts!$I$54 -> 0.05 | C13: =CalculationsAndCharts!L39/CalculationsAndCharts!$L$54 -> 0.06363636364 | D13: =CalculationsAndCharts!O39/CalculationsAndCharts!$O$54 -> 0.06424705886 | E13: =CalculationsAndCharts!R39/CalculationsAndCharts!$R$54 -> 0.07142857143
A14: 8 | B14: =CalculationsAndCharts!I40/CalculationsAndCharts!$I$54 -> 0.05 | C14: =CalculationsAndCharts!L40/CalculationsAndCharts!$L$54 -> 0.07272727273 | D14: =CalculationsAndCharts!O40/CalculationsAndCharts!$O$54 -> 0.06887190082 | E14: =CalculationsAndCharts!R40/CalculationsAndCharts!$R$54 -> 0.08252627961
A15: 9 | B15: =CalculationsAndCharts!I41/CalculationsAndCharts!$I$54 -> 0.05 | C15: =CalculationsAndCharts!L41/CalculationsAndCharts!$L$54 -> 0.08181818182 | D15: =CalculationsAndCharts!O41/CalculationsAndCharts!$O$54 -> 0.07201167034 | E15: =CalculationsAndCharts!R41/CalculationsAndCharts!$R$54 -> 0.09052232704
A16: 10 | B16: =CalculationsAndCharts!I42/CalculationsAndCharts!$I$54 -> 0.05 | C16: =CalculationsAndCharts!L42/CalculationsAndCharts!$L$54 -> 0.09090909091 | D16: =CalculationsAndCharts!O42/CalculationsAndCharts!$O$54 -> 0.07359866514 | E16: =CalculationsAndCharts!R42/CalculationsAndCharts!$R$54 -> 0.09470622982
A17: 11 | B17: =CalculationsAndCharts!I43/CalculationsAndCharts!$I$54 -> 0.05 | C17: =CalculationsAndCharts!L43/CalculationsAndCharts!$L$54 -> 0.09090909091 | D17: =CalculationsAndCharts!O43/CalculationsAndCharts!$O$54 -> 0.07359866514 | E17: =CalculationsAndCharts!R43/CalculationsAndCharts!$R$54 -> 0.09470622982
A18: 12 | B18: =CalculationsAndCharts!I44/CalculationsAndCharts!$I$54 -> 0.05 | C18: =CalculationsAndCharts!L44/CalculationsAndCharts!$L$54 -> 0.08181818182 | D18: =CalculationsAndCharts!O44/CalculationsAndCharts!$O$54 -> 0.07201167034 | E18: =CalculationsAndCharts!R44/CalculationsAndCharts!$R$54 -> 0.09052232704
A19: 13 | B19: =CalculationsAndCharts!I45/CalculationsAndCharts!$I$54 -> 0.05 | C19: =CalculationsAndCharts!L45/CalculationsAndCharts!$L$54 -> 0.07272727273 | D19: =CalculationsAndCharts!O45/CalculationsAndCharts!$O$54 -> 0.06887190082 | E19: =CalculationsAndCharts!R45/CalculationsAndCharts!$R$54 -> 0.08252627961
A20: 14 | B20: =CalculationsAndCharts!I46/CalculationsAndCharts!$I$54 -> 0.05 | C20: =CalculationsAndCharts!L46/CalculationsAndCharts!$L$54 -> 0.06363636364 | D20: =CalculationsAndCharts!O46/CalculationsAndCharts!$O$54 -> 0.06424705886 | E20: =CalculationsAndCharts!R46/CalculationsAndCharts!$R$54 -> 0.07142857143
A21: 15 | B21: =CalculationsAndCharts!I47/CalculationsAndCharts!$I$54 -> 0.05 | C21: =CalculationsAndCharts!L47/CalculationsAndCharts!$L$54 -> 0.05454545455 | D21: =CalculationsAndCharts!O47/CalculationsAndCharts!$O$54 -> 0.05823686911 | E21: =CalculationsAndCharts!R47/CalculationsAndCharts!$R$54 -> 0.05821528257
A22: 16 | B22: =CalculationsAndCharts!I48/CalculationsAndCharts!$I$54 -> 0.05 | C22: =CalculationsAndCharts!L48/CalculationsAndCharts!$L$54 -> 0.04545454545 | D22: =CalculationsAndCharts!O48/CalculationsAndCharts!$O$54 -> 0.05097092821 | E22: =CalculationsAndCharts!R48/CalculationsAndCharts!$R$54 -> 0.04406047173
A23: 17 | B23: =CalculationsAndCharts!I49/CalculationsAndCharts!$I$54 -> 0.05 | C23: =CalculationsAndCharts!L49/CalculationsAndCharts!$L$54 -> 0.03636363636 | D23: =CalculationsAndCharts!O49/CalculationsAndCharts!$O$54 -> 0.04260591033 | E23: =CalculationsAndCharts!R49/CalculationsAndCharts!$R$54 -> 0.03022185598
A24: 18 | B24: =CalculationsAndCharts!I50/CalculationsAndCharts!$I$54 -> 0.05 | C24: =CalculationsAndCharts!L50/CalculationsAndCharts!$L$54 -> 0.02727272727 | D24: =CalculationsAndCharts!O50/CalculationsAndCharts!$O$54 -> 0.03332218886 | E24: =CalculationsAndCharts!R50/CalculationsAndCharts!$R$54 -> 0.01792905705
A25: 19 | B25: =CalculationsAndCharts!I51/CalculationsAndCharts!$I$54 -> 0.05 | C25: =CalculationsAndCharts!L51/CalculationsAndCharts!$L$54 -> 0.01818181818 | D25: =CalculationsAndCharts!O51/CalculationsAndCharts!$O$54 -> 0.02331994701 | E25: =CalculationsAndCharts!R51/CalculationsAndCharts!$R$54 -> 0.00827434408
A26: 20 | B26: =CalculationsAndCharts!I52/CalculationsAndCharts!$I$54 -> 0.05 | C26: =CalculationsAndCharts!L52/CalculationsAndCharts!$L$54 -> 0.009090909091 | D26: =CalculationsAndCharts!O52/CalculationsAndCharts!$O$54 -> 0.01281486133 | E26: =CalculationsAndCharts!R52/CalculationsAndCharts!$R$54 -> 0.002115580677
A27: Total: | B27: =SUM(B7:B26) -> 1 | C27: =SUM(C7:C26) -> 1 | D27: =SUM(D7:D26) -> 1 | E27: =SUM(E7:E26) -> 1
